Workbook

Sheet Índice - Index
A17: Relações com Investidores
A19: Dados pró-forma - Consideram-se os resultados proporcionais de: Renovias (40%), ViaRio (66,66%) e o Aeroporto Internacional de Quito (46,5%)

Sheet Balanço Patrimonial - Pró-Forma
M1: Balanço Patrimonial - Pró-Forma
A2: Balanço Patrimonial - PRÓ-FORMA (milhares de R$) | B2: Balance Sheet - PRO FORMA (R$ thousand) | C2: 4T23 | D2: 3T23 | E2: 2T23 | F2: 1T23 | G2: 4T22 | H2: 3T22 | I2: 2T22 | J2: 1T22 | K2: 4T21 | L2: 3T21 | M2: 2T21 | N2: 1T21 | O2: 4T20 | P2: 3T20 | Q2: 2T20 | R2: 1T20 | S2: 4T19 | T2: 3T19 | U2: 2T19 | V2: 1T19 | W2: 4T18 | X2: 3T18 | Y2: 2T18 | Z2: 1T18 | AA2: 4T17 | AB2: 3T17 | AC2: 2T17 | AD2: 1T17 | AE2: 4T16 | AF2: 3T16 | AG2: 2T16 | AH2: 1T16 | AI2: 4T15 | AJ2: 3T15 | AK2: 2T15 | AL2: 1T15 | AM2: 4T14 | AN2: 3T14 | AO2: 2T14 | AP2: 1T14 | AQ2: 4T13 | AR2: 3T13 | AS2: 2T13 | AT2: 1T13 | AU2: 4T12 | AV2: 3T12 | AW2: 2T12 | AX2: 1T12 | AY2: 4T11 | AZ2: 3T11 | BA2: 2T11 | BB2: 1T11 | BC2: 4T10 | BD2: 3T10 | BE2: 2T10 | BF2: 1T10 | BG2: 4T09 | BH2: 3T09 | BI2: 2T09 | BJ2: 1T09 | BK2: 4T08 | BL2: 3T08 | BM2: 2T08 | BN2: 1T08 | BO2: 4T07 | BP2: 3T07 | BQ2: 2T07 | BR2: 1T07 | BS2: 4T06 | BT2: 3T06 | BU2: 2T06 | BV2: 1T06 | BW2: 4T05 | BX2: 3T05 | BY2: 2T05 | BZ2: 1T05 | CA2: 4T04 | CB2: 3T04 | CC2: 2T04 | CD2: 1T04 | CE2: 4T03 | CF2: 3T03 | CG2: 2T03 | CH2: 1T03 | CI2: 4T02 | CJ2: 3T02 | CK2: 2T02
A3: TOTAL DO ATIVO | B3: TOTAL ASSETS | C3: 56697583 | D3: 54922718 | E3: 56686043 | F3: 52785370.83 | G3: 52585989.84 | H3: 52272642 | I3: 49833116 | J3: 48927285 | K3: 43418337 | L3: 41391298 | M3: 38227896 | N3: 36585637 | O3: 35430769 | P3: 37396462 | Q3: 37007695 | R3: 35895296 | S3: 34968972 | T3: 33962523 | U3: 32940804 | V3: 33320099 | W3: 32351916 | X3: 33925381 | Y3: 32269416 | Z3: 33047280 | AA3: 32458708 | AB3: 30749623 | AC3: 30120324 | AD3: 29872599 | AE3: 26767920 | AF3: 26122651 | AG3: 24697410 | AH3: 25280433 | AI3: 24440991 | AJ3: 23621589 | AK3: 21715905 | AL3: 20937733 | AM3: 19177416 | AN3: 19107384 | AO3: 16934393 | AP3: 16535831 | AQ3: 15782142 | AR3: 15655085 | AS3: 14919848 | AT3: 14608490 | AU3: 14305826 | AV3: 14612522 | AW3: 13887781 | AX3: 13171442 | AY3: 12851366 | AZ3: 12668764 | BA3: 12988610 | BB3: 13026912 | BC3: 12767531 | BD3: 9718718 | BE3: 9998250 | BF3: 9477576 | BG3: 10390004 | BH3: 7436631 | BI3: 6862903 | BJ3: 6677860 | BK3: 6270575 | BL3: 5407937 | BM3: 4788571 | BN3: 4449079 | BO3: 4228700 | BP3: 4076263 | BQ3: 3833664 | BR3: 3937551 | BS3: 3798388 | BT3: 3783527 | BU3: 3537775 | BV3: 3454745 | BW3: 3424538 | BX3: 3391951 | BY3: 3291713 | BZ3: 3208277 | CA3: 2877053 | CB3: 2698310 | CC3: 2673651 | CD3: 2355351 | CE3: 2283609 | CF3: 2292325 | CG3: 2234918 | CH3: 2308617 | CI3: 2302180 | CJ3: 2286039 | CK3: 3603711
A4: Total do Circulante | B4: Total Current | C4: 11414578 | D4: 11782217 | E4: 14225719 | F4: 11284062 | G4: 12964565.01 | H4: 13171525 | I4: 11219488 | J4: 9531287 | K4: 8260013 | L4: 11179273 | M4: 8977252 | N4: 8478461 | O4: 8415042 | P4: 9022332 | Q4: 8448178 | R4: 7648321 | S4: 7458240 | T4: 6711157 | U4: 5727021 | V4: 6127968 | W4: 5027650 | X4: 6799679 | Y4: 5250097 | Z4: 7076339 | AA4: 6735009 | AB4: 5689805 | AC4: 5275774 | AD4: 7129343 | AE4: 4691663 | AF4: 4864663 | AG4: 3945128 | AH4: 5037681 | AI4: 4594803 | AJ4: 4905509 | AK4: 4167000 | AL4: 4040184 | AM4: 3105917 | AN4: 3488078 | AO4: 2985014 | AP4: 3017975 | AQ4: 2367774 | AR4: 2467932 | AS4: 1948284 | AT4: 1853058 | AU4: 1603684 | AV4: 2178090 | AW4: 2069913 | AX4: 1639911 | AY4: 1380739 | AZ4: 1386337 | BA4: 1838518 | BB4: 1816434 | BC4: 1721541 | BD4: 2080551 | BE4: 2637498 | BF4: 2501559 | BG4: 2511221 | BH4: 1334960 | BI4: 1329127 | BJ4: 1467379 | BK4: 1371529 | BL4: 1049810 | BM4: 861637 | BN4: 1157888 | BO4: 1014962 | BP4: 1017610 | BQ4: 833291 | BR4: 997312 | BS4: 895676 | BT4: 876470 | BU4: 661542 | BV4: 592911 | BW4: 602504 | BX4: 611535 | BY4: 513736 | BZ4: 405992 | CA4: 697400 | CB4: 736795 | CC4: 700687 | CD4: 346563 | CE4: 255327 | CF4: 264544 | CG4: 234503 | CH4: 295753 | CI4: 259073 | CJ4: 231120 | CK4: 272200
A5: Caixa e Equivalentes de Caixa | B5: Cash and Cash Equivalents | C5: 4754504 | D5: 7226715 | E5: 9391523 | F5: 4799350 | G5: 5427349 | H5: 6521258 | I5: 4100748 | J5: 4216719 | K5: 4768944 | L5: 6756881 | M5: 3833955 | N5: 3731159 | O5: 3685690 | P5: 2951883 | Q5: 1281072 | R5: 1441198 | S5: 1430140 | T5: 2007530 | U5: 1396881 | V5: 2101146 | W5: 1431743 | X5: 2061971 | Y5: 1654195 | Z5: 2434439 | AA5: 3001462 | AB5: 3886955 | AC5: 3599746 | AD5: 5584580 | AE5: 3084294 | AF5: 3080317 | AG5: 2091144 | AH5: 3017658 | AI5: 2724267 | AJ5: 3028088 | AK5: 2817237 | AL5: 2618674 | AM5: 1859210 | AN5: 2176458 | AO5: 2011708 | AP5: 1996722 | AQ5: 1601162 | AR5: 1659479 | AS5: 1149647 | AT5: 1076493 | AU5: 872491 | AV5: 1472105 | AW5: 1432511 | AX5: 1017439 | AY5: 763331 | AZ5: 785132 | BA5: 1281010 | BB5: 1357823 | BC5: 1178669 | BD5: 1201436 | BE5: 1925296 | BF5: 1994493 | BG5: 2121145 | BH5: 712638 | BI5: 847215 | BJ5: 1071928 | BK5: 1037871 | BL5: 0 | BM5: - | BN5: - | BO5: - | BP5: - | BQ5: - | BR5: - | BS5: - | BT5: - | BU5: - | BV5: - | BW5: - | BX5: - | BY5: - | BZ5: - | CA5: - | CB5: - | CC5: - | CD5: - | CE5: - | CF5: - | CG5: - | CH5: - | CI5: - | CJ5: - | CK5: -
A6: Caixa e Bancos | B6: Cash and banks | C6: 0 | D6: 0 | E6: 0 | F6: 0 | G6: 0 | H6: 0 | I6: 0 | J6: 0 | K6: 0 | L6: 0 | M6: - | N6: - | O6: - | P6: - | Q6: - | R6: - | S6: - | T6: - | U6: - | V6: - | W6: - | X6: - | Y6: - | Z6: - | AA6: - | AB6: - | AC6: - | AD6: - | AE6: - | AF6: - | AG6: - | AH6: - | AI6: - | AJ6: - | AK6: - | AL6: - | AM6: - | AN6: - | AO6: - | AP6: - | AQ6: - | AR6: - | AS6: - | AT6: - | AU6: - | AV6: - | AW6: - | AX6: - | AY6: - | AZ6: - | BA6: - | BB6: - | BC6: - | BD6: - | BE6: - | BF6: - | BG6: - | BH6: - | BI6: - | BJ6: - | BK6: - | BL6: 13388 | BM6: 28394 | BN6: 16277 | BO6: 74677 | BP6: 34394 | BQ6: 24645 | BR6: 25966 | BS6: 37127 | BT6: 19785 | BU6: 17780 | BV6: 24893 | BW6: 33534 | BX6: 34278 | BY6: 32711 | BZ6: 53158 | CA6: 54879 | CB6: 34803 | CC6: 47430 | CD6: 46929 | CE6: 43181 | CF6: 27630 | CG6: 30852 | CH6: 56249 | CI6: 56800 | CJ6: 37266 | CK6: 34486
A7: Aplicações Financeiras | B7: Financial Investments | C7: 2528100 | D7: 697200 | E7: 1048700 | F7: 2715657 | G7: 2897342.01 | H7: 2387864 | I7: 2520346 | J7: 2426444 | K7: 1102364 | L7: 1405369 | M7: 2604155 | N7: 2564283 | O7: 2632762 | P7: 4138864 | Q7: 5236260 | R7: - | S7: - | T7: - | U7: - | V7: - | W7: - | X7: - | Y7: - | Z7: - | AA7: - | AB7: - | AC7: - | AD7: - | AE7: - | AF7: - | AG7: - | AH7: - | AI7: - | AJ7: - | AK7: - | AL7: - | AM7: - | AN7: - | AO7: - | AP7: - | AQ7: - | AR7: - | AS7: - | AT7: - | AU7: - | AV7: - | AW7: - | AX7: - | AY7: - | AZ7: - | BA7: - | BB7: - | BC7: - | BD7: - | BE7: - | BF7: - | BG7: - | BH7: - | BI7: - | BJ7: - | BK7: - | BL7: 548105 | BM7: 470036 | BN7: 818890 | BO7: 705700 | BP7: 617321 | BQ7: 465331 | BR7: 627102 | BS7: 565724 | BT7: 463677 | BU7: 314131 | BV7: 271832 | BW7: 304008 | BX7: 233001 | BY7: 203835 | BZ7: 151357 | CA7: 469015 | CB7: 479280 | CC7: 467284 | CD7: 157609 | CE7: 85259 | CF7: 115028 | CG7: 115958 | CH7: 159514 | CI7: 128779 | CJ7: 118510 | CK7: 173821
A8: Conta Reserva | B8: Reserve Account | C8: 217686 | D8: 76435 | E8: 196094 | F8: 74834 | G8: 198621 | H8: 78586 | I8: 206671 | J8: 75090 | K8: 123708 | L8: 296992 | M8: 168165 | N8: 26941 | O8: 66454 | P8: 40698 | Q8: 62559 | R8: 3909107 | S8: 3803516 | T8: 2415141 | U8: 2399109 | V8: 2216284 | W8: 1754562 | X8: 2959877 | Y8: 1845808 | Z8: 2877968 | AA8: 2005854 | AB8: 22958 | AC8: 22492 | AD8: 17165 | AE8: 1319 | AF8: - | AG8: - | AH8: 34 | AI8: 37 | AJ8: 65636 | AK8: 52620 | AL8: 36898 | AM8: 30526 | AN8: 119465 | AO8: 56637 | AP8: 90381 | AQ8: - | AR8: - | AS8: - | AT8: - | AU8: 9765 | AV8: 36525 | AW8: 44021 | AX8: 40663 | AY8: 4 | AZ8: 4 | BA8: 3 | BB8: 3 | BC8: 3 | BD8: 32590 | BE8: 51901 | BF8: 16983 | BG8: 1 | BH8: 3 | BI8: 3 | BJ8: 12801 | BK8: 1771 | BL8: 7143 | BM8: 6 | BN8: 52308 | BO8: - | BP8: 7888 | BQ8: 45988 | BR8: 80544 | BS8: 24247 | BT8: 23675 | BU8: 215 | BV8: 19965 | BW8: 10994 | BX8: 29981 | BY8: 23422 | BZ8: 20391 | CA8: 12852 | CB8: - | CC8: - | CD8: - | CE8: 60593 | CF8: - | CG8: - | CH8: - | CI8: - | CJ8: 3484 | CK8: 2319
A9: Contas a receber com operações de derivativos | B9: Receivables from derivative transactions | C9: 1069 | D9: 5402 | E9: 6155 | F9: 3327 | G9: 4829 | H9: 3722 | I9: 8964 | J9: 4102 | K9: 4988 | L9: 17375 | M9: 20054 | N9: 36199 | O9: 39329 | P9: 39136 | Q9: 56336 | R9: 88234 | S9: 91898 | T9: 217815 | U9: 241729 | V9: 196221 | W9: 188656 | X9: 191772 | Y9: 154395 | Z9: 122605 | AA9: 118050 | AB9: 35707 | AC9: 42559 | AD9: 15111 | AE9: 26717 | AF9: 11060 | AG9: 42311 | AH9: 122146 | AI9: 304774 | AJ9: 375331 | AK9: 154662 | AL9: 206572 | AM9: 33113 | AN9: 14224 | AO9: 16093 | AP9: 17705 | AQ9: 23453 | AR9: 40247 | AS9: 82761 | AT9: 49568 | AU9: 48441 | AV9: 42859 | AW9: 33285 | AX9: 17112 | AY9: 20503 | AZ9: 13260 | BA9: 136 | BB9: 551 | BC9: 700 | BD9: 1245 | BE9: 2972 | BF9: 2456 | BG9: 1797 | BH9: 6492 | BI9: 6060 | BJ9: 17809 | BK9: 18262 | BL9: 8930 | BM9: - | BN9: - | BO9: - | BP9: - | BQ9: - | BR9: - | BS9: - | BT9: - | BU9: - | BV9: - | BW9: - | BX9: - | BY9: - | BZ9: - | CA9: - | CB9: - | CC9: - | CD9: - | CE9: - | CF9: - | CG9: - | CH9: - | CI9: - | CJ9: - | CK9: -
A10: Contas a Receber | B10: Accounts Receivable | C10: 2364781 | D10: 2351560 | E10: 2211755 | F10: 2368691 | G10: 3199300 | H10: 3412675 | I10: 3656539 | J10: 2152634 | K10: 1441301 | L10: 1473456 | M10: 1272307 | N10: 1421950 | O10: 1244424 | P10: 1144470 | Q10: 1066120 | R10: 1482814 | S10: 1381446 | T10: 1101807 | U10: 1026251 | V10: 1015512 | W10: 985320 | X10: 932797 | Y10: 942490 | Z10: 1001701 | AA10: 990541 | AB10: 924259 | AC10: 867573 | AD10: 897674 | AE10: 948643 | AF10: 1142096 | AG10: 1025944 | AH10: 1028350 | AI10: 934055 | AJ10: 876233 | AK10: 617772 | AL10: 662674 | AM10: 649284 | AN10: 564724 | AO10: 390633 | AP10: 356518 | AQ10: 288903 | AR10: 327853 | AS10: 309113 | AT10: 314335 | AU10: 279843 | AV10: 266422 | AW10: 241358 | AX10: 247817 | AY10: 240865 | AZ10: 232452 | BA10: 364652 | BB10: 171723 | BC10: 184735 | BD10: 180025 | BE10: 154314 | BF10: 138770 | BG10: 135864 | BH10: 122322 | BI10: 112099 | BJ10: 100030 | BK10: 103912 | BL10: 118002 | BM10: 100197 | BN10: 86252 | BO10: 83610 | BP10: 90695 | BQ10: 83049 | BR10: 90610 | BS10: 109617 | BT10: 100587 | BU10: 96974 | BV10: 97266 | BW10: 103786 | BX10: 78267 | BY10: 112365 | BZ10: 97405 | CA10: 66382 | CB10: 95817 | CC10: 79203 | CD10: 66611 | CE10: - | CF10: 38771 | CG10: 27474 | CH10: 29663 | CI10: 31996 | CJ10: 25725 | CK10: 25474
A11: Contas a receber de partes relacionadas | B11: Accounts receivable from related parties | C11: 69743 | D11: 63524 | E11: 52556 | F11: 50915 | G11: 4996 | H11: 1241 | I11: 1408 | J11: 652 | K11: 1212 | L11: 929 | M11: 1241 | N11: 1025 | O11: 2030 | P11: 1463 | Q11: 22871 | R11: 22506 | S11: 22472 | T11: 25000 | U11: 47809 | V11: 3454 | W11: 3171 | X11: 20809 | Y11: 14391 | Z11: 10580 | AA11: 8549 | AB11: 19214 | AC11: 19649 | AD11: 29889 | AE11: 29994 | AF11: 16763 | AG11: 223772 | AH11: 250745 | AI11: 251379 | AJ11: 230404 | AK11: 234121 | AL11: 196809 | AM11: 215378 | AN11: 239295 | AO11: 196549 | AP11: 201119 | AQ11: 196881 | AR11: 192428 | AS11: 174923 | AT11: 176002 | AU11: 167230 | AV11: 171825 | AW11: 131901 | AX11: 136204 | AY11: 189396 | AZ11: 155664 | BA11: - | BB11: 125984 | BC11: 136458 | BD11: 123883 | BE11: 109130 | BF11: 84796 | BG11: 97977 | BH11: 93214 | BI11: 84102 | BJ11: 71268 | BK11: 74672 | BL11: 81311 | BM11: 67131 | BN11: 53882 | BO11: 62792 | BP11: 65617 | BQ11: 49514 | BR11: 51252 | BS11: 60249 | BT11: 57378 | BU11: 53067 | BV11: 52864 | BW11: 56196 | BX11: 49890 | BY11: - | BZ11: - | CA11: 34343 | CB11: - | CC11: - | CD11: - | CE11: - | CF11: - | CG11: - | CH11: - | CI11: - | CJ11: 4046 | CK11: 3250
A12: Dividendos e juros sobre o capital próprio | B12: Dividends and interest on equity | C12: 0 | D12: 0 | E12: 0 | F12: 0 | G12: 0 | H12: 0 | I12: 0 | J12: 0 | K12: 0 | L12: 0 | M12: - | N12: - | O12: - | P12: - | Q12: - | R12: - | S12: - | T12: - | U12: - | V12: - | W12: - | X12: - | Y12: - | Z12: - | AA12: - | AB12: - | AC12: - | AD12: - | AE12: - | AF12: - | AG12: - | AH12: - | AI12: - | AJ12: - | AK12: - | AL12: - | AM12: - | AN12: - | AO12: - | AP12: - | AQ12: - | AR12: - | AS12: - | AT12: 614 | AU12: 614 | AV12: 661 | AW12: 173 | AX12: 636 | AY12: 612 | AZ12: 613 | BA12: - | BB12: 830 | BC12: 5692 | BD12: - | BE12: - | BF12: - | BG12: - | BH12: - | BI12: - | BJ12: - | BK12: - | BL12: - | BM12: - | BN12: - | BO12: - | BP12: - | BQ12: - | BR12: - | BS12: - | BT12: - | BU12: - | BV12: - | BW12: - | BX12: - | BY12: - | BZ12: - | CA12: - | CB12: - | CC12: - | CD12: - | CE12: - | CF12: - | CG12: - | CH12: - | CI12: - | CJ12: - | CK12: -
A13: Impostos a Recuperar | B13: Taxes recoverable | C13: 327951 | D13: 395206 | E13: 353782 | F13: 287527 | G13: 321983 | H13: 210887 | I13: 189599 | J13: 178482 | K13: 202913 | L13: 188075 | M13: 196785 | N13: 122145 | O13: 197710 | P13: 157606 | Q13: 196491 | R13: 173614 | S13: 198318 | T13: 132058 | U13: 130527 | V13: 117520 | W13: 151882 | X13: 135345 | Y13: 123816 | Z13: 118240 | AA13: 183292 | AB13: 140403 | AC13: 143747 | AD13: 128694 | AE13: 154537 | AF13: 169331 | AG13: 160883 | AH13: 148786 | AI13: 141496 | AJ13: 102328 | AK13: 104404 | AL13: 106433 | AM13: 137846 | AN13: 117556 | AO13: 70055 | AP13: 55898 | AQ13: 84149 | AR13: 78124 | AS13: 67748 | AT13: 75893 | AU13: 71476 | AV13: 49917 | AW13: 65112 | AX13: 59525 | AY13: 39970 | AZ13: 79521 | BA13: 73299 | BB13: 34351 | BC13: 92658 | BD13: 390267 | BE13: 245152 | BF13: 124011 | BG13: 59573 | BH13: 289090 | BI13: 181898 | BJ13: 95981 | BK13: 46328 | BL13: 197351 | BM13: 124798 | BN13: 66071 | BO13: 33742 | BP13: 151893 | BQ13: 111758 | BR13: 74150 | BS13: 53571 | BT13: 162996 | BU13: 109628 | BV13: 75563 | BW13: 46542 | BX13: 144042 | BY13: 93306 | BZ13: 51707 | CA13: 29849 | CB13: 77083 | CC13: 53320 | CD13: 36169 | CE13: 23091 | CF13: 60919 | CG13: 34973 | CH13: 29366 | CI13: 26190 | CJ13: 24956 | CK13: 21209
A14: Adiantamento a fornecedor | B14: Advances to suppliers | C14: 102002 | D14: 118062 | E14: 122575 | F14: 102781 | G14: 68103 | H14: 57618 | I14: 42362 | J14: 37157 | K14: 20505 | L14: 30238 | M14: 35419 | N14: 38169 | O14: 33818 | P14: 41281 | Q14: 49175 | R14: 50078 | S14: 43122 | T14: 33095 | U14: 32553 | V14: 24695 | W14: 64306 | X14: 54375 | Y14: 74530 | Z14: 81843 | AA14: 74385 | AB14: 425864 | AC14: 352632 | AD14: 249848 | AE14: 233663 | AF14: 232192 | AG14: 182322 | AH14: - | AI14: - | AJ14: - | AK14: - | AL14: - | AM14: - | AN14: - | AO14: - | AP14: - | AQ14: - | AR14: - | AS14: - | AT14: - | AU14: - | AV14: - | AW14: - | AX14: - | AY14: - | AZ14: - | BA14: - | BB14: - | BC14: - | BD14: - | BE14: - | BF14: - | BG14: - | BH14: - | BI14: - | BJ14: - | BK14: - | BL14: - | BM14: - | BN14: - | BO14: - | BP14: - | BQ14: - | BR14: - | BS14: - | BT14: - | BU14: - | BV14: - | BW14: - | BX14: - | BY14: - | BZ14: - | CA14: - | CB14: - | CC14: - | CD14: - | CE14: - | CF14: - | CG14: - | CH14: - | CI14: - | CJ14: - | CK14: -
A15: Despesas antecipadas e outros | B15: Prepaid expenses and other | C15: 659666 | D15: 482431 | E15: 479778 | F15: 451754 | G15: 431286 | H15: 354622 | I15: 349799 | J15: 279781 | K15: 312786 | L15: 727099 | M15: 560745 | N15: 251641 | O15: 227876 | P15: 221982 | Q15: 192345 | R15: 195873 | S15: 202431 | T15: 493814 | U15: 167265 | V15: 168239 | W15: 163113 | X15: 157839 | Y15: 155575 | Z15: 159907 | AA15: 142572 | AB15: 152462 | AC15: 145393 | AD15: 124399 | AE15: 130515 | AF15: 130921 | AG15: 136769 | AH15: 387837 | AI15: 156670 | AJ15: 145364 | AK15: 104059 | AL15: 129999 | AM15: 98435 | AN15: 174231 | AO15: 161214 | AP15: 217507 | AQ15: 91101 | AR15: 87676 | AS15: 81967 | AT15: 78028 | AU15: 71698 | AV15: 55650 | AW15: 39426 | AX15: 37642 | AY15: 43185 | AZ15: 36818 | BA15: 36639 | BB15: 42390 | BC15: 39847 | BD15: 48311 | BE15: 45266 | BF15: 34950 | BG15: 26828 | BH15: - | BI15: - | BJ15: 39133 | BK15: 34597 | BL15: 22547 | BM15: 22563 | BN15: 43323 | BO15: 35312 | BP15: 39497 | BQ15: 42097 | BR15: 37816 | BS15: 39683 | BT15: 42649 | BU15: 62730 | BV15: 44661 | BW15: 40012 | BX15: 35591 | BY15: 42182 | BZ15: 30929 | CA15: 25287 | CB15: 20604 | CC15: 23734 | CD15: 19585 | CE15: 18604 | CF15: 22196 | CG15: 25246 | CH15: 20961 | CI15: 15308 | CJ15: 17133 | CK15: 11641
A16: IRPJ e CSLL Diferidos | B16: Deferred income tax and social contribution | C16: 0 | D16: 0 | E16: 0 | F16: 0 | G16: 0 | H16: 0 | I16: 0 | J16: 0 | K16: 0 | L16: 0 | M16: - | N16: - | O16: - | P16: - | Q16: - | R16: - | S16: - | T16: - | U16: - | V16: - | W16: - | X16: - | Y16: - | Z16: - | AA16: - | AB16: - | AC16: - | AD16: - | AE16: - | AF16: - | AG16: - | AH16: - | AI16: - | AJ16: - | AK16: - | AL16: - | AM16: - | AN16: - | AO16: - | AP16: - | AQ16: - | AR16: - | AS16: - | AT16: - | AU16: - | AV16: - | AW16: - | AX16: - | AY16: - | AZ16: - | BA16: - | BB16: - | BC16: - | BD16: 20015 | BE16: 20688 | BF16: 28244 | BG16: - | BH16: 17910 | BI16: 12922 | BJ16: 15971 | BK16: - | BL16: 21116 | BM16: 22483 | BN16: 20885 | BO16: 19129 | BP16: 10305 | BQ16: 10909 | BR16: 9872 | BS16: 5458 | BT16: 5723 | BU16: 7017 | BV16: 5867 | BW16: 7432 | BX16: 6485 | BY16: 5915 | BZ16: 1046 | CA16: 4793 | CB16: 29208 | CC16: 29716 | CD16: 19660 | CE16: 24599 | CF16: - | CG16: - | CH16: - | CI16: - | CJ16: - | CK16: -
A17: Provisão para devedores duvidosos | B17: Provision for doubtful accounts | C17: 0 | D17: 0 | E17: 0 | F17: 0 | G17: 0 | H17: 0 | I17: 0 | J17: 0 | K17: 0 | L17: 0 | M17: - | N17: - | O17: - | P17: - | Q17: - | R17: - | S17: - | T17: - | U17: - | V17: - | W17: - | X17: - | Y17: - | Z17: - | AA17: - | AB17: - | AC17: - | AD17: - | AE17: - | AF17: - | AG17: - | AH17: - | AI17: - | AJ17: - | AK17: - | AL17: - | AM17: - | AN17: - | AO17: - | AP17: - | AQ17: - | AR17: - | AS17: - | AT17: - | AU17: - | AV17: - | AW17: - | AX17: - | AY17: - | AZ17: - | BA17: - | BB17: - | BC17: - | BD17: - | BE17: - | BF17: - | BG17: - | BH17: - | BI17: - | BJ17: - | BK17: - | BL17: -12578 | BM17: -11649 | BN17: - | BO17: - | BP17: - | BQ17: - | BR17: - | BS17: - | BT17: - | BU17: - | BV17: - | BW17: - | BX17: - | BY17: - | BZ17: - | CA17: - | CB17: - | CC17: - | CD17: - | CE17: - | CF17: - | CG17: - | CH17: - | CI17: - | CJ17: - | CK17: -
A18: Pagamentos antecipados relacionados à concessão | B18: Early concession payments | C18: 133107 | D18: 133107 | E18: 137186 | F18: 141584 | G18: 143050 | H18: 143052 | I18: 143052 | J18: 160226 | K18: 281292 | L18: 282859 | M18: 284426 | N18: 284949 | O18: 284949 | P18: 284949 | Q18: 284949 | R18: 284897 | S18: 284897 | T18: 284897 | U18: 284897 | V18: 284897 | W18: 284897 | X18: 284894 | Y18: 284897 | Z18: 269056 | AA18: 210304 | AB18: 81983 | AC18: 81983 | AD18: 81983 | AE18: 81981 | AF18: 81983 | AG18: 81983 | AH18: 82125 | AI18: 82125 | AJ18: 82125 | AK18: 82125 | AL18: 82125 | AM18: 82125 | AN18: 82125 | AO18: 82125 | AP18: 82125 | AQ18: 82125 | AR18: 82125 | AS18: 82125 | AT18: 82125 | AU18: 82126 | AV18: 82126 | AW18: 82126 | AX18: 82873 | AY18: 82873 | AZ18: 82873 | BA18: 82779 | BB18: 82779 | BC18: 82779 | BD18: 82779 | BE18: 82779 | BF18: 76856 | BG18: 68036 | BH18: 59293 | BI18: 50626 | BJ18: 42458 | BK18: 34360 | BL18: 26330 | BM18: - | BN18: - | BO18: - | BP18: - | BQ18: - | BR18: - | BS18: - | BT18: - | BU18: - | BV18: - | BW18: - | BX18: - | BY18: - | BZ18: - | CA18: - | CB18: - | CC18: - | CD18: - | CE18: - | CF18: - | CG18: - | CH18: - | CI18: - | CJ18: - | CK18: -
A19: Ativos mantidos para venda | B19: Assets held for sale | C19: 255969 | D19: 232575 | E19: 225615 | F19: 287642 | G19: 267706 | H19: - | I19: - | J19: - | K19: - | L19: - | M19: - | N19: - | O19: - | P19: - | Q19: - | R19: - | S19: - | T19: - | U19: - | V19: - | W19: - | X19: - | Y19: - | Z19: - | AA19: - | AB19: - | AC19: - | AD19: - | AE19: - | AF19: - | AG19: - | AH19: - | AI19: - | AJ19: - | AK19: - | AL19: - | AM19: - | AN19: - | AO19: - | AP19: - | AQ19: - | AR19: - | AS19: - | AT19: - | AU19: - | AV19: - | AW19: - | AX19: - | AY19: - | AZ19: - | BA19: - | BB19: - | BC19: - | BD19: - | BE19: - | BF19: - | BG19: - | BH19: - | BI19: - | BJ19: - | BK19: - | BL19: - | BM19: - | BN19: - | BO19: - | BP19: - | BQ19: - | BR19: - | BS19: - | BT19: - | BU19: - | BV19: - | BW19: - | BX19: - | BY19: - | BZ19: - | CA19: - | CB19: - | CC19: - | CD19: - | CE19: - | CF19: - | CG19: - | CH19: - | CI19: - | CJ19: - | CK19: -
A20: Outros | B20: Other | C20: 0 | D20: 0 | E20: 0 | F20: 0 | G20: 0 | H20: 0 | I20: 0 | J20: 0 | K20: 0 | L20: 0 | M20: - | N20: - | O20: - | P20: - | Q20: - | R20: - | S20: - | T20: - | U20: - | V20: - | W20: - | X20: - | Y20: - | Z20: - | AA20: - | AB20: - | AC20: - | AD20: - | AE20: - | AF20: - | AG20: - | AH20: - | AI20: - | AJ20: - | AK20: - | AL20: - | AM20: - | AN20: - | AO20: - | AP20: - | AQ20: - | AR20: - | AS20: - | AT20: - | AU20: - | AV20: - | AW20: - | AX20: - | AY20: - | AZ20: - | BA20: - | BB20: - | BC20: - | BD20: - | BE20: - | BF20: - | BG20: - | BH20: 33998 | BI20: 34202 | BJ20: - | BK20: 19756 | BL20: 18165 | BM20: 37678 | BN20: - | BO20: - | BP20: - | BQ20: - | BR20: - | BS20: - | BT20: - | BU20: - | BV20: - | BW20: - | BX20: - | BY20: - | BZ20: - | CA20: - | CB20: - | CC20: - | CD20: - | CE20: - | CF20: - | CG20: - | CH20: - | CI20: - | CJ20: - | CK20: -
A21: Total do Ativo Não Circulante | B21: Total non-current assets | C21: 45283005 | D21: 43140501 | E21: 42460324 | F21: 41501308.83 | G21: 39621424.83 | H21: 39101117 | I21: 38613628 | J21: 39395998 | K21: 35158324 | L21: 30212025 | M21: 29250644 | N21: 28107176 | O21: 27015727 | P21: 28374130 | Q21: 28559517 | R21: 28246975 | S21: 27510732 | T21: 27251366 | U21: 27213783 | V21: 27192131 | W21: 27324266 | X21: 27125702 | Y21: 27019319 | Z21: 25970941 | AA21: 25723699 | AB21: 25059818 | AC21: 24844550 | AD21: 22743256 | AE21: 22076257 | AF21: 21257988 | AG21: 20752282 | AH21: 20242752 | AI21: 19846188 | AJ21: 18716080 | AK21: 17548905 | AL21: 16897549 | AM21: 16071499 | AN21: 15619307 | AO21: 13949379 | AP21: 13517856 | AQ21: 13414368 | AR21: 13187153 | AS21: 12971564 | AT21: 12755432 | AU21: 12702142 | AV21: 12434432 | AW21: 11817868 | AX21: 11531531 | AY21: 11470627 | AZ21: 11282427 | BA21: 11150092 | BB21: 11210478 | BC21: 11045990 | BD21: 7638167 | BE21: 7360752 | BF21: 6976017 | BG21: 7878783 | BH21: 6101671 | BI21: 5533776 | BJ21: 5210481 | BK21: 4899046 | BL21: 4358127 | BM21: 3926934 | BN21: 3291191 | BO21: 3213738 | BP21: 3058653 | BQ21: 3000373 | BR21: 2940239 | BS21: 2902712 | BT21: 2907057 | BU21: 2876233 | BV21: 2861834 | BW21: 2822034 | BX21: 2780416 | BY21: 2777977 | BZ21: 2802285 | CA21: 2179653 | CB21: 1961515 | CC21: 1972964 | CD21: 2008788 | CE21: 2028282 | CF21: 2027781 | CG21: 2000415 | CH21: 2012864 | CI21: 2043107 | CJ21: 2054919 | CK21: 3331511
A22: Total do realizável a longo prazo | B22: Total non-current receivables | C22: 10913252 | D22: 9995039 | E22: 10068398 | F22: 9981042 | G22: 8555380 | H22: 8799682 | I22: 8589411 | J22: 9717447 | K22: 10136898 | L22: 8537337 | M22: 8414739 | N22: 8143064 | O22: 7084721 | P22: 7360698 | Q22: 7217858 | R22: 6750115 | S22: 6728085 | T22: 6358667 | U22: 6402352 | V22: 6254908 | W22: 6310337 | X22: 6572026 | Y22: 6664858 | Z22: 6676565 | AA22: 6604603 | AB22: 7057247 | AC22: 6424245 | AD22: 6077403 | AE22: 5862321 | AF22: 5818994 | AG22: 5605297 | AH22: 5472206 | AI22: 4625598 | AJ22: 4374822 | AK22: 4057706 | AL22: 3911579 | AM22: 3616435 | AN22: 3770233 | AO22: 3692932 | AP22: 3562838 | AQ22: 3452223 | AR22: 3428025 | AS22: 3417977 | AT22: 3425651 | AU22: 3359170 | AV22: 3322173 | AW22: 3169831 | AX22: 3647782 | AY22: 3585218 | AZ22: 3483397 | BA22: 3407593 | BB22: 3362387 | BC22: 3272096 | BD22: 2655806 | BE22: 2622856 | BF22: 2451860 | BG22: 2578189 | BH22: 1912332 | BI22: 1653433 | BJ22: 1405503 | BK22: 1157081 | BL22: 879159 | BM22: 634743 | BN22: 341312 | BO22: 312172 | BP22: 260724 | BQ22: 235457 | BR22: 249998 | BS22: 224350 | BT22: 247034 | BU22: 245253 | BV22: 246963 | BW22: 245127 | BX22: 289020 | BY22: 321199 | BZ22: 279944 | CA22: 212086 | CB22: 212148 | CC22: 221044 | CD22: 232092 | CE22: 226029 | CF22: 267932 | CG22: 287694 | CH22: 278803 | CI22: 282998 | CJ22: 297030 | CK22: 328698
A23: Conta Reserva e contas a receber | B23: Reserve account and accounts receivable | C23: 6617934 | D23: 5781235 | E23: 5831292 | F23: 5937998 | G23: 4920132 | H23: 4998280 | I23: 5013325 | J23: 6199190 | K23: 6636168 | L23: 5100076 | M23: 5031488 | N23: 4694179 | O23: 3606295 | P23: 3653564 | Q23: 3434895 | R23: 2937953 | S23: 2914393 | T23: 2407708 | U23: 2358984 | V23: 2102749 | W23: 2070363 | X23: 2004570 | Y23: 1982822 | Z23: 1950364 | AA23: 1920009 | AB23: 2129155 | AC23: 1595008 | AD23: 1510004 | AE23: 1444296 | AF23: 1467104 | AG23: 1245527 | AH23: 1120914 | AI23: 510966 | AJ23: 416208 | AK23: 308724 | AL23: 268918 | AM23: 184667 | AN23: 112231 | AO23: 87024 | AP23: 27930 | AQ23: 24409 | AR23: 22452 | AS23: 21969 | AT23: 20848 | AU23: 20399 | AV23: 20246 | AW23: 2524 | AX23: 6316 | AY23: 6125 | AZ23: 1281 | BA23: 1260 | BB23: 1605 | BC23: 3731 | BD23: 4792 | BE23: 5835 | BF23: 1568 | BG23: 1538 | BH23: 16307 | BI23: 11241 | BJ23: 23369 | BK23: 34255 | BL23: 28116 | BM23: 28385 | BN23: 173 | BO23: - | BP23: 20 | BQ23: - | BR23: - | BS23: - | BT23: - | BU23: - | BV23: - | BW23: 21683 | BX23: 7794 | BY23: 8603 | BZ23: 8410 | CA23: 7986 | CB23: 12183 | CC23: 11839 | CD23: 11523 | CE23: 11183 | CF23: 14588 | CG23: 15852 | CH23: 15085 | CI23: 14353 | CJ23: 13740 | CK23: 12059
A24: Provisão para devedores duvidosos | B24: Provision for doubtful accounts | C24: 0 | D24: 0 | E24: 0 | F24: 0 | G24: 0 | H24: 0 | I24: 0 | J24: 0 | K24: 0 | L24: 29318 | M24: 29318 | N24: - | O24: - | P24: - | Q24: - | R24: - | S24: - | T24: - | U24: - | V24: - | W24: - | X24: - | Y24: - | Z24: - | AA24: - | AB24: - | AC24: - | AD24: - | AE24: - | AF24: - | AG24: - | AH24: - | AI24: - | AJ24: - | AK24: - | AL24: - | AM24: - | AN24: - | AO24: - | AP24: - | AQ24: - | AR24: - | AS24: - | AT24: - | AU24: - | AV24: - | AW24: - | AX24: - | AY24: - | AZ24: - | BA24: - | BB24: - | BC24: - | BD24: - | BE24: - | BF24: - | BG24: - | BH24: - | BI24: - | BJ24: - | BK24: - | BL24: -26410 | BM24: 26410 | BN24: - | BO24: - | BP24: - | BQ24: - | BR24: - | BS24: - | BT24: - | BU24: - | BV24: - | BW24: - | BX24: - | BY24: - | BZ24: - | CA24: - | CB24: - | CC24: - | CD24: - | CE24: - | CF24: - | CG24: - | CH24: - | CI24: - | CJ24: - | CK24: -
A25: Impostos a recuperar | B25: Taxes recoverable | C25: 311726 | D25: 185992 | E25: 195803 | F25: 180256 | G25: 140746 | H25: 140644 | I25: 131937 | J25: 132437 | K25: 120952 | L25: 157897 | M25: 153099 | N25: 179598 | O25: 125116 | P25: 151180 | Q25: 160675 | R25: 176125 | S25: 169993 | T25: 170406 | U25: 168651 | V25: 179558 | W25: 149946 | X25: 160730 | Y25: 166676 | Z25: 171114 | AA25: 141180 | AB25: 103518 | AC25: 100571 | AD25: 73600 | AE25: 41738 | AF25: 35115 | AG25: 68161 | AH25: 152868 | AI25: 163216 | AJ25: 168573 | AK25: 153591 | AL25: 155339 | AM25: 125379 | AN25: 110375 | AO25: 137958 | AP25: 139496 | AQ25: 97901 | AR25: 115197 | AS25: 144985 | AT25: 142861 | AU25: 135055 | AV25: 155845 | AW25: 135890 | AX25: 132807 | AY25: 149838 | AZ25: 109598 | BA25: 110092 | BB25: 111174 | BC25: 89867 | BD25: 90356 | BE25: 89344 | BF25: 88394 | BG25: 62355 | BH25: - | BI25: - | BJ25: - | BK25: - | BL25: - | BM25: - | BN25: - | BO25: - | BP25: - | BQ25: - | BR25: - | BS25: - | BT25: - | BU25: - | BV25: - | BW25: - | BX25: - | BY25: - | BZ25: - | CA25: - | CB25: - | CC25: - | CD25: - | CE25: - | CF25: - | CG25: - | CH25: - | CI25: - | CJ25: - | CK25: -
A26: Impostos diferidos | B26: Deferred taxes | C26: 1298480 | D26: 1215946 | E26: 1135604 | F26: 1055113 | G26: 1027790 | H26: 1142950 | I26: 1042259 | J26: 1022186 | K26: 983862 | L26: 921102 | M26: 993074 | N26: 968241 | O26: 966261 | P26: 937914 | Q26: 931889 | R26: 916195 | S26: 893675 | T26: 905389 | U26: 885406 | V26: 860919 | W26: 845807 | X26: 894616 | Y26: 892061 | Z26: 890801 | AA26: 887018 | AB26: 898694 | AC26: 876607 | AD26: 831245 | AE26: 760684 | AF26: 700384 | AG26: 719068 | AH26: 625243 | AI26: 520993 | AJ26: 460196 | AK26: 455948 | AL26: 388327 | AM26: 339541 | AN26: 637758 | AO26: 607770 | AP26: 549357 | AQ26: 505235 | AR26: 496333 | AS26: 472618 | AT26: 486151 | AU26: 440149 | AV26: 401469 | AW26: 354089 | AX26: 916770 | AY26: 878214 | AZ26: 824350 | BA26: 768622 | BB26: 723400 | BC26: 671612 | BD26: 53002 | BE26: 53738 | BF26: 39564 | BG26: 432970 | BH26: 38489 | BI26: 38837 | BJ26: 24921 | BK26: 23812 | BL26: 18271 | BM26: 22648 | BN26: 19598 | BO26: 25038 | BP26: 24412 | BQ26: 26867 | BR26: 29088 | BS26: 28849 | BT26: 29578 | BU26: 30305 | BV26: 31131 | BW26: 30569 | BX26: 51471 | BY26: 84229 | BZ26: 74695 | CA26: 74791 | CB26: 57381 | CC26: 64778 | CD26: 78156 | CE26: 78085 | CF26: 109939 | CG26: 112552 | CH26: 117344 | CI26: 119865 | CJ26: 135673 | CK26: 293812
A27: Partes Relacionadas | B27: Related parties | C27: 135455 | D27: 133180 | E27: 130529 | F27: 129156 | G27: 126770 | H27: 126162 | I27: 61019 | J27: 59442 | K27: 57827 | L27: 56349 | M27: 55216 | N27: 54563 | O27: 53718 | P27: 51781 | Q27: 65288 | R27: 70894 | S27: 63600 | T27: 107853 | U27: 148019 | V27: 125335 | W27: 213868 | X27: 296950 | Y27: 274764 | Z27: 242028 | AA27: 218454 | AB27: 191901 | AC27: 193022 | AD27: 174948 | AE27: 181743 | AF27: 175135 | AG27: 148001 | AH27: 138616 | AI27: 164890 | AJ27: 175008 | AK27: 137366 | AL27: 141569 | AM27: 108239 | AN27: 153119 | AO27: 136434 | AP27: 138092 | AQ27: 143003 | AR27: 136940 | AS27: 134176 | AT27: 150421 | AU27: 149159 | AV27: 146246 | AW27: 104340 | AX27: 31468 | AY27: 4476 | AZ27: 4274 | BA27: 4093 | BB27: 3614 | BC27: 3438 | BD27: 3248 | BE27: 2765 | BF27: 2665 | BG27: 1902 | BH27: 1832 | BI27: 1759 | BJ27: 1156 | BK27: 1109 | BL27: 45558 | BM27: - | BN27: - | BO27: - | BP27: - | BQ27: - | BR27: - | BS27: - | BT27: - | BU27: - | BV27: - | BW27: 171893 | BX27: - | BY27: - | BZ27: - | CA27: - | CB27: - | CC27: - | CD27: - | CE27: - | CF27: - | CG27: - | CH27: - | CI27: - | CJ27: - | CK27: -
A28: Pagamentos antecipados relacionados à concessão | B28: Early concession payments | C28: 1666128 | D28: 1699406 | E28: 1726944 | F28: 1758310 | G28: 1792607 | H28: 1828371 | I28: 1864131 | J28: 1884141 | K28: 1834876 | L28: 1905112 | M28: 1975347 | N28: 2046626 | O28: 2118425 | P28: 2190228 | Q28: 2262030 | R28: 2333884 | S28: 2405684 | T28: 2477473 | U28: 2549263 | V28: 2621051 | W28: 2692841 | X28: 2764631 | Y28: 2836418 | Z28: 2895333 | AA28: 2924585 | AB28: 3017557 | AC28: 2982229 | AD28: 2948396 | AE28: 2914566 | AF28: 2880496 | AG28: 2846897 | AH28: 2821482 | AI28: 2797392 | AJ28: 2773303 | AK28: 2749215 | AL28: 2727871 | AM28: 2706181 | AN28: 2684859 | AO28: 2663536 | AP28: 2646635 | AQ28: 2629734 | AR28: 2612832 | AS28: 2595930 | AT28: 2582069 | AU28: 2568207 | AV28: 2554100 | AW28: 2540480 | AX28: 2527724 | AY28: 2515717 | AZ28: 2503910 | BA28: 2491147 | BB28: 2482905 | BC28: 2474667 | BD28: 2462652 | BE28: 2455075 | BF28: 2287718 | BG28: 2037988 | BH28: 1785983 | BI28: 1533178 | BJ28: 1289312 | BK28: 1043340 | BL28: 629701 | BM28: - | BN28: - | BO28: - | BP28: - | BQ28: - | BR28: - | BS28: - | BT28: - | BU28: - | BV28: - | BW28: - | BX28: - | BY28: - | BZ28: - | CA28: - | CB28: - | CC28: - | CD28: - | CE28: - | CF28: - | CG28: - | CH28: - | CI28: - | CJ28: - | CK28: -
A29: Adiantamento a fornecedor (R$) | B29: Advances to suppliers (R$) | C29: 0 | D29: 0 | E29: 0 | F29: 0 | G29: 0 | H29: 0 | I29: 0 | J29: 0 | K29: 29318 | L29: 29318 | M29: 29318 | N29: 0 | O29: 29318 | P29: 29318 | Q29: 29318 | R29: - | S29: 29318 | T29: 29318 | U29: 29318 | V29: 29318 | W29: 44210 | X29: 45094 | Y29: 80520 | Z29: 85994 | AA29: 55038 | AB29: 168130 | AC29: 142345 | AD29: 114842 | AE29: 124288 | AF29: 151825 | AG29: 150421 | AH29: - | AI29: - | AJ29: - | AK29: - | AL29: - | AM29: - | AN29: - | AO29: - | AP29: - | AQ29: - | AR29: - | AS29: - | AT29: - | AU29: - | AV29: - | AW29: - | AX29: - | AY29: - | AZ29: - | BA29: - | BB29: - | BC29: - | BD29: - | BE29: - | BF29: - | BG29: - | BH29: - | BI29: - | BJ29: - | BK29: - | BL29: - | BM29: - | BN29: - | BO29: - | BP29: - | BQ29: - | BR29: - | BS29: - | BT29: - | BU29: - | BV29: - | BW29: - | BX29: - | BY29: - | BZ29: - | CA29: - | CB29: - | CC29: - | CD29: - | CE29: - | CF29: - | CG29: - | CH29: - | CI29: - | CJ29: - | CK29: -
A30: Despesas antecipadas e outros | B30: Prepaid expenses and other | C30: 347368 | D30: 397166 | E30: 350134 | F30: 349815 | G30: 317133 | H30: 310319 | I30: 243297 | J30: 256048 | K30: 221464 | L30: 208812 | M30: 173761 | N30: 195781 | O30: 149924 | P30: 329997 | Q30: 299035 | R30: 314524 | S30: 250882 | T30: 260520 | U30: 233051 | V30: 244852 | W30: 216647 | X30: 210413 | Y30: 204030 | Z30: 194364 | AA30: 191529 | AB30: 200613 | AC30: 195207 | AD30: 116373 | AE30: 110651 | AF30: 108374 | AG30: 105866 | AH30: 253144 | AI30: 32022 | AJ30: 48758 | AK30: 48543 | AL30: 46948 | AM30: 48116 | AN30: 47040 | AO30: 44891 | AP30: 44886 | AQ30: 45537 | AR30: 39050 | AS30: 38859 | AT30: 35563 | AU30: 32957 | AV30: 30355 | AW30: 16454 | AX30: 17684 | AY30: 17662 | AZ30: 25506 | BA30: 21802 | BB30: 26994 | BC30: 16721 | BD30: 9243 | BE30: 8561 | BF30: 8919 | BG30: 8892 | BH30: 69721 | BI30: 68418 | BJ30: 66745 | BK30: 54565 | BL30: 183923 | BM30: 610120 | BN30: 321541 | BO30: 287134 | BP30: 236292 | BQ30: 208590 | BR30: 220910 | BS30: 195501 | BT30: 217456 | BU30: 214948 | BV30: 215832 | BW30: 20982 | BX30: 229755 | BY30: 228367 | BZ30: 196839 | CA30: 129309 | CB30: 142584 | CC30: 144427 | CD30: 142413 | CE30: 136761 | CF30: 143405 | CG30: 159290 | CH30: 146374 | CI30: 148780 | CJ30: 147617 | CK30: 22827
A31: Contas a receber com operações de derivativos | B31: Receivables from derivative transactions | C31: 258291 | D31: 304188 | E31: 420500 | F31: 292343 | G31: 229570 | H31: 252433 | I31: 232907 | J31: 163467 | K31: 251887 | L31: 158128 | M31: 2873 | N31: 3533 | O31: 35121 | P31: 16187 | Q31: 34198 | R31: - | S31: - | T31: - | U31: 17312 | V31: 81153 | W31: 75763 | X31: 194543 | Y31: 227120 | Z31: 246181 | AA31: 266405 | AB31: 347370 | AC31: 338932 | AD31: 307686 | AE31: 284036 | AF31: 300245 | AG31: 289476 | AH31: 358834 | AI31: 435217 | AJ31: 331870 | AK31: 203933 | AL31: 181678 | AM31: 103981 | AN31: 23004 | AO31: 13887 | AP31: 2109 | AQ31: 6404 | AR31: 5221 | AS31: 9440 | AT31: 7738 | AU31: 13244 | AV31: 13912 | AW31: 16054 | AX31: 15013 | AY31: 13186 | AZ31: 14478 | BA31: 10577 | BB31: 12695 | BC31: 12060 | BD31: 32513 | BE31: 7538 | BF31: 23032 | BG31: 32544 | BH31: - | BI31: - | BJ31: - | BK31: - | BL31: - | BM31: - | BN31: - | BO31: - | BP31: - | BQ31: - | BR31: - | BS31: - | BT31: - | BU31: - | BV31: - | BW31: - | BX31: - | BY31: - | BZ31: - | CA31: - | CB31: - | CC31: - | CD31: - | CE31: - | CF31: - | CG31: - | CH31: - | CI31: - | CJ31: - | CK31: -
A32: Adiantamento para aumento de capital - partes relacionadas | B32: Advances to capital increase - related parties | C32: 509 | D32: 565 | E32: 231 | F32: 690 | G32: 632 | H32: 523 | I32: 536 | J32: 536 | K32: 544 | L32: 543 | M32: 563 | N32: 543 | O32: 543 | P32: 529 | Q32: 530 | R32: 540 | S32: 540 | T32: - | U32: 12348 | V32: 9973 | W32: 892 | X32: 479 | Y32: 447 | Z32: 386 | AA32: 385 | AB32: 309 | AC32: 324 | AD32: 309 | AE32: 319 | AF32: 316 | AG32: 31880 | AH32: 1105 | AI32: 902 | AJ32: 906 | AK32: 386 | AL32: 929 | AM32: 331 | AN32: 1847 | AO32: 1432 | AP32: 14333 | AQ32: - | AR32: - | AS32: - | AT32: - | AU32: - | AV32: - | AW32: - | AX32: - | AY32: - | AZ32: - | BA32: - | BB32: - | BC32: - | BD32: - | BE32: - | BF32: - | BG32: - | BH32: - | BI32: - | BJ32: - | BK32: - | BL32: - | BM32: - | BN32: - | BO32: - | BP32: - | BQ32: - | BR32: - | BS32: - | BT32: - | BU32: - | BV32: - | BW32: - | BX32: - | BY32: - | BZ32: - | CA32: - | CB32: - | CC32: - | CD32: - | CE32: - | CF32: - | CG32: - | CH32: - | CI32: - | CJ32: - | CK32: -
A33: Propriedade para Investimento | B33: Investment Property | C33: 277361 | D33: 277361 | E33: 277361 | F33: 277361
A34: Ativo Permanente | B34: Permanent assets | C34: 34369753 | D34: 33145462 | E34: 32391926 | F34: 31520266.83 | G34: 31066017.83 | H34: 30301435 | I34: 30024217 | J34: 29678551 | K34: 25021426 | L34: 21674688 | M34: 20835905 | N34: 19964112 | O34: 19931006 | P34: 21013432 | Q34: 21341659 | R34: 21496860 | S34: 20782647 | T34: 20892699 | U34: 20811431 | V34: 20937223 | W34: 21013929 | X34: 20553676 | Y34: 20354461 | Z34: 19294376 | AA34: 19119096 | AB34: 18002571 | AC34: 18420305 | AD34: 16665853 | AE34: 16213936 | AF34: 15438994 | AG34: 15146985 | AH34: 14770546 | AI34: 15220590 | AJ34: 14341258 | AK34: 13491199 | AL34: 12985970 | AM34: 12455064 | AN34: 11849074 | AO34: 10256447 | AP34: 9955018 | AQ34: 9962145 | AR34: 9759128 | AS34: 9553587 | AT34: 9329781 | AU34: 9342972 | AV34: 9112259 | AW34: 8648037 | AX34: 7883749 | AY34: 7885409 | AZ34: 7799030 | BA34: 7742499 | BB34: 7848091 | BC34: 7773894 | BD34: 4982361 | BE34: 4737896 | BF34: 4524157 | BG34: 5300594 | BH34: 4189339 | BI34: 3880343 | BJ34: 3804978 | BK34: 3741965 | BL34: 3478969 | BM34: 3292191 | BN34: 2949879 | BO34: 2901566 | BP34: 2797929 | BQ34: 2764916 | BR34: 2690241 | BS34: 2678362 | BT34: 2660023 | BU34: 2630980 | BV34: 2614871 | BW34: 2576907 | BX34: 2491396 | BY34: 2456778 | BZ34: 2522341 | CA34: 1967567 | CB34: 1749367 | CC34: 1751920 | CD34: 1776696 | CE34: 1802253 | CF34: 1759849 | CG34: 1712721 | CH34: 1734061 | CI34: 1760109 | CJ34: 1757889 | CK34: 3002813
A35: Investimentos | B35: Investments | C35: 0 | D35: 0 | E35: 0 | F35: -3 | G35: 27 | H35: 0 | I35: 0 | J35: 0 | K35: 0 | L35: 0 | M35: - | N35: - | O35: - | P35: - | Q35: - | R35: - | S35: - | T35: - | U35: - | V35: - | W35: - | X35: - | Y35: - | Z35: - | AA35: - | AB35: - | AC35: - | AD35: - | AE35: - | AF35: - | AG35: - | AH35: - | AI35: - | AJ35: - | AK35: - | AL35: - | AM35: - | AN35: - | AO35: - | AP35: - | AQ35: - | AR35: - | AS35: - | AT35: -3 | AU35: - | AV35: 109 | AW35: - | AX35: - | AY35: - | AZ35: - | BA35: - | BB35: - | BC35: - | BD35: 35654 | BE35: - | BF35: - | BG35: - | BH35: - | BI35: 10268 | BJ35: 73599 | BK35: 63927 | BL35: 51865 | BM35: - | BN35: 91655 | BO35: 63263 | BP35: 16281 | BQ35: 17288 | BR35: 18295 | BS35: 19303 | BT35: 21010 | BU35: 22018 | BV35: 23025 | BW35: 8271 | BX35: 7539 | BY35: 7820 | BZ35: 325912 | CA35: 217843 | CB35: 8661 | CC35: 11369 | CD35: 11685 | CE35: - | CF35: - | CG35: - | CH35: - | CI35: - | CJ35: - | CK35: -
A36: Participações Coligadas Equiparadas | B36: Equivalent Affiliate Interests | C36: 0 | D36: 0 | E36: 0 | F36: 0 | G36: 0 | H36: 0 | I36: 0 | J36: 0 | K36: 0 | L36: 0 | M36: - | N36: - | O36: - | P36: - | Q36: - | R36: - | S36: - | T36: - | U36: - | V36: - | W36: - | X36: - | Y36: - | Z36: - | AA36: - | AB36: - | AC36: - | AD36: - | AE36: - | AF36: - | AG36: - | AH36: - | AI36: - | AJ36: - | AK36: - | AL36: - | AM36: - | AN36: - | AO36: - | AP36: - | AQ36: - | AR36: - | AS36: - | AT36: - | AU36: - | AV36: - | AW36: - | AX36: - | AY36: - | AZ36: - | BA36: - | BB36: - | BC36: - | BD36: - | BE36: - | BF36: - | BG36: - | BH36: - | BI36: - | BJ36: - | BK36: - | BL36: - | BM36: 43130 | BN36: - | BO36: - | BP36: - | BQ36: - | BR36: - | BS36: - | BT36: - | BU36: - | BV36: - | BW36: - | BX36: - | BY36: - | BZ36: - | CA36: - | CB36: - | CC36: - | CD36: - | CE36: - | CF36: - | CG36: - | CH36: - | CI36: - | CJ36: - | CK36: -
A37: Imobilizado | B37: PP&E | C37: 897014 | D37: 807919 | E37: 747550 | F37: 725046.83 | G37: 1052538.83 | H37: 1038610 | I37: 1020124 | J37: 999900 | K37: 1019684 | L37: 1028851 | M37: 1005566 | N37: 1033179 | O37: 1057384 | P37: 1081279 | Q37: 1089559 | R37: 1093859 | S37: 1068128 | T37: 1050682 | U37: 1076952 | V37: 1103452 | W37: 1121125 | X37: 1109447 | Y37: 1106790 | Z37: 1103795 | AA37: 1120415 | AB37: 1108858 | AC37: 1136999 | AD37: 1124975 | AE37: 1156590 | AF37: 1129667 | AG37: 1199100 | AH37: 1236880 | AI37: 878351 | AJ37: 852079 | AK37: 799290 | AL37: 775164 | AM37: 749283 | AN37: 697261 | AO37: 654758 | AP37: 629699 | AQ37: 619366 | AR37: 615568 | AS37: 560249 | AT37: 563145 | AU37: 560906 | AV37: 527406 | AW37: 474664 | AX37: 448036 | AY37: 431073 | AZ37: 416048 | BA37: 403981 | BB37: 392125 | BC37: 393122 | BD37: 4371598 | BE37: 4154654 | BF37: 3927984 | BG37: 324053 | BH37: 3566361 | BI37: 3374807 | BJ37: 3224863 | BK37: 3160201 | BL37: 2922219 | BM37: 2773698 | BN37: 2624358 | BO37: 2602025 | BP37: 2543488 | BQ37: 2507317 | BR37: 2429206 | BS37: 2412257 | BT37: 2395515 | BU37: 2359254 | BV37: 2335575 | BW37: 2306487 | BX37: 2231492 | BY37: 2190302 | BZ37: 2188137 | CA37: 1736814 | CB37: 1735556 | CC37: 1734024 | CD37: 1757706 | CE37: 1782168 | CF37: 1738671 | CG37: 1707275 | CH37: 1727396 | CI37: 1752180 | CJ37: 1748847 | CK37: 2989933
A38: Intangível | B38: Intangible assets | C38: 33375363 | D38: 32254458 | E38: 31562590 | F38: 31183754 | G38: 29913040 | H38: 29185820 | I38: 28837516 | J38: 28516631 | K38: 23793622 | L38: 20470988 | M38: 19647773 | N38: 18730682 | O38: 18626139 | P38: 19696479 | Q38: 20018790 | R38: 20227015 | S38: 19575365 | T38: 19633429 | U38: 19547510 | V38: 19635911 | W38: 19892804 | X38: 19444229 | Y38: 19247671 | Z38: 18190581 | AA38: 17998681 | AB38: 16893713 | AC38: 17283306 | AD38: 15540878 | AE38: 15057346 | AF38: 14309327 | AG38: 13947885 | AH38: 13533666 | AI38: 14342239 | AJ38: 13489179 | AK38: 12691909 | AL38: 12210806 | AM38: 11705781 | AN38: 11151813 | AO38: 9601689 | AP38: 9325319 | AQ38: 9342779 | AR38: 9143560 | AS38: 8993338 | AT38: 8766639 | AU38: 8782066 | AV38: 8584744 | AW38: 8173373 | AX38: 7435713 | AY38: 7454336 | AZ38: 7382982 | BA38: 7338518 | BB38: 7455966 | BC38: 7380772 | BD38: 499030 | BE38: 504494 | BF38: 516126 | BG38: 4976541 | BH38: 539758 | BI38: 412586 | BJ38: 421912 | BK38: 431555 | BL38: 441332 | BM38: 452511 | BN38: - | BO38: - | BP38: - | BQ38: - | BR38: - | BS38: - | BT38: - | BU38: - | BV38: - | BW38: - | BX38: - | BY38: - | BZ38: - | CA38: - | CB38: - | CC38: - | CD38: - | CE38: - | CF38: - | CG38: - | CH38: - | CI38: - | CJ38: - | CK38: -
A39: Intangível em andamento | B39: Intangible assets in progress | C39: 80488 | D39: 64217 | E39: 60888 | F39: -413073 | G39: 76756 | H39: 38653 | I39: 33908 | J39: 32738 | K39: 49667 | L39: 44193 | M39: 51786 | N39: 41522 | O39: 90945 | P39: 64051 | Q39: 58035 | R39: 0 | S39: 0 | T39: 0 | U39: 0 | V39: 0 | W39: 0 | X39: 0 | Y39: 0 | Z39: 0 | AA39: 0 | AB39: 0 | AC39: 0 | AD39: 0 | AE39: 0 | AF39: 0 | AG39: 0 | AH39: 0 | AI39: 0 | AJ39: 0 | AK39: 0 | AL39: 0 | AM39: 0 | AN39: 0 | AO39: 0 | AP39: 0 | AQ39: 0 | AR39: 0 | AS39: 0 | AT39: 0 | AU39: 0 | AV39: 0 | AW39: 0 | AX39: 0 | AY39: 0 | AZ39: - | BA39: - | BB39: - | BC39: - | BD39: - | BE39: - | BF39: - | BG39: - | BH39: - | BI39: - | BJ39: - | BK39: - | BL39: - | BM39: - | BN39: - | BO39: - | BP39: - | BQ39: - | BR39: - | BS39: - | BT39: - | BU39: - | BV39: - | BW39: - | BX39: - | BY39: - | BZ39: - | CA39: - | CB39: - | CC39: - | CD39: - | CE39: - | CF39: - | CG39: - | CH39: - | CI39: - | CJ39: - | CK39: -
A40: Ágio na Aquisição de Investimentos | B40: Goodwill from investment acquisition | C40: 0 | D40: 0 | E40: 0 | F40: 0 | G40: 0 | H40: 0 | I40: 0 | J40: 0 | K40: 0 | L40: 0 | M40: - | N40: - | O40: - | P40: - | Q40: - | R40: - | S40: - | T40: - | U40: - | V40: - | W40: - | X40: - | Y40: - | Z40: - | AA40: - | AB40: - | AC40: - | AD40: - | AE40: - | AF40: - | AG40: - | AH40: - | AI40: - | AJ40: - | AK40: - | AL40: - | AM40: - | AN40: - | AO40: - | AP40: - | AQ40: - | AR40: - | AS40: - | AT40: - | AU40: - | AV40: - | AW40: - | AX40: - | AY40: - | AZ40: - | BA40: - | BB40: - | BC40: - | BD40: - | BE40: - | BF40: - | BG40: - | BH40: - | BI40: - | BJ40: - | BK40: - | BL40: - | BM40: - | BN40: - | BO40: - | BP40: - | BQ40: - | BR40: - | BS40: - | BT40: - | BU40: - | BV40: - | BW40: - | BX40: - | BY40: - | BZ40: - | CA40: 8381 | CB40: - | CC40: - | CD40: - | CE40: 12000 | CF40: 12316 | CG40: - | CH40: - | CI40: - | CJ40: - | CK40: -
A41: Diferido Líquido | B41: Net Deferred Assets | C41: 0 | D41: 0 | E41: 0 | F41: 0 | G41: 0 | H41: 0 | I41: 0 | J41: 0 | K41: 0 | L41: 0 | M41: - | N41: - | O41: - | P41: - | Q41: - | R41: - | S41: - | T41: - | U41: - | V41: - | W41: - | X41: - | Y41: - | Z41: - | AA41: - | AB41: - | AC41: - | AD41: - | AE41: - | AF41: - | AG41: - | AH41: - | AI41: - | AJ41: - | AK41: - | AL41: - | AM41: - | AN41: - | AO41: - | AP41: - | AQ41: - | AR41: - | AS41: - | AT41: - | AU41: - | AV41: - | AW41: - | AX41: - | AY41: - | AZ41: - | BA41: - | BB41: - | BC41: - | BD41: 76079 | BE41: 78748 | BF41: 80047 | BG41: - | BH41: 83220 | BI41: 82682 | BJ41: 84604 | BK41: 86282 | BL41: 63553 | BM41: 22852 | BN41: 233866 | BO41: 236278 | BP41: 238160 | BQ41: 240311 | BR41: 242740 | BS41: 246802 | BT41: 243498 | BU41: 249708 | BV41: 256271 | BW41: 262149 | BX41: 252365 | BY41: 258656 | BZ41: 8292 | CA41: 4529 | CB41: 5150 | CC41: 6527 | CD41: 7305 | CE41: 8085 | CF41: 8862 | CG41: 5446 | CH41: 6665 | CI41: 7929 | CJ41: 9042 | CK41: 12880
A42: Arrendamento mercantil | B42: Lease | C42: 16888 | D42: 18868 | E42: 20898 | F42: 24542 | G42: 23683 | H42: 38352 | I42: 132669 | J42: 129282 | K42: 158453 | L42: 130656 | M42: 130780 | N42: 158729 | O42: 156538 | P42: 171623 | Q42: 175275 | R42: 175986 | S42: 139154 | T42: 208588 | U42: 186969 | V42: 197860 | W42: - | X42: - | Y42: - | Z42: - | AA42: - | AB42: - | AC42: - | AD42: - | AE42: - | AF42: - | AG42: - | AH42: - | AI42: - | AJ42: - | AK42: - | AL42: - | AM42: - | AN42: - | AO42: - | AP42: - | AQ42: - | AR42: - | AS42: - | AT42: - | AU42: - | AV42: - | AW42: - | AX42: - | AY42: - | AZ42: - | BA42: - | BB42: - | BC42: - | BD42: - | BE42: - | BF42: - | BG42: - | BH42: - | BI42: - | BJ42: - | BK42: - | BL42: - | BM42: - | BN42: - | BO42: - | BP42: - | BQ42: - | BR42: - | BS42: - | BT42: - | BU42: - | BV42: - | BW42: - | BX42: - | BY42: - | BZ42: - | CA42: - | CB42: - | CC42: - | CD42: - | CE42: - | CF42: - | CG42: - | CH42: - | CI42: - | CJ42: - | CK42: -
A43: TOTAL DO PASSIVO | B43: TOTAL LIABILITIES | C43: 56697583 | D43: 54922718 | E43: 56686043 | F43: 52785370.83 | G43: 52585989.84 | H43: 52272642 | I43: 49833116 | J43: 48927285 | K43: 43418337 | L43: 41391298 | M43: 38227896 | N43: 36585637 | O43: 35430769 | P43: 37396462 | Q43: 37007695 | R43: 35895296 | S43: 34968972 | T43: 33962523 | U43: 32940804 | V43: 33320099 | W43: 32351916 | X43: 33925381 | Y43: 32269416 | Z43: 33047280 | AA43: 32458708 | AB43: 30749623 | AC43: 30120324 | AD43: 29872599 | AE43: 26767920 | AF43: 26122651 | AG43: 24697410 | AH43: 25280433 | AI43: 24440991 | AJ43: 23621589 | AK43: 21715905 | AL43: 20937733 | AM43: 19177416 | AN43: 19107384 | AO43: 16934393 | AP43: 16535831 | AQ43: 15782142 | AR43: 15655085 | AS43: 14919848 | AT43: 14608490 | AU43: 14305826 | AV43: 14612522 | AW43: 13887781 | AX43: 13171442 | AY43: 12851366 | AZ43: 12668764 | BA43: 12988610 | BB43: 13026912 | BC43: 12767531 | BD43: 9718718 | BE43: 9998250 | BF43: 9477576 | BG43: 10390004 | BH43: 7436631 | BI43: 6862903 | BJ43: 6677860 | BK43: 6270575 | BL43: 5407937 | BM43: 4788571 | BN43: 4449079 | BO43: 4228700 | BP43: 4076263 | BQ43: 3833664 | BR43: 3937551 | BS43: 3798388 | BT43: 3783527 | BU43: 3537775 | BV43: 3454745 | BW43: 3424538 | BX43: 3391951 | BY43: 3291713 | BZ43: 3208277 | CA43: 2877053 | CB43: 2698310 | CC43: 2673651 | CD43: 2355351 | CE43: 2283609 | CF43: 2292325 | CG43: 2234918 | CH43: 2308617 | CI43: 2302180 | CJ43: 2286039 | CK43: 3603711
A44: Total do Circulante | B44: Total Current | C44: 8340369 | D44: 10192341 | E44: 11724695 | F44: 12943385 | G44: 10994585 | H44: 8919161 | I44: 6538916 | J44: 4817383 | K44: 6035706 | L44: 6832206 | M44: 7255136 | N44: 7261183 | O44: 7764676 | P44: 8033076 | Q44: 7377692 | R44: 7688645 | S44: 6643723 | T44: 5604397 | U44: 5303246 | V44: 4818416 | W44: 5355605 | X44: 4415617 | Y44: 4022899 | Z44: 5669126 | AA44: 6602485 | AB44: 6002214 | AC44: 7250654 | AD44: 7966935 | AE44: 7991567 | AF44: 7559016 | AG44: 7289829 | AH44: 9230235 | AI44: 8364459 | AJ44: 8993135 | AK44: 7513125 | AL44: 5835535 | AM44: 5307232 | AN44: 6017473 | AO44: 4260865 | AP44: 4213017 | AQ44: 3829509 | AR44: 4664360 | AS44: 3099566 | AT44: 3728656 | AU44: 3743691 | AV44: 5454456 | AW44: 4460441 | AX44: 4087033 | AY44: 2912071 | AZ44: 2276870 | BA44: 2685463 | BB44: 3029532 | BC44: 3041673 | BD44: 2147062 | BE44: 1837175 | BF44: 1737979 | BG44: 1752083 | BH44: 2676555 | BI44: 2660987 | BJ44: 2596310 | BK44: 2303195 | BL44: 2005882 | BM44: 1146812 | BN44: 995928 | BO44: 620940 | BP44: 672937 | BQ44: 616679 | BR44: 765587 | BS44: 527999 | BT44: 585029 | BU44: 867434 | BV44: 661439 | BW44: 578922 | BX44: 632815 | BY44: 635272 | BZ44: 644719 | CA44: 670511 | CB44: 446525 | CC44: 560104 | CD44: 594082 | CE44: 518429 | CF44: 482196 | CG44: 443404 | CH44: 504143 | CI44: 482553 | CJ44: 479099 | CK44: 456196
A45: Empréstimos, financiamentos e arrendamento mercantil | B45: Loans, financing and lease | C45: 339744 | D45: 288522 | E45: 896225 | F45: 883835 | G45: 926319 | H45: 885310 | I45: 267959 | J45: 558633 | K45: 846226 | L45: 351514 | M45: 329534 | N45: 322938 | O45: 865267 | P45: 916417 | Q45: 1111935 | R45: 729336 | S45: 369008 | T45: 351947 | U45: 223278 | V45: 164924 | W45: 253531 | X45: 679589 | Y45: 633311 | Z45: 1150160 | AA45: 1287944 | AB45: 1607004 | AC45: 1618856 | AD45: 1925860 | AE45: 1894673 | AF45: 1482481 | AG45: 1346277 | AH45: 1194483 | AI45: 1339221 | AJ45: 1723395 | AK45: 1274601 | AL45: 758142 | AM45: 391236 | AN45: 339488 | AO45: 182881 | AP45: 177788 | AQ45: 176831 | AR45: 285087 | AS45: 377221 | AT45: 496965 | AU45: 492759 | AV45: 351877 | AW45: 362543 | AX45: 369127 | AY45: 128946 | AZ45: 176116 | BA45: 418034 | BB45: 447023 | BC45: 469109 | BD45: 571357 | BE45: 558340 | BF45: 537717 | BG45: 613919 | BH45: 1648844 | BI45: 1445459 | BJ45: 1362332 | BK45: 1144078 | BL45: 838413 | BM45: 482520 | BN45: 122224 | BO45: 121695 | BP45: 121818 | BQ45: 158612 | BR45: 150021 | BS45: 151014 | BT45: 151329 | BU45: 476701 | BV45: 173315 | BW45: 283376 | BX45: 209101 | BY45: 241028 | BZ45: 258830 | CA45: 193282 | CB45: 200450 | CC45: 358507 | CD45: 352422 | CE45: 283217 | CF45: 283338 | CG45: 250649 | CH45: 274566 | CI45: 260445 | CJ45: 243014 | CK45: 184108
A46: Contas a pagar com operações de derivativos | B46: Payables from derivate transactions | C46: 54864 | D46: 142440 | E46: 195452 | F46: 206932 | G46: 207967 | H46: 235180 | I46: 204537 | J46: 176675 | K46: 158172 | L46: 83298 | M46: 19129 | N46: 6883 | O46: 1981 | P46: 224 | Q46: - | R46: - | S46: - | T46: - | U46: 680 | V46: 176 | W46: 832 | X46: 2772 | Y46: 2585 | Z46: 24252 | AA46: 73227 | AB46: 183490 | AC46: 194496 | AD46: 344165 | AE46: 309090 | AF46: 311603 | AG46: 292080 | AH46: 303466 | AI46: 269445 | AJ46: 231308 | AK46: 202583 | AL46: 68992 | AM46: 63702 | AN46: 6768 | AO46: 17083 | AP46: 7322 | AQ46: 655 | AR46: 3160 | AS46: 2427 | AT46: 2075 | AU46: 326 | AV46: - | AW46: - | AX46: 1789 | AY46: 217 | AZ46: - | BA46: 13825 | BB46: 95605 | BC46: 54673 | BD46: 32762 | BE46: 16084 | BF46: 25964 | BG46: 23432 | BH46: 3480 | BI46: 730 | BJ46: 558 | BK46: 765 | BL46: - | BM46: 9167 | BN46: 4781 | BO46: 3512 | BP46: 4924 | BQ46: 16425 | BR46: 13355 | BS46: 11046 | BT46: 9377 | BU46: - | BV46: 29046 | BW46: 23034 | BX46: 43313 | BY46: 44206 | BZ46: 25457 | CA46: 22428 | CB46: 16004 | CC46: 8444 | CD46: 16596 | CE46: 30524 | CF46: - | CG46: - | CH46: - | CI46: - | CJ46: - | CK46: -
A47: Debêntures e notas promissórias | B47: Debentures and promissory notes | C47: 3552204 | D47: 6786191 | E47: 7959364 | F47: 8952909 | G47: 6503037 | H47: 4992542 | I47: 3741698 | J47: 1818527 | K47: 2734048 | L47: 3781412 | M47: 3366316 | N47: 4555461 | O47: 4262384 | P47: 4022945 | Q47: 3788461 | R47: 4510398 | S47: 3741722 | T47: 2758649 | U47: 3027041 | V47: 2628254 | W47: 2906395 | X47: 1813019 | Y47: 1541180 | Z47: 2170570 | AA47: 2773664 | AB47: 2248490 | AC47: 3379982 | AD47: 3937529 | AE47: 4000876 | AF47: 4075373 | AG47: 3927045 | AH47: 5543919 | AI47: 5130920 | AJ47: 5456632 | AK47: 4659814 | AL47: 3680239 | AM47: 3393164 | AN47: 3005392 | AO47: 2893512 | AP47: 2795807 | AQ47: 2350951 | AR47: 1855437 | AS47: 1598985 | AT47: 2134671 | AU47: 2026988 | AV47: 2956679 | AW47: 3139357 | AX47: 2773871 | AY47: 1753524 | AZ47: 1229609 | BA47: 1393087 | BB47: 1445458 | BC47: 1376530 | BD47: 441099 | BE47: 356962 | BF47: 335157 | BG47: 371955 | BH47: 322842 | BI47: 631222 | BJ47: 653232 | BK47: 617755 | BL47: 619113 | BM47: 249998 | BN47: 331748 | BO47: 209093 | BP47: 177968 | BQ47: 141856 | BR47: 133946 | BS47: 111568 | BT47: 89903 | BU47: 79091 | BV47: 86921 | BW47: - | BX47: 60741 | BY47: 70399 | BZ47: 47862 | CA47: 34718 | CB47: 28373 | CC47: 22324 | CD47: 26708 | CE47: 21611 | CF47: 17825 | CG47: 47145 | CH47: 46824 | CI47: 62965 | CJ47: 35442 | CK47: -
A48: Fornecedores | B48: Suppliers | C48: 1277933 | D48: 670370 | E48: 593926 | F48: 550993 | G48: 789292 | H48: 511431 | I48: 460724 | J48: 447378 | K48: 529087 | L48: 536799 | M48: 541675 | N48: 541707 | O48: 619425 | P48: 509027 | Q48: 419461 | R48: 459047 | S48: 468884 | T48: 436606 | U48: 437777 | V48: 392708 | W48: 497025 | X48: 528753 | Y48: 573267 | Z48: 592617 | AA48: 667251 | AB48: 543950 | AC48: 622054 | AD48: 510804 | AE48: 450214 | AF48: 435975 | AG48: 550439 | AH48: 510844 | AI48: 539874 | AJ48: 572867 | AK48: 521341 | AL48: 466051 | AM48: 515360 | AN48: 478611 | AO48: 414412 | AP48: 373054 | AQ48: 385182 | AR48: 415241 | AS48: 356973 | AT48: 336883 | AU48: 365314 | AV48: 336402 | AW48: 282835 | AX48: 268399 | AY48: 335064 | AZ48: 284476 | BA48: 268893 | BB48: 254136 | BC48: 318885 | BD48: 294870 | BE48: 264601 | BF48: 240562 | BG48: 229350 | BH48: 178552 | BI48: 162401 | BJ48: 120931 | BK48: 159625 | BL48: 147846 | BM48: 117254 | BN48: 100836 | BO48: 113760 | BP48: 107287 | BQ48: 92023 | BR48: 87327 | BS48: 98217 | BT48: 85142 | BU48: 75618 | BV48: 74130 | BW48: 86935 | BX48: 71547 | BY48: 59953 | BZ48: 46657 | CA48: 65717 | CB48: 58770 | CC48: 55278 | CD48: 45678 | CE48: 47724 | CF48: 21105 | CG48: 16248 | CH48: 14206 | CI48: 17389 | CJ48: 14392 | CK48: 18145
A49: Arrendamento Mercantil | B49: Lease | C49: 0 | D49: 0 | E49: 0 | F49: 0 | G49: 0 | H49: 0 | I49: 0 | J49: 0 | K49: 0 | L49: 0 | M49: - | N49: - | O49: - | P49: - | Q49: - | R49: - | S49: - | T49: - | U49: - | V49: - | W49: - | X49: - | Y49: - | Z49: - | AA49: - | AB49: - | AC49: - | AD49: - | AE49: - | AF49: - | AG49: - | AH49: - | AI49: - | AJ49: - | AK49: - | AL49: - | AM49: - | AN49: - | AO49: - | AP49: - | AQ49: - | AR49: - | AS49: - | AT49: - | AU49: - | AV49: - | AW49: - | AX49: - | AY49: - | AZ49: - | BA49: - | BB49: - | BC49: - | BD49: 5506 | BE49: 4218 | BF49: 1365 | BG49: - | BH49: - | BI49: - | BJ49: - | BK49: - | BL49: - | BM49: - | BN49: - | BO49: - | BP49: - | BQ49: - | BR49: - | BS49: - | BT49: - | BU49: - | BV49: - | BW49: - | BX49: - | BY49: - | BZ49: - | CA49: - | CB49: - | CC49: - | CD49: - | CE49: - | CF49: - | CG49: - | CH49: - | CI49: - | CJ49: - | CK49: -
A50: Contas a pagar - partes relacionadas | B50: Accounts payable - related parties | C50: 47464 | D50: 21785 | E50: 31063 | F50: 17239 | G50: 22382 | H50: 20154 | I50: 23426 | J50: 70482 | K50: 68114 | L50: 68671 | M50: 83691 | N50: 87618 | O50: 123005 | P50: 99608 | Q50: 125567 | R50: 129343 | S50: 123646 | T50: 153636 | U50: 166503 | V50: 140117 | W50: 155370 | X50: 137716 | Y50: 128703 | Z50: 125276 | AA50: 151697 | AB50: 208238 | AC50: 182451 | AD50: 145428 | AE50: 143440 | AF50: 89440 | AG50: 75988 | AH50: 82673 | AI50: 97638 | AJ50: 60449 | AK50: 56208 | AL50: 56904 | AM50: 48733 | AN50: 45663 | AO50: 46635 | AP50: 59032 | AQ50: 69750 | AR50: 75640 | AS50: 55776 | AT50: 49367 | AU50: 40953 | AV50: 78380 | AW50: 76705 | AX50: 44054 | AY50: 68843 | AZ50: 86424 | BA50: 62543 | BB50: 61699 | BC50: - | BD50: 107876 | BE50: 109293 | BF50: 83351 | BG50: - | BH50: - | BI50: - | BJ50: - | BK50: - | BL50: - | BM50: - | BN50: - | BO50: - | BP50: - | BQ50: - | BR50: - | BS50: - | BT50: - | BU50: - | BV50: - | BW50: 44764 | BX50: - | BY50: - | BZ50: - | CA50: - | CB50: - | CC50: - | CD50: - | CE50: - | CF50: - | CG50: - | CH50: - | CI50: - | CJ50: - | CK50: 402
A51: Mútuos - partes relacionadas | B51: Loans - related parties | C51: 197935 | D51: 150978 | E51: 282566 | F51: 271720 | G51: 262545 | H51: 378393 | I51: 363266 | J51: 354223 | K51: 337724 | L51: 332739 | M51: 325523 | N51: 319889 | O51: 315247 | P51: 310603 | Q51: 305824 | R51: 300716 | S51: 294961 | T51: 46471 | U51: 41658 | V51: 31558 | W51: 23229 | X51: 39304 | Y51: 37901 | Z51: 33072 | AA51: 31411 | AB51: 12075 | AC51: 11233 | AD51: 9714 | AE51: 8626 | AF51: 9531 | AG51: 8022 | AH51: 1888 | AI51: 211 | AJ51: 13133 | AK51: 28777 | AL51: 27599 | AM51: 25076 | AN51: 5732 | AO51: 8511 | AP51: 12874 | AQ51: 14389 | AR51: 8673 | AS51: 7087 | AT51: 33348 | AU51: 30858 | AV51: - | AW51: - | AX51: - | AY51: - | AZ51: - | BA51: - | BB51: - | BC51: - | BD51: - | BE51: - | BF51: - | BG51: - | BH51: - | BI51: - | BJ51: - | BK51: - | BL51: - | BM51: - | BN51: - | BO51: - | BP51: - | BQ51: - | BR51: - | BS51: - | BT51: - | BU51: - | BV51: - | BW51: - | BX51: - | BY51: - | BZ51: - | CA51: - | CB51: - | CC51: - | CD51: - | CE51: - | CF51: - | CG51: - | CH51: - | CI51: - | CJ51: - | CK51: -
A52: Plano de incentivo - partes relacionadas | B52: Incentive plan - related parties | C52: 0 | D52: 0 | E52: 0 | F52: 0 | G52: 0 | H52: 0 | I52: 0 | J52: 0 | K52: 0 | L52: 0 | M52: - | N52: - | O52: - | P52: - | Q52: - | R52: - | S52: - | T52: - | U52: - | V52: - | W52: - | X52: - | Y52: - | Z52: - | AA52: - | AB52: - | AC52: - | AD52: - | AE52: - | AF52: - | AG52: - | AH52: - | AI52: - | AJ52: - | AK52: - | AL52: - | AM52: - | AN52: - | AO52: - | AP52: - | AQ52: - | AR52: - | AS52: - | AT52: - | AU52: 14976 | AV52: - | AW52: - | AX52: - | AY52: - | AZ52: - | BA52: - | BB52: - | BC52: - | BD52: - | BE52: - | BF52: - | BG52: - | BH52: - | BI52: - | BJ52: - | BK52: - | BL52: - | BM52: - | BN52: - | BO52: - | BP52: - | BQ52: - | BR52: - | BS52: - | BT52: - | BU52: - | BV52: - | BW52: - | BX52: - | BY52: - | BZ52: - | CA52: - | CB52: - | CC52: - | CD52: - | CE52: - | CF52: - | CG52: - | CH52: - | CI52: - | CJ52: - | CK52: -
A53: Obrigações Sociais e Trabalhistas | B53: Social and labor obligations | C53: 549229 | D53: 538276 | E53: 431104 | F53: 571935 | G53: 506082 | H53: 473505 | I53: 368444 | J53: 455720 | K53: 379597 | L53: 359738 | M53: 276172 | N53: 286298 | O53: 266920 | P53: 355713 | Q53: 297118 | R53: 381041 | S53: 324826 | T53: 334221 | U53: 293270 | V53: 310781 | W53: 269178 | X53: 272476 | Y53: 222283 | Z53: 275753 | AA53: 246346 | AB53: 245348 | AC53: 208196 | AD53: 256740 | AE53: 226197 | AF53: 225841 | AG53: 204021 | AH53: 272678 | AI53: 243091 | AJ53: 234671 | AK53: 173220 | AL53: 228954 | AM53: 187999 | AN53: 177160 | AO53: 141972 | AP53: 179486 | AQ53: 156262 | AR53: 155023 | AS53: 127928 | AT53: 164618 | AU53: 139538 | AV53: 143085 | AW53: 105322 | AX53: 124626 | AY53: 95248 | AZ53: 81434 | BA53: 74113 | BB53: 90642 | BC53: 66854 | BD53: 66879 | BE53: 52308 | BF53: 71603 | BG53: 42901 | BH53: 47859 | BI53: 38732 | BJ53: 66569 | BK53: 43402 | BL53: 63918 | BM53: 50480 | BN53: 56391 | BO53: 46817 | BP53: 31310 | BQ53: 27197 | BR53: 24658 | BS53: 22372 | BT53: 27220 | BU53: 23624 | BV53: 21374 | BW53: 19945 | BX53: 23121 | BY53: 20452 | BZ53: 20201 | CA53: 15991 | CB53: 18199 | CC53: 16069 | CD53: 14261 | CE53: 13076 | CF53: 16591 | CG53: 13857 | CH53: 15177 | CI53: 13071 | CJ53: 14295 | CK53: 13759
A54: Obrigações Fiscais Estaduais | B54: State tax obligations | C54: 0 | D54: 0 | E54: 0 | F54: 0 | G54: 0 | H54: 0 | I54: 0 | J54: 0 | K54: 0 | L54: 0 | M54: - | N54: - | O54: - | P54: - | Q54: - | R54: - | S54: - | T54: - | U54: - | V54: - | W54: - | X54: - | Y54: - | Z54: - | AA54: - | AB54: - | AC54: - | AD54: - | AE54: - | AF54: - | AG54: - | AH54: - | AI54: - | AJ54: - | AK54: - | AL54: - | AM54: - | AN54: - | AO54: - | AP54: - | AQ54: - | AR54: - | AS54: - | AT54: - | AU54: - | AV54: - | AW54: - | AX54: - | AY54: - | AZ54: - | BA54: 2426 | BB54: 1546 | BC54: - | BD54: - | BE54: - | BF54: - | BG54: - | BH54: - | BI54: - | BJ54: - | BK54: - | BL54: - | BM54: - | BN54: - | BO54: - | BP54: - | BQ54: - | BR54: - | BS54: - | BT54: - | BU54: - | BV54: - | BW54: - | BX54: - | BY54: - | BZ54: - | CA54: - | CB54: - | CC54: - | CD54: - | CE54: - | CF54: - | CG54: - | CH54: - | CI54: - | CJ54: - | CK54: -
A55: Obrigações Fiscais Municipais | B55: Municipal tax obligations | C55: 0 | D55: 0 | E55: 0 | F55: 0 | G55: 0 | H55: 0 | I55: 0 | J55: 0 | K55: 0 | L55: 0 | M55: - | N55: - | O55: - | P55: - | Q55: - | R55: - | S55: - | T55: - | U55: - | V55: - | W55: - | X55: - | Y55: - | Z55: - | AA55: - | AB55: - | AC55: - | AD55: - | AE55: - | AF55: - | AG55: - | AH55: - | AI55: - | AJ55: - | AK55: - | AL55: - | AM55: - | AN55: - | AO55: - | AP55: - | AQ55: - | AR55: - | AS55: - | AT55: - | AU55: - | AV55: - | AW55: - | AX55: - | AY55: - | AZ55: - | BA55: 24775 | BB55: 24672 | BC55: - | BD55: - | BE55: - | BF55: - | BG55: - | BH55: - | BI55: - | BJ55: - | BK55: - | BL55: - | BM55: - | BN55: - | BO55: - | BP55: - | BQ55: - | BR55: - | BS55: - | BT55: - | BU55: - | BV55: - | BW55: - | BX55: - | BY55: - | BZ55: - | CA55: - | CB55: - | CC55: - | CD55: - | CE55: - | CF55: - | CG55: - | CH55: - | CI55: - | CJ55: - | CK55: -
A56: Provisão para contingências | B56: Provision for contingencies | C56: 0 | D56: 0 | E56: 0 | F56: 0 | G56: 0 | H56: 0 | I56: 0 | J56: 0 | K56: 0 | L56: 0 | M56: - | N56: - | O56: - | P56: - | Q56: - | R56: - | S56: - | T56: - | U56: - | V56: - | W56: - | X56: - | Y56: - | Z56: - | AA56: - | AB56: - | AC56: - | AD56: - | AE56: - | AF56: - | AG56: - | AH56: - | AI56: - | AJ56: - | AK56: - | AL56: - | AM56: - | AN56: - | AO56: - | AP56: - | AQ56: - | AR56: - | AS56: - | AT56: - | AU56: - | AV56: - | AW56: - | AX56: - | AY56: - | AZ56: - | BA56: - | BB56: - | BC56: - | BD56: - | BE56: 418 | BF56: 587 | BG56: 1785 | BH56: 1851 | BI56: 1698 | BJ56: 1506 | BK56: 2496 | BL56: 2662 | BM56: 2681 | BN56: 2284 | BO56: 2284 | BP56: 2284 | BQ56: 2683 | BR56: 2549 | BS56: 2454 | BT56: 2469 | BU56: 2093 | BV56: 2448 | BW56: 1963 | BX56: 1861 | BY56: 3014 | BZ56: 574 | CA56: 574 | CB56: 574 | CC56: 574 | CD56: 574 | CE56: 808 | CF56: 1438 | CG56: 1484 | CH56: 52711 | CI56: 50978 | CJ56: - | CK56: -
A57: Dividendos e juros sobre o capital próprio | B57: Dividends and interest on equity | C57: 479911 | D57: 61499 | E57: 72394 | F57: 142302 | G57: 141245 | H57: 64188 | I57: 62935 | J57: 73388 | K57: 74867 | L57: 7839 | M57: 4361 | N57: 47902 | O57: 47183 | P57: 375034 | Q57: 1691 | R57: 1502 | S57: 798 | T57: 368 | U57: 369 | V57: 353 | W57: 1511 | X57: 324 | Y57: 325 | Z57: 313219 | AA57: 313220 | AB57: 316 | AC57: 316 | AD57: 270 | AE57: 270 | AF57: 223 | AG57: 629 | AH57: 503193 | AI57: 3193 | AJ57: 480 | AK57: 480 | AL57: 1713 | AM57: 515 | AN57: 1299644 | AO57: 435 | AP57: 422 | AQ57: - | AR57: 1201181 | AS57: 271 | AT57: 259 | AU57: 257 | AV57: 953554 | AW57: 185 | AX57: 124 | AY57: 124 | AZ57: 125 | BA57: 36 | BB57: 24 | BC57: 4293 | BD57: - | BE57: 5 | BF57: 109241 | BG57: - | BH57: 1746 | BI57: 42731 | BJ57: 143506 | BK57: 143506 | BL57: - | BM57: - | BN57: 201579 | BO57: 30 | BP57: - | BQ57: - | BR57: 206474 | BS57: - | BT57: - | BU57: 30 | BV57: 100804 | BW57: 92 | BX57: 83 | BY57: 69 | BZ57: 105731 | CA57: 100828 | CB57: 39 | CC57: 31 | CD57: 51649 | CE57: 51649 | CF57: - | CG57: - | CH57: 29614 | CI57: 29614 | CJ57: - | CK57: -
A58: Provisão de Manutenção | B58: Provision for Maintenance | C58: 208562 | D58: 106037 | E58: 74886 | F58: 70469 | G58: 71239 | H58: 46178 | I58: 44008 | J58: 39395 | K58: 39182 | L58: 43537 | M58: 55565 | N58: 161507 | O58: 151366 | P58: 114487 | Q58: 106845 | R58: 110644 | S58: 125824 | T58: 170045 | U58: 206903 | V58: 252154 | W58: 289081 | X58: 274728 | Y58: 289263 | Z58: 291201 | AA58: 301415 | AB58: 310284 | AC58: 278973 | AD58: 243569 | AE58: 251242 | AF58: 154499 | AG58: 189417 | AH58: 165187 | AI58: 134572 | AJ58: 142510 | AK58: 113906 | AL58: 114310 | AM58: 93089 | AN58: 112478 | AO58: 134820 | AP58: 175890 | AQ58: 153752 | AR58: 181418 | AS58: 171803 | AT58: 139804 | AU58: 147912 | AV58: 207614 | AW58: 171529 | AX58: 171895 | AY58: 222821 | AZ58: 142419 | BA58: 204888 | BB58: 261056 | BC58: 283567 | BD58: - | BE58: - | BF58: - | BG58: 232056 | BH58: - | BI58: - | BJ58: - | BK58: - | BL58: - | BM58: - | BN58: - | BO58: - | BP58: - | BQ58: - | BR58: - | BS58: - | BT58: - | BU58: - | BV58: - | BW58: - | BX58: - | BY58: - | BZ58: - | CA58: - | CB58: - | CC58: - | CD58: - | CE58: - | CF58: - | CG58: - | CH58: - | CI58: - | CJ58: - | CK58: -
A59: Bônus de subscrição a pagar | B59: Subscription warrants payable | C59: 0 | D59: 0 | E59: 0 | F59: 0 | G59: 0 | H59: 0 | I59: 0 | J59: 0 | K59: 0 | L59: 0 | M59: - | N59: - | O59: - | P59: - | Q59: - | R59: - | S59: - | T59: - | U59: - | V59: - | W59: - | X59: - | Y59: - | Z59: - | AA59: - | AB59: - | AC59: - | AD59: - | AE59: - | AF59: - | AG59: - | AH59: - | AI59: - | AJ59: - | AK59: - | AL59: - | AM59: - | AN59: - | AO59: - | AP59: - | AQ59: - | AR59: - | AS59: - | AT59: - | AU59: - | AV59: - | AW59: - | AX59: - | AY59: - | AZ59: - | BA59: - | BB59: - | BC59: - | BD59: - | BE59: - | BF59: - | BG59: - | BH59: - | BI59: - | BJ59: - | BK59: - | BL59: - | BM59: - | BN59: - | BO59: - | BP59: - | BQ59: - | BR59: - | BS59: - | BT59: - | BU59: - | BV59: - | BW59: - | BX59: - | BY59: - | BZ59: - | CA59: 156384 | CB59: - | CC59: - | CD59: - | CE59: - | CF59: - | CG59: - | CH59: - | CI59: - | CJ59: - | CK59: -
A60: Provisão para Imposto de Renda e Contribuição Social | B60: Provision for income tax and social contribution | C60: 0 | D60: 0 | E60: 0 | F60: 0 | G60: 0 | H60: 0 | I60: 0 | J60: 0 | K60: 0 | L60: 0 | M60: - | N60: - | O60: - | P60: - | Q60: - | R60: - | S60: - | T60: - | U60: - | V60: - | W60: - | X60: - | Y60: - | Z60: - | AA60: - | AB60: - | AC60: - | AD60: - | AE60: - | AF60: - | AG60: - | AH60: - | AI60: - | AJ60: - | AK60: - | AL60: - | AM60: - | AN60: - | AO60: - | AP60: - | AQ60: - | AR60: - | AS60: - | AT60: - | AU60: - | AV60: - | AW60: - | AX60: - | AY60: - | AZ60: - | BA60: - | BB60: - | BC60: - | BD60: - | BE60: - | BF60: - | BG60: - | BH60: - | BI60: - | BJ60: - | BK60: 18197 | BL60: - | BM60: - | BN60: - | BO60: 12143 | BP60: - | BQ60: - | BR60: - | BS60: 8355 | BT60: - | BU60: - | BV60: - | BW60: 17943 | BX60: - | BY60: - | BZ60: - | CA60: 14818 | CB60: - | CC60: - | CD60: - | CE60: 6958 | CF60: - | CG60: - | CH60: - | CI60: - | CJ60: - | CK60: -
A61: IRPJ e CSLL | B61: Income tax and social contribution | C61: 0 | D61: 0 | E61: 0 | F61: 0 | G61: 0 | H61: 0 | I61: 0 | J61: 0 | K61: 0 | L61: 0 | M61: - | N61: - | O61: - | P61: - | Q61: - | R61: - | S61: - | T61: - | U61: - | V61: - | W61: - | X61: - | Y61: - | Z61: - | AA61: - | AB61: - | AC61: - | AD61: - | AE61: - | AF61: - | AG61: - | AH61: - | AI61: - | AJ61: - | AK61: - | AL61: - | AM61: - | AN61: - | AO61: - | AP61: - | AQ61: - | AR61: - | AS61: - | AT61: - | AU61: - | AV61: 162701 | AW61: 105072 | AX61: 83465 | AY61: 48050 | AZ61: 59888 | BA61: 48122 | BB61: 18126 | BC61: 59092 | BD61: 365605 | BE61: 224603 | BF61: 119858 | BG61: 7939 | BH61: 286506 | BI61: 177820 | BJ61: 92842 | BK61: - | BL61: 187242 | BM61: 105311 | BN61: 58799 | BO61: - | BP61: 115029 | BQ61: 62629 | BR61: 29057 | BS61: - | BT61: 96527 | BU61: 75255 | BV61: 51370 | BW61: - | BX61: 130617 | BY61: 89881 | BZ61: 40163 | CA61: - | CB61: 62018 | CC61: 28086 | CD61: 19771 | CE61: - | CF61: 45521 | CG61: 16794 | CH61: 12955 | CI61: - | CJ61: 48801 | CK61: -
A62: IRPJ e CSLL Diferidos | B62: Deferred income tax and social contribution | C62: 0 | D62: 0 | E62: 0 | F62: 0 | G62: 0 | H62: 0 | I62: 0 | J62: 0 | K62: 0 | L62: 0 | M62: - | N62: - | O62: - | P62: - | Q62: - | R62: - | S62: - | T62: - | U62: - | V62: - | W62: - | X62: - | Y62: - | Z62: - | AA62: - | AB62: - | AC62: - | AD62: - | AE62: - | AF62: - | AG62: - | AH62: - | AI62: - | AJ62: - | AK62: - | AL62: - | AM62: - | AN62: - | AO62: - | AP62: - | AQ62: - | AR62: - | AS62: - | AT62: - | AU62: - | AV62: - | AW62: - | AX62: - | AY62: - | AZ62: - | BA62: - | BB62: - | BC62: - | BD62: 1057 | BE62: 11931 | BF62: 12608 | BG62: - | BH62: 16992 | BI62: 15258 | BJ62: 6449 | BK62: 6730 | BL62: 3471 | BM62: 1365 | BN62: 1382 | BO62: 1514 | BP62: 1584 | BQ62: 1627 | BR62: 1591 | BS62: 1401 | BT62: 1520 | BU62: 7529 | BV62: 1835 | BW62: 5310 | BX62: 1820 | BY62: 1663 | BZ62: 1087 | CA62: 1168 | CB62: 1008 | CC62: 469 | CD62: 914 | CE62: 1004 | CF62: - | CG62: - | CH62: - | CI62: - | CJ62: - | CK62: -
A63: Contas a Pagar Partes Relacionadas | B63: Accounts payable - related parties | C63: 0 | D63: 0 | E63: 0 | F63: 0 | G63: 0 | H63: 0 | I63: 0 | J63: 0 | K63: 0 | L63: 0 | M63: - | N63: - | O63: - | P63: - | Q63: - | R63: - | S63: - | T63: - | U63: - | V63: - | W63: - | X63: - | Y63: - | Z63: - | AA63: - | AB63: - | AC63: - | AD63: - | AE63: - | AF63: - | AG63: - | AH63: - | AI63: - | AJ63: - | AK63: - | AL63: - | AM63: - | AN63: - | AO63: - | AP63: - | AQ63: - | AR63: - | AS63: - | AT63: - | AU63: - | AV63: - | AW63: - | AX63: - | AY63: - | AZ63: - | BA63: - | BB63: - | BC63: 72638 | BD63: - | BE63: - | BF63: - | BG63: 93670 | BH63: 68712 | BI63: 50935 | BJ63: 44840 | BK63: 56204 | BL63: 41429 | BM63: 33350 | BN63: 26744 | BO63: 19533 | BP63: 29625 | BQ63: 28569 | BR63: 34434 | BS63: 39681 | BT63: 43397 | BU63: 42911 | BV63: 40975 | BW63: - | BX63: 40477 | BY63: 32156 | BZ63: 20689 | CA63: 26300 | CB63: 29334 | CC63: 36434 | CD63: 33339 | CE63: 34803 | CF63: 34744 | CG63: 25367 | CH63: 21844 | CI63: 23516 | CJ63: 37342 | CK63: 64108
A64: Obrigações com o Poder Concedente | B64: Obligations with the Granting Authority | C64: 274867 | D64: 266301 | E64: 255907 | F64: 262780 | G64: 251378 | H64: 191082 | I64: 186030 | J64: 183959 | K64: 181134 | L64: 114869 | M64: 105559 | N64: 107607 | O64: 103461 | P64: 196892 | Q64: 190830 | R64: 163504 | S64: 114502 | T64: 99026 | U64: 104440 | V64: 113251 | W64: 107634 | X64: 94051 | Y64: 96746 | Z64: 106427 | AA64: 103102 | AB64: 97241 | AC64: 248151 | AD64: 197590 | AE64: 207787 | AF64: 283630 | AG64: 286141 | AH64: 262562 | AI64: 246358 | AJ64: 231873 | AK64: 221259 | AL64: 208884 | AM64: 174674 | AN64: 80585 | AO64: 42118 | AP64: 55832 | AQ64: 14153 | AR64: 18497 | AS64: 27416 | AT64: 32445 | AU64: 48368 | AV64: 26527 | AW64: 19195 | AX64: 25966 | AY64: 30433 | AZ64: 10523 | BA64: 8686 | BB64: 160243 | BC64: 143407 | BD64: 123792 | BE64: 104305 | BF64: 77535 | BG64: 11330 | BH64: 12502 | BI64: 8624 | BJ64: 8637 | BK64: 8568 | BL64: 8532 | BM64: 7871 | BN64: 3679 | BO64: 3675 | BP64: 8714 | BQ64: 8002 | BR64: 7700 | BS64: 3374 | BT64: 3201 | BU64: 3055 | BV64: 3159 | BW64: 3247 | BX64: 3430 | BY64: 3157 | BZ64: 3199 | CA64: 2325 | CB64: 2307 | CC64: 2011 | CD64: 2208 | CE64: 1905 | CF64: 1835 | CG64: 1523 | CH64: 1319 | CI64: 1380 | CJ64: 1367 | CK64: 119668
A65: Receita Diferida | B65: Deferred revenue | C65: 0 | D65: 0 | E65: 0 | F65: 0 | G65: 0 | H65: 0 | I65: 0 | J65: 0 | K65: 0 | L65: 0 | M65: - | N65: - | O65: - | P65: - | Q65: - | R65: - | S65: - | T65: - | U65: - | V65: - | W65: - | X65: - | Y65: - | Z65: - | AA65: - | AB65: 32640 | AC65: 71226 | AD65: - | AE65: - | AF65: - | AG65: - | AH65: - | AI65: - | AJ65: - | AK65: - | AL65: - | AM65: - | AN65: - | AO65: - | AP65: - | AQ65: - | AR65: - | AS65: - | AT65: - | AU65: - | AV65: - | AW65: - | AX65: - | AY65: - | AZ65: - | BA65: - | BB65: - | BC65: - | BD65: - | BE65: - | BF65: - | BG65: - | BH65: - | BI65: - | BJ65: - | BK65: - | BL65: - | BM65: - | BN65: - | BO65: - | BP65: - | BQ65: - | BR65: - | BS65: - | BT65: - | BU65: - | BV65: - | BW65: - | BX65: - | BY65: - | BZ65: - | CA65: - | CB65: - | CC65: - | CD65: - | CE65: - | CF65: - | CG65: - | CH65: - | CI65: - | CJ65: - | CK65: -
A66: Outras Contas a Pagar | B66: Other accounts payable | C66: 487321 | D66: 362408 | E66: 235585 | F66: 265002 | G66: 268006 | H66: 270811 | I66: 275129 | J66: 270088 | K66: 277048 | L66: 780158 | M66: 687039 | N66: 529693 | O66: 555992 | P66: 727120 | Q66: 677545 | R66: 690147 | S66: 626602 | T66: 877424 | U66: 534477 | V66: 553701 | W66: 525921 | X66: 157998 | Y66: 138463 | Z66: 242797 | AA66: 196258 | AB66: 200126 | AC66: 219590 | AD66: 214526 | AE66: 201196 | AF66: 221555 | AG66: 179338 | AH66: 176140 | AI66: 64429 | AJ66: 57879 | AK66: 51590 | AL66: 51310 | AM66: 64509 | AN66: 102631 | AO66: 95895 | AP66: 128699 | AQ66: 107778 | AR66: 89132 | AS66: 93972 | AT66: 91182 | AU66: 100938 | AV66: 151372 | AW66: 116718 | AX66: 116437 | AY66: 92112 | AZ66: 105639 | BA66: 76627 | BB66: 86686 | BC66: 82245 | BD66: 33017 | BE66: 38937 | BF66: 30001 | BG66: 30239 | BH66: 26131 | BI66: 27430 | BJ66: 36250 | BK66: 38589 | BL66: 35076 | BM66: 33309 | BN66: 33947 | BO66: 35743 | BP66: 22252 | BQ66: 30073 | BR66: 26960 | BS66: 31005 | BT66: 28515 | BU66: 35464 | BV66: 31213 | BW66: 44513 | BX66: 21531 | BY66: 47828 | BZ66: 50878 | CA66: 18500 | CB66: 12876 | CC66: 14044 | CD66: 14653 | CE66: 12604 | CF66: 48174 | CG66: 60841 | CH66: 24758 | CI66: 10678 | CJ66: 73175 | CK66: 46342
A67: Acordo Preliminar | B67: Preliminary agreement | C67: 0 | D67: 0 | E67: 0 | F67: 0 | G67: 0 | H67: 0 | I67: 0 | J67: 0 | K67: 0 | L67: 0 | M67: 1200000 | N67: - | O67: - | P67: - | Q67: - | R67: - | S67: - | T67: - | U67: - | V67: - | W67: - | X67: - | Y67: - | Z67: - | AA67: - | AB67: - | AC67: - | AD67: - | AE67: - | AF67: - | AG67: - | AH67: - | AI67: - | AJ67: - | AK67: - | AL67: - | AM67: - | AN67: - | AO67: - | AP67: - | AQ67: - | AR67: - | AS67: - | AT67: - | AU67: - | AV67: - | AW67: - | AX67: - | AY67: - | AZ67: - | BA67: - | BB67: - | BC67: - | BD67: - | BE67: - | BF67: - | BG67: - | BH67: - | BI67: - | BJ67: - | BK67: - | BL67: - | BM67: - | BN67: - | BO67: - | BP67: - | BQ67: - | BR67: - | BS67: - | BT67: - | BU67: - | BV67: - | BW67: - | BX67: - | BY67: - | BZ67: - | CA67: - | CB67: - | CC67: - | CD67: - | CE67: - | CF67: - | CG67: - | CH67: - | CI67: - | CJ67: - | CK67: -
A68: Impostos e Contribuições a Recolher | B68: Taxes and contributions payable | C68: 719980 | D68: 672100 | E68: 578682 | F68: 566108 | G68: 855493 | H68: 847098 | I68: 538656 | J68: 366042 | K68: 406798 | L68: 367297 | M68: 257907 | N68: 291484 | O68: 450169 | P68: 402693 | Q68: 350626 | R68: 211799 | S68: 451783 | T68: 372816 | U68: 266223 | V68: 229831 | W68: 325295 | X68: 267657 | Y68: 213109 | Z68: 201445 | AA68: 314916 | AB68: 294386 | AC68: 214489 | AD68: 180108 | AE68: 296142 | AF68: 265903 | AG68: 224313 | AH68: 205855 | AI68: 288183 | AJ68: 265403 | AK68: 206703 | AL68: 169811 | AM68: 346552 | AN68: 309553 | AO68: 229389 | AP68: 194868 | AQ68: 347880 | AR68: 324809 | AS68: 229278 | AT68: 196577 | AU68: 284110 | AV68: 36173 | AW68: 32904 | AX68: 59761 | AY68: 89859 | AZ68: 53815 | BA68: 43043 | BB68: 41043 | BC68: 66246 | BD68: 56344 | BE68: 47539 | BF68: 45837 | BG68: 48635 | BH68: 60538 | BI68: 57947 | BJ68: 58658 | BK68: 63280 | BL68: 58179 | BM68: 53506 | BN68: 51534 | BO68: 51141 | BP68: 50142 | BQ68: 46983 | BR68: 47515 | BS68: 47512 | BT68: 46429 | BU68: 46063 | BV68: 44849 | BW68: 47800 | BX68: 25173 | BY68: 21466 | BZ68: 23391 | CA68: 17478 | CB68: 16573 | CC68: 17833 | CD68: 15309 | CE68: 12546 | CF68: 11625 | CG68: 9496 | CH68: 10169 | CI68: 12517 | CJ68: 11271 | CK68: 9664
A69: Impostos e Contribuições Parcelados | B69: Taxes and contributions in installments | C69: 3174 | D69: 3127 | E69: 3053 | F69: 3030 | G69: 3008 | H69: 3289 | I69: 2104 | J69: 2873 | K69: 3709 | L69: 4335 | M69: 2665 | N69: 2196 | O69: 2276 | P69: 2313 | Q69: 1789 | R69: 1168 | S69: 1167 | T69: 3188 | U69: 627 | V69: 608 | W69: 603 | X69: 147230 | Y69: 145763 | Z69: 142337 | AA69: 142034 | AB69: 18626 | AC69: 641 | AD69: 632 | AE69: 1814 | AF69: 2962 | AG69: 6119 | AH69: 7347 | AI69: 7324 | AJ69: 2535 | AK69: 2643 | AL69: 2626 | AM69: 2623 | AN69: 53768 | AO69: 53202 | AP69: 51943 | AQ69: 51926 | AR69: 51062 | AS69: 50429 | AT69: 50462 | AU69: 50394 | AV69: 50092 | AW69: 48076 | AX69: 47519 | AY69: 46830 | AZ69: 46402 | BA69: 46365 | BB69: 41573 | BC69: 44134 | BD69: 46898 | BE69: 47631 | BF69: 46593 | BG69: 44872 | BH69: - | BI69: - | BJ69: - | BK69: - | BL69: - | BM69: - | BN69: - | BO69: - | BP69: - | BQ69: - | BR69: - | BS69: - | BT69: - | BU69: - | BV69: - | BW69: - | BX69: - | BY69: - | BZ69: - | CA69: - | CB69: - | CC69: - | CD69: - | CE69: - | CF69: - | CG69: - | CH69: - | CI69: - | CJ69: - | CK69: -
A70: Passivos mantidos para venda | B70: Liabilities held for sale | C70: 147181 | D70: 122307 | E70: 114488 | F70: 178131 | G70: 186592 | H70: - | I70: - | J70: - | K70: - | L70: - | M70: - | N70: - | O70: - | P70: - | Q70: - | R70: - | S70: - | T70: - | U70: - | V70: - | W70: - | X70: - | Y70: - | Z70: - | AA70: - | AB70: - | AC70: - | AD70: - | AE70: - | AF70: - | AG70: - | AH70: - | AI70: - | AJ70: - | AK70: - | AL70: - | AM70: - | AN70: - | AO70: - | AP70: - | AQ70: - | AR70: - | AS70: - | AT70: - | AU70: - | AV70: - | AW70: - | AX70: - | AY70: - | AZ70: - | BA70: - | BB70: - | BC70: - | BD70: - | BE70: - | BF70: - | BG70: - | BH70: - | BI70: - | BJ70: - | BK70: - | BL70: - | BM70: - | BN70: - | BO70: - | BP70: - | BQ70: - | BR70: - | BS70: - | BT70: - | BU70: - | BV70: - | BW70: - | BX70: - | BY70: - | BZ70: - | CA70: - | CB70: - | CC70: - | CD70: - | CE70: - | CF70: - | CG70: - | CH70: - | CI70: - | CJ70: - | CK70: -
A71: Total do exígivel a longo prazo | B71: Total long-term liabilities | C71: 35279985 | D71: 31570515.06 | E71: 32296915 | F71: 27387239 | G71: 29768738 | H71: 30681747 | I71: 31289026 | J71: 32394670 | K71: 28816831.4 | L71: 25665987 | M71: 22421288 | N71: 20381185 | O71: 19726331 | P71: 21159305 | Q71: 21201753 | R71: 19116481 | S71: 19885555 | T71: 19396475 | U71: 19116225 | V71: 19686223 | W71: 18563577 | X71: 19746074 | Y71: 18880856 | Z71: 18437213 | AA71: 17363776 | AB71: 15422248 | AC71: 13975237 | AD71: 13479148 | AE71: 14631864 | AF71: 13837564 | AG71: 13813777 | AH71: 12571244 | AI71: 12172220 | AJ71: 9935460 | AK71: 10110743 | AL71: 11031265 | AM71: 10199971 | AN71: 9860133 | AO71: 8581485 | AP71: 8371667 | AQ71: 8467092 | AR71: 7827998 | AS71: 7870681 | AT71: 7184301 | AU71: 7199803 | AV71: 6145719 | AW71: 5797690 | AX71: 5581398 | AY71: 6725080 | AZ71: 7450918 | BA71: 6929490 | BB71: 6689342 | BC71: 6585468 | BD71: 4889557 | BE71: 4970378 | BF71: 4692356 | BG71: 5292750 | BH71: 3087223 | BI71: 2252796 | BJ71: 2320478 | BK71: 2363773 | BL71: 1837660 | BM71: 1895427 | BN71: 1847774 | BO71: 1970551 | BP71: 1901536 | BQ71: 1565476 | BR71: 1644076 | BS71: 1690988 | BT71: 1852652 | BU71: 1192960 | BV71: 1394756 | BW71: 1455386 | BX71: 1523604 | BY71: 1403947 | BZ71: 1410861 | CA71: 1122597 | CB71: 1164523 | CC71: 1019877 | CD71: 1062261 | CE71: 1117219 | CF71: 1168982 | CG71: 1188043 | CH71: 1257637 | CI71: 1304337 | CJ71: 1352822 | CK71: 3059063
A72: Empréstimos e financiamentos | B72: Loans and Financing | C72: 8330794 | D72: 7584911 | E72: 7586270 | F72: 7636535 | G72: 7679238 | H72: 7775032 | I72: 8233122 | J72: 7708593 | K72: 8243871 | L72: 8687360 | M72: 7865066 | N72: 8108194 | O72: 7843032 | P72: 7903856 | Q72: 7750517 | R72: 7132817 | S72: 7126965 | T72: 6795251 | U72: 6833063 | V72: 6752374 | W72: 5631296 | X72: 5051855 | Y72: 4721586 | Z72: 4576313 | AA72: 4964547 | AB72: 4453460 | AC72: 4396764 | AD72: 3949792 | AE72: 3931781 | AF72: 3940366 | AG72: 3844652 | AH72: 3609577 | AI72: 3589062 | AJ72: 1977365 | AK72: 1965022 | AL72: 1862552 | AM72: 1125611 | AN72: 834992 | AO72: 934837 | AP72: 949154 | AQ72: 1014393 | AR72: 1018917 | AS72: 939676 | AT72: 872814 | AU72: 923835 | AV72: 1074889 | AW72: 1072330 | AX72: 720997 | AY72: 968238 | AZ72: 857814 | BA72: 576861 | BB72: 1352290 | BC72: 1403583 | BD72: 1324719 | BE72: 1356516 | BF72: 1364302 | BG72: 1232201 | BH72: 746914 | BI72: 445333 | BJ72: 419902 | BK72: 340314 | BL72: 248775 | BM72: 254466 | BN72: 259407 | BO72: 268562 | BP72: 235862 | BQ72: 554669 | BR72: 610512 | BS72: 629049 | BT72: 648060 | BU72: 582568 | BV72: 750760 | BW72: 1199880 | BX72: 792351 | BY72: 635447 | BZ72: 725665 | CA72: 608713 | CB72: 664191 | CC72: 713995 | CD72: 743040 | CE72: 807402 | CF72: 856906 | CG72: 885794 | CH72: 1009812 | CI72: 1092530 | CJ72: 1206797 | CK72: 1195790
A73: Debêntures | B73: Debentures | C73: 19763884 | D73: 16898464 | E73: 17607861 | F73: 12714932 | G73: 15253660 | H73: 16772525 | I73: 16666824 | J73: 18560638 | K73: 16362807 | L73: 12863675 | M73: 10413678 | N73: 8111532 | O73: 8320758 | P73: 9497114 | Q73: 9596841 | R73: 7982134 | S73: 8986507 | T73: 8669671 | U73: 8248691 | V73: 8923318 | W73: 9023907 | X73: 11262152 | Y73: 10762861 | Z73: 10476488 | AA73: 8967730 | AB73: 7542037 | AC73: 6324253 | AD73: 6463697 | AE73: 7662455 | AF73: 6776662 | AG73: 6884300 | AH73: 5800565 | AI73: 5558406 | AJ73: 5080090 | AK73: 5485759 | AL73: 6462051 | AM73: 6581327 | AN73: 6093615 | AO73: 5819588 | AP73: 5656827 | AQ73: 5677994 | AR73: 5126546 | AS73: 5260461 | AT73: 4644682 | AU73: 4710832 | AV73: 3525616 | AW73: 3281330 | AX73: 3116945 | AY73: 4097167 | AZ73: 4735378 | BA73: 4519961 | BB73: 3537218 | BC73: 3462259 | BD73: 3002971 | BE73: 3102230 | BF73: 2832064 | BG73: 2819624 | BH73: 1937242 | BI73: 1409616 | BJ73: 1499771 | BK73: 1619946 | BL73: 1208496 | BM73: 1261159 | BN73: 1259691 | BO73: 1398078 | BP73: 1396779 | BQ73: 767348 | BR73: 808658 | BS73: 864104 | BT73: 884746 | BU73: 345963 | BV73: 385458 | BW73: - | BX73: 405289 | BY73: 400056 | BZ73: 299145 | CA73: 299040 | CB73: 291116 | CC73: 99927 | CD73: 114490 | CE73: 112237 | CF73: 110603 | CG73: 113090 | CH73: 121918 | CI73: 92583 | CJ73: 101172 | CK73: -
A74: Contas a pagar com operações de derivativos | B74: Payables from derivate transactions | C74: 32819 | D74: 15237 | E74: 7261 | F74: 34236 | G74: 34547 | H74: 25336 | I74: 39952 | J74: 37851 | K74: 8661 | L74: 21865 | M74: 100867 | N74: 129413 | O74: - | P74: - | Q74: - | R74: - | S74: - | T74: - | U74: - | V74: - | W74: - | X74: - | Y74: - | Z74: 2297 | AA74: 27204 | AB74: 36391 | AC74: 27925 | AD74: 45321 | AE74: 39461 | AF74: 66611 | AG74: 73162 | AH74: 17139 | AI74: 587 | AJ74: 597 | AK74: 787 | AL74: 1044 | AM74: 3334 | AN74: 14819 | AO74: 52493 | AP74: 49424 | AQ74: 19495 | AR74: 15497 | AS74: 7575 | AT74: 1062 | AU74: 1599 | AV74: 5 | AW74: - | AX74: 214 | AY74: 1005 | AZ74: - | BA74: - | BB74: 58194 | BC74: 58473 | BD74: 31535 | BE74: 1764 | BF74: 1467 | BG74: 2030 | BH74: - | BI74: - | BJ74: - | BK74: - | BL74: - | BM74: - | BN74: - | BO74: - | BP74: - | BQ74: - | BR74: - | BS74: - | BT74: - | BU74: - | BV74: - | BW74: - | BX74: - | BY74: - | BZ74: - | CA74: - | CB74: - | CC74: - | CD74: - | CE74: - | CF74: - | CG74: - | CH74: - | CI74: - | CJ74: - | CK74: -
A75: Contas a pagar partes relacionadas | B75: Accounts payable - related parties | C75: 0 | D75: 0 | E75: 0 | F75: 0 | G75: 0 | H75: 0 | I75: 0 | J75: 0 | K75: 0 | L75: 0 | M75: - | N75: - | O75: - | P75: - | Q75: - | R75: - | S75: - | T75: - | U75: - | V75: - | W75: - | X75: - | Y75: - | Z75: - | AA75: - | AB75: - | AC75: - | AD75: - | AE75: - | AF75: - | AG75: - | AH75: - | AI75: - | AJ75: - | AK75: - | AL75: - | AM75: - | AN75: - | AO75: - | AP75: - | AQ75: - | AR75: - | AS75: - | AT75: - | AU75: 25713 | AV75: 201308 | AW75: 136616 | AX75: 83762 | AY75: 58020 | AZ75: 53367 | BA75: 52144 | BB75: 49875 | BC75: 47722 | BD75: 19319 | BE75: 18108 | BF75: 10890 | BG75: 10890 | BH75: 6669 | BI75: 6669 | BJ75: 10633 | BK75: 10633 | BL75: 1916 | BM75: 1916 | BN75: - | BO75: 1916 | BP75: 1916 | BQ75: 1916 | BR75: - | BS75: 1916 | BT75: 1916 | BU75: 1916 | BV75: - | BW75: - | BX75: 3091 | BY75: 3091 | BZ75: 1175 | CA75: 3091 | CB75: 1175 | CC75: 1232 | CD75: 3148 | CE75: 4047 | CF75: 1232 | CG75: 1232 | CH75: 4047 | CI75: 4047 | CJ75: 4047 | CK75: 4047
A76: Obrigações com o poder concedente | B76: Obligations with the granting authority | C76: 2396270 | D76: 2519323 | E76: 2490673 | F76: 2749406 | G76: 2659706 | H76: 1900898 | I76: 1896361 | J76: 1815815 | K76: 1748175 | L76: 1758004 | M76: 1691912 | N76: 1633872 | O76: 1568480 | P76: 1588971 | Q76: 1561759 | R76: 1646108 | S76: 1638297 | T76: 1616239 | U76: 1595023 | V76: 1634383 | W76: 1603561 | X76: 1545311 | Y76: 1502340 | Z76: 1551350 | AA76: 1517994 | AB76: 1474442 | AC76: 1307861 | AD76: 1357942 | AE76: 1326681 | AF76: 1305514 | AG76: 1268502 | AH76: 1292533 | AI76: 1223839 | AJ76: 1185653 | AK76: 1129675 | AL76: 1144856 | AM76: 1073453 | AN76: 1093561 | AO76: 20208 | AP76: 3275 | AQ76: 49222 | AR76: 25489 | AS76: 25762 | AT76: 25853 | AU76: 6862 | AV76: 16009 | AW76: 28226 | AX76: 28566 | AY76: 29163 | AZ76: 46768 | BA76: 43393 | BB76: 41183 | BC76: 39009 | BD76: 9916 | BE76: 9171 | BF76: 9392 | BG76: 9546 | BH76: 9673 | BI76: 9491 | BJ76: 9581 | BK76: 10254 | BL76: 19311 | BM76: 17750 | BN76: 13064 | BO76: 7005 | BP76: 11973 | BQ76: 7356 | BR76: 20439 | BS76: 31438 | BT76: 52028 | BU76: 45615 | BV76: 39661 | BW76: 33320 | BX76: 75366 | BY76: 65133 | BZ76: 57716 | CA76: 42100 | CB76: 39980 | CC76: 37417 | CD76: 35553 | CE76: 33504 | CF76: 32247 | CG76: 30474 | CH76: 29177 | CI76: 26121 | CJ76: 23618 | CK76: 1845129
A77: Adiantamento para aumento de capital - partes relacionadas | B77: Advances to capital increase - related parties | C77: 0 | D77: 0 | E77: 0 | F77: 0 | G77: 0 | H77: 0 | I77: 0 | J77: 0 | K77: 0 | L77: 0 | M77: - | N77: - | O77: - | P77: - | Q77: - | R77: - | S77: - | T77: - | U77: - | V77: - | W77: - | X77: - | Y77: - | Z77: - | AA77: - | AB77: - | AC77: - | AD77: - | AE77: - | AF77: - | AG77: - | AH77: - | AI77: - | AJ77: - | AK77: - | AL77: - | AM77: - | AN77: - | AO77: - | AP77: - | AQ77: - | AR77: - | AS77: - | AT77: - | AU77: 1916 | AV77: - | AW77: - | AX77: - | AY77: - | AZ77: - | BA77: - | BB77: - | BC77: - | BD77: - | BE77: - | BF77: - | BG77: - | BH77: - | BI77: - | BJ77: - | BK77: - | BL77: - | BM77: - | BN77: - | BO77: - | BP77: - | BQ77: - | BR77: - | BS77: - | BT77: - | BU77: - | BV77: - | BW77: - | BX77: - | BY77: - | BZ77: - | CA77: - | CB77: - | CC77: - | CD77: - | CE77: - | CF77: - | CG77: - | CH77: - | CI77: - | CJ77: - | CK77: -
A78: Mútuos - partes relacionadas | B78: Loans - related parties | C78: 137919 | D78: 175518 | E78: 219370 | F78: 213908 | G78: 206895 | H78: 242356 | I78: 172944 | J78: 167595 | K78: 168418 | L78: 159884 | M78: 154853 | N78: 154220 | O78: 150124 | P78: 146704 | Q78: 158495 | R78: 155914 | S78: 153006 | T78: 207510 | U78: 262158 | V78: 125409 | W78: 193630 | X78: 257001 | Y78: 237549 | Z78: 209038 | AA78: 187147 | AB78: 180250 | AC78: 269401 | AD78: 222867 | AE78: 228070 | AF78: 215795 | AG78: 186678 | AH78: 195411 | AI78: 219608 | AJ78: 212494 | AK78: 158474 | AL78: 159520 | AM78: 137748 | AN78: 197120 | AO78: 177038 | AP78: 183339 | AQ78: 180554 | AR78: 182061 | AS78: 201804 | AT78: 188774 | AU78: 162979 | AV78: - | AW78: - | AX78: - | AY78: - | AZ78: - | BA78: - | BB78: - | BC78: - | BD78: - | BE78: - | BF78: - | BG78: - | BH78: - | BI78: - | BJ78: - | BK78: - | BL78: - | BM78: - | BN78: - | BO78: - | BP78: - | BQ78: - | BR78: - | BS78: - | BT78: - | BU78: - | BV78: - | BW78: - | BX78: - | BY78: - | BZ78: - | CA78: - | CB78: - | CC78: - | CD78: - | CE78: - | CF78: - | CG78: - | CH78: - | CI78: - | CJ78: - | CK78: -
A79: Plano de incentivo - partes relacionadas | B79: Incentive plan - related parties | C79: 0 | D79: 0 | E79: 0 | F79: 0 | G79: 0 | H79: 0 | I79: 0 | J79: 0 | K79: 0 | L79: 0 | M79: - | N79: - | O79: - | P79: - | Q79: - | R79: - | S79: - | T79: - | U79: - | V79: - | W79: - | X79: - | Y79: - | Z79: - | AA79: - | AB79: - | AC79: - | AD79: - | AE79: - | AF79: - | AG79: - | AH79: - | AI79: - | AJ79: - | AK79: - | AL79: - | AM79: - | AN79: - | AO79: - | AP79: - | AQ79: - | AR79: - | AS79: - | AT79: - | AU79: 12829 | AV79: - | AW79: - | AX79: - | AY79: - | AZ79: - | BA79: - | BB79: - | BC79: - | BD79: - | BE79: - | BF79: - | BG79: - | BH79: - | BI79: - | BJ79: - | BK79: - | BL79: - | BM79: - | BN79: - | BO79: - | BP79: - | BQ79: - | BR79: - | BS79: - | BT79: - | BU79: - | BV79: - | BW79: - | BX79: - | BY79: - | BZ79: - | CA79: - | CB79: - | CC79: - | CD79: - | CE79: - | CF79: - | CG79: - | CH79: - | CI79: - | CJ79: - | CK79: -
A80: Arrendamento Mercantil | B80: Lease | C80: 0 | D80: 0 | E80: 0 | F80: 0 | G80: 0 | H80: 0 | I80: 0 | J80: 0 | K80: 0 | L80: 0 | M80: - | N80: - | O80: - | P80: - | Q80: - | R80: - | S80: - | T80: - | U80: - | V80: - | W80: - | X80: - | Y80: - | Z80: - | AA80: - | AB80: - | AC80: - | AD80: - | AE80: - | AF80: - | AG80: - | AH80: - | AI80: - | AJ80: - | AK80: - | AL80: - | AM80: - | AN80: - | AO80: - | AP80: - | AQ80: - | AR80: - | AS80: - | AT80: - | AU80: - | AV80: - | AW80: - | AX80: - | AY80: - | AZ80: - | BA80: - | BB80: - | BC80: - | BD80: 8544 | BE80: 7082 | BF80: 1496 | BG80: - | BH80: - | BI80: - | BJ80: - | BK80: - | BL80: - | BM80: - | BN80: - | BO80: - | BP80: - | BQ80: - | BR80: - | BS80: - | BT80: - | BU80: - | BV80: - | BW80: - | BX80: - | BY80: - | BZ80: - | CA80: - | CB80: - | CC80: - | CD80: - | CE80: - | CF80: - | CG80: - | CH80: - | CI80: - | CJ80: - | CK80: -
A81: Provisão para IRPJ e CSLL | B81: Provision for income tax and social contribution | C81: 0 | D81: 0 | E81: 0 | F81: 0 | G81: 0 | H81: 0 | I81: 0 | J81: 0 | K81: 0 | L81: 0 | M81: - | N81: - | O81: - | P81: - | Q81: - | R81: - | S81: - | T81: - | U81: - | V81: - | W81: - | X81: - | Y81: - | Z81: - | AA81: - | AB81: - | AC81: - | AD81: - | AE81: - | AF81: - | AG81: - | AH81: - | AI81: - | AJ81: - | AK81: - | AL81: - | AM81: - | AN81: - | AO81: - | AP81: - | AQ81: - | AR81: - | AS81: - | AT81: - | AU81: - | AV81: - | AW81: - | AX81: - | AY81: - | AZ81: - | BA81: - | BB81: - | BC81: - | BD81: - | BE81: - | BF81: - | BG81: - | BH81: 323608 | BI81: 316180 | BJ81: 310494 | BK81: 308456 | BL81: 291777 | BM81: 270033 | BN81: 264139 | BO81: 213616 | BP81: 168145 | BQ81: 144935 | BR81: 110862 | BS81: 70784 | BT81: 171444 | BU81: 112312 | BV81: 112312 | BW81: 112312 | BX81: 112312 | BY81: 112312 | BZ81: - | CA81: 48801 | CB81: 48801 | CC81: 48801 | CD81: 48801 | CE81: 48801 | CF81: - | CG81: - | CH81: - | CI81: - | CJ81: - | CK81: -
A82: Imposto de renda e Contribuição social diferidos | B82: Deferred income tax and social contribution | C82: 2619640 | D82: 2425866 | E82: 2477185 | F82: 2486772 | G82: 2527513 | H82: 2679952 | I82: 2785045 | J82: 2767996 | K82: 905791 | L82: 874056 | M82: 856898 | N82: 853639 | O82: 497931 | P82: 554424 | Q82: 558428 | R82: 571458 | S82: 547162 | T82: 573610 | U82: 547013 | V82: 538817 | W82: 549192 | X82: 538481 | Y82: 533534 | Z82: 537899 | AA82: 538505 | AB82: 528702 | AC82: 519043 | AD82: 304651 | AE82: 313323 | AF82: 316960 | AG82: 276374 | AH82: 294513 | AI82: 335582 | AJ82: 343607 | AK82: 337281 | AL82: 320871 | AM82: 299611 | AN82: 289616 | AO82: 281394 | AP82: 259610 | AQ82: 247249 | AR82: 235164 | AS82: 227427 | AT82: 256211 | AU82: 218599 | AV82: 204820 | AW82: 182733 | AX82: 758279 | AY82: 732598 | AZ82: 706467 | BA82: 711349 | BB82: 689061 | BC82: 668972 | BD82: 33848 | BE82: 28320 | BF82: 28922 | BG82: 544640 | BH82: 30223 | BI82: 31008 | BJ82: 32098 | BK82: 32049 | BL82: 20237 | BM82: 17830 | BN82: - | BO82: - | BP82: - | BQ82: - | BR82: - | BS82: - | BT82: - | BU82: - | BV82: - | BW82: 5649 | BX82: 16231 | BY82: 16895 | BZ82: 50892 | CA82: - | CB82: - | CC82: - | CD82: - | CE82: - | CF82: - | CG82: - | CH82: - | CI82: - | CJ82: - | CK82: -
A83: Impostos e contribuições a recolher | B83: Taxes and contributions payable (thousand R$) | C83: 56041 | D83: 81181 | E83: 78184 | F83: 83642 | G83: 59876 | H83: 46959 | I83: 44045 | J83: 40955 | K83: 46445 | L83: 37709 | M83: 37132 | N83: 36440 | O83: 35593 | P83: 37075 | Q83: 38460 | R83: 37338 | S83: 35628 | T83: 23644 | U83: 21120 | V83: 17631 | W83: 19952 | X83: 15261 | Y83: 18377 | Z83: 17437 | AA83: 19919 | AB83: 14361 | AC83: 16994 | AD83: 13486 | AE83: 12064 | AF83: 9115 | AG83: 7826 | AH83: 79876 | AI83: 75301 | AJ83: 70718 | AK83: 66187 | AL83: 74380 | AM83: 67742 | AN83: 55708 | AO83: 51753 | AP83: 48971 | AQ83: 46062 | AR83: 42817 | AS83: 40733 | AT83: 38858 | AU83: 36994 | AV83: - | AW83: - | AX83: - | AY83: - | AZ83: - | BA83: - | BB83: - | BC83: - | BD83: - | BE83: - | BF83: - | BG83: - | BH83: 18397 | BI83: 22943 | BJ83: 27356 | BK83: 31371 | BL83: 34997 | BM83: 37831 | BN83: 14417 | BO83: 44344 | BP83: 47307 | BQ83: 50051 | BR83: 52574 | BS83: 51738 | BT83: 53470 | BU83: 56164 | BV83: 54491 | BW83: 55213 | BX83: - | BY83: - | BZ83: - | CA83: - | CB83: - | CC83: - | CD83: - | CE83: - | CF83: - | CG83: - | CH83: - | CI83: - | CJ83: - | CK83: -
A84: Impostos e contribuições parcelados | B84: Taxes and contributions in installments | C84: 9521 | D84: 10028 | E84: 10514 | F84: 10949 | G84: 10851 | H84: 11326 | I84: 3075 | J84: 3351 | K84: 3626 | L84: 4029 | M84: 4542 | N84: 3102 | O84: 3652 | P84: 4195 | Q84: 2880 | R84: 3271 | S84: 3830 | T84: 3120 | U84: 3200 | V84: 1820 | W84: 1960 | X84: 2098 | Y84: 2232 | Z84: 2363 | AA84: 2416 | AB84: 2442 | AC84: 2548 | AD84: 2648 | AE84: 2737 | AF84: 2816 | AG84: 2918 | AH84: 3136 | AI84: 4353 | AJ84: 3143 | AK84: 3212 | AL84: 3300 | AM84: 3373 | AN84: 414225 | AO84: 419045 | AP84: 423907 | AQ84: 428599 | AR84: 433604 | AS84: 438769 | AT84: 444737 | AU84: 450768 | AV84: 456493 | AW84: 486796 | AX84: 459811 | AY84: 462402 | AZ84: 463296 | BA84: 462067 | BB84: 458136 | BC84: 448688 | BD84: 441610 | BE84: 432917 | BF84: 426299 | BG84: 408394 | BH84: - | BI84: - | BJ84: - | BK84: - | BL84: - | BM84: - | BN84: - | BO84: - | BP84: - | BQ84: - | BR84: - | BS84: - | BT84: - | BU84: - | BV84: - | BW84: - | BX84: - | BY84: - | BZ84: - | CA84: - | CB84: - | CC84: - | CD84: - | CE84: - | CF84: - | CG84: - | CH84: - | CI84: - | CJ84: - | CK84: -
A85: Provisão para contingências mudança critério outorga | B85: Provision for contingencies - change of concession criteria | C85: 0 | D85: 0 | E85: 0 | F85: 0 | G85: 0 | H85: 0 | I85: 0 | J85: 0 | K85: 0 | L85: 0 | M85: - | N85: - | O85: - | P85: - | Q85: - | R85: - | S85: - | T85: - | U85: - | V85: - | W85: - | X85: - | Y85: - | Z85: - | AA85: - | AB85: - | AC85: - | AD85: - | AE85: - | AF85: - | AG85: - | AH85: - | AI85: - | AJ85: - | AK85: - | AL85: - | AM85: - | AN85: - | AO85: - | AP85: - | AQ85: - | AR85: - | AS85: - | AT85: - | AU85: - | AV85: - | AW85: - | AX85: - | AY85: - | AZ85: - | BA85: - | BB85: - | BC85: - | BD85: - | BE85: - | BF85: - | BG85: - | BH85: - | BI85: - | BJ85: - | BK85: - | BL85: - | BM85: - | BN85: - | BO85: - | BP85: - | BQ85: - | BR85: - | BS85: - | BT85: - | BU85: - | BV85: - | BW85: - | BX85: - | BY85: - | BZ85: 144494 | CA85: - | CB85: - | CC85: - | CD85: - | CE85: - | CF85: - | CG85: - | CH85: - | CI85: - | CJ85: - | CK85: -
A86: Provisão para riscos cíveis, trabalhistas, tributários e previdenciários | B86: Provision for civil, labor, tax and social security risks | C86: 218053 | D86: 211387.06 | E86: 278945 | F86: 272191 | G86: 255902 | H86: 222623 | I86: 201728 | J86: 195155 | K86: 184639.4 | L86: 179091 | M86: 195996 | N86: 185323 | O86: 176013 | P86: 190699 | Q86: 187169 | R86: 147113 | S86: 147533 | T86: 146075 | U86: 147903 | V86: 141250 | W86: 138986 | X86: 140082 | Y86: 142759 | Z86: 146454 | AA86: 132485 | AB86: 135675 | AC86: 137474 | AD86: 123250 | AE86: 119581 | AF86: 112172 | AG86: 110584 | AH86: 103595 | AI86: 90181 | AJ86: 89954 | AK86: 74305 | AL86: 98881 | AM86: 69971 | AN86: 69616 | AO86: 77812 | AP86: 69728 | AQ86: 68461 | AR86: 65776 | AS86: 65149 | AT86: 65324 | AU86: 60750 | AV86: 69884 | AW86: 25278 | AX86: 23136 | AY86: 20431 | AZ86: 20430 | BA86: 21716 | BB86: 21063 | BC86: 21062 | BD86: 14082 | BE86: 11092 | BF86: 14269 | BG86: 12486 | BH86: 9720 | BI86: 8065 | BJ86: 7074 | BK86: 6998 | BL86: 6579 | BM86: 6200 | BN86: 3892 | BO86: 4435 | BP86: 3565 | BQ86: 3168 | BR86: 1939 | BS86: 850 | BT86: 450 | BU86: 811 | BV86: 2503 | BW86: 1167 | BX86: 67403 | BY86: 155746 | BZ86: 109783 | CA86: 106274 | CB86: 102927 | CC86: 99820 | CD86: 96720 | CE86: 92739 | CF86: - | CG86: - | CH86: - | CI86: - | CJ86: - | CK86: -
A87: Provisão de Manutenção | B87: Provision for Maintenance | C87: 631756 | D87: 507069 | E87: 490994 | F87: 450162 | G87: 380009 | H87: 241493 | I87: 196717 | J87: 153351 | K87: 108013 | L87: 67097 | M87: 45344 | N87: 58560 | O87: 64742 | P87: 246244 | Q87: 245283 | R87: 241182 | S87: 228284 | T87: 249426 | U87: 251683 | V87: 246486 | W87: 233761 | X87: 283546 | Y87: 305682 | Z87: 316778 | AA87: 313630 | AB87: 377125 | AC87: 396857 | AD87: 423428 | AE87: 389536 | AF87: 444746 | AG87: 415997 | AH87: 390306 | AI87: 379755 | AJ87: 338605 | AK87: 356338 | AL87: 344707 | AM87: 341097 | AN87: 304256 | AO87: 285509 | AP87: 244079 | AQ87: 245721 | AR87: 208508 | AS87: 212581 | AT87: 224844 | AU87: 209403 | AV87: 162148 | AW87: 199403 | AX87: 226247 | AY87: 203423 | AZ87: 377298 | BA87: 356428 | BB87: 319508 | BC87: 276504 | BD87: - | BE87: - | BF87: - | BG87: 249606 | BH87: - | BI87: - | BJ87: - | BK87: - | BL87: - | BM87: - | BN87: - | BO87: - | BP87: - | BQ87: - | BR87: - | BS87: - | BT87: - | BU87: - | BV87: - | BW87: - | BX87: - | BY87: - | BZ87: - | CA87: - | CB87: - | CC87: - | CD87: - | CE87: - | CF87: - | CG87: - | CH87: - | CI87: - | CJ87: - | CK87: -
A88: Dívidas com Pessoas Ligadas | B88: Debt with related persons | C88: 0 | D88: 0 | E88: 0 | F88: 0 | G88: 0 | H88: 0 | I88: 0 | J88: 0 | K88: 0 | L88: 0 | M88: - | N88: - | O88: - | P88: - | Q88: - | R88: - | S88: - | T88: - | U88: - | V88: - | W88: - | X88: - | Y88: - | Z88: - | AA88: - | AB88: - | AC88: - | AD88: - | AE88: - | AF88: - | AG88: - | AH88: - | AI88: - | AJ88: - | AK88: - | AL88: - | AM88: - | AN88: - | AO88: - | AP88: - | AQ88: - | AR88: - | AS88: - | AT88: - | AU88: - | AV88: - | AW88: - | AX88: - | AY88: - | AZ88: - | BA88: - | BB88: - | BC88: - | BD88: - | BE88: - | BF88: - | BG88: - | BH88: - | BI88: - | BJ88: - | BK88: - | BL88: - | BM88: - | BN88: 1916 | BO88: - | BP88: - | BQ88: - | BR88: 1916 | BS88: - | BT88: - | BU88: - | BV88: 1916 | BW88: - | BX88: - | BY88: - | BZ88: - | CA88: - | CB88: - | CC88: - | CD88: - | CE88: - | CF88: - | CG88: - | CH88: - | CI88: - | CJ88: - | CK88: -
A89: Contas a pagar - partes relacionadas | B89: Accounts payable - related parties | C89: 1708 | D89: 1761 | E89: 1461 | F89: 1820 | G89: 1820 | H89: 1820 | I89: 9898 | J89: 32849 | K89: 2436 | L89: 11604 | M89: 65418 | N89: 45236 | O89: 45236 | P89: 62091 | Q89: 62749 | R89: 110352 | S89: 56877 | T89: 56771 | U89: 63399 | V89: 51223 | W89: 45605 | X89: 45175 | Y89: 45158 | Z89: 47730 | AA89: 48108 | AB89: 44962 | AC89: 2214 | AD89: 2201 | AE89: 3045 | AF89: 49182 | AG89: 58971 | AH89: 62991 | AI89: 63598 | AJ89: 59808 | AK89: 59036 | AL89: 102797 | AM89: 58415 | AN89: 49989 | AO89: 50737 | AP89: 34739 | AQ89: 32336 | AR89: 51478 | AS89: 23525 | AT89: 23708 | AU89: - | AV89: - | AW89: - | AX89: - | AY89: - | AZ89: - | BA89: - | BB89: - | BC89: - | BD89: - | BE89: - | BF89: - | BG89: - | BH89: - | BI89: - | BJ89: - | BK89: - | BL89: - | BM89: - | BN89: - | BO89: - | BP89: - | BQ89: - | BR89: - | BS89: - | BT89: - | BU89: - | BV89: - | BW89: 1916 | BX89: - | BY89: - | BZ89: - | CA89: - | CB89: - | CC89: - | CD89: - | CE89: - | CF89: - | CG89: - | CH89: - | CI89: - | CJ89: - | CK89: -
A90: Obras a Executar | B90: Works to be Executed | C90: 291255 | D90: 273081 | E90: 341094 | F90: 0 | G90: 0 | H90: 0 | I90: 0 | J90: 0 | K90: 0 | L90: 0 | M90: 0 | N90: 0 | O90: 0 | P90: 0 | Q90: 0 | R90: 0 | S90: 0 | T90: 0 | U90: 0 | V90: 0 | W90: 0 | X90: 0 | Y90: 0 | Z90: 0 | AA90: 0 | AB90: 0 | AC90: 0 | AD90: 0 | AE90: 0 | AF90: 0 | AG90: 0 | AH90: 0 | AI90: 0 | AJ90: 0 | AK90: 0 | AL90: 0 | AM90: 0 | AN90: 0 | AO90: 0 | AP90: 0 | AQ90: 0 | AR90: 0 | AS90: 0 | AT90: 0 | AU90: 0 | AV90: 0 | AW90: 0 | AX90: 0 | AY90: 0 | AZ90: 0 | BA90: 0 | BB90: 0 | BC90: 0 | BD90: 0 | BE90: 0 | BF90: 0 | BG90: 0 | BH90: 0 | BI90: 0 | BJ90: 0 | BK90: 0 | BL90: 0 | BM90: 0 | BN90: 0 | BO90: 0 | BP90: 0 | BQ90: 0 | BR90: 0 | BS90: 0 | BT90: 0 | BU90: 0 | BV90: 0 | BW90: 0 | BX90: 0 | BY90: 0 | BZ90: 0 | CA90: 0 | CB90: 0 | CC90: 0 | CD90: 0 | CE90: 0 | CF90: 0 | CG90: 0 | CH90: 0 | CI90: 0 | CJ90: 0 | CK90: 0
A91: Outros | B91: Other | C91: 790325 | D91: 866689 | E91: 707103 | F91: 732686 | G91: 698721 | H91: 761427 | I91: 1039315 | J91: 910521 | K91: 1033949 | L91: 1001613 | M91: 989582 | N91: 1061654 | O91: 1020770 | P91: 927932 | Q91: 1039172 | R91: 1088794 | S91: 961466 | T91: 1055158 | U91: 1142972 | V91: 1253512 | W91: 1121727 | X91: 605112 | Y91: 608778 | Z91: 553066 | AA91: 644091 | AB91: 632401 | AC91: 573903 | AD91: 569865 | AE91: 603130 | AF91: 597625 | AG91: 683813 | AH91: 721602 | AI91: 631948 | AJ91: 573426 | AK91: 474667 | AL91: 456306 | AM91: 438289 | AN91: 442616 | AO91: 411071 | AP91: 448614 | AQ91: 457006 | AR91: 422141 | AS91: 427219 | AT91: 397434 | AU91: 376724 | AV91: 434547 | AW91: 384978 | AX91: 163441 | AY91: 152633 | AZ91: 190100 | BA91: 185571 | BB91: 162814 | BC91: 159196 | BD91: 3013 | BE91: 3178 | BF91: 3255 | BG91: 3333 | BH91: 4777 | BI91: 3491 | BJ91: 3569 | BK91: 3752 | BL91: 4054 | BM91: 17191 | BN91: 31055 | BO91: 26151 | BP91: 35989 | BQ91: 36033 | BR91: 37176 | BS91: 41109 | BT91: 40538 | BU91: 39799 | BV91: 40828 | BW91: 42436 | BX91: 51561 | BY91: - | BZ91: 12613 | CA91: 6239 | CB91: 16333 | CC91: 18685 | CD91: 18374 | CE91: 17526 | CF91: 167994 | CG91: 157453 | CH91: 92683 | CI91: 89056 | CJ91: 17188 | CK91: 14097
A92: Resultado de Operação de hedge | B92: Result from hedge transactions | C92: 0 | D92: 0 | E92: 0 | F92: 0 | G92: 0 | H92: 0 | I92: 0 | J92: 0 | K92: 0 | L92: 0 | M92: - | N92: - | O92: - | P92: - | Q92: - | R92: - | S92: - | T92: - | U92: - | V92: - | W92: - | X92: - | Y92: - | Z92: - | AA92: - | AB92: - | AC92: - | AD92: - | AE92: - | AF92: - | AG92: - | AH92: - | AI92: - | AJ92: - | AK92: - | AL92: - | AM92: - | AN92: - | AO92: - | AP92: - | AQ92: - | AR92: - | AS92: - | AT92: - | AU92: - | AV92: - | AW92: - | AX92: - | AY92: - | AZ92: - | BA92: - | BB92: - | BC92: - | BD92: - | BE92: - | BF92: - | BG92: - | BH92: - | BI92: - | BJ92: - | BK92: - | BL92: 1518 | BM92: 11051 | BN92: 193 | BO92: 6444 | BP92: - | BQ92: - | BR92: - | BS92: - | BT92: - | BU92: 7812 | BV92: 6827 | BW92: 3493 | BX92: - | BY92: 15267 | BZ92: 9378 | CA92: 8339 | CB92: - | CC92: - | CD92: 2135 | CE92: 963 | CF92: - | CG92: - | CH92: - | CI92: - | CJ92: - | CK92: -
A93: Participações de acionistas não controladores | B93: Non-controlling interests | C93: 0 | D93: 0 | E93: 0 | F93: 0 | G93: 0 | H93: 0 | I93: 0 | J93: 0 | K93: 0 | L93: 0 | M93: - | N93: - | O93: - | P93: - | Q93: - | R93: - | S93: - | T93: - | U93: - | V93: - | W93: - | X93: - | Y93: - | Z93: - | AA93: - | AB93: - | AC93: - | AD93: - | AE93: - | AF93: - | AG93: - | AH93: - | AI93: - | AJ93: - | AK93: - | AL93: - | AM93: - | AN93: - | AO93: - | AP93: - | AQ93: - | AR93: - | AS93: - | AT93: - | AU93: - | AV93: 30416 | AW93: 12740 | AX93: 8925 | AY93: 8849 | AZ93: 30310 | BA93: 27748 | BB93: 24060 | BC93: 31672 | BD93: 24593 | BE93: 21756 | BF93: 34427 | BG93: 55437 | BH93: 39421 | BI93: 32837 | BJ93: 26717 | BK93: 25080 | BL93: 27200 | BM93: 24615 | BN93: 21871 | BO93: 19359 | BP93: 19949 | BQ93: 18095 | BR93: 16267 | BS93: 13039 | BT93: 12226 | BU93: 10922 | BV93: 10138 | BW93: 16407 | BX93: 14326 | BY93: 12013 | BZ93: 10165 | CA93: 9064 | CB93: 8550 | CC93: 7704 | CD93: 8796 | CE93: 9449 | CF93: 9653 | CG93: 8733 | CH93: 7965 | CI93: 9688 | CJ93: - | CK93: 9263
A94: Patrimônio Líquido | B94: Equity | C94: 0 | D94: 0 | E94: 0 | F94: 0 | G94: 0 | H94: 0 | I94: 0 | J94: 0 | K94: 0 | L94: 0 | M94: - | N94: - | O94: - | P94: - | Q94: - | R94: - | S94: - | T94: - | U94: - | V94: - | W94: - | X94: - | Y94: - | Z94: - | AA94: - | AB94: - | AC94: - | AD94: - | AE94: - | AF94: - | AG94: - | AH94: - | AI94: - | AJ94: - | AK94: - | AL94: - | AM94: - | AN94: - | AO94: - | AP94: - | AQ94: - | AR94: - | AS94: - | AT94: - | AU94: - | AV94: - | AW94: - | AX94: - | AY94: - | AZ94: - | BA94: - | BB94: - | BC94: 3140390 | BD94: 0 | BE94: - | BF94: - | BG94: 3345171 | BH94: - | BI94: - | BJ94: - | BK94: 1578527 | BL94: - | BM94: - | BN94: - | BO94: 1617850 | BP94: - | BQ94: - | BR94: - | BS94: 1566362 | BT94: - | BU94: - | BV94: - | BW94: 1373823 | BX94: - | BY94: - | BZ94: - | CA94: 1074881 | CB94: - | CC94: - | CD94: - | CE94: 638512 | CF94: - | CG94: - | CH94: - | CI94: 505602 | CJ94: - | CK94: -
A95: Capital social | B95: Capital stock | C95: 6022942 | D95: 6022942 | E95: 6022942 | F95: 6022942 | G95: 6022942 | H95: 6022942 | I95: 6022942 | J95: 6022942 | K95: 6022942 | L95: 6022942 | M95: 6022942 | N95: 6022942 | O95: 6022942 | P95: 6022942 | Q95: 6022942 | R95: 6022942 | S95: 6022942 | T95: 6022942 | U95: 6022942 | V95: 6022942 | W95: 6022942 | X95: 6022942 | Y95: 6022942 | Z95: 6022942 | AA95: 6023198 | AB95: 6023198 | AC95: 6023343 | AD95: 6025868 | AE95: 2025342 | AF95: 2025342 | AG95: 2025342 | AH95: 2025342 | AI95: 2025342 | AJ95: 2025342 | AK95: 2025342 | AL95: 2025342 | AM95: 2025342 | AN95: 2025342 | AO95: 2025342 | AP95: 2025342 | AQ95: 2025342 | AR95: 2025341 | AS95: 2025342 | AT95: 2025342 | AU95: 2025342 | AV95: 2025342 | AW95: 2025342 | AX95: 2025342 | AY95: 2025342 | AZ95: 2025342 | BA95: 2025342 | BB95: 2025342 | BC95: 2025342 | BD95: 2025342 | BE95: 2025342 | BF95: 2025348 | BG95: 2026108 | BH95: 791761 | BI95: 791761 | BJ95: 791761 | BK95: 791761 | BL95: 571234 | BM95: 571234 | BN95: 571234 | BO95: 571234 | BP95: 571234 | BQ95: 571234 | BR95: 571234 | BS95: 571234 | BT95: 571234 | BU95: 571234 | BV95: 571234 | BW95: 571234 | BX95: 571234 | BY95: 571234 | BZ95: 571234 | CA95: 571234 | CB95: 571234 | CC95: 571234 | CD95: 196234 | CE95: 196234 | CF95: 196234 | CG95: 196234 | CH95: 196234 | CI95: 196234 | CJ95: 196234 | CK95: 196234
A96: Reservas de lucros / Lucros e prejuízos acumulados | B96: Profit reserves / retained earnings and accumulated losses | C96: 5437586 | D96: 5604918 | E96: 5353386 | F96: 5083172 | G96: 4453843 | H96: 5336361 | I96: 4729909 | J96: =VLOOKUP(K96,'[1]Balanço Pró-forma'!$AZ:$BA,2,FALSE)+'[1]Balanço Pró-forma'!$BA$78 -> 4603851 | K96: 1151379 | L96: 1449774 | M96: 1267095 | N96: 1446002 | O96: 757070 | P96: 877258 | Q96: 1132206 | R96: 1874333 | S96: 1584651 | T96: 2132078 | U96: 1791832 | V96: 2044464 | W96: 1686396 | X96: 2793452 | Y96: 2428105 | Z96: 2250585 | AA96: 1803834 | AB96: 2660603 | AC96: 2188267 | AD96: 1921167 | AE96: 1592191 | AF96: 2172721 | AG96: 1021573 | AH96: 875860 | AI96: 1128340 | AJ96: 1833352 | AK96: 1586384 | AL96: 1402639 | AM96: 1203756 | AN96: 920598 | AO96: 1873843 | AP96: 1698856 | AQ96: 1355761 | AR96: 1049367 | AS96: 1846473 | AT96: 1542038 | AU96: 1205369 | AV96: 958599 | AW96: 1595177 | AX96: 1471688 | AY96: 1183052 | AZ96: 888341 | BA96: 1323600 | BB96: 1261519 | BC96: 1086277 | BD96: 0 | BE96: 0 | BF96: 135500 | BG96: 1266453 | BH96: 844516 | BI96: 1127113 | BJ96: 945206 | BK96: 789265 | BL96: 966761 | BM96: 1150483 | BN96: 1012272 | BO96: 1046616 | BP96: 910607 | BQ96: 1062180 | BR96: 940387 | BS96: 995128 | BT96: 762386 | BU96: 895225 | BV96: 817178 | BW96: 802589 | BX96: 649972 | BY96: 669247 | BZ96: 571298 | CA96: 503647 | CB96: 507478 | CC96: 514732 | CD96: 493978 | CE96: 442278 | CF96: 435260 | CG96: 398504 | CH96: 342638 | CI96: 309368 | CJ96: 250043 | CK96: -117045
A97: Reserva de capital | B97: Capital reserve | C97: 255912 | D97: 255182 | E97: 109113 | F97: 141123 | G97: 141123 | H97: -35711 | I97: -35274 | J97: 21955 | K97: 15934 | L97: 15957 | M97: 12878 | N97: -5616 | O97: 694 | P97: 1860 | Q97: 33973 | R97: 30226 | S97: 6988 | T97: 13992 | U97: 13992 | V97: 13992 | W97: 13992 | X97: 13992 | Y97: 13992 | Z97: 13992 | AA97: 13992 | AB97: 13992 | AC97: 13992 | AD97: 13992 | AE97: 13992 | AF97: 14218 | AG97: 14218 | AH97: 23851 | AI97: -25969 | AJ97: -25368 | AK97: -25368 | AL97: -24855 | AM97: -24855 | AN97: -24520 | AO97: -24520 | AP97: -22934 | AQ97: -22934 | AR97: -22934 | AS97: -22934 | AT97: -22934 | AU97: -22934 | AV97: - | AW97: - | AX97: - | AY97: - | AZ97: - | BA97: - | BB97: - | BC97: - | BD97: 304334 | BE97: 854709 | BF97: 854709 | BG97: - | BH97: - | BI97: - | BJ97: - | BK97: - | BL97: - | BM97: - | BN97: - | BO97: - | BP97: - | BQ97: - | BR97: - | BS97: - | BT97: - | BU97: - | BV97: - | BW97: - | BX97: - | BY97: - | BZ97: - | CA97: - | CB97: - | CC97: - | CD97: - | CE97: - | CF97: - | CG97: - | CH97: - | CI97: - | CJ97: - | CK97: -
A98: Ajuste de avaliação patrimonial | B98: Equity valuation adjustment | C98: 745713 | D98: 794022 | E98: 738199 | F98: 811657 | G98: 846655 | H98: 1010686 | I98: 974604 | J98: 830115 | K98: 1074508 | L98: 1034314 | M98: 904254 | N98: 1113256 | O98: 960457 | P98: 1097640 | Q98: 1044248 | R98: 943017 | S98: 524207 | T98: 573866 | U98: 481738 | V98: 509433 | W98: 508164 | X98: 563154 | Y98: 516523 | Z98: 321717 | AA98: 318660 | AB98: 265737 | AC98: 317347 | AD98: 245854 | AE98: 272670 | AF98: 288516 | AG98: 295784 | AH98: 462572 | AI98: 654115 | AJ98: 705676 | AK98: 337718 | AL98: 391153 | AM98: 163985 | AN98: 88880 | AO98: -138 | AP98: 36830 | AQ98: 77849 | AR98: 44137 | AS98: 39549 | AT98: -3675 | AU98: 324 | AV98: -2010 | AW98: -3609 | AX98: -2944 | AY98: -3028 | AZ98: 3017 | BA98: -3033 | BB98: -2883 | BC98: -2901 | BD98: -2909 | BE98: -2839 | BF98: -2743 | BG98: 2827 | BH98: 2845 | BI98: 2591 | BJ98: 2612 | BK98: 2499 | BL98: - | BM98: - | BN98: - | BO98: - | BP98: - | BQ98: - | BR98: - | BS98: - | BT98: - | BU98: - | BV98: - | BW98: - | BX98: - | BY98: - | BZ98: - | CA98: - | CB98: - | CC98: - | CD98: - | CE98: - | CF98: - | CG98: - | CH98: - | CI98: - | CJ98: - | CK98: -
A99: Outras Reservas de Lucro | B99: Other profit reserves | C99: 0 | D99: 0 | E99: 0 | F99: 0 | G99: 0 | H99: 0 | I99: 0 | J99: 0 | K99: 0 | L99: 0 | M99: - | N99: - | O99: - | P99: - | Q99: - | R99: - | S99: - | T99: - | U99: - | V99: - | W99: - | X99: - | Y99: - | Z99: - | AA99: - | AB99: - | AC99: - | AD99: - | AE99: - | AF99: - | AG99: - | AH99: - | AI99: - | AJ99: - | AK99: - | AL99: - | AM99: - | AN99: - | AO99: - | AP99: - | AQ99: - | AR99: - | AS99: - | AT99: - | AU99: - | AV99: - | AW99: - | AX99: - | AY99: - | AZ99: - | BA99: - | BB99: - | BC99: 1086277 | BD99: 330739 | BE99: 291729 | BF99: - | BG99: 1266453 | BH99: 659515 | BI99: 789265 | BJ99: 945206 | BK99: - | BL99: -800 | BM99: 240 | BN99: - | BO99: - | BP99: - | BQ99: - | BR99: - | BS99: - | BT99: - | BU99: - | BV99: - | BW99: - | BX99: - | BY99: - | BZ99: - | CA99: - | CB99: - | CC99: - | CD99: - | CE99: - | CF99: - | CG99: - | CH99: - | CI99: - | CJ99: - | CK99: -
A100: Dividendo Adicional Proposto | B100: Additional dividend proposed | C100: 0 | D100: 0 | E100: 0 | F100: 0 | G100: 0 | H100: 0 | I100: 0 | J100: 0 | K100: 0 | L100: 0 | M100: - | N100: - | O100: - | P100: - | Q100: - | R100: - | S100: - | T100: - | U100: - | V100: - | W100: - | X100: - | Y100: - | Z100: - | AA100: - | AB100: - | AC100: - | AD100: - | AE100: - | AF100: - | AG100: - | AH100: - | AI100: - | AJ100: - | AK100: - | AL100: 100775 | AM100: 100775 | AN100: - | AO100: - | AP100: - | AQ100: - | AR100: - | AS100: - | AT100: 100775 | AU100: 100775 | AV100: - | AW100: - | AX100: - | AY100: - | AZ100: - | BA100: - | BB100: - | BC100: - | BD100: - | BE100: - | BF100: - | BG100: - | BH100: - | BI100: - | BJ100: - | BK100: - | BL100: - | BM100: - | BN100: - | BO100: - | BP100: - | BQ100: - | BR100: - | BS100: - | BT100: - | BU100: - | BV100: - | BW100: - | BX100: - | BY100: - | BZ100: - | CA100: - | CB100: - | CC100: - | CD100: - | CE100: - | CF100: - | CG100: - | CH100: - | CI100: - | CJ100: - | CK100: -
A101: Patrimônio Líquido dos Controladores | B101: Shareholders’ equity | C101: 12462153 | D101: 12677064 | E101: 12223640 | F101: 12058894 | G101: 11464563 | H101: 12334278 | I101: 11692181 | J101: 11478863 | K101: 8264763 | L101: 8522987 | M101: 8207169 | N101: 8576584 | O101: 7741163 | P101: 7999700 | Q101: 8233369 | R101: 8870518 | S101: 8138788 | T101: 8742878 | U101: 8310504 | V101: 8590831 | W101: 8231494 | X101: 9393540 | Y101: 8981562 | Z101: 8609236 | AA101: 8159684 | AB101: 8963530 | AC101: 8542949 | AD101: 8206881 | AE101: 3904195 | AF101: 4500797 | AG101: 3356917 | AH101: 3387625 | AI101: 3781828 | AJ101: 4539002 | AK101: 3924076 | AL101: 3895054 | AM101: 3469003 | AN101: 3010300 | AO101: 3874527 | AP101: 3738094 | AQ101: 3436018 | AR101: 3095911 | AS101: 3888430 | AT101: 3641546 | AU101: 3308876 | AV101: 2981931 | AW101: 3616910 | AX101: 3494086 | AY101: 3205366 | AZ101: 2910666 | BA101: 3345909 | BB101: 3283978 | BC101: 3108718 | BD101: 2657506 | BE101: 3168941 | BF101: 3012814 | BG101: 3289734 | BH101: 1633432 | BI101: 1916283 | BJ101: 1734355 | BK101: 1578527 | BL101: 1537195 | BM101: 1721717 | BN101: 1583506 | BO101: 1617850 | BP101: 1481841 | BQ101: 1633414 | BR101: 1511621 | BS101: 1566362 | BT101: 1333620 | BU101: 1466459 | BV101: 1388412 | BW101: 1373823 | BX101: 1221206 | BY101: 1240481 | BZ101: 1142532 | CA101: 1074881 | CB101: 1078712 | CC101: 1085966 | CD101: 690212 | CE101: 638512 | CF101: 631494 | CG101: 594738 | CH101: 538872 | CI101: 505602 | CJ101: 446277 | CK101: 79189
A102: Participações de acionistas não controladores | B102: Non-controlling interests | C102: 615076 | D102: 482798 | E102: 440793 | F102: 395853 | G102: 358104 | H102: 337456 | I102: 312993 | J102: 236369 | K102: 301037 | L102: 370118 | M102: 344303 | N102: 366685 | O102: 198599 | P102: 204381 | Q102: 194881 | R102: 219652 | S102: 300906 | T102: 218773 | U102: 210829 | V102: 224629 | W102: 201240 | X102: 370150 | Y102: 384099 | Z102: 331705 | AA102: 332763 | AB102: 361631 | AC102: 351484 | AD102: 219635 | AE102: 240294 | AF102: 225274 | AG102: 236887 | AH102: 91329 | AI102: 122484 | AJ102: 153992 | AK102: 167961 | AL102: 175879 | AM102: 201210 | AN102: 219478 | AO102: 217516 | AP102: 213053 | AQ102: 49523 | AR102: 66816 | AS102: 61171 | AT102: 53987 | AU102: 53456 | AV102: 30416 | AW102: 12740 | AX102: 8925 | AY102: 8849 | AZ102: 30310 | BA102: 27748 | BB102: 24060 | BC102: 31672 | BD102: 24593 | BE102: 21756 | BF102: 34427 | BG102: 55437 | BH102: 39421 | BI102: 32837 | BJ102: 26717 | BK102: 25080 | BL102: 27200 | BM102: 24615 | BN102: 21871 | BO102: 19359 | BP102: 19949 | BQ102: 18095 | BR102: 16267 | BS102: 13039 | BT102: 12226 | BU102: 10922 | BV102: 10138 | BW102: 16407 | BX102: 14326 | BY102: 12013 | BZ102: 10165 | CA102: 9064 | CB102: 8550 | CC102: 7704 | CD102: 8796 | CE102: 9449 | CF102: 9653 | CG102: 8733 | CH102: 7965 | CI102: 9688 | CJ102: 7841 | CK102: 9263
A200: 1 - A partir de 2010 as informações seguem as Normas Internacionais de Relatórios Financeiros (IFRS).
A201: 2 - A partir de 2013 as informações seguem as Normas do IFRS 10 e IFRS 11
A202: 3 - * Dados proforma, considerando de maneira proporcional todas as empresas em que a CCR não possui controle ou controladas em conjunto. (ex-IFRS 10 e 11).
C208: 0 | D208: 0
C209: 0 | D209: 0
C210: 0 | D210: 0
C211: 0 | D211: -0.05999999866
C212: 0 | D212: 0
C213: 0 | D213: 0
C214: 0 | D214: 0
C215: 0 | D215: 0

Sheet Demonstração de Resultados
O1: Demonstração de Resultados - Pró-Forma
A2: Demonstração de Resultados - PRÓ-FORMA (milhares de R$) | B2: Income Statement - PRO FORMA (R$ thousand) | C2: 2023 | D2: 4T23 | E2: 3T23 | F2: 2T23 | G2: 1T23 | H2: 2022 | I2: 4T22 | J2: 3T22 | K2: 2T22 | L2: 1T22 | M2: 2021 | N2: 4T21 | O2: 3T21 | P2: 2T21 | Q2: 1T21 | R2: 2020 | S2: 4T20 | T2: 3T20 | U2: 2T20 | V2: 1T20 | W2: 2019 | X2: 4T19 | Y2: 3T19 | Z2: 2T19 | AA2: 1T19 | AB2: 2018 | AC2: 4T18 | AD2: 3T18 | AE2: 2T18 | AF2: 1T18 | AG2: 2017 | AH2: 4T17 | AI2: 3T17 | AJ2: 2T17 | AK2: 1T17 | AL2: 2016 | AM2: 4T16 | AN2: 3T16 | AO2: 2T16 | AP2: 1T16 | AQ2: 2015 | AR2: 4T15 | AS2: 3T15 | AT2: 2T15 | AU2: 1T15 | AV2: 2014 | AW2: 4T14 | AX2: 3T14 | AY2: 2T14 | AZ2: 1T14 | BA2: 2013 | BB2: 4T13 | BC2: 3T13 | BD2: 2T13 | BE2: 1T13 | BF2: 2012 | BG2: 4T12 | BH2: 3T12 | BI2: 2T12 | BJ2: 1T12 | BK2: 2011 | BL2: 4T11 | BM2: 3T11 | BN2: 2T11 | BO2: 1T11 | BP2: 2010 | BQ2: 4T10 | BR2: 3T10 | BS2: 2T10 | BT2: 1T10 | BU2: 2009 | BV2: 4T09 | BW2: 3T09 | BX2: 2T09 | BY2: 1T09 | BZ2: 2008 | CA2: 4T08 | CB2: 3T08 | CC2: 2T08 | CD2: 1T08 | CE2: 2007 | CF2: 4T07 | CG2: 3T07 | CH2: 2T07 | CI2: 1T07 | CJ2: 2006 | CK2: 4T06 | CL2: 3T06 | CM2: 2T06 | CN2: 1T06 | CO2: 2005 | CP2: 4T05 | CQ2: 3T05 | CR2: 2T05 | CS2: 1T05 | CT2: 2004 | CU2: 4T04 | CV2: 3T04 | CW2: 2T04 | CX2: 1T04 | CY2: 2003 | CZ2: 4T03 | DA2: 3T03 | DB2: 2T03 | DC2: 1T03 | DD2: 2002 | DE2: 4T02 | DF2: 3T02 | DG2: 2T02 | DH2: 1T02
A3: Receita Bruta ¹ | B3: Gross revenue ¹ | C3: 16789730 | D3: 4958534 | E3: 3889012 | F3: 3734184 | G3: 4208000 | H3: 19385920 | I3: 3769833 | J3: 3752299 | K3: 3500625 | L3: 8363163 | M3: 12530116 | N3: 3209558 | O3: 2933335 | P3: 2641045 | Q3: 3746178 | R3: 10131896 | S3: 2897712 | T3: 2516611 | U3: 1988728 | V3: 2728845 | W3: 10967104 | X3: 3012597 | Y3: 2803351 | Z3: 2598349 | AA3: 2552807 | AB3: 9612063 | AC3: 2585076 | AD3: 2515808 | AE3: 2223399 | AF3: 2287780 | AG3: 8900515 | AH3: 2366844 | AI3: 2323524 | AJ3: 2147747 | AK3: 2062400 | AL3: 8330875 | AM3: 2057825 | AN3: 2175924 | AO3: 2024893 | AP3: 2072233 | AQ3: 7717898 | AR3: 2114482 | AS3: 1977475 | AT3: 1811033 | AU3: 1814908 | AV3: 7064784 | AW3: 1916803 | AX3: 1818031 | AY3: 1647270 | AZ3: 1682680 | BA3: 6554199 | BB3: 1728453 | BC3: 1739514 | BD3: 1575416 | BE3: 1510821 | BF3: 5698005 | BG3: 1544755 | BH3: 1524379 | BI3: 1316920 | BJ3: 1311950 | BK3: 5042563 | BL3: 1347612 | BM3: 1353581 | BN3: 1190438 | BO3: 1150936 | BP3: 4162308 | BQ3: 1169474 | BR3: 1080748 | BS3: 989190 | BT3: 922896 | BU3: 3387330 | BV3: 926714 | BW3: 875277 | BX3: 810925 | BY3: 774414 | BZ3: 2951577 | CA3: 796722 | CB3: 802504 | CC3: 684261 | CD3: 668091 | CE3: 2538241 | CF3: 682905 | CG3: 664976 | CH3: 599518 | CI3: 590843 | CJ3: 2317891 | CK3: 613141 | CL3: 593642 | CM3: 554719 | CN3: 556389 | CO3: 2103599 | CP3: 594740 | CQ3: 559000 | CR3: 507658 | CS3: 442201 | CT3: 1568220 | CU3: 427399 | CV3: 421407 | CW3: 363918 | CX3: 355496 | CY3: 1229433 | CZ3: 356644 | DA3: 326401 | DB3: 275550 | DC3: 270838 | DD3: 1074436 | DE3: 292610 | DF3: 281275 | DG3: 250213 | DH3: 250338
A4: Deduções da Receita Bruta ¹ | B4: Deductions from gross revenue ¹ | C4: -1045780 | D4: -282971 | E4: -266286 | F4: -252604 | G4: -243919 | H4: -1003780 | I4: -312436 | J4: -267900 | K4: -228963 | L4: -194481 | M4: -806732 | N4: -215878 | O4: -210696 | P4: -188029 | Q4: -192129 | R4: -775895 | S4: -226278 | T4: -192261 | U4: -154024 | V4: -203332 | W4: -826929 | X4: -219007 | Y4: -215390 | Z4: -196033 | AA4: -196499 | AB4: -766770 | AC4: -198782 | AD4: -205035 | AE4: -178689 | AF4: -184264 | AG4: -707636 | AH4: -1762987 | AI4: -187532 | AJ4: -162727 | AK4: -169309 | AL4: -650607 | AM4: -162573 | AN4: -166522 | AO4: -159080 | AP4: -162432 | AQ4: -637216 | AR4: -156900 | AS4: -171080 | AT4: -153740 | AU4: -155496 | AV4: -607022 | AW4: -173375 | AX4: -154128 | AY4: -140041 | AZ4: -139478 | BA4: -550437 | BB4: -145305 | BC4: -145078 | BD4: -132745 | BE4: -127306 | BF4: -501299 | BG4: -132852 | BH4: -132871 | BI4: -118271 | BJ4: -117301 | BK4: -464991 | BL4: -122177 | BM4: -125036 | BN4: -110205 | BO4: -107578 | BP4: -386454 | BQ4: -108982 | BR4: -102372 | BS4: -89493 | BT4: -85607 | BU4: -297993 | BV4: -85346 | BW4: -80103 | BX4: -74092 | BY4: -58452 | BZ4: -217363 | CA4: -62309 | CB4: -58403 | CC4: -48954 | CD4: -47696 | CE4: -185225 | CF4: -49067 | CG4: -47396 | CH4: -43814 | CI4: -44949 | CJ4: -172919 | CK4: -45597 | CL4: -43597 | CM4: -41872 | CN4: -41853 | CO4: -149245 | CP4: -42801 | CQ4: -39657 | CR4: -36222 | CS4: -30565 | CT4: -105070 | CU4: -29595 | CV4: -28372 | CW4: -22913 | CX4: -24190 | CY4: -90265 | CZ4: -26049 | DA4: -23167 | DB4: -21335 | DC4: -19714 | DD4: -74099 | DE4: -21694 | DF4: -18944 | DG4: -16584 | DH4: -16877
A5: Receita Líquida | B5: Net revenue | C5: 15743950 | D5: 4675563 | E5: 3622726 | F5: 3481580 | G5: 3964081 | H5: 18382140 | I5: 3457397 | J5: 3484399 | K5: 3271662 | L5: 8168682 | M5: 11723384 | N5: 2993680 | O5: 2722639 | P5: 2453016 | Q5: 3554049 | R5: 9356001 | S5: 2671434 | T5: 2324350 | U5: 1834704 | V5: 2525513 | W5: 10140175 | X5: 2793590 | Y5: 2587961 | Z5: 2402316 | AA5: 2356308 | AB5: 8845293 | AC5: 2386294 | AD5: 2310773 | AE5: 2044710 | AF5: 2103516 | AG5: 8192879 | AH5: 2178776 | AI5: 2135992 | AJ5: 1985020 | AK5: 1893091 | AL5: 7680268 | AM5: 1895252 | AN5: 2009402 | AO5: 1865813 | AP5: 1909801 | AQ5: 7080682 | AR5: 1957582 | AS5: 1806395 | AT5: 1657293 | AU5: 1659412 | AV5: 6457762 | AW5: 1743428 | AX5: 1663903 | AY5: 1507229 | AZ5: 1543202 | BA5: 6003762 | BB5: 1583148 | BC5: 1594436 | BD5: 1442671 | BE5: 1383515 | BF5: 5196706 | BG5: 1411903 | BH5: 1391508 | BI5: 1198649 | BJ5: 1194649 | BK5: 4577572 | BL5: 1225435 | BM5: 1228545 | BN5: 1080235 | BO5: 1043358 | BP5: 3775854 | BQ5: 1060492 | BR5: 978376 | BS5: 899697 | BT5: 837289 | BU5: 3089336 | BV5: 841367 | BW5: 795174 | BX5: 736833 | BY5: 715962 | BZ5: 2734214 | CA5: 734413 | CB5: 744100 | CC5: 635307 | CD5: 620395 | CE5: 2353016 | CF5: 633838 | CG5: 617580 | CH5: 555704 | CI5: 545894 | CJ5: 2144972 | CK5: 567544 | CL5: 550045 | CM5: 512847 | CN5: 514536 | CO5: 1954354 | CP5: 551939 | CQ5: 519343 | CR5: 471436 | CS5: 411636 | CT5: 1463150 | CU5: 397804 | CV5: 393035 | CW5: 341005 | CX5: 331306 | CY5: 1139168 | CZ5: 330595 | DA5: 303234 | DB5: 254215 | DC5: 251124 | DD5: 1000337 | DE5: 270916 | DF5: 262331 | DG5: 233629 | DH5: 233461
A6: Receita de Construção | B6: Construction revenue | C6: 4004941 | D6: 1756475 | E6: 1025815 | F6: 630572 | G6: 592079 | H6: 1637577 | I6: 580427 | J6: 479116 | K6: 331678 | L6: 246356 | M6: 1107732 | N6: 288201 | O6: 283510 | P6: 257849 | Q6: 278172 | R6: 992188 | S6: 324593 | T6: 158585 | U6: 233879 | V6: 275131 | W6: 1156204 | X6: 363853 | Y6: 299535 | Z6: 281430 | AA6: 211386 | AB6: 1683610 | AC6: 363113 | AD6: 340652 | AE6: 494920 | AF6: 484925 | AG6: 3259989 | AH6: 1464078 | AI6: 481833 | AJ6: 521781 | AK6: 792297 | AL6: 4135100 | AM6: 1102142 | AN6: 966011 | AO6: 1289359 | AP6: 777588 | AQ6: 2933648 | AR6: 801533 | AS6: 801311 | AT6: 778417 | AU6: 552387 | AV6: 2017815 | AW6: 703328 | AX6: 565115 | AY6: 504022 | AZ6: 245350 | BA6: 949106 | BB6: 349902 | BC6: 286984 | BD6: 170714 | BE6: 141503 | BF6: 570992 | BG6: 254799 | BH6: 151248 | BI6: 90720 | BJ6: 74227 | BK6: 556724 | BL6: 144712 | BM6: 138482 | BN6: 137608 | BO6: 135920 | BP6: 881402 | BQ6: 199183 | BR6: 220972 | BS6: 264499 | BT6: 196748 | BU6: 728316 | BV6: - | BW6: - | BX6: - | BY6: - | BZ6: - | CA6: - | CB6: - | CC6: - | CD6: - | CE6: - | CF6: - | CG6: - | CH6: - | CI6: - | CJ6: - | CK6: - | CL6: - | CM6: - | CN6: - | CO6: - | CP6: - | CQ6: - | CR6: - | CS6: - | CT6: - | CU6: - | CV6: - | CW6: - | CX6: - | CY6: - | CZ6: - | DA6: - | DB6: - | DC6: - | DD6: - | DE6: - | DF6: - | DG6: - | DH6: -
A7: Custo dos Serviços Prestados | B7: Cost of services | C7: -11161459 | D7: -3922229 | E7: -2796529 | F7: -2294907 | G7: -2147794 | H7: -8250744 | I7: -2545312 | J7: -2219266 | K7: -1850220 | L7: -1636024 | M7: -7841192 | N7: -2066789 | O7: -1852487 | P7: -2140826 | Q7: -1781090 | R7: -6725206 | S7: -1783959 | T7: -1639698 | U7: -1642542 | V7: -1659007 | W7: -6394071 | X7: -1765577 | Y7: -1652870 | Z7: -1537323 | AA7: -1438301 | AB7: -6255666 | AC7: -1674413 | AD7: -1526081 | AE7: -1577949 | AF7: 1477223 | AG7: -7104626 | AH7: -2480330 | AI7: -1459318 | AJ7: -1478267 | AK7: -1686711 | AL7: -7815083 | AM7: -2104311 | AN7: -1862909 | AO7: -2181071 | AP7: -1666791 | AQ7: -6226951 | AR7: -1747505 | AS7: -1586160 | AT7: -1533933 | AU7: -1290868 | AV7: -4697478 | AW7: -1462606 | AX7: -1243402 | AY7: -1137709 | AZ7: -853762 | BA7: -3258494 | BB7: -961087 | BC7: -864529 | BD7: -754305 | BE7: -662663 | BF7: -2525380 | BG7: -776016 | BH7: -690374 | BI7: -547408 | BJ7: -518124 | BK7: -2282075 | BL7: -556562 | BM7: -576967 | BN7: -561683 | BO7: -584248 | BP7: -2454652 | BQ7: -763803 | BR7: -594012 | BS7: -583092 | BT7: -513745 | BU7: -1945229 | BV7: -1031198 | BW7: -311287 | BX7: -302809 | BY7: -299935 | BZ7: -1058439 | CA7: -274117 | CB7: -277433 | CC7: -258946 | CD7: -247938 | CE7: -950602 | CF7: -244172 | CG7: -235488 | CH7: -235772 | CI7: -238833 | CJ7: -1072455 | CK7: -278474 | CL7: -270957 | CM7: -266236 | CN7: -256788 | CO7: -958294 | CP7: -258115 | CQ7: -250076 | CR7: -234418 | CS7: -215685 | CT7: -783087 | CU7: -203037 | CV7: -200786 | CW7: -193059 | CX7: -186205 | CY7: -687747 | CZ7: -187319 | DA7: -168952 | DB7: -168902 | DC7: -162574 | DD7: -575183 | DE7: -154183 | DF7: -147054 | DG7: -141503 | DH7: -132443
A8: Depreciação e Amortização | B8: Depreciation and amortization | C8: -1665562 | D8: -440926 | E8: -423282 | F8: -407498 | G8: -393856 | H8: -1802051 | I8: -254609 | J8: -716312 | K8: -420710 | L8: -410420 | M8: -3182043 | N8: -749935 | O8: -654746 | P8: -1117561 | Q8: -659801 | R8: -2478816 | S8: -705031 | T8: -623814 | U8: -600909 | V8: -549062 | W8: -2010708 | X8: -549874 | Y8: -511482 | Z8: -491186 | AA8: -458166 | AB8: -1558913 | AC8: -465863 | AD8: -396074 | AE8: -368549 | AF8: -328427 | AG8: -1237313 | AH8: -354456 | AI8: -311294 | AJ8: -304093 | AK8: -267470 | AL8: -1034066 | AM8: -274536 | AN8: -259204 | AO8: -255951 | AP8: -244375 | AQ8: -887944 | AR8: -245150 | AS8: -198932 | AT8: -193064 | AU8: -182313 | AV8: -664228 | AW8: -185983 | AX8: -170555 | AY8: -158627 | AZ8: -149064 | BA8: -576250 | BB8: -157684 | BC8: -147479 | BD8: -141960 | BE8: -129145 | BF8: -426737 | BG8: -120644 | BH8: -112912 | BI8: -100136 | BJ8: -93046 | BK8: -327468 | BL8: -80882 | BM8: -83751 | BN8: -75723 | BO8: -84497 | BP8: -250152 | BQ8: -59771 | BR8: -68807 | BS8: -64030 | BT8: -57544 | BU8: -199023 | BV8: 66502 | BW8: -90019 | BX8: -88112 | BY8: -87394 | BZ8: -313432 | CA8: -80055 | CB8: -79117 | CC8: -76948 | CD8: -77312 | CE8: -293080 | CF8: -72251 | CG8: -73667 | CH8: -77839 | CI8: -72987 | CJ8: -314910 | CK8: -80577 | CL8: -78944 | CM8: -78968 | CN8: -76421 | CO8: -276524 | CP8: -72913 | CQ8: -71864 | CR8: -71157 | CS8: -60590 | CT8: -214243 | CU8: -55240 | CV8: -54394 | CW8: -52363 | CX8: -52246 | CY8: -197487 | CZ8: -51458 | DA8: -49215 | DB8: -48789 | DC8: -48025 | DD8: -170680 | DE8: -45191 | DF8: -44094 | DG8: -42315 | DH8: -39080
A9: Serviços de Terceiros | B9: Third-Party Services | C9: -1283848 | D9: -370603 | E9: -328540 | F9: -304998 | G9: -279707 | H9: -1184200 | I9: -378705 | J9: -298426 | K9: -294559 | L9: -212510 | M9: -1033368 | N9: -258464 | O9: -260306 | P9: -236838 | Q9: -277760 | R9: -1194097 | S9: -344617 | T9: -299734 | U9: -286441 | V9: -263305 | W9: -1015556 | X9: -280606 | Y9: -258577 | Z9: -245842 | AA9: -230531 | AB9: -915232 | AC9: -280195 | AD9: -235411 | AE9: -206358 | AF9: -193268 | AG9: -774012 | AH9: -207918 | AI9: -192862 | AJ9: -187771 | AK9: -185461 | AL9: -773257 | AM9: -201612 | AN9: -189945 | AO9: -191405 | AP9: -190294 | AQ9: -744020 | AR9: -203971 | AS9: -188167 | AT9: -178203 | AU9: -173679 | AV9: -618106 | AW9: -177126 | AX9: -163479 | AY9: -146041 | AZ9: -131460 | BA9: -536741 | BB9: -142844 | BC9: -135045 | BD9: -129804 | BE9: -112907 | BF9: -453840 | BG9: -111652 | BH9: -131042 | BI9: -108860 | BJ9: -109160 | BK9: -457401 | BL9: -117484 | BM9: -114569 | BN9: -102530 | BO9: -122817 | BP9: -494785 | BQ9: -147004 | BR9: -134842 | BS9: -115412 | BT9: -97527 | BU9: -345505 | BV9: -117871 | BW9: -75713 | BX9: -76052 | BY9: -75869 | BZ9: -278617 | CA9: -64620 | CB9: -78398 | CC9: -65941 | CD9: -69658 | CE9: -275650 | CF9: -70009 | CG9: -66860 | CH9: -64426 | CI9: -74355 | CJ9: -249959 | CK9: -65919 | CL9: -64653 | CM9: -62289 | CN9: -57098 | CO9: -218374 | CP9: -56967 | CQ9: -53992 | CR9: -51275 | CS9: -56140 | CT9: -245999 | CU9: -62004 | CV9: -62787 | CW9: -63410 | CX9: -57798 | CY9: -205853 | CZ9: -56086 | DA9: -49768 | DB9: -50269 | DC9: -49730 | DD9: -185851 | DE9: -53435 | DF9: -46092 | DG9: -46035 | DH9: -40289
A10: Custo da Outorga | B10: Concession Fees | C10: -207611 | D10: -58128 | E10: -53250 | F10: -48973 | G10: -47260 | H10: -158966 | I10: -43622 | J10: -43434 | K10: -36941 | L10: -34969 | M10: -113118 | N10: -36348 | O10: -31066 | P10: -22976 | Q10: -22728 | R10: -84184 | S10: -18786 | T10: -21851 | U10: -15546 | V10: -28001 | W10: -113847 | X10: -30229 | Y10: -29332 | Z10: -27567 | AA10: -26719 | AB10: -162211 | AC10: -27189 | AD10: -25898 | AE10: -33589 | AF10: -75535 | AG10: -302929 | AH10: -77103 | AI10: -75453 | AJ10: -75005 | AK10: -75368 | AL10: -299943 | AM10: -73627 | AN10: -77175 | AO10: -72783 | AP10: -76358 | AQ10: -295984 | AR10: -76586 | AS10: -76340 | AT10: -72178 | AU10: -70880 | AV10: -274536 | AW10: -72839 | AX10: -70504 | AY10: -63987 | AZ10: -67206 | BA10: -298102 | BB10: -77098 | BC10: -71404 | BD10: -76507 | BE10: -73308 | BF10: -279640 | BG10: -72651 | BH10: -72252 | BI10: -67436 | BJ10: -67302 | BK10: -262196 | BL10: -70683 | BM10: -67589 | BN10: -58263 | BO10: -63053 | BP10: -230263 | BQ10: -58194 | BR10: -59564 | BS10: -57417 | BT10: -55088 | BU10: -214921 | BV10: -55508 | BW10: -56383 | BX10: -52042 | BY10: -50988 | BZ10: -192862 | CA10: -51849 | CB10: -54709 | CC10: -46434 | CD10: -43883 | CE10: -171408 | CF10: -44341 | CG10: -46155 | CH10: -43628 | CI10: -43304 | CJ10: -266829 | CK10: -67088 | CL10: -66922 | CM10: -66550 | CN10: -66269 | CO10: -252423 | CP10: -67439 | CQ10: -73599 | CR10: -57195 | CS10: -54190 | CT10: -192608 | CU10: -50077 | CV10: -50029 | CW10: -46390 | CX10: -46112 | CY10: -158591 | CZ10: -43796 | DA10: -43635 | DB10: -35697 | DC10: -35463 | DD10: -137354 | DE10: -39637 | DF10: -32114 | DG10: -32891 | DH10: -32712
A11: Custo com Pessoal | B11: Personnel Costs | C11: -1365686 | D11: -349094 | E11: -343147 | F11: -349381 | G11: -324064 | H11: -1520978 | I11: -347321 | J11: -337954 | K11: -425180 | L11: -410523 | M11: -1383544 | N11: -404871 | O11: -353662 | P11: -332042 | Q11: -292969 | R11: -1123350 | S11: -274778 | T11: -289516 | U11: -266862 | V11: -292194 | W11: -1088617 | X11: -294375 | Y11: -281420 | Z11: -252784 | AA11: -260038 | AB11: -988984 | AC11: -263072 | AD11: -266396 | AE11: -245937 | AF11: -213579 | AG11: -840093 | AH11: -221711 | AI11: -213130 | AJ11: -209929 | AK11: -195323 | AL11: -804216 | AM11: -220992 | AN11: -199060 | AO11: -188744 | AP11: -195420 | AQ11: -665247 | AR11: -196920 | AS11: -163031 | AT11: -155396 | AU11: -149900 | AV11: -538880 | AW11: -150788 | AX11: -135155 | AY11: -126319 | AZ11: -126618 | BA11: -407174 | BB11: -105828 | BC11: -103793 | BD11: -101072 | BE11: -96481 | BF11: -344760 | BG11: -98041 | BH11: -97387 | BI11: -76352 | BJ11: -73120 | BK11: -283117 | BL11: -74400 | BM11: -70008 | BN11: -75017 | BO11: -63694 | BP11: -213627 | BQ11: -62922 | BR11: -55678 | BS11: -46949 | BT11: -48078 | BU11: -175774 | BV11: -46307 | BW11: -43254 | BX11: -44588 | BY11: -41625 | BZ11: -145814 | CA11: -39514 | CB11: - | CC11: -39606 | CD11: -30416 | CE11: -97806 | CF11: -25861 | CG11: - | CH11: - | CI11: - | CJ11: - | CK11: - | CL11: - | CM11: - | CN11: - | CO11: - | CP11: - | CQ11: - | CR11: - | CS11: - | CT11: - | CU11: - | CV11: - | CW11: - | CX11: - | CY11: - | CZ11: - | DA11: - | DB11: - | DC11: - | DD11: - | DE11: - | DF11: - | DG11: - | DH11: -
A12: Apropriação de Despesas | B12: Recognition of expenses | C12: 0 | D12: 0 | E12: 0 | F12: 0 | G12: 0 | H12: 0 | I12: 0 | J12: - | K12: 0 | L12: 0 | M12: 0 | N12: 0 | O12: 0 | P12: 0 | Q12: - | R12: 0 | T12: - | U12: - | V12: - | W12: - | X12: - | Y12: - | Z12: - | AA12: - | AB12: - | AC12: - | AD12: - | AE12: - | AF12: - | AG12: - | AH12: - | AI12: - | AJ12: - | AK12: - | AL12: - | AM12: - | AN12: - | AO12: - | AP12: - | AQ12: - | AR12: - | AS12: - | AT12: - | AU12: - | AV12: - | AW12: - | AX12: - | AY12: - | AZ12: - | BA12: - | BB12: - | BC12: - | BD12: - | BE12: - | BF12: - | BG12: - | BH12: - | BI12: - | BJ12: - | BK12: - | BL12: - | BM12: - | BN12: - | BO12: - | BP12: - | BQ12: - | BR12: - | BS12: - | BT12: - | BU12: - | BV12: - | BW12: - | BX12: - | BY12: - | BZ12: - | CA12: - | CB12: - | CC12: - | CD12: - | CE12: - | CF12: - | CG12: - | CH12: - | CI12: - | CJ12: - | CK12: - | CL12: - | CM12: - | CN12: - | CO12: - | CP12: - | CQ12: - | CR12: - | CS12: - | CT12: - | CU12: - | CV12: - | CW12: - | CX12: - | CY12: - | CZ12: - | DA12: - | DB12: - | DC12: - | DD12: - | DE12: - | DF12: - | DG12: - | DH12: -
A13: Apropriação de Despesas Antecipadas da Outorga | B13: Recognition of prepaid concession fee expenses | C13: -136422 | D13: -33278 | E13: -31618 | F13: -35764 | G13: -35762 | H13: -180475 | I13: -35729 | J13: -35761 | K13: -37183 | L13: -71801 | M13: -287207 | N13: -71804 | O13: -71802 | P13: -71801 | Q13: -71800 | R13: -287207 | S13: -71803 | T13: -71803 | U13: -71800 | V13: -71801 | W13: -287062 | X13: -71765 | Y13: -71766 | Z13: -71765 | AA13: -71766 | AB13: -226251 | AC13: -71765 | AD13: -72331 | AE13: -61732 | AF13: -20423 | AG13: -81890 | AH13: -20472 | AI13: -20474 | AJ13: -20472 | AK13: -20472 | AL13: -81925 | AM13: -20473 | AN13: -20472 | AO13: -20472 | AP13: -20508 | AQ13: -82032 | AR13: -20508 | AS13: -20509 | AT13: -20507 | AU13: -20508 | AV13: -82032 | AW13: -20507 | AX13: -20509 | AY13: -20508 | AZ13: -20508 | BA13: -82032 | BB13: -20510 | BC13: -20510 | BD13: -20507 | BE13: -20508 | BF13: -82032 | BG13: -20508 | BH13: -20508 | BI13: -20507 | BJ13: -20508 | BK13: -82779 | BL13: -20695 | BM13: -20694 | BN13: -20695 | BO13: -20695 | BP13: -80315 | BQ13: -20695 | BR13: -20695 | BS13: -20448 | BT13: -18477 | BU13: -52292 | BV13: -16279 | BW13: -14100 | BX13: -11975 | BY13: -9938 | BZ13: -10121 | CA13: -4103 | CB13: - | CC13: -2006 | CD13: -2006 | CE13: -8024 | CF13: -2006 | CG13: - | CH13: - | CI13: - | CJ13: - | CK13: - | CL13: - | CM13: - | CN13: - | CO13: - | CP13: - | CQ13: - | CR13: - | CS13: - | CT13: - | CU13: - | CV13: - | CW13: - | CX13: - | CY13: - | CZ13: - | DA13: - | DB13: - | DC13: - | DD13: - | DE13: - | DF13: - | DG13: - | DH13: -
A14: Custo de Construção | B14: Construction Costs | C14: -4004941 | D14: -1756475 | E14: -1025815 | F14: -630572 | G14: -592079 | H14: -1637576 | I14: -580426 | J14: -479116 | K14: -331678 | L14: -246356 | M14: -1107732 | N14: -288201 | O14: -283510 | P14: -257849 | Q14: -278172 | R14: -988630 | S14: -323965 | T14: -158107 | U14: -232539 | V14: -274019 | W14: -1149366 | X14: -363029 | Y14: -299271 | Z14: -279877 | AA14: -207189 | AB14: -1673841 | AC14: -357363 | AD14: -338909 | AE14: -493618 | AF14: -483951 | AG14: -3257338 | AH14: -1463847 | AI14: -481092 | AJ14: -521073 | AK14: -791326 | AL14: -4126682 | AM14: -1099627 | AN14: -964639 | AO14: -1287232 | AP14: -775184 | AQ14: -2938518 | AR14: -823440 | AS14: -793645 | AT14: -773230 | AU14: -548203 | AV14: -2009172 | AW14: -700811 | AX14: -562782 | AY14: -500786 | AZ14: -244793 | BA14: -947824 | BB14: -349902 | BC14: -286984 | BD14: -170776 | BE14: -140161 | BF14: -570992 | BG14: -254799 | BH14: -151247 | BI14: -90720 | BJ14: -74227 | BK14: -556724 | BL14: -144712 | BM14: -138482 | BN14: -137608 | BO14: -135920 | BP14: -881402 | BQ14: -199182 | BR14: -220972 | BS14: -264500 | BT14: -196748 | BU14: -728316 | BV14: -728316 | BW14: - | BX14: - | BY14: - | BZ14: - | CA14: - | CB14: - | CC14: - | CD14: - | CE14: - | CF14: - | CG14: - | CH14: - | CI14: - | CJ14: - | CK14: - | CL14: - | CM14: - | CN14: - | CO14: - | CP14: - | CQ14: - | CR14: - | CS14: - | CT14: - | CU14: - | CV14: - | CW14: - | CX14: - | CY14: - | CZ14: - | DA14: - | DB14: - | DC14: - | DD14: - | DE14: - | DF14: - | DG14: - | DH14: -
A15: Provisão de Manutenção | B15: Provision for Maintenance | C15: -483169 | D15: -253970 | E15: -81608 | F15: -76473 | G15: -71118 | H15: -317614 | I15: -168348 | J15: -52642 | K15: -49326 | L15: -47298 | M15: -7393 | N15: -52538 | O15: -23069 | P15: 81679 | Q15: -13465 | R15: 53321 | S15: 123954 | T15: -24386 | U15: -22806 | V15: -23441 | W15: -118013 | X15: -5698 | Y15: -39674 | Z15: -36233 | AA15: -36408 | AB15: -196511 | AC15: -58822 | AD15: -49009 | AE15: -45320 | AF15: -43360 | AG15: -173767 | AH15: 20060 | AI15: -53054 | AJ15: -51019 | AK15: -49634 | AL15: -275114 | AM15: -108641 | AN15: -51955 | AO15: -69737 | AP15: -44781 | AQ15: -210345 | AR15: -59466 | AS15: -46355 | AT15: -43090 | AU15: -61434 | AV15: -214662 | AW15: -64956 | AX15: -52255 | AY15: -50486 | AZ15: -46965 | BA15: -174637 | BB15: -48599 | BC15: -42613 | BD15: -48637 | BE15: -34789 | BF15: -152053 | BG15: -31758 | BH15: -48789 | BI15: -37077 | BJ15: -34430 | BK15: -139080 | BL15: 2527 | BM15: -41769 | BN15: -46489 | BO15: -53350 | BP15: -157638 | BQ15: -177764 | BR15: 2917 | BS15: 21690 | BT15: -4481 | BU15: -95930 | BV15: -95930 | BW15: - | BX15: - | BY15: - | BZ15: - | CA15: - | CB15: - | CC15: - | CD15: - | CE15: - | CF15: - | CG15: - | CH15: - | CI15: - | CJ15: - | CK15: - | CL15: - | CM15: - | CN15: - | CO15: - | CP15: - | CQ15: - | CR15: - | CS15: - | CT15: - | CU15: - | CV15: - | CW15: - | CX15: - | CY15: - | CZ15: - | DA15: - | DB15: - | DC15: - | DD15: - | DE15: - | DF15: - | DG15: - | DH15: -
A16: Outros | B16: Other | C16: -2014220 | D16: -659755 | E16: -509269 | F16: -441248 | G16: -403948 | H16: -1448884 | I16: -736552 | J16: -255621 | K16: -254643 | L16: -202147 | M16: -726787 | N16: -204628 | O16: -174326 | P16: -183438 | Q16: -164395 | R16: -622243 | S16: -168933 | T16: -150487 | U16: -145639 | V16: -157184 | W16: -610902 | X16: -170001 | Y16: -161348 | Z16: -132069 | AA16: -147484 | AB16: -533723 | AC16: -150144 | AD16: -142053 | AE16: -122846 | AF16: -118680 | AG16: -437284 | AH16: -114763 | AI16: -111959 | AJ16: -108905 | AK16: -101657 | AL16: -419800 | AM16: -104803 | AN16: -100459 | AO16: -94747 | AP16: -119871 | AQ16: -402861 | AR16: -121464 | AS16: -99181 | AT16: -98265 | AU16: -83951 | AV16: -295862 | AW16: -89596 | AX16: -68163 | AY16: -70955 | AZ16: -67148 | BA16: -235734 | BB16: -58622 | BC16: -56701 | BD16: -65042 | BE16: -55364 | BF16: -215326 | BG16: -65963 | BH16: -56237 | BI16: -46320 | BJ16: -46331 | BK16: -173310 | BL16: -50233 | BM16: -40105 | BN16: -45358 | BO16: -40221 | BP16: -146469 | BQ16: -38273 | BR16: -36371 | BS16: -36024 | BT16: -35801 | BU16: -133468 | BV16: -37488 | BW16: -31818 | BX16: -30041 | BY16: -34121 | BZ16: -117592 | CA16: -33977 | CB16: -65208 | CC16: -30017 | CD16: -24663 | CE16: -104634 | CF16: -29704 | CG16: -48806 | CH16: -49879 | CI16: -48187 | CJ16: -240758 | CK16: -64891 | CL16: -60438 | CM16: -58429 | CN16: -57000 | CO16: -210973 | CP16: -60796 | CQ16: -50621 | CR16: -54791 | CS16: -44765 | CT16: -130237 | CU16: -35716 | CV16: -33576 | CW16: -30896 | CX16: -30049 | CY16: -125816 | CZ16: -35979 | DA16: -26334 | DB16: -34147 | DC16: -29356 | DD16: -81298 | DE16: -15920 | DF16: -24754 | DG16: -20262 | DH16: -20362
A17: Lucro Bruto | B17: Gross Profit | C17: 8587432 | D17: 2509809 | E17: 1852012 | F17: 1817245 | G17: 2408366 | H17: 11768973 | I17: 1492512 | J17: 1744249 | K17: 1753120 | L17: 6779014 | M17: 4989924 | N17: 1215092 | O17: 1153662 | P17: 570039 | Q17: 2051131 | R17: 3622983 | S17: 1212068 | T17: 843237 | U17: 426041 | V17: 1141637 | W17: 4902308 | X17: 1391866 | Y17: 1234626 | Z17: 1146423 | AA17: 1129393 | AB17: 4273237 | AC17: 1074994 | AD17: 1125344 | AE17: 961681 | AF17: 1111218 | AG17: 4348242 | AH17: 1162524 | AI17: 1158507 | AJ17: 1028534 | AK17: 998667 | AL17: 4000286 | AM17: 893083 | AN17: 1112504 | AO17: 974101 | AP17: 1020598 | AQ17: 3787379 | AR17: 1011610 | AS17: 1021546 | AT17: 901777 | AU17: 920931 | AV17: 3692282 | AW17: 961346 | AX17: 985616 | AY17: 873542 | AZ17: 934790 | BA17: 3694374 | BB17: 971963 | BC17: 1016891 | BD17: 859080 | BE17: 862355 | BF17: 3242318 | BG17: 890686 | BH17: 852382 | BI17: 741959 | BJ17: 750753 | BK17: -173310 | BL17: 813585 | BM17: 790060 | BN17: 656160 | BO17: 595030 | BP17: 2202604 | BQ17: 495871 | BR17: 605336 | BS17: 581105 | BT17: 520292 | BU17: 1872423 | BV17: 538485 | BW17: 483887 | BX17: 434024 | BY17: 416027 | BZ17: 1675776 | CA17: 460296 | CB17: 466668 | CC17: 376360 | CD17: 372457 | CE17: 1402414 | CF17: 389666 | CG17: 382092 | CH17: 319932 | CI17: 307061 | CJ17: 1072517 | CK17: 289070 | CL17: 279088 | CM17: 246611 | CN17: 257748 | CO17: 996060 | CP17: 293824 | CQ17: 269267 | CR17: 237019 | CS17: 195950 | CT17: 680063 | CU17: 194767 | CV17: 192249 | CW17: 147946 | CX17: 145101 | CY17: 451421 | CZ17: 451421 | DA17: - | DB17: - | DC17: - | DD17: - | DE17: - | DF17: - | DG17: - | DH17: -
A18: Despesas Administrativas | B18: Administrative Expenses | C18: -2153660 | D18: -615092 | E18: -535438 | F18: -453666 | G18: -549464 | H18: -1407400 | I18: -786377 | J18: 38394 | K18: -360221 | L18: -299116 | M18: -1149909 | N18: -529838 | O18: -196341 | P18: -191898 | Q18: -231832 | R18: -1406834 | S18: -737842 | T18: -186702 | U18: -246770 | V18: -235520 | W18: -1166197 | X18: -416793 | Y18: -267641 | Z18: -257009 | AA18: -224754 | AB18: -1770889 | AC18: -1030207 | AD18: -268348 | AE18: -268427 | AF18: -203907 | AG18: -289524 | AH18: -211913 | AI18: -188956 | AJ18: 298866 | AK18: -187522 | AL18: 481269 | AM18: -202478 | AN18: 1113387 | AO18: -235592 | AP18: -194048 | AQ18: -848556 | AR18: -256038 | AS18: -213777 | AT18: -219707 | AU18: -227519 | AV18: -741104 | AW18: -142384 | AX18: -189423 | AY18: -220143 | AZ18: -189153 | BA18: -804634 | BB18: -239495 | BC18: -202045 | BD18: -190642 | BE18: -188368 | BF18: -747288 | BG18: -213435 | BH18: -205398 | BI18: -178801 | BJ18: -143112 | BK18: -570152 | BL18: -156359 | BM18: -137699 | BN18: -174606 | BO18: -109470 | BP18: -503010 | BQ18: -184260 | BR18: -122374 | BS18: -111103 | BT18: -85273 | BU18: -343939 | BV18: -108497 | BW18: -83121 | BX18: -81968 | BY18: -70353 | BZ18: -310044 | CA18: -84096 | CB18: -78634 | CC18: -88612 | CD18: -58700 | CE18: -283655 | CF18: -103678 | CG18: -51680 | CH18: -78110 | CI18: -46522 | CJ18: -216828 | CK18: -55929 | CL18: -44509 | CM18: -71934 | CN18: -44456 | CO18: -196861 | CP18: -66749 | CQ18: -40367 | CR18: -53528 | CS18: -36217 | CT18: -148878 | CU18: -34731 | CV18: -34271 | CW18: -52479 | CX18: -27397 | CY18: -91683 | CZ18: -28378 | DA18: -25601 | DB18: -19117 | DC18: -18587 | DD18: -138531 | DE18: -37081 | DF18: -33753 | DG18: -31662 | DH18: -36035
A19: Outras Receitas (Despesas) Operacionais | B19: Other Operating Income (Expenses) | C19: 0 | D19: 0 | E19: 0 | F19: 0 | G19: 0 | H19: 0 | I19: 0 | J19: - | K19: 0 | L19: 0 | M19: 0 | N19: 0 | O19: 0 | P19: 0 | Q19: - | R19: 0 | S19: 0 | T19: - | U19: - | V19: - | W19: - | X19: - | Y19: - | Z19: - | AA19: - | AB19: - | AC19: - | AD19: - | AE19: - | AF19: - | AG19: - | AH19: - | AI19: - | AJ19: - | AK19: - | AL19: - | AM19: - | AN19: - | AO19: - | AP19: - | AQ19: - | AR19: - | AS19: - | AT19: - | AU19: - | AV19: - | AW19: - | AX19: - | AY19: - | AZ19: - | BA19: - | BB19: - | BC19: - | BD19: - | BE19: - | BF19: 2406 | BG19: 2406 | BH19: - | BI19: - | BJ19: - | BK19: -5050 | BL19: 2406 | BM19: - | BN19: - | BO19: -2089 | BP19: 1658 | BQ19: 2900 | BR19: -2066 | BS19: 243 | BT19: 581 | BU19: 3744 | BV19: 3761 | BW19: - | BX19: 0 | BY19: -17 | BZ19: 2170 | CA19: 1049 | CB19: -417 | CC19: - | CD19: 239 | CE19: -4376 | CF19: -2755 | CG19: -212 | CH19: -154 | CI19: -1256 | CJ19: -307 | CK19: 1444 | CL19: -1898 | CM19: 15 | CN19: 132 | CO19: 3954 | CP19: 1250 | CQ19: 1025 | CR19: - | CS19: 1679 | CT19: 965 | CU19: 24 | CV19: 902 | CW19: -62 | CX19: 101 | CY19: -2513 | CZ19: -168 | DA19: -2100 | DB19: -181 | DC19: -64 | DD19: -1226 | DE19: -439 | DF19: -116 | DG19: -611 | DH19: -60
A20: EBIT ajustado | B20: Adjusted EBIT | C20: 6433772 | D20: 1894717 | E20: 1316574 | F20: 1363579 | G20: 1858902 | H20: 10361573 | I20: 706135 | J20: 1782643 | K20: 1392899 | L20: 6479898 | M20: 3840015 | N20: 685254 | O20: 957321 | P20: 378141 | Q20: 1819299 | R20: 2216149 | S20: 474226 | T20: 656535 | U20: 179271 | V20: 906117 | W20: 3736111 | X20: 975073 | Y20: 966985 | Z20: 889414 | AA20: 904639 | AB20: 2502348 | AC20: 44787 | AD20: 856996 | AE20: 693254 | AF20: 907311 | AG20: 4058718 | AH20: 950611 | AI20: 969551 | AJ20: 1327400 | AK20: 811155 | AL20: 4481555 | AM20: 690605 | AN20: 2225891 | AO20: 738509 | AP20: 826550 | AQ20: 2938823 | AR20: 755572 | AS20: 807769 | AT20: 682070 | AU20: 693412 | AV20: 3036995 | AW20: 841766 | AX20: 796193 | AY20: 653399 | AZ20: 745637 | BA20: 2889740 | BB20: 732468 | BC20: 814846 | BD20: 668438 | BE20: 673988 | BF20: 2497436 | BG20: 679657 | BH20: 646984 | BI20: 563160 | BJ20: 607641 | BK20: 2277019 | BL20: 659632 | BM20: 652361 | BN20: 481554 | BO20: 483472 | BP20: 1701252 | BQ20: 314511 | BR20: 480896 | BS20: 470245 | BT20: 435600 | BU20: 1532229 | BV20: 433751 | BW20: 400766 | BX20: 352056 | BY20: 345656 | BZ20: 1367902 | CA20: 377249 | CB20: 388034 | CC20: 287749 | CD20: 313756 | CE20: 1114382 | CF20: 283233 | CG20: 330412 | CH20: 241821 | CI20: 260539 | CJ20: 855689 | CK20: 233141 | CL20: 234579 | CM20: 174677 | CN20: 213292 | CO20: 799200 | CP20: 227075 | CQ20: 228901 | CR20: 183491 | CS20: 159733 | CT20: 531185 | CU20: 160036 | CV20: 157978 | CW20: 95467 | CX20: 117704 | CY20: 359738 | CZ20: 114898 | DA20: 108681 | DB20: 66196 | DC20: 69963 | DD20: 286623 | DE20: 79652 | DF20: 81524 | DG20: 60464 | DH20: 64983
A21: Resultado Financeiro Líquido | B21: Net Financial Result | C21: -3398385 | D21: -813225 | E21: -821837 | F21: -874027 | G21: -889296 | H21: -3279007 | I21: -828840 | J21: -778879 | K21: -748402 | L21: -922889 | M21: -1920631 | N21: -669452 | O21: -493148 | P21: -364751 | Q21: -393280 | R21: -1502072 | S21: -455344 | T21: -360505 | U21: -280113 | V21: -406110 | W21: -1393581 | X21: -361028 | Y21: -330949 | Z21: -361502 | AA21: -340102 | AB21: -1101035 | AC21: -301243 | AD21: -305478 | AE21: -271414 | AF21: -222900 | AG21: -1313557 | AH21: -385876 | AI21: -238073 | AJ21: -310718 | AK21: -378890 | AL21: -1917103 | AM21: -450636 | AN21: -496329 | AO21: -500982 | AP21: -469156 | AQ21: -1685115 | AR21: -429483 | AS21: -451522 | AT21: -397278 | AU21: -406832 | AV21: -988618 | AW21: -319411 | AX21: -256939 | AY21: -213123 | AZ21: -199145 | BA21: -723441 | BB21: -205121 | BC21: -186758 | BD21: -188733 | BE21: -142829 | BF21: -671108 | BG21: -145587 | BH21: -153556 | BI21: -202850 | BJ21: -169118 | BK21: -922738 | BL21: -236950 | BM21: -270612 | BN21: -209432 | BO21: -205744 | BP21: -627938 | BQ21: -257724 | BR21: -69163 | BS21: -153800 | BT21: -147251 | BU21: -434034 | BV21: -195367 | BW21: -89732 | BX21: -66025 | BY21: -82910 | BZ21: -252998 | CA21: -80407 | CB21: -47405 | CC21: -71738 | CD21: -53448 | CE21: -225030 | CF21: -70308 | CG21: -66431 | CH21: -45069 | CI21: -43221 | CJ21: -193591 | CK21: -50572 | CL21: -48729 | CM21: -54052 | CN21: -40238 | CO21: -21873 | CP21: 3095 | CQ21: 47940 | CR21: -23028 | CS21: -49880 | CT21: -139691 | CU21: 30858 | CV21: -18482 | CW21: -63743 | CX21: -88324 | CY21: -85338 | CZ21: -30215 | DA21: -51625 | DB21: 17890 | DC21: -21388 | DD21: 463585 | DE21: 955299 | DF21: -293321 | DG21: -159500 | DH21: -38893
A22: Despesas Financeiras: | B22: Financial expenses: | C22: -5734422 | D22: -1472756 | E22: -1357693 | F22: -1565799 | G22: -1338174 | H22: -5503015 | I22: -1300513 | J22: -1234744 | K22: -1556642 | L22: -1411119 | M22: -3566532 | N22: -1166906 | O22: -1184064 | P22: -539862 | Q22: -675700 | R22: -1963931 | S22: -559017 | T22: -456655 | U22: -448535 | V22: -499724 | W22: -1944511 | X22: -437219 | Y22: -474638 | Z22: -531752 | AA22: -500902 | AB22: -1946134 | AC22: -544538 | AD22: -485468 | AE22: -426716 | AF22: -489412 | AG22: -2586765 | AH22: -685676 | AI22: -527892 | AJ22: -494075 | AK22: -879122 | AL22: -3500807 | AM22: -813379 | AN22: -666797 | AO22: -1054877 | AP22: -965755 | AQ22: -3389179 | AR22: -785789 | AS22: -1038213 | AT22: -869799 | AU22: -695378 | AV22: -1501869 | AW22: -443871 | AX22: -389798 | AY22: -323813 | AZ22: -344387 | BA22: -1051921 | BB22: -323376 | BC22: -275548 | BD22: -260125 | BE22: -192872 | BF22: -936991 | BG22: -195805 | BH22: -211737 | BI22: -277437 | BJ22: -268870 | BK22: -1273273 | BL22: -324168 | BM22: -362681 | BN22: -297856 | BO22: -288568 | BP22: -1091100 | BQ22: -329077 | BR22: -200522 | BS22: -255149 | BT22: -306352 | BU22: -799860 | BV22: -370190 | BW22: -139607 | BX22: -139176 | BY22: -150887 | BZ22: -440952 | CA22: -139064 | CB22: -101377 | CC22: -104285 | CD22: -96227 | CE22: -316438 | CF22: -101488 | CG22: -87099 | CH22: -61024 | CI22: -66827 | CJ22: -283644 | CK22: -71205 | CL22: -70910 | CM22: -84977 | CN22: -56552 | CO22: -155273 | CP22: -91740 | CQ22: 33612 | CR22: -32574 | CS22: -64571 | CT22: -204255 | CU22: -53421 | CV22: -31308 | CW22: -73572 | CX22: -45954 | CY22: -115122 | CZ22: -36661 | DA22: -56922 | DB22: 8709 | DC22: -30248 | DD22: -491195 | DE22: 20575 | DF22: -299971 | DG22: -166968 | DH22: -44831
A23: Variação Monetária | B23: Monetary variation | C23: -326187 | D23: -154216 | E23: -21969 | F23: -67659 | G23: -82343 | H23: -199795 | I23: -54790 | J23: 28746 | K23: -103907 | L23: -69844 | M23: -294647 | N23: -86685 | O23: -80314 | P23: -54112 | Q23: -73536 | R23: -135549 | S23: -60863 | T23: -26327 | U23: - | V23: -48359 | W23: -151490 | X23: -23659 | Y23: -13208 | Z23: -57130 | AA23: -57493 | AB23: -230947 | AC23: -59243 | AD23: -81311 | AE23: -40547 | AF23: -49846 | AG23: -148881 | AH23: -42725 | AI23: -31378 | AJ23: -28989 | AK23: -45789 | AL23: -343085 | AM23: -24537 | AN23: -69599 | AO23: -95043 | AP23: -153906 | AQ23: -417577 | AR23: -123480 | AS23: -67528 | AT23: -108847 | AU23: -117722 | AV23: -87083 | AW23: -48237 | AX23: -10105 | AY23: -13268 | AZ23: -15473 | BA23: -27898 | BB23: -10957 | BC23: -4142 | BD23: -5237 | BE23: -7562 | BF23: -28022 | BG23: -6567 | BH23: -5550 | BI23: -7473 | BJ23: -4888 | BK23: -33688 | BL23: -9733 | BM23: -8579 | BN23: -7267 | BO23: -14467 | BP23: -63336 | BQ23: -17843 | BR23: -10399 | BS23: -16962 | BT23: -18132 | BU23: -7066 | BV23: -2393 | BW23: -2993 | BX23: 0 | BY23: -1680 | BZ23: -79876 | CA23: -11487 | CB23: -14700 | CC23: -34243 | CD23: -19377 | CE23: -25065 | CF23: -25110 | CG23: -323 | CH23: 225 | CI23: 143 | CJ23: -676 | CK23: -691 | CL23: -308 | CM23: 298 | CN23: 25 | CO23: -4734 | CP23: -759 | CQ23: -2602 | CR23: -518 | CS23: -855 | CT23: -4085 | CU23: -890 | CV23: -1364 | CW23: -728 | CX23: -1103 | CY23: -3367 | CZ23: -122 | DA23: -530 | DB23: -470 | DC23: -2245 | DD23: -3183 | DE23: -1493 | DF23: -1068 | DG23: -521 | DH23: -101
A24: Variação Monetária sobre Obrigações com Poder Concedente | B24: Monetary variation on obligations with the granting authority | C24: -165496 | D24: -28706 | E24: -9885 | F24: -56132 | G24: -70773 | H24: -149250 | I24: -22800 | J24: 6460 | K24: -73069 | L24: -59841 | M24: -247730 | N24: -83944 | O24: -57390 | P24: -49250 | Q24: -57146 | R24: -137524 | S24: -94674 | T24: -18885 | U24: 11676 | V24: -35641 | W24: -77522 | X24: -13928 | Y24: -8779 | Z24: -33381 | AA24: -21434 | AB24: -105073 | AC24: -31484 | AD24: -33588 | AE24: -16034 | AF24: -23967 | AG24: -62079 | AH24: -19446 | AI24: -4489 | AJ24: -15691 | AK24: -22453 | AL24: -11485 | AM24: -11485 | AN24: - | AO24: - | AP24: - | AQ24: - | AR24: - | AS24: - | AT24: - | AU24: - | AV24: - | AW24: - | AX24: - | AY24: - | AZ24: - | BA24: - | BB24: - | BC24: - | BD24: - | BE24: - | BF24: - | BG24: - | BH24: - | BI24: - | BJ24: - | BK24: - | BL24: - | BM24: - | BN24: - | BO24: - | BP24: - | BQ24: - | BR24: - | BS24: - | BT24: - | BU24: - | BV24: - | BW24: - | BX24: - | BY24: - | BZ24: - | CA24: - | CB24: - | CC24: - | CD24: - | CE24: - | CF24: - | CG24: - | CH24: - | CI24: - | CJ24: - | CK24: - | CL24: - | CM24: - | CN24: - | CO24: - | CP24: - | CQ24: - | CR24: - | CS24: - | CT24: - | CU24: - | CV24: - | CW24: - | CX24: - | CY24: - | CZ24: - | DA24: - | DB24: - | DC24: - | DD24: - | DE24: - | DF24: - | DG24: - | DH24: -
A25: Variações Cambial | B25: Exchange variation | C25: -53604 | D25: -2565 | E25: -38232 | F25: -51 | G25: -12756 | H25: -158788 | I25: -10531 | J25: -51038 | K25: -97219 | L25: 0 | M25: -55498 | N25: -30059 | O25: -25264 | P25: -175 | Q25: - | R25: -3186 | S25: - | T25: - | U25: -3186 | V25: - | W25: -41658 | X25: - | Y25: -6058 | Z25: -29096 | AA25: -6504 | AB25: -49273 | AC25: -4868 | AD25: -3951 | AE25: -11965 | AF25: -28489 | AG25: -199740 | AH25: -67066 | AI25: -22012 | AJ25: -80482 | AK25: -30180 | AL25: -328708 | AM25: -145601 | AN25: -8554 | AO25: -73608 | AP25: -100945 | AQ25: -755549 | AR25: -46720 | AS25: -416433 | AT25: -125951 | AU25: -166445 | AV25: -114446 | AW25: -42686 | AX25: -50856 | AY25: -636 | AZ25: -18031 | BA25: -145014 | BB25: -37974 | BC25: -42409 | BD25: -55606 | BE25: -11222 | BF25: -115326 | BG25: -21006 | BH25: -8692 | BI25: -54858 | BJ25: -30960 | BK25: -149067 | BL25: -48745 | BM25: -69116 | BN25: -26181 | BO25: -5650 | BP25: -166244 | BQ25: -14860 | BR25: -2976 | BS25: -61302 | BT25: -87106 | BU25: -10538 | BV25: -4519 | BW25: -541 | BX25: 0 | BY25: -5478 | BZ25: -75681 | CA25: -42406 | CB25: -20423 | CC25: -47 | CD25: -12805 | CE25: 14133 | CF25: 3734 | CG25: 6273 | CH25: 2540 | CI25: 1586 | CJ25: 7828 | CK25: 659 | CL25: 4887 | CM25: -17562 | CN25: 19844 | CO25: 50952 | CP25: -12913 | CQ25: 19109 | CR25: 48365 | CS25: -3609 | CT25: 22301 | CU25: 25720 | CV25: 38809 | CW25: -39402 | CX25: -2826 | CY25: 136406 | CZ25: 5169 | DA25: -7643 | DB25: 100755 | DC25: 38125 | DD25: -278112 | DE25: 79883 | DF25: -235844 | DG25: -121049 | DH25: -1102
A26: Juros | B26: Interest | C26: -3317977 | D26: -674972 | E26: -902015 | F26: -882767 | G26: -858223 | H26: -3221882 | I26: -846320 | J26: -899850 | K26: -769830 | L26: -705885 | M26: -1480279 | N26: -515401 | O26: -381059 | P26: -300674 | Q26: -283145 | R26: -1215849 | S26: -277388 | T26: -302301 | U26: -320296 | V26: -315864 | W26: -1200935 | X26: -295111 | Y26: -316609 | Z26: -303484 | AA26: -285731 | AB26: -942289 | AC26: -299980 | AD26: -231234 | AE26: -218287 | AF26: -192788 | AG26: -1050166 | AH26: -222838 | AI26: -221786 | AJ26: -266992 | AK26: -338550 | AL26: -1487541 | AM26: -363150 | AN26: -391988 | AO26: -370693 | AP26: -361710 | AQ26: -1224007 | AR26: -313771 | AS26: -330369 | AT26: -304178 | AU26: -275689 | AV26: -951600 | AW26: -270197 | AX26: -253385 | AY26: -224722 | AZ26: -203296 | BA26: -627555 | BB26: -192693 | BC26: -176177 | BD26: -153727 | BE26: -136146 | BF26: -592611 | BG26: -129443 | BH26: -157119 | BI26: -164296 | BJ26: -176329 | BK26: -869986 | BL26: -217950 | BM26: -241949 | BN26: -234238 | BO26: -175820 | BP26: -547115 | BQ26: -179231 | BR26: -134806 | BS26: -122855 | BT26: -110223 | BU26: -440745 | BV26: -113933 | BW26: -112964 | BX26: -103003 | BY26: -110845 | BZ26: -254584 | CA26: -84798 | CB26: -59806 | CC26: -54749 | CD26: -55301 | CE26: -281710 | CF26: -70576 | CG26: -84243 | CH26: -60644 | CI26: -66247 | CJ26: -257614 | CK26: -69504 | CL26: -72010 | CM26: -55354 | CN26: -60746 | CO26: -153831 | CP26: -76247 | CQ26: 35130 | CR26: -56676 | CS26: -56038 | CT26: -183309 | CU26: -45809 | CV26: -45497 | CW26: -47728 | CX26: -44275 | CY26: -187524 | CZ26: -92078 | DA26: 350 | DB26: -43107 | DC26: -52689 | DD26: -209900 | DE26: -57815 | DF26: -63059 | DG26: -45398 | DH26: -43628
A27: Perda com operação de Hedge | B27: Loss from hedge transactions | C27: -913049 | D27: -313644 | E27: -259966 | F27: -197950 | G27: -141489 | H27: -1206314 | I27: -244772 | J27: -145899 | K27: -515939 | L27: -299704 | M27: -733244 | N27: -278632 | O27: -186716 | P27: -71363 | Q27: -196533 | R27: -77536 | S27: -14845 | T27: -30256 | U27: -20225 | V27: -12210 | W27: -179475 | X27: -20586 | Y27: -58730 | Z27: -50807 | AA27: -49352 | AB27: -334008 | AC27: -123850 | AD27: -36970 | AE27: -54866 | AF27: -118322 | AG27: -514491 | AH27: -119673 | AI27: -122891 | AJ27: -12874 | AK27: -259053 | AL27: -865294 | AM27: -189912 | AN27: -107955 | AO27: -341375 | AP27: -226052 | AQ27: -620513 | AR27: -152143 | AS27: -153899 | AT27: -249049 | AU27: -65422 | AV27: -157444 | AW27: -39714 | AX27: -27008 | AY27: -50570 | AZ27: -71273 | BA27: -100370 | BB27: -38222 | BC27: -30693 | BD27: -14733 | BE27: -16722 | BF27: -47065 | BG27: -5060 | BH27: -17147 | BI27: -16998 | BJ27: -26117 | BK27: -56590 | BL27: -5902 | BM27: -11346 | BN27: 12060 | BO27: -51408 | BP27: -173965 | BQ27: -90176 | BR27: -29006 | BS27: -22627 | BT27: -32156 | BU27: -65995 | BV27: -6959 | BW27: -11102 | BX27: -29367 | BY27: -18567 | BZ27: -30811 | CA27: -374 | CB27: -6448 | CC27: -15245 | CD27: -8745 | CE27: -23795 | CF27: -9536 | CG27: -8806 | CH27: -3145 | CI27: -2309 | CJ27: -33182 | CK27: -1669 | CL27: -3479 | CM27: -12359 | CN27: -15675 | CO27: -47661 | CP27: -1821 | CQ27: -18025 | CR27: -23746 | CS27: -4069 | CT27: -39162 | CU27: -32442 | CV27: -23256 | CW27: 14286 | CX27: 2250 | CY27: -60637 | CZ27: 50370 | DA27: -49099 | DB27: -48469 | DC27: -13439 | DD27: - | DE27: - | DF27: - | DG27: - | DH27: -
A28: Ajuste a Valor Presente da Provisão de Manutenção | B28: Present value adjustment of the provision for maintenance | C28: -133573 | D28: -36698 | E28: -34141 | F28: -32312 | G28: -30422 | H28: -63854 | I28: -20969 | J28: -15270 | K28: -14327 | L28: -13288 | M28: -53452 | N28: -13218 | O28: -12655 | P28: -13509 | Q28: -14070 | R28: -89428 | S28: -42505 | T28: -15729 | U28: -15412 | V28: -15782 | W28: -72767 | X28: -15386 | Y28: -18160 | Z28: -19281 | AA28: -19940 | AB28: -104513 | AC28: -22942 | AD28: -25550 | AE28: -27569 | AF28: -28452 | AG28: -113179 | AH28: -28160 | AI28: -27871 | AJ28: -28540 | AK28: -28608 | AL28: -106625 | AM28: -27655 | AN28: -26773 | AO28: -26512 | AP28: -25685 | AQ28: -92524 | AR28: -22660 | AS28: -23858 | AT28: -23726 | AU28: -22280 | AV28: -63489 | AW28: -21690 | AX28: -17949 | AY28: -11998 | AZ28: -11852 | BA28: -39158 | BB28: -5140 | BC28: -11112 | BD28: -11545 | BE28: -11361 | BF28: -48673 | BG28: -8291 | BH28: -12127 | BI28: -13636 | BJ28: -14620 | BK28: -70643 | BL28: -15672 | BM28: -17010 | BN28: -18410 | BO28: -19550 | BP28: -91621 | BQ28: -23868 | BR28: -22530 | BS28: -25113 | BT28: -20110 | BU28: -60132 | BV28: -60132 | BW28: - | BX28: - | BY28: - | BZ28: - | CA28: - | CB28: - | CC28: - | CD28: - | CE28: - | CF28: - | CG28: - | CH28: - | CI28: - | CJ28: - | CK28: - | CL28: - | CM28: - | CN28: - | CO28: - | CP28: - | CQ28: - | CR28: - | CS28: - | CT28: - | CU28: - | CV28: - | CW28: - | CX28: - | CY28: - | CZ28: - | DA28: - | DB28: - | DC28: - | DD28: - | DE28: - | DF28: - | DG28: - | DH28: -
A29: Valor Justo de Financiamentos e Debêntures | B29: Fair value of financing and debentures | C29: -498085 | D29: -182878 | E29: -13235 | F29: -237918 | G29: -64054 | H29: -185941 | I29: -37702 | J29: -108709 | K29: -14491 | L29: -25039 | M29: -443739 | N29: -66280 | O29: -358900 | P29: -14897 | Q29: -3662 | R29: -94045 | S29: -24850 | T29: -3451 | U29: -65744 | V29: - | W29: -23717 | X29: -1867 | Y29: -1409 | Z29: - | AA29: -20441 | AB29: -31290 | AC29: -6914 | AD29: -10190 | AE29: -5611 | AF29: -8575 | AG29: -189647 | AH29: -8321 | AI29: -47992 | AJ29: -11582 | AK29: -121752 | AL29: -217846 | AM29: -17215 | AN29: -35914 | AO29: -96138 | AP29: -68579 | AQ29: -144161 | AR29: -92145 | AS29: -13712 | AT29: -19916 | AU29: -18388 | AV29: -43951 | AW29: -5627 | AX29: -7203 | AY29: -12156 | AZ29: -18965 | BA29: - | BB29: - | BD29: - | BE29: - | BF29: - | BG29: - | BH29: - | BI29: - | BJ29: - | BK29: - | BL29: - | BM29: - | BN29: - | BO29: - | BP29: - | BQ29: - | BR29: - | BS29: - | BT29: - | BU29: - | BV29: - | BW29: - | BX29: - | BY29: - | BZ29: - | CA29: - | CB29: - | CC29: - | CD29: - | CE29: - | CF29: - | CG29: - | CH29: - | CI29: - | CJ29: - | CK29: - | CL29: - | CM29: - | CN29: - | CO29: - | CP29: - | CQ29: - | CR29: - | CS29: - | CT29: - | CU29: - | CV29: - | CW29: - | CX29: - | CY29: - | CZ29: - | DA29: - | DB29: - | DC29: - | DD29: - | DE29: - | DF29: - | DG29: - | DH29: -
A30: Outras Despesas Financeiras | B30: Other financial expenses | C30: -325970 | D30: -78596 | E30: -78250 | F30: -91010 | G30: -78114 | H30: -317191 | I30: -62629 | J30: -49184 | K30: 32140 | L30: -237518 | M30: -257943 | N30: -92687 | O30: -81766 | P30: -35882 | Q30: -47608 | R30: -210814 | S30: -43892 | T30: -59706 | U30: -35348 | V30: -71868 | W30: -196947 | X30: -66682 | Y30: -51685 | Z30: -38573 | AA30: -40007 | AB30: -148741 | AC30: 4743 | AD30: -62674 | AE30: -51837 | AF30: -38973 | AG30: -308582 | AH30: -177447 | AI30: -49473 | AJ30: -48925 | AK30: -32737 | AL30: -140224 | AM30: -33824 | AN30: -26014 | AO30: -51508 | AP30: -28878 | AQ30: -134848 | AR30: -34870 | AS30: -32414 | AT30: -38132 | AU30: -29432 | AV30: -83856 | AW30: -15720 | AX30: -23292 | AY30: -10463 | AZ30: -5497 | BA30: -111926 | BB30: -38390 | BC30: -11015 | BD30: -19277 | BE30: -9859 | BF30: -105294 | BG30: -25438 | BH30: -11102 | BI30: -20176 | BJ30: -15955 | BK30: -93299 | BL30: -26166 | BM30: -14681 | BN30: -23820 | BO30: -21674 | BP30: -48819 | BQ30: -3097 | BR30: -806 | BS30: -6290 | BT30: -38626 | BU30: -215384 | BV30: -182255 | BW30: -12007 | BX30: -6806 | BY30: -14316 | BZ30: - | CA30: - | CB30: - | CC30: - | CD30: - | CE30: - | CF30: - | CG30: - | CH30: - | CI30: - | CJ30: - | CK30: - | CL30: - | CM30: - | CN30: - | CO30: - | CP30: - | CQ30: - | CR30: - | CS30: - | CT30: - | CU30: - | CV30: - | CW30: - | CX30: - | CY30: - | CZ30: - | DA30: - | DB30: - | DC30: - | DD30: - | DE30: - | DF30: - | DG30: - | DH30: -
A31: Variações Monetárias/Cambiais indedutíveis TAC | B31: Non-deductible TAC Monetary/Exchange Variations (thousands of R$) | C31: -481 | D31: -481 | E31: 0 | F31: 0 | G31: 0 | H31: 0 | I31: 0 | J31: 0 | K31: 0 | L31: 0 | M31: 0 | N31: 0 | O31: 0 | P31: 0 | Q31: 0 | R31: 0 | S31: 0 | T31: 0 | U31: 0 | V31: 0 | W31: 0 | X31: 0 | Y31: 0 | Z31: 0 | AA31: 0 | AB31: 0 | AC31: 0 | AD31: 0 | AE31: 0 | AF31: 0 | AG31: 0 | AH31: 0 | AI31: 0 | AJ31: 0 | AK31: 0 | AL31: 0 | AM31: 0 | AN31: 0 | AO31: 0 | AP31: 0 | AQ31: 0 | AR31: 0 | AS31: 0 | AT31: 0 | AU31: 0 | AV31: 0 | AW31: 0 | AX31: 0 | AY31: 0 | AZ31: 0 | BA31: 0 | BB31: 0 | BC31: 0 | BD31: 0 | BE31: 0 | BF31: 0 | BG31: 0 | BH31: 0 | BI31: 0 | BJ31: 0 | BK31: 0 | BL31: 0 | BM31: 0 | BN31: 0 | BO31: 0 | BP31: 0 | BQ31: 0 | BR31: 0 | BS31: 0 | BT31: 0 | BU31: 0 | BV31: 0 | BW31: 0 | BX31: 0 | BY31: 0 | BZ31: 0 | CA31: 0 | CB31: 0 | CC31: 0 | CD31: 0 | CE31: 0 | CF31: 0 | CG31: 0 | CH31: 0 | CI31: 0 | CJ31: 0 | CK31: 0 | CL31: 0 | CM31: 0 | CN31: 0 | CO31: 0 | CP31: 0 | CQ31: 0 | CR31: 0 | CS31: 0 | CT31: 0 | CU31: 0 | CV31: 0 | CW31: 0 | CX31: 0 | CY31: 0 | CZ31: 0 | DA31: 0 | DB31: 0 | DC31: 0 | DD31: 0 | DE31: 0 | DF31: 0 | DG31: 0 | DH31: 0
A32: Receitas Financeiras | B32: Financial income | C32: 2336037 | D32: 659531 | E32: 535856 | F32: 691772 | G32: 448878 | H32: 2224008 | I32: 471673 | J32: 455865 | K32: 808240 | L32: 488230 | M32: 1645901 | N32: 497454 | O32: 690916 | P32: 175111 | Q32: 282420 | R32: 461859 | S32: 103673 | T32: 96150 | U32: 168422 | V32: 93614 | W32: 550930 | X32: 76191 | Y32: 143689 | Z32: 170250 | AA32: 160800 | AB32: 845099 | AC32: 243295 | AD32: 179990 | AE32: 155302 | AF32: 266512 | AG32: 1273208 | AH32: 299800 | AI32: 289819 | AJ32: 183357 | AK32: 500232 | AL32: 1583704 | AM32: 362742 | AN32: -170468 | AO32: 553895 | AP32: 496599 | AQ32: 1704064 | AR32: 356306 | AS32: 586691 | AT32: 472521 | AU32: 288546 | AV32: 513251 | AW32: 124460 | AX32: 132859 | AY32: 110690 | AZ32: 145242 | BA32: 328480 | BB32: 118255 | BC32: 88790 | BD32: 71392 | BE32: 50043 | BF32: 265883 | BG32: 50218 | BH32: 58181 | BI32: 74587 | BJ32: 99752 | BK32: 350535 | BL32: 87218 | BM32: 92069 | BN32: 88424 | BO32: 82824 | BP32: 463162 | BQ32: 71353 | BR32: 131359 | BS32: 101349 | BT32: 159101 | BU32: 365826 | BV32: 174823 | BW32: 49875 | BX32: 73151 | BY32: 67977 | BZ32: 187954 | CA32: 58656 | CB32: 53972 | CC32: 32547 | CD32: 42779 | CE32: 108107 | CF32: 37480 | CG32: 20668 | CH32: 15955 | CI32: 23606 | CJ32: 90053 | CK32: 20633 | CL32: 22181 | CM32: 30925 | CN32: 16314 | CO32: 133400 | CP32: 94835 | CQ32: 14328 | CR32: 9546 | CS32: 14691 | CT32: 64564 | CU32: 38325 | CV32: 12826 | CW32: 9829 | CX32: 3584 | CY32: 29784 | CZ32: 6446 | DA32: 5297 | DB32: 9181 | DC32: 8860 | DD32: 27610 | DE32: 7554 | DF32: 6650 | DG32: 7468 | DH32: 5938
A33: Resultado Operacional / Não Operacional | B33: Operational / Non-operational Result | C33: 0 | D33: 0 | E33: 0 | F33: 0 | G33: 0 | H33: 0 | I33: 0 | J33: - | K33: 0 | L33: 0 | M33: 0 | N33: 0 | O33: 0 | P33: 0 | Q33: - | R33: 0 | S33: 0 | T33: - | U33: - | V33: - | W33: - | X33: - | Y33: - | Z33: - | AA33: - | AB33: - | AC33: - | AD33: - | AE33: - | AF33: - | AG33: - | AH33: - | AI33: - | AJ33: - | AK33: - | AL33: - | AM33: - | AN33: - | AO33: - | AP33: - | AQ33: - | AR33: - | AS33: - | AT33: - | AU33: - | AV33: - | AW33: - | AX33: - | AY33: - | AZ33: - | BA33: - | BB33: - | BC33: - | BD33: - | BE33: - | BF33: - | BG33: - | BH33: - | BI33: - | BJ33: - | BK33: - | BL33: - | BM33: - | BN33: - | BO33: - | BP33: - | BQ33: - | BR33: - | BS33: - | BT33: - | BU33: - | BV33: - | BW33: - | BX33: - | BY33: - | BZ33: - | CA33: - | CB33: -417 | CC33: 1299 | CD33: 239 | CE33: - | CF33: - | CG33: - | CH33: - | CI33: - | CJ33: - | CK33: - | CL33: - | CM33: - | CN33: - | CO33: - | CP33: - | CQ33: - | CR33: - | CS33: - | CT33: - | CU33: - | CV33: - | CW33: - | CX33: - | CY33: - | CZ33: - | DA33: - | DB33: - | DC33: - | DD33: - | DE33: 99036 | DF33: - | DG33: -99036 | DH33: -
A34: Lucro (Prejuízo) Antes do IR & CS | B34: Income (loss) before income tax and social contribution | C34: 3035387 | D34: 1081492 | E34: 494737 | F34: 489552 | G34: 969606 | H34: 7082566 | I34: -122705 | J34: 1003764 | K34: 644497 | L34: 5557009 | M34: 1919385 | N34: 15802 | O34: 464174 | P34: 13390 | Q34: 1426019 | R34: 714077 | S34: 18882 | T34: 296030 | U34: -100842 | V34: 500007 | W34: 2342530 | X34: 614045 | Y34: 636036 | Z34: 527912 | AA34: 564537 | AB34: 1401313 | AC34: -256456 | AD34: 551518 | AE34: 421840 | AF34: 684411 | AG34: 2745162 | AH34: 564736 | AI34: 731478 | AJ34: 1016682 | AK34: 432265 | AL34: 2564452 | AM34: 239969 | AN34: 1729562 | AO34: 237527 | AP34: 357394 | AQ34: 1253708 | AR34: 326089 | AS34: 356247 | AT34: 284792 | AU34: 286580 | AV34: 2048377 | AW34: 522355 | AX34: 539254 | AY34: 440276 | AZ34: 546492 | BA34: 2166299 | BB34: 527347 | BC34: 628088 | BD34: 479705 | BE34: 531159 | BF34: 1826328 | BG34: 534070 | BH34: 493428 | BI34: 360308 | BJ34: 438523 | BK34: 1354281 | BL34: 422682 | BM34: 381749 | BN34: 272122 | BO34: 277728 | BP34: 1073314 | BQ34: 56786 | BR34: 411732 | BS34: 316447 | BT34: 288349 | BU34: 1098195 | BV34: 238386 | BW34: 311033 | BX34: 286031 | BY34: 262745 | BZ34: 1114904 | CA34: 296842 | CB34: 337641 | CC34: 214964 | CD34: 258013 | CE34: 889352 | CF34: 212925 | CG34: 263769 | CH34: 196599 | CI34: 216062 | CJ34: 661791 | CK34: 184013 | CL34: 183952 | CM34: 120640 | CN34: 173186 | CO34: 781280 | CP34: 231421 | CQ34: 277865 | CR34: 160462 | CS34: 111532 | CT34: 392459 | CU34: 144964 | CV34: 140398 | CW34: 31662 | CX34: 75435 | CY34: 271887 | CZ34: 84515 | DA34: 54956 | DB34: 83905 | DC34: 48511 | DD34: -178188 | DE34: 107342 | DF34: -211913 | DG34: -99647 | DH34: 26030
A35: Imposto de Renda e Contribuição Social | B35: Income tax and social contribution | C35: -1180886 | D35: -365665 | E35: -242629 | F35: -226370 | G35: -346222 | H35: -2870386 | I35: -32926 | J35: -362553 | K35: -356290 | L35: -2118616 | M35: -1113789 | N35: -173519 | O35: -299584 | P35: -59025 | Q35: -581661 | R35: -627964 | S35: -107297 | T35: -204487 | U35: -89364 | V35: -226816 | W35: -916078 | X35: -228045 | Y35: -289622 | Z35: -189025 | AA35: -209386 | AB35: -765131 | AC35: -169005 | AD35: -200410 | AE35: -155799 | AF35: -239917 | AG35: -962244 | AH35: -243926 | AI35: -247862 | AJ35: -350985 | AK35: -199845 | AL35: -927005 | AM35: -84652 | AN35: -590131 | AO35: -113742 | AP35: -138480 | AQ35: -466837 | AR35: -109329 | AS35: -128042 | AT35: -119741 | AU35: -109725 | AV35: -698684 | AW35: -147657 | AX35: -188813 | AY35: -161368 | AZ35: -200846 | BA35: -798415 | BB35: -219797 | BC35: -218453 | BD35: -171911 | BE35: -188254 | BF35: -633955 | BG35: -182544 | BH35: -173508 | BI35: -132228 | BJ35: -145678 | BK35: -443512 | BL35: -125053 | BM35: -112625 | BN35: -106604 | BO35: -99229 | BP35: -395805 | BQ35: -41033 | BR35: -138028 | BS35: -107218 | BT35: -109526 | BU35: -379882 | BV35: -47776 | BW35: -124548 | BX35: -102390 | BY35: -105168 | BZ35: -392129 | CA35: -106314 | CB35: -118015 | CC35: -76993 | CD35: -90807 | CE35: -301585 | CF35: -79649 | CG35: -82928 | CH35: -72984 | CI35: -66024 | CJ35: -109930 | CK35: 49601 | CL35: -61541 | CM35: -41802 | CN35: -56188 | CO35: -273396 | CP35: -76672 | CQ35: -93284 | CR35: -60660 | CS35: -42780 | CT35: -129836 | CU35: -47506 | CV35: -45952 | CW35: -11990 | CX35: -24388 | CY35: -89150 | CZ35: -27635 | DA35: -17280 | DB35: -27271 | DC35: -16964 | DD35: 55499 | DE35: -21296 | DF35: 59626 | DG35: 29266 | DH35: -12097
A36: Part. dos Acionistas não Controladores | B36: Non-controlling interests | C36: -149661 | D36: -162062 | E36: -576 | F36: 7032 | G36: 5945 | H36: -79092 | I36: -61476 | J36: -34759 | K36: 3063 | L36: 14080 | M36: -109965 | N36: 24534 | O36: 19323 | P36: 1596 | Q36: -155418 | R36: 104919 | S36: 13597 | T36: 26752 | U36: 48079 | V36: 16491 | W36: 11803 | X36: 6573 | Y36: -6168 | Z36: 8481 | AA36: 2917 | AB36: 146557 | AC36: 118405 | AD36: 14239 | AE36: 11656 | AF36: 2257 | AG36: 14548 | AH36: 8244 | AI36: -11280 | AJ36: 1403 | AK36: 80374 | AL36: 76404 | AM36: 14153 | AN36: 11717 | AO36: 21928 | AP36: 28606 | AQ36: 87497 | AR36: 28012 | AS36: 18763 | AT36: 18694 | AU36: 22028 | AV36: -852 | AW36: 9235 | AX36: -4390 | AY36: -3146 | AZ36: -2551 | BA36: -16893 | BB36: -1165 | BC36: -6133 | BD36: -3359 | BE36: -6236 | BF36: -15089 | BG36: -3981 | BH36: -3083 | BI36: -3815 | BJ36: -4210 | BK36: -11397 | BL36: -2917 | BM36: -2562 | BN36: -2662 | BO36: -3256 | BP36: -5786 | BQ36: -89 | BR36: -2526 | BS36: -1568 | BT36: -1603 | BU36: -9572 | BV36: -4717 | BW36: -1484 | BX36: -1734 | BY36: -1637 | BZ36: -9190 | CA36: -1739 | CB36: -2571 | CC36: -2346 | CD36: -2534 | CE36: -8086 | CF36: -1164 | CG36: -1872 | CH36: -1822 | CI36: -3228 | CJ36: -4593 | CK36: -872 | CL36: -1295 | CM36: -792 | CN36: -1634 | CO36: -7390 | CP36: -2130 | CQ36: -2305 | CR36: -1853 | CS36: -1102 | CT36: 368 | CU36: -513 | CV36: -853 | CW36: 1081 | CX36: 653 | CY36: 216 | CZ36: 181 | DA36: -920 | DB36: -768 | DC36: 1723 | DD36: 3163 | DE36: 2893 | DF36: 1422 | DG36: 191 | DH36: -1343
A37: Lucro Líquido do exercício | B37: Net income for the year | C37: 1704840 | D37: 553765 | E37: 251532 | F37: 270214 | G37: 629329 | H37: 4133088 | I37: -217107 | J37: 606452 | K37: 291270 | L37: 3452473 | M37: 695631 | N37: -133183 | O37: 183913 | P37: -44039 | Q37: 688940 | R37: 191032 | S37: -74818 | T37: 118295 | U37: -142127 | V37: 289682 | W37: 1438255 | X37: 392573 | Y37: 340246 | Z37: 347368 | AA37: 358068 | AB37: 782739 | AC37: -307056 | AD37: 365347 | AE37: 277697 | AF37: 446751 | AG37: 1797466 | AH37: 329054 | AI37: 472336 | AJ37: 667100 | AK37: 312794 | AL37: 1713851 | AM37: 169470 | AN37: 1151148 | AO37: 145713 | AP37: 247520 | AQ37: 874368 | AR37: 244772 | AS37: 246968 | AT37: 183745 | AU37: 198883 | AV37: 1348841 | AW37: 383933 | AX37: 346051 | AY37: 275762 | AZ37: 343095 | BA37: 1350991 | BB37: 306385 | BC37: 403502 | BD37: 304435 | BE37: 336669 | BF37: 1177284 | BG37: 347545 | BH37: 316837 | BI37: 224265 | BJ37: 288635 | BK37: 899372 | BL37: 294712 | BM37: 266562 | BN37: 162856 | BO37: 175242 | BP37: 671722 | BQ37: 15663 | BR37: 271179 | BS37: 207661 | BT37: 177219 | BU37: 708741 | BV37: 185892 | BW37: 185001 | BX37: 181907 | BY37: 155941 | BZ37: 713586 | CA37: 188788 | CB37: 217055 | CC37: 135625 | CD37: 164672 | CE37: 579682 | CF37: 132111 | CG37: 178969 | CH37: 121793 | CI37: 146810 | CJ37: 547268 | CK37: 232742 | CL37: 121116 | CM37: 78046 | CN37: 115364 | CO37: 500493 | CP37: 152617 | CQ37: 182276 | CR37: 97949 | CS37: 67651 | CT37: 262991 | CU37: 96944 | CV37: 93593 | CW37: 20754 | CX37: 51700 | CY37: 182953 | CZ37: 57061 | DA37: 36756 | DB37: 55866 | DC37: 33270 | DD37: -119526 | DE37: 88939 | DF37: -150865 | DG37: -70190 | DH37: 12590
A38: 1. Após a assinatura do aditivo de relicitação da MSVia em junho de 2021, a receita passou a ser registrada líquida do excedente tarifário. No 2T21 e 3T21 os valores foram divulgados como deduções da receita, contudo no 4T21, passamos a considerar este efeito na receita líquida. Sendo assim, de acordo o novo critério os valores a serem considerados como receita bruta de pedágio são: 2T21 R$ 68.388 mil e 3T21 R$ 46.699 mil. Sendo assim, no consolidado desta planilha refletimos o ajuste. | B38: After the signature of the amendment to the agreement for a new bidding process of MSVia in June 2021, revenue started to be recognized net of tariff surplus. In 2Q21 and 3Q21, the amounts were disclosed as deductions from revenue. But in 4Q21, we began to consider this effect in the net revenue. As a result, according to the new criteria, the amounts to be considered as toll gross revenue are: R$68,388 thousand (in 2Q21) and R$46,699 thousand (in 3Q21). Therefore, we reflected the adjustment in the consolidated results of this spreadsheet.

Sheet Fluxo de Caixa - Pró Forma
P1: Fluxo de Caixa - Pró-Forma
A2: Fluxo de Caixa - PRÓ-FORMA (milhares de R$) | B2: Cash Flow - PRO FORMA (R$ thousand) | C2: 2023 | D2: 4T23 | E2: 3T23 | F2: 2T23 | G2: 1T23 | H2: 2022 | I2: 4T22 | J2: 3T22 | K2: 2T22 | L2: 1T22 | M2: 2021 | N2: 4T21 | O2: 3T21 | P2: 2T21 | Q2: 1T21 | R2: 2020 | S2: 4T20 | T2: 3T20 | U2: 2T20 | V2: 1T20 | W2: 2019 | X2: 4T19 | Y2: 3T19 | Z2: 2T19 | AA2: 1T19 | AB2: 2018 | AC2: 4T18 | AD2: 3T18 | AE2: 2T18 | AF2: 1T18 | AG2: 2017 | AH2: 4T17 | AI2: 3T17 | AJ2: 2T17 | AK2: 1T17 | AL2: 2016 | AM2: 4T16 | AN2: 3T16 | AO2: 2T16 | AP2: 1T16 | AQ2: 2015 | AR2: 4T15 | AS2: 3T15 | AT2: 2T15 | AU2: 1T15 | AV2: 2014 | AW2: 4T14 | AX2: 3T14 | AY2: 2T14 | AZ2: 1T14 | BA2: 2013 | BB2: 4T13 | BC2: 3T13 | BD2: 2T13 | BE2: 1T13 | BF2: 2012 | BG2: 4T12 | BH2: 3T12 | BI2: 2T12 | BJ2: 1T12 | BK2: 2011 | BL2: 4T11 | BM2: 3T11 | BN2: 2T11 | BO2: 1T11 | BP2: 2010 | BQ2: 4T10 | BR2: 3T10 | BS2: 2T10 | BT2: 1T10 | BU2: 2009 | BV2: 4T09 | BW2: 3T09 | BX2: 2T09 | BY2: 1T09 | BZ2: 2008 | CA2: 4T08 | CB2: 3T08 | CC2: 2T08 | CD2: 1T08 | CE2: 2007 | CF2: 4T07 | CG2: 3T07 | CH2: 2T07 | CI2: 1T07 | CJ2: 2006 | CK2: 4T06 | CL2: 3T06 | CM2: 2T06 | CN2: 1T06 | CO2: 2005 | CP2: 4T05 | CQ2: 3T05 | CR2: 2T05 | CS2: 1T05 | CT2: 2004 | CU2: 4T04 | CV2: 3T04 | CW2: 2T04 | CX2: 1T04 | CY2: 2003 | CZ2: 4T03 | DA2: 3T03 | DB2: 2T03 | DC2: 1T03 | DD2: 2002 | DE2: 4T02 | DF2: 3T02 | DG2: 2T02 | DH2: 1T02
A3: FLUXOS DE CAIXA DAS ATIVIDADES OPERACIONAIS | B3: CASH FLOW FROM OPERATING ACTIVITIES
A4: Lucro (prejuízo) líquido do período | B4: Net income (loss) for the period | C4: 1854501 | D4: 715827 | E4: 252108 | F4: 263182 | G4: 623384 | H4: 4212180 | I4: -155646 | J4: 641226 | K4: 288207 | L4: 3438393 | M4: 805596 | N4: -157717 | O4: 164590 | P4: -45635 | Q4: 844358 | R4: =SUM(S4:V4) -> 86113 | S4: -88415 | T4: 91543 | U4: -190206 | V4: 273191 | W4: 1426452 | X4: 386000 | Y4: 346414 | Z4: 338887 | AA4: 355151 | AB4: 636182 | AC4: -425461 | AD4: 351108 | AE4: 266041 | AF4: 444494 | AG4: 1782918 | AH4: 320810 | AI4: 483616 | AJ4: 665697 | AK4: 312794 | AL4: 1637447 | AM4: 155317 | AN4: 1139431 | AO4: 123785 | AP4: 218914 | AQ4: 786871 | AR4: 216760 | AS4: 228205 | AT4: 165051 | AU4: 176855 | AV4: 1349693 | AW4: 350441 | AX4: 278908 | AY4: 345646 | AZ4: 374698 | BA4: 1367884 | BB4: 307550 | BC4: 409635 | BD4: 307794 | BE4: 342905 | BF4: 1192373 | BG4: 351526 | BH4: 319922 | BI4: 228080 | BJ4: 292845 | BK4: 910769 | BL4: 297629 | BM4: 269124 | BN4: 165518 | BO4: 178498 | BP4: 671722 | BQ4: 15750 | BR4: 271179 | BS4: 207661 | BT4: 178823 | BU4: 718313 | BV4: 195464 | BW4: 185001 | BX4: 181907 | BY4: 155941 | BZ4: 713586 | CA4: 189861 | CB4: 219621 | CC4: 141927 | CD4: 162177 | CE4: 579682 | CF4: 132110 | CG4: 178969 | CH4: 121793 | CI4: 146810 | CJ4: 547268 | CK4: 232741 | CL4: 121116 | CM4: 78047 | CN4: 115364 | CO4: 500493 | CP4: 152617 | CQ4: 182276 | CR4: 97949 | CS4: 67651 | CT4: 262991 | CU4: 96944 | CV4: 93593 | CW4: 20754 | CX4: 51700 | CY4: 182953 | CZ4: 57061 | DA4: 36756 | DB4: 55866 | DC4: 33270 | DD4: -119526 | DE4: 88939 | DF4: -150865 | DG4: -70190 | DH4: 12590
A5: Ajustes para conciliar o resultado às disponibilidades geradas pelas atividades operacionais | B5: Adjustments to reconcile the result with the cash generated by operating activities
A6: Imposto de renda e contribuição social diferidos | B6: Deferred income tax and social contribution | C6: -192473 | D6: 100472 | E6: -133096 | F6: -88470 | G6: -71379 | H6: 1541229 | I6: -68970 | J6: -203476 | K6: -14637 | L6: 1828312 | M6: 380224 | N6: -32138 | O6: 86242 | P6: -29164 | Q6: 355284 | R6: =SUM(S6:V6) -> -144538 | S6: -80179 | T6: -14196 | U6: -32237 | V6: -17926 | W6: -30959 | X6: 5939 | Y6: 4481 | Z6: -16203 | AA6: -25176 | AB6: -65107 | AC6: -51091 | AD6: 639 | AE6: -10580 | AF6: -4075 | AG6: 80011 | AH6: 18739 | AI6: -11869 | AJ6: 153515 | AK6: -80374 | AL6: -159816 | AM6: -52661 | AN6: 73677 | AO6: -81004 | AP6: -99828 | AQ6: -235974 | AR6: -26935 | AS6: -77659 | AT6: -53745 | AU6: -77635 | AV6: -115029 | AW6: -37355 | AX6: -32542 | AY6: -20450 | AZ6: -24682 | BA6: -41733 | BB6: 2507 | BC6: -20594 | BD6: -15258 | BE6: -8388 | BF6: -61242 | BG6: -24901 | BH6: -10598 | BI6: -12868 | BJ6: -12875 | BK6: -142976 | BL6: -27734 | BM6: -60610 | BN6: -22936 | BO6: -31696 | BP6: -133308 | BQ6: -87973 | BR6: -12437 | BS6: -12960 | BT6: -19938 | BU6: -48827 | BV6: -44431 | BW6: -3691 | BX6: -3149 | BY6: 2444 | BZ6: 17810 | CA6: -7558 | CB6: 10112 | CC6: 14805 | CD6: 451 | CE6: -7325 | CF6: -7098 | CG6: 3016 | CH6: 1220 | CI6: -4463 | CJ6: -5864 | CK6: 875 | CL6: -3988 | CM6: 5370 | CN6: -8121 | CO6: 50983 | CP6: 12863 | CQ6: 31681 | CR6: 4019 | CS6: 2420 | CT6: 23819 | CU6: 7887 | CV6: 9922 | CW6: 1362 | CX6: 4648 | CY6: 22099 | CZ6: 8052 | DA6: 2023 | DB6: 9503 | DC6: 2521 | DD6: -64694 | DE6: 15808 | DF6: -59818 | DG6: -26382 | DH6: 5698
A7: Apropriação de despesas antecipadas | B7: Recognition of prepaid expenses | C7: 136422 | D7: 33278 | E7: 31617 | F7: 35765 | G7: 35762 | H7: 180474 | I7: 35729 | J7: 35760 | K7: 37184 | L7: 71801 | M7: 287207 | N7: 71804 | O7: 71802 | P7: 71801 | Q7: 71800 | R7: =SUM(S7:V7) -> 287207 | S7: 71803 | T7: 71802 | U7: 71802 | V7: 71800 | W7: 287062 | X7: 71765 | Y7: 71766 | Z7: 71765 | AA7: 71766 | AB7: 226251 | AC7: 71765 | AD7: 72331 | AE7: 61732 | AF7: 20423 | AG7: 81890 | AH7: 20472 | AI7: 20474 | AJ7: 20472 | AK7: 20472 | AL7: 81925 | AM7: 20473 | AN7: 20472 | AO7: 20472 | AP7: 20508 | AQ7: 82032 | AR7: 20508 | AS7: 20509 | AT7: 20507 | AU7: 20508 | AV7: 82032 | AW7: 20509 | AX7: 20508 | AY7: 20508 | AZ7: 20507 | BA7: 82032 | BB7: 20508 | BC7: 20508 | BD7: 20508 | BE7: 20508 | BF7: 82034 | BG7: 20510 | BH7: 20508 | BI7: 20508 | BJ7: 20508 | BK7: 82779 | BL7: 20695 | BM7: 19580 | BN7: 21252 | BO7: 21252 | BP7: 82546 | BQ7: 21252 | BR7: 21253 | BS7: 21006 | BT7: 19035 | BU7: 54524 | BV7: 17955 | BW7: 14657 | BX7: 11974 | BY7: 9938 | BZ7: 10121 | CA7: 4103 | CB7: 2007 | CC7: 2004 | CD7: 2007 | CE7: 8024 | CF7: 2006 | CG7: 2007 | CH7: 2004 | CI7: 2007 | CJ7: 13067 | CK7: 6533 | CL7: 3268 | CM7: 3266 | CN7: - | CO7: 11888 | CP7: - | CQ7: - | CR7: - | CS7: - | CT7: - | CU7: - | CV7: - | CW7: - | CX7: - | CY7: - | CZ7: - | DA7: - | DB7: - | DC7: - | DD7: - | DE7: - | DF7: - | DG7: - | DH7: -
A8: Depreciação e amortização | B8: Depreciation and amortization | C8: 1584174 | D8: 419343 | E8: 402954 | F8: 387723 | G8: 374154 | H8: 1661406 | I8: 226169 | J8: 685183 | K8: 380673 | L8: 369381 | M8: 3010915 | N8: 704440 | O8: 611558 | P8: 1074132 | Q8: 620785 | R8: 2313914 | S8: 652871 | T8: 580802 | U8: 563321 | V8: 516920 | W8: 1865659 | X8: 505328 | Y8: 458783 | Z8: 466244 | AA8: 435304 | AB8: 1468925 | AC8: 422602 | AD8: 379211 | AE8: 352699 | AF8: 314413 | AG8: 1164846 | AH8: 316954 | AI8: 296271 | AJ8: 290091 | AK8: 261530 | AL8: 1014964 | AM8: 266838 | AN8: 254320 | AO8: 252376 | AP8: 241430 | AQ8: 878857 | AR8: 247277 | AS8: 219376 | AT8: 212287 | AU8: 199917 | AV8: 723005 | AW8: 186520 | AX8: 171341 | AY8: 161758 | AZ8: 203386 | BA8: 597354 | BB8: 163504 | BC8: 154953 | BD8: 146862 | BE8: 132035 | BF8: 456143 | BG8: 127603 | BH8: 122218 | BI8: 108021 | BJ8: 98301 | BK8: 355711 | BL8: 87598 | BM8: 88896 | BN8: 93239 | BO8: 85978 | BP8: 276403 | BQ8: 73443 | BR8: 73473 | BS8: 67996 | BT8: 61491 | BU8: 211578 | BV8: -66022 | BW8: 93629 | BX8: 93667 | BY8: 90304 | BZ8: 323037 | CA8: 81803 | CB8: 79964 | CC8: 80362 | CD8: 80908 | CE8: 301921 | CF8: 73919 | CG8: 72889 | CH8: 81188 | CI8: 73925 | CJ8: 334218 | CK8: 85366 | CL8: 83668 | CM8: 84353 | CN8: 80831 | CO8: 293498 | CP8: 82115 | CQ8: 76491 | CR8: 73413 | CS8: 61479 | CT8: 218762 | CU8: 56079 | CV8: 55705 | CW8: 53569 | CX8: 53409 | CY8: 198445 | CZ8: 48080 | DA8: 50598 | DB8: 50244 | DC8: 49523 | DD8: 177276 | DE8: 47247 | DF8: 45392 | DG8: 44048 | DH8: 40589
A9: Provisão para perdas com investimentos | B9: Provision for losses on investments | C9: 0 | D9: 0 | E9: 0 | F9: 0 | G9: - | H9: 0 | I9: 0 | J9: 0 | K9: 0 | L9: 0 | M9: 0 | N9: - | O9: 0 | P9: - | Q9: - | R9: 0 | S9: - | T9: - | U9: - | V9: - | W9: - | X9: - | Y9: - | Z9: - | AA9: - | AB9: - | AC9: - | AD9: - | AE9: - | AF9: - | AG9: - | AH9: - | AI9: - | AJ9: - | AK9: - | AL9: - | AM9: - | AN9: - | AO9: - | AP9: - | AQ9: - | AR9: - | AS9: - | AT9: - | AU9: - | AV9: - | AW9: - | AX9: - | AY9: - | AZ9: - | BA9: - | BB9: - | BC9: - | BD9: - | BE9: - | BF9: - | BG9: - | BH9: - | BI9: - | BJ9: - | BK9: - | BL9: - | BM9: - | BN9: - | BO9: - | BP9: - | BQ9: - | BR9: - | BS9: - | BT9: - | BU9: -3714 | BV9: -7428 | BW9: - | BX9: 3714 | BY9: - | BZ9: - | CA9: 0 | CB9: -4860 | CC9: 4259 | CD9: 601 | CE9: - | CF9: - | CG9: - | CH9: - | CI9: - | CJ9: 731 | CK9: - | CL9: - | CM9: - | CN9: - | CO9: - | CP9: - | CQ9: - | CR9: - | CS9: - | CT9: - | CU9: - | CV9: - | CW9: - | CX9: - | CY9: - | CZ9: - | DA9: - | DB9: - | DC9: - | DD9: - | DE9: - | DF9: - | DG9: - | DH9: -
A10: Reversão (Amortização) do ativo diferido | B10: Reversal (amortization) of deferred assets | C10: 0 | D10: 0 | E10: 0 | F10: 0 | G10: - | H10: 0 | I10: 0 | J10: 0 | K10: 0 | L10: 0 | M10: 0 | N10: - | O10: 0 | P10: - | Q10: - | R10: 0 | S10: - | T10: - | U10: - | V10: - | W10: - | X10: - | Y10: - | Z10: - | AA10: - | AB10: - | AC10: - | AD10: - | AE10: - | AF10: - | AG10: - | AH10: - | AI10: - | AJ10: - | AK10: - | AL10: - | AM10: - | AN10: - | AO10: - | AP10: - | AQ10: - | AR10: - | AS10: - | AT10: - | AU10: - | AV10: - | AW10: - | AX10: - | AY10: - | AZ10: - | BA10: - | BB10: - | BC10: - | BD10: - | BE10: - | BF10: - | BG10: - | BH10: - | BI10: - | BJ10: - | BK10: - | BL10: - | BM10: - | BN10: - | BO10: - | BP10: - | BQ10: - | BR10: - | BS10: - | BT10: - | BU10: - | BV10: - | BW10: - | BX10: - | BY10: - | BZ10: - | CA10: - | CB10: - | CC10: - | CD10: - | CE10: - | CF10: - | CG10: - | CH10: - | CI10: - | CJ10: - | CK10: - | CL10: - | CM10: - | CN10: - | CO10: - | CP10: - | CQ10: - | CR10: - | CS10: - | CT10: - | CU10: - | CV10: - | CW10: - | CX10: - | CY10: 3969 | CZ10: 3969 | DA10: - | DB10: - | DC10: - | DD10: 2009 | DE10: -557 | DF10: 2566 | DG10: - | DH10: -
A11: Perda na alienação de investimento na STP | B11: Loss from the sale of investment in STP | C11: 0 | D11: 0 | E11: 0 | F11: 0 | G11: - | H11: 0 | I11: 0 | J11: 0 | K11: 0 | L11: 0 | M11: 0 | N11: - | O11: 0 | P11: - | Q11: - | R11: 0 | S11: - | T11: - | U11: - | V11: - | W11: - | X11: - | Y11: - | Z11: - | AA11: - | AB11: - | AC11: - | AD11: - | AE11: - | AF11: - | AG11: - | AH11: - | AI11: - | AJ11: - | AK11: - | AL11: - | AM11: - | AN11: - | AO11: - | AP11: - | AQ11: - | AR11: - | AS11: - | AT11: - | AU11: - | AV11: - | AW11: - | AX11: - | AY11: - | AZ11: - | BA11: - | BB11: - | BC11: - | BD11: - | BE11: - | BF11: - | BG11: - | BH11: - | BI11: - | BJ11: - | BK11: - | BL11: - | BM11: - | BN11: - | BO11: - | BP11: - | BQ11: - | BR11: - | BS11: - | BT11: - | BU11: - | BV11: - | BW11: - | BX11: - | BY11: - | BZ11: - | CA11: - | CB11: - | CC11: - | CD11: - | CE11: - | CF11: - | CG11: - | CH11: - | CI11: - | CJ11: - | CK11: - | CL11: - | CM11: - | CN11: - | CO11: - | CP11: - | CQ11: - | CR11: - | CS11: - | CT11: 84 | CU11: - | CV11: 84 | CW11: - | CX11: - | CY11: - | CZ11: - | DA11: - | DB11: - | DC11: - | DD11: - | DE11: - | DF11: - | DG11: - | DH11: -
A12: Baixa do ativo imobilizado, intangível e diferido | B12: Write-off of fixed, intangible and deferred assets | C12: 110720 | D12: -16163 | E12: 9761 | F12: -952 | G12: 118074 | H12: 492363.17 | I12: 481207.17 | J12: -23510 | K12: 22506 | L12: 12160 | M12: 26280 | N12: 18671 | O12: 4874 | P12: -17230 | Q12: 19965 | R12: 135355 | S12: 113639 | T12: 2157 | U12: 13329 | V12: 6230 | W12: 54751 | X12: 25029 | Y12: 7016 | Z12: 15714 | AA12: 6992 | AB12: 130781 | AC12: 126930 | AD12: 1664 | AE12: 819 | AF12: 1368 | AG12: -4293 | AH12: 1585 | AI12: -42367 | AJ12: 55376 | AK12: -18887 | AL12: 124167 | AM12: -47796 | AN12: 40618 | AO12: 128766 | AP12: 2579 | AQ12: 79973 | AR12: 52995 | AS12: 11535 | AT12: -5897 | AU12: 21340 | AV12: 50967 | AW12: -36461 | AX12: 14635 | AY12: 48383 | AZ12: 24410 | BA12: 20128 | BB12: 2968 | BC12: 7258 | BD12: 9179 | BE12: 723 | BF12: 15507 | BG12: 1494 | BH12: 1344 | BI12: 8423 | BJ12: 4246 | BK12: 19365 | BL12: -7401 | BM12: 11643 | BN12: 9711 | BO12: 5412 | BP12: 14139 | BQ12: 1084 | BR12: 11317 | BS12: 923 | BT12: -47 | BU12: 5010 | BV12: 2329 | BW12: 567 | BX12: 774 | BY12: 1340 | BZ12: 15328 | CA12: 10197 | CB12: 1249 | CC12: 3167 | CD12: 715 | CE12: 14708 | CF12: 7931 | CG12: 1577 | CH12: 1078 | CI12: 4122 | CJ12: 11065 | CK12: 3525 | CL12: 4678 | CM12: 2057 | CN12: 805 | CO12: 2384 | CP12: 746 | CQ12: 261 | CR12: 628 | CS12: 749 | CT12: 7416 | CU12: 2494 | CV12: 2274 | CW12: 1692 | CX12: 189 | CY12: 1885 | CZ12: 637 | DA12: 237 | DB12: 119 | DC12: 892 | DD12: 863 | DE12: 863 | DF12: - | DG12: - | DH12: -
A13: Baixas do diferido | B13: Write-off of deferred assets | C13: 3952 | D13: 1877 | E13: 698 | F13: 688 | G13: 689 | H13: 2347 | I13: 692 | J13: 699 | K13: 562 | L13: 394 | M13: 1834 | N13: 478 | O13: 434 | P13: 466 | Q13: 456 | R13: 1777 | S13: 450 | T13: 449 | U13: 432 | V13: 446 | W13: 941 | X13: 446 | Y13: -2851 | Z13: 3321 | AA13: 25 | AB13: -281 | AC13: 781 | AD13: -715 | AE13: 171 | AF13: -518 | AG13: - | AH13: - | AI13: 702 | AJ13: - | AK13: - | AL13: - | AM13: - | AN13: - | AO13: - | AP13: - | AQ13: - | AR13: - | AS13: - | AT13: - | AU13: - | AV13: - | AW13: - | AX13: - | AY13: - | AZ13: - | BA13: - | BB13: - | BC13: - | BD13: - | BE13: - | BF13: - | BG13: - | BH13: - | BI13: - | BJ13: - | BK13: - | BL13: - | BM13: - | BN13: - | BO13: - | BP13: - | BQ13: - | BR13: - | BS13: - | BT13: - | BU13: - | BV13: -14 | BW13: 14 | BX13: - | BY13: - | BZ13: - | CA13: 0 | CB13: -1 | CC13: 1 | CD13: - | CE13: - | CF13: - | CG13: - | CH13: 25 | CI13: - | CJ13: - | CK13: - | CL13: - | CM13: - | CN13: - | CO13: - | CP13: - | CQ13: - | CR13: - | CS13: - | CT13: - | CU13: - | CV13: - | CW13: - | CX13: - | CY13: - | CZ13: - | DA13: - | DB13: - | DC13: - | DD13: - | DE13: - | DF13: - | DG13: - | DH13: -
A14: Baixa de Investimento (R$) | B14: Investment Write-off | C14: 0 | D14: 0 | E14: 0 | F14: 0 | G14: 0 | H14: 0 | I14: 0 | J14: 0 | K14: 0 | L14: 0 | M14: 0 | N14: - | O14: 0 | P14: - | Q14: - | R14: 0 | S14: 0 | T14: - | U14: - | V14: - | W14: - | X14: - | Y14: - | Z14: - | AA14: - | AB14: - | AC14: - | AD14: - | AE14: - | AF14: - | AG14: 792 | AH14: 90 | AI14: - | AJ14: - | AK14: - | AL14: 78123 | AM14: - | AN14: 78123 | AO14: - | AP14: - | AQ14: - | AR14: - | AS14: - | AT14: - | AU14: - | AV14: - | AW14: - | AX14: - | AY14: - | AZ14: - | BA14: - | BB14: - | BC14: - | BD14: - | BE14: - | BF14: - | BG14: - | BH14: - | BI14: - | BJ14: - | BK14: - | BL14: - | BM14: - | BN14: - | BO14: - | BP14: - | BQ14: - | BR14: - | BS14: - | BT14: - | BU14: - | BV14: - | BW14: - | BX14: - | BY14: - | BZ14: - | CA14: - | CB14: - | CC14: - | CD14: - | CE14: - | CF14: - | CG14: - | CH14: - | CI14: - | CJ14: - | CK14: - | CL14: - | CM14: - | CN14: - | CO14: - | CP14: - | CQ14: - | CR14: - | CS14: - | CT14: - | CU14: - | CV14: - | CW14: - | CX14: - | CY14: - | CZ14: - | DA14: - | DB14: - | DC14: - | DD14: - | DE14: - | DF14: - | DG14: - | DH14: -
A15: Amortização do direito da concessão - ágio | B15: Amortization of concession rights - goodwill | C15: 141126 | D15: 36324 | E15: 35635 | F15: 34878 | G15: 34289 | H15: 177624 | I15: 42315 | J15: 42502 | K15: 46314 | L15: 46493 | M15: 193541 | N15: 50558 | O15: 49024 | P15: 47862 | Q15: 46097 | R15: 186604 | S15: 48874 | T15: 47959 | U15: 46713 | V15: 43058 | W15: 170274 | X15: 44539 | Y15: 43664 | Z15: 42111 | AA15: 39960 | AB15: 143934 | AC15: 42416 | AD15: 35598 | AE15: 33953 | AF15: 31967 | AG15: 124349 | AH15: 34281 | AI15: 33536 | AJ15: 32363 | AK15: 24169 | AL15: 99828 | AM15: 25610 | AN15: 24176 | AO15: 25610 | AP15: 24432 | AQ15: 93620 | AR15: 25135 | AS15: 23754 | AT15: 22943 | AU15: 21788 | AV15: 85817 | AW15: 21923 | AX15: 21118 | AY15: 19972 | AZ15: 22804 | BA15: 94008 | BB15: 24993 | BC15: 23947 | BD15: 23584 | BE15: 21484 | BF15: 84119 | BG15: 22249 | BH15: 21592 | BI15: 20591 | BJ15: 19687 | BK15: 79173 | BL15: 22075 | BM15: 19583 | BN15: 19063 | BO15: 18452 | BP15: 43166 | BQ15: 12955 | BR15: 10104 | BS15: 10251 | BT15: 9856 | BU15: 25718 | BV15: -2303 | BW15: 10215 | BX15: 8904 | BY15: 8902 | BZ15: 30792 | CA15: 9691 | CB15: 12234 | CC15: 4467 | CD15: 4400 | CE15: 17910 | CF15: 11419 | CG15: 1007 | CH15: 1007 | CI15: 4477 | CJ15: 3264 | CK15: 1007 | CL15: 1007 | CM15: 1008 | CN15: 242 | CO15: 1122 | CP15: 280 | CQ15: 281 | CR15: 280 | CS15: 281 | CT15: 1216 | CU15: 280 | CV15: 305 | CW15: 316 | CX15: 315 | CY15: 632 | CZ15: 632 | DA15: - | DB15: - | DC15: - | DD15: - | DE15: - | DF15: - | DG15: - | DH15: -
A16: Apropriação da outorga fixa e variável | B16: Recognition of fixed and variable concession fees | C16: 0 | D16: 0 | E16: 0 | F16: 0 | G16: 0 | H16: 0 | I16: 0 | J16: 0 | K16: 0 | L16: 0 | M16: 0 | N16: - | O16: 0 | P16: - | Q16: - | R16: 0 | T16: - | U16: - | V16: - | W16: - | X16: - | Y16: - | Z16: - | AA16: - | AB16: - | AC16: - | AD16: - | AE16: - | AF16: - | AG16: - | AH16: - | AI16: - | AJ16: - | AK16: - | AL16: - | AM16: - | AN16: - | AO16: - | AP16: - | AQ16: - | AR16: - | AS16: - | AT16: - | AU16: - | AV16: - | AW16: - | AX16: - | AY16: - | AZ16: - | BA16: - | BB16: - | BC16: - | BD16: - | BE16: - | BF16: - | BG16: - | BH16: - | BI16: - | BJ16: - | BK16: - | BL16: - | BM16: - | BN16: - | BO16: - | BP16: - | BQ16: - | BR16: - | BS16: - | BT16: - | BU16: - | BV16: - | BW16: - | BX16: - | BY16: - | BZ16: - | CA16: - | CB16: - | CC16: - | CD16: - | CE16: - | CF16: - | CG16: - | CH16: - | CI16: - | CJ16: 240763 | CK16: - | CL16: - | CM16: - | CN16: - | CO16: 233752 | CP16: 233752 | CQ16: - | CR16: - | CS16: - | CT16: - | CU16: - | CV16: - | CW16: - | CX16: - | CY16: - | CZ16: - | DA16: - | DB16: - | DC16: - | DD16: - | DE16: - | DF16: - | DG16: - | DH16: -
A17: Apropriação do custo de outorga da concessão | B17: Recognition of the concession’s concession fees | C17: 0 | D17: 0 | E17: 0 | F17: 0 | G17: 0 | H17: 0 | I17: 0 | J17: 0 | K17: 0 | L17: 0 | M17: 0 | N17: - | O17: 0 | P17: - | Q17: - | R17: 0 | T17: - | U17: - | V17: - | W17: - | X17: - | Y17: - | Z17: - | AA17: - | AB17: - | AC17: - | AD17: - | AE17: - | AF17: - | AG17: - | AH17: - | AI17: - | AJ17: - | AK17: - | AL17: - | AM17: - | AN17: - | AO17: - | AP17: - | AQ17: - | AR17: - | AS17: - | AT17: - | AU17: - | AV17: - | AW17: - | AX17: - | AY17: - | AZ17: - | BA17: - | BB17: - | BC17: - | BD17: - | BE17: - | BF17: - | BG17: - | BH17: - | BI17: - | BJ17: - | BK17: - | BL17: - | BM17: - | BN17: - | BO17: - | BP17: - | BQ17: - | BR17: - | BS17: - | BT17: - | BU17: - | BV17: - | BW17: - | BX17: - | BY17: - | BZ17: - | CA17: - | CB17: - | CC17: - | CD17: - | CE17: - | CF17: - | CG17: - | CH17: - | CI17: - | CJ17: - | CK17: - | CL17: - | CM17: - | CN17: 62961 | CO17: - | CP17: - | CQ17: 18671 | CR17: 15278 | CS17: 3015 | CT17: 4931 | CU17: 1248 | CV17: 1412 | CW17: - | CX17: - | CY17: 4540 | CZ17: - | DA17: 1555 | DB17: - | DC17: - | DD17: - | DE17: - | DF17: - | DG17: - | DH17: -
A18: Variação cambial sobre empréstimos, financiamentos e derivativos | B18: Exchange variation on loans, financing and derivatives | C18: -36581 | D18: -3093 | E18: 18446 | F18: -36449 | G18: -15485 | H18: -48372 | I18: -10689 | J18: 17628 | K18: 58462 | L18: -113773 | M18: 55323 | N18: 30059 | O18: 25264 | P18: - | Q18: - | R18: 0 | T18: - | U18: - | V18: 0 | W18: 35063 | X18: -1021 | Y18: 6058 | Z18: 22865 | AA18: 5031 | AB18: -9114 | AC18: -7664 | AD18: -639 | AE18: 20908 | AF18: -21719 | AG18: -23956 | AH18: 47818 | AI18: -57959 | AJ18: 71821 | AK18: -85636 | AL18: -321244 | AM18: 17275 | AN18: -28112 | AO18: -208209 | AP18: -102198 | AQ18: 449189 | AR18: -65174 | AS18: 407848 | AT18: -45487 | AU18: 152002 | AV18: 57332 | AW18: 44389 | AX18: -12443 | AY18: -14294 | AZ18: 39680 | BA18: 75963 | BB18: 28561 | BC18: 4941 | BD18: 50323 | BE18: -7862 | BF18: 47966 | BG18: 4189 | BH18: 2565 | BI18: 55433 | BJ18: -14221 | BK18: 32231 | BL18: 10662 | BM18: 63253 | BN18: -15926 | BO18: -25758 | BP18: -50994 | BQ18: -20052 | BR18: -69426 | BS18: 14502 | BT18: 23982 | BU18: -107219 | BV18: -26163 | BW18: -15569 | BX18: -52350 | BY18: -13137 | BZ18: 50869 | CA18: 33698 | CB18: 28295 | CC18: -18520 | CD18: 7396 | CE18: -14119 | CF18: -3703 | CG18: -6396 | CH18: -2391 | CI18: -1629 | CJ18: -7842 | CK18: -686 | CL18: -5115 | CM18: 17564 | CN18: -19605 | CO18: -50907 | CP18: 12924 | CQ18: -19072 | CR18: -48416 | CS18: 3657 | CT18: -21780 | CU18: -25219 | CV18: -38789 | CW18: 39393 | CX18: 2827 | CY18: -136406 | CZ18: -5169 | DA18: 10402 | DB18: -103514 | DC18: -38125 | DD18: 277988 | DE18: -79966 | DF18: 235844 | DG18: 121081 | DH18: 1029
A19: Variação monetária das obrigações com o poder concedente | B19: Exchange variation on obligations with the granting authority | C19: 165496 | D19: 28706 | E19: 9885 | F19: 56132 | G19: 70773 | H19: 149250 | I19: 22800 | J19: -6460 | K19: 73069 | L19: 59841 | M19: 247730 | N19: 83944 | O19: 57390 | P19: 49250 | Q19: 57146 | R19: 137524 | S19: 94674 | T19: 18885 | U19: -11676 | V19: 35641 | W19: 77522 | X19: 13928 | Y19: 8779 | Z19: 33381 | AA19: 21434 | AB19: 105073 | AC19: 31484 | AD19: 33588 | AE19: 16034 | AF19: 23967 | AG19: 62079 | AH19: 19446 | AI19: 4489 | AJ19: 15691 | AK19: 22453 | AL19: 144712 | AM19: 11485 | AN19: 28624 | AO19: 39113 | AP19: 65490 | AQ19: 199681 | AR19: 48304 | AS19: 32598 | AT19: 54939 | AU19: 63840 | AV19: 33938 | AW19: 4985 | AX19: - | AY19: - | AZ19: 28953 | BA19: 5308 | BB19: 1260 | BC19: 1763 | BD19: 1221 | BE19: 1064 | BF19: 5179 | BG19: 1164 | BH19: 472 | BI19: 298 | BJ19: 3245 | BK19: 11168 | BL19: 2440 | BM19: 3917 | BN19: 4811 | BO19: 0 | BP19: 1785 | BQ19: 1305 | BR19: 288 | BS19: 287 | BT19: -95 | BU19: 304 | BV19: 2503 | BW19: 333 | BX19: -2486 | BY19: -46 | BZ19: 165 | CA19: -34183 | CB19: 55 | CC19: 34293 | CD19: - | CE19: -44 | CF19: 0 | CG19: 324 | CH19: -225 | CI19: -143 | CJ19: 676 | CK19: 692 | CL19: 308 | CM19: -298 | CN19: -26 | CO19: 3433 | CP19: 1004 | CQ19: 1056 | CR19: 518 | CS19: 855 | CT19: 4085 | CU19: 890 | CV19: 1447 | CW19: 728 | CX19: 1103 | CY19: 3367 | CZ19: 122 | DA19: 530 | DB19: 470 | DC19: 2245 | DD19: 3183 | DE19: 1493 | DF19: 1068 | DG19: 521 | DH19: 101
A20: Juros sobre empréstimos e financiamentos circulantes e não-circulantes | B20: Interest on current and non-current loans and financing | C20: 0 | D20: 0 | E20: 0 | F20: 0 | G20: 0 | H20: 0 | I20: 0 | J20: 0 | K20: 0 | L20: 0 | M20: 0 | N20: - | O20: 0 | P20: - | Q20: - | R20: 0 | S20: - | T20: - | U20: - | V20: - | W20: - | X20: - | Y20: - | Z20: - | AA20: - | AB20: - | AC20: - | AD20: - | AE20: - | AF20: - | AG20: - | AH20: - | AI20: - | AJ20: - | AK20: - | AL20: - | AM20: - | AN20: - | AO20: - | AP20: - | AQ20: - | AR20: - | AS20: - | AT20: - | AU20: - | AV20: - | AW20: - | AX20: - | AY20: - | AZ20: - | BA20: - | BB20: - | BC20: - | BD20: - | BE20: - | BF20: - | BG20: - | BH20: - | BI20: - | BJ20: - | BK20: - | BL20: - | BM20: - | BN20: - | BO20: - | BP20: - | BQ20: - | BR20: - | BS20: - | BT20: - | BU20: - | BV20: - | BW20: - | BX20: - | BY20: - | BZ20: 320558 | CA20: 140148 | CB20: 60828 | CC20: 53020 | CD20: 66562 | CE20: 245656 | CF20: 75668 | CG20: 67591 | CH20: 47662 | CI20: 54735 | CJ20: 196033 | CK20: 56684 | CL20: 50512 | CM20: 41852 | CN20: 46985 | CO20: 167460 | CP20: 50311 | CQ20: 35917 | CR20: 44106 | CS20: 37126 | CT20: 142203 | CU20: 35430 | CV20: 35411 | CW20: 34523 | CX20: 36274 | CY20: 153389 | CZ20: 35946 | DA20: 37322 | DB20: 34523 | DC20: 45597 | DD20: 177666 | DE20: 40028 | DF20: 57230 | DG20: 42081 | DH20: 38327
A21: Juros e variação monetária sobre debêntures, notas promissórias, empréstimos, financiamentos e arrendamento mercantil | B21: Loans and exchange variation on debentures, promissory notes, loans, financing and lease | C21: 3871276 | D21: 904726 | E21: 976041 | F21: 997889 | G21: 992620 | H21: 3535467 | I21: 942671 | J21: 898722 | K21: 897965 | L21: 796109 | M21: 1914570 | N21: 657928 | O21: 498285 | P21: 381936 | Q21: 376421 | R21: 1423371 | S21: 371067 | T21: 354211 | U21: 311589 | V21: 386504 | W21: 1520730 | X21: 356465 | Y21: 370602 | Z21: 403743 | AA21: 389920 | AB21: 1593227 | AC21: 391518 | AD21: 428883 | AE21: 393910 | AF21: 378916 | AG21: 1656909 | AH21: 389827 | AI21: 365542 | AJ21: 409800 | AK21: 491740 | AL21: 2030792 | AM21: 480461 | AN21: 520030 | AO21: 504888 | AP21: 525413 | AQ21: 1613296 | AR21: 453591 | AS21: 408749 | AT21: 388477 | AU21: 362479 | AV21: 1104913 | AW21: 289005 | AX21: 262317 | AY21: 239842 | AZ21: 313749 | BA21: 697793 | BB21: 218979 | BC21: 178427 | BD21: 157743 | BE21: 142644 | BF21: 659827 | BG21: 144863 | BH21: 162206 | BI21: 171723 | BJ21: 181035 | BK21: - | BL21: - | BM21: - | BN21: - | BO21: - | BP21: - | BQ21: - | BR21: - | BS21: - | BT21: - | BU21: - | BV21: - | BW21: - | BX21: - | BY21: - | BZ21: - | CA21: - | CB21: - | CC21: - | CD21: - | CE21: - | CF21: - | CG21: - | CH21: - | CI21: - | CJ21: - | CK21: - | CL21: - | CM21: - | CN21: - | CO21: - | CP21: - | CQ21: - | CR21: - | CS21: - | CT21: - | CU21: - | CV21: - | CW21: - | CX21: - | CY21: - | CZ21: - | DA21: - | DB21: - | DC21: - | DD21: - | DE21: - | DF21: - | DG21: - | DH21: -
A22: Capitalização de custos de empréstimos | B22: Loan costs capitalization | C22: -227112 | D22: -75538 | E22: -52057 | F22: -47463 | G22: -52054 | H22: -114086 | I22: -41561 | J22: -27917 | K22: -24228 | L22: -20380 | M22: -139644 | N22: -47953 | O22: -36912 | P22: -27150 | Q22: -27629 | R22: -102942 | S22: -32816 | T22: -25583 | U22: -13936 | V22: -30607 | W22: -178003 | X22: -41605 | Y22: -42296 | Z22: -47406 | AA22: -46696 | AB22: -459939 | AC22: -52290 | AD22: -135570 | AE22: -135797 | AF22: -136282 | AG22: -472837 | AH22: -124264 | AI22: -127353 | AJ22: -113819 | AK22: -107401 | AL22: -336501 | AM22: -95882 | AN22: -87067 | AO22: -78265 | AP22: -75287 | AQ22: -171393 | AR22: -64644 | AS22: -43450 | AT22: -30391 | AU22: -32908 | AV22: -101382 | AW22: -31714 | AX22: -24327 | AY22: -21073 | AZ22: -24268 | BA22: -47777 | BB22: -16589 | BC22: -12213 | BD22: -9781 | BE22: -9194 | BF22: -45561 | BG22: -10987 | BH22: -10241 | BI22: -11156 | BJ22: -13177 | BK22: -47286 | BL22: -11301 | BM22: -12128 | BN22: -11063 | BO22: -12794 | BP22: -74266 | BQ22: -17523 | BR22: -19263 | BS22: -17791 | BT22: -19689 | BU22: -48248 | BV22: -48248 | BW22: - | BX22: - | BY22: - | BZ22: - | CA22: - | CB22: - | CC22: - | CD22: - | CE22: - | CF22: - | CG22: - | CH22: - | CI22: - | CJ22: - | CK22: - | CL22: - | CM22: - | CN22: - | CO22: - | CP22: - | CQ22: - | CR22: - | CS22: - | CT22: - | CU22: - | CV22: - | CW22: - | CX22: - | CY22: - | CZ22: - | DA22: - | DB22: - | DC22: - | DD22: - | DE22: - | DF22: - | DG22: - | DH22: -
A23: Resultado de operações com derivativos | B23: Result from derivative transactions | C23: 88445 | D23: 35033 | E23: 141011 | F23: -82450 | G23: -5149 | H23: 290166 | I23: 108925 | J23: 3909 | K23: 26790 | L23: 150542 | M23: -23730 | N23: -15010 | O23: -166976 | P23: -11082 | Q23: 169338 | R23: -90340 | S23: -36638 | T23: 17056 | U23: -73397 | V23: 2639 | W23: -63639 | X23: -7221 | Y23: 5446 | Z23: -39422 | AA23: -22442 | AB23: -58733 | AC23: -13687 | AD23: -21437 | AE23: -15863 | AF23: -7746 | AG23: 145386 | AH23: -41368 | AI23: 77952 | AJ23: -28310 | AK23: 137112 | AL23: 523411 | AM23: 60001 | AN23: 100573 | AO23: 255915 | AP23: 106922 | AQ23: -286416 | AR23: 82863 | AS23: -306638 | AT23: 63152 | AU23: -125793 | AV23: -7152 | AW23: -8677 | AX23: 17161 | AY23: 7366 | AZ23: -23002 | BA23: -25696 | BB23: -19533 | BC23: 12045 | BD23: -25057 | BE23: 6849 | BF23: -20218 | BG23: -2410 | BH23: -421 | BI23: -22936 | BJ23: 5549 | BK23: 17683 | BL23: -5738 | BM23: -9341 | BN23: -10675 | BO23: 43437 | BP23: 144456 | BQ23: 84547 | BR23: 59772 | BS23: -11690 | BT23: 11827 | BU23: 62104 | BV23: 7982 | BW23: 10952 | BX23: 29367 | BY23: 13803 | BZ23: -42884 | CA23: -41105 | CB23: -15863 | CC23: 10160 | CD23: 3924 | CE23: 9645 | CF23: -2683 | CG23: 6949 | CH23: 3070 | CI23: 2309 | CJ23: 15664 | CK23: 1669 | CL23: 43900 | CM23: -45578 | CN23: 15673 | CO23: 49957 | CP23: 4117 | CQ23: 18025 | CR23: 23747 | CS23: 4068 | CT23: 26685 | CU23: 15875 | CV23: 27346 | CW23: -14286 | CX23: -2250 | CY23: 60637 | CZ23: 4441 | DA23: -350 | DB23: 43107 | DC23: 13439 | DD23: - | DE23: - | DF23: - | DG23: - | DH23: -
A24: Resultado de operações com valor justo dos empréstimos | B24: Result from fair value transactions arising from loans | C24: 0 | D24: 0 | E24: 0 | F24: 0 | G24: 0 | H24: 0 | I24: 0 | J24: 0 | K24: 0 | L24: 0 | M24: 0 | N24: - | O24: - | P24: - | Q24: - | R24: 0 | U24: - | V24: - | W24: - | X24: - | Y24: - | Z24: - | AA24: - | AB24: - | AC24: - | AD24: - | AE24: - | AF24: - | AG24: - | AH24: - | AI24: - | AJ24: - | AK24: - | AL24: - | AM24: - | AN24: - | AO24: - | AP24: - | AQ24: - | AR24: - | AS24: - | AT24: - | AU24: - | AV24: - | AW24: - | AX24: - | AY24: - | AZ24: - | BA24: - | BB24: - | BC24: - | BD24: - | BE24: - | BF24: - | BG24: - | BH24: - | BI24: - | BJ24: - | BK24: - | BL24: - | BM24: - | BN24: - | BO24: - | BP24: - | BQ24: - | BR24: - | BS24: - | BT24: - | BU24: - | BV24: - | BW24: - | BX24: - | BY24: - | BZ24: - | CA24: - | CB24: - | CC24: - | CD24: - | CE24: - | CF24: - | CG24: - | CH24: - | CI24: - | CJ24: - | CK24: - | CL24: - | CM24: - | CN24: - | CO24: - | CP24: - | CQ24: - | CR24: - | CS24: - | CT24: - | CU24: - | CV24: - | CW24: - | CX24: - | CY24: - | CZ24: - | DA24: - | DB24: - | DC24: - | DD24: - | DE24: - | DF24: - | DG24: - | DH24: -
A25: Constituição da provisão de manutenção | B25: Creation of Provision for Maintenance | C25: 483169 | D25: 253970 | E25: 81608 | F25: 76473 | G25: 71118 | H25: 317614 | I25: 168348 | J25: 52642 | K25: 49326 | L25: 47298 | M25: 7393 | N25: 52538 | O25: 23069 | P25: -81679 | Q25: 13465 | R25: -53321 | S25: -123954 | T25: 24386 | U25: 22806 | V25: 23441 | W25: 118013 | X25: 5698 | Y25: 39674 | Z25: 36233 | AA25: 36408 | AB25: 196511 | AC25: 58822 | AD25: 49009 | AE25: 45320 | AF25: 43360 | AG25: 173767 | AH25: 20060 | AI25: 53054 | AJ25: 51019 | AK25: 49634 | AL25: 275861 | AM25: 109388 | AN25: 51955 | AO25: 69737 | AP25: 44781 | AQ25: 210345 | AR25: 60243 | AS25: 45578 | AT25: 43090 | AU25: 61434 | AV25: 214662 | AW25: 52255 | AX25: 50486 | AY25: 46965 | AZ25: 64956 | BA25: 174637 | BB25: 48711 | BC25: 42501 | BD25: 48639 | BE25: 34786 | BF25: 152102 | BG25: 31807 | BH25: 48913 | BI25: 36953 | BJ25: 34429 | BK25: 139080 | BL25: -2527 | BM25: 41769 | BN25: 46488 | BO25: 53350 | BP25: 157638 | BQ25: 177764 | BR25: -2917 | BS25: 46488 | BT25: 4481 | BU25: 95930 | BV25: 95930 | BW25: - | BX25: - | BY25: - | BZ25: - | CA25: - | CB25: - | CC25: - | CD25: - | CE25: - | CF25: - | CG25: - | CH25: - | CI25: - | CJ25: - | CK25: - | CL25: - | CM25: - | CN25: - | CO25: - | CP25: - | CQ25: - | CR25: - | CS25: - | CT25: - | CU25: - | CV25: - | CW25: - | CX25: - | CY25: - | CZ25: - | DA25: - | DB25: - | DC25: - | DD25: - | DE25: - | DF25: - | DG25: - | DH25: -
A26: Ajuste a valor presente da provisão de manutenção | B26: Present value adjustment of provision for maintenance | C26: 52836 | D26: 15934 | E26: 13659 | F26: 12323 | G26: 10920 | H26: 17034 | I26: 6396 | J26: 4288 | K26: 3579 | L26: 2771 | M26: 9151 | N26: 1873 | O26: 1431 | P26: 2526 | Q26: 3321 | R26: 19943 | S26: 4543 | T26: 5051 | U26: 5045 | V26: 5304 | W26: 30731 | X26: 4906 | Y26: 7792 | Z26: 8683 | AA26: 9350 | AB26: 61579 | AC26: 12232 | AD26: 14954 | AE26: 16748 | AF26: 17645 | AG26: 69385 | AH26: 17230 | AI26: 17057 | AJ26: 17506 | AK26: 17592 | AL26: 61883 | AM26: 16514 | AN26: 15750 | AO26: 15274 | AP26: 14345 | AQ26: 47269 | AR26: 11317 | AS26: 12637 | AT26: 12537 | AU26: 10778 | AV26: 45586 | AW26: 17949 | AX26: 11998 | AY26: 11852 | AZ26: 3787 | BA26: 39158 | BB26: 6032 | BC26: 10220 | BD26: 11545 | BE26: 11361 | BF26: 48673 | BG26: 8291 | BH26: 12125 | BI26: 13638 | BJ26: 14619 | BK26: 70640 | BL26: 15669 | BM26: 17011 | BN26: 18410 | BO26: 19550 | BP26: 91630 | BQ26: 23879 | BR26: 22529 | BS26: 25112 | BT26: 20108 | BU26: 60131 | BV26: 60131 | BW26: - | BX26: - | BY26: - | BZ26: - | CA26: - | CB26: - | CC26: - | CD26: - | CE26: - | CF26: - | CG26: - | CH26: - | CI26: - | CJ26: - | CK26: - | CL26: - | CM26: - | CN26: - | CO26: - | CP26: - | CQ26: - | CR26: - | CS26: - | CT26: - | CU26: - | CV26: - | CW26: - | CX26: - | CY26: - | CZ26: - | DA26: - | DB26: - | DC26: - | DD26: - | DE26: - | DF26: - | DG26: - | DH26: -
A27: Ajuste a valor presente do ativo financeiro | B27: Present value adjustment of financial assets | C27: -1895190 | D27: -353501 | E27: -576602 | F27: -104866 | G27: -860221 | H27: -1087161 | I27: 309776 | J27: -525993 | K27: -529205 | L27: -341739 | M27: -1110061 | N27: -429315 | O27: -201744 | P27: -232248 | Q27: -246754 | R27: -378516 | S27: -105546 | T27: -93813 | U27: -77025 | V27: -102132 | W27: -298125 | X27: -86143 | Y27: -62147 | Z27: -76375 | AA27: -73460 | AB27: -277545 | AC27: -78198 | AD27: -66403 | AE27: -65186 | AF27: -67758 | AG27: -291444 | AH27: -89801 | AI27: -70770 | AJ27: -67955 | AK27: -62918 | AL27: -230210 | AM27: -23435 | AN27: -91518 | AO27: -58869 | AP27: -56388 | AQ27: -90794 | AR27: -40405 | AS27: -50389 | AT27: - | AU27: - | AV27: - | AW27: - | AX27: - | AY27: - | AZ27: - | BA27: - | BB27: - | BC27: - | BD27: - | BE27: - | BF27: - | BG27: - | BH27: - | BI27: - | BJ27: - | BK27: - | BL27: - | BM27: - | BN27: - | BO27: - | BP27: - | BQ27: - | BR27: - | BS27: - | BT27: - | BU27: - | BV27: - | BW27: - | BX27: - | BY27: - | BZ27: - | CA27: - | CB27: - | CC27: - | CD27: - | CE27: - | CF27: - | CG27: - | CH27: - | CI27: - | CJ27: - | CK27: - | CL27: - | CM27: - | CN27: - | CO27: - | CP27: - | CQ27: - | CR27: - | CS27: - | CT27: - | CU27: - | CV27: - | CW27: - | CX27: - | CY27: - | CZ27: - | DA27: - | DB27: - | DC27: - | DD27: - | DE27: - | DF27: - | DG27: - | DH27: -
A28: Ajuste a valor presente de obrigações com poder concedente | B28: Present value adjustment of obligations with the granting authority | C28: 80737 | D28: 20764 | E28: 20482 | F28: 19989 | G28: 19502 | H28: 46820 | I28: 14573 | J28: 10982 | K28: 10748 | L28: 10517 | M28: 44301 | N28: 11345 | O28: 11224 | P28: 10983 | Q28: 10749 | R28: 69485 | S28: 37962 | T28: 10678 | U28: 10367 | V28: 10478 | W28: 42036 | X28: 10480 | Y28: 10368 | Z28: 10598 | AA28: 10590 | AB28: 42934 | AC28: 10710 | AD28: 10596 | AE28: 10821 | AF28: 10807 | AG28: 43794 | AH28: 10930 | AI28: 10814 | AJ28: 11034 | AK28: 11016 | AL28: 44742 | AM28: 11141 | AN28: 11023 | AO28: 11238 | AP28: 11340 | AQ28: 45255 | AR28: 11343 | AS28: 11221 | AT28: 11189 | AU28: 11502 | AV28: 17903 | AW28: - | AX28: - | AY28: - | AZ28: 17903 | BA28: - | BB28: - | BC28: - | BD28: - | BE28: - | BF28: - | BG28: - | BH28: - | BI28: - | BJ28: - | BK28: - | BL28: - | BM28: - | BN28: - | BO28: - | BP28: - | BQ28: - | BR28: - | BS28: - | BT28: - | BU28: - | BV28: - | BW28: - | BX28: - | BY28: - | BZ28: - | CA28: - | CB28: - | CC28: - | CD28: - | CE28: - | CF28: - | CG28: - | CH28: - | CI28: - | CJ28: - | CK28: - | CL28: - | CM28: - | CN28: - | CO28: - | CP28: - | CQ28: - | CR28: - | CS28: - | CT28: - | CU28: - | CV28: - | CW28: - | CX28: - | CY28: - | CZ28: - | DA28: - | DB28: - | DC28: - | DD28: - | DE28: - | DF28: - | DG28: - | DH28: -
A29: Constituição e juros sobre contingências | B29: Creation of and interest on contingencies | C29: 0 | D29: 0 | E29: 0 | F29: 0 | G29: 0 | H29: 0 | I29: 0 | J29: 0 | K29: 0 | L29: 0 | M29: 0 | N29: - | O29: 0 | P29: - | Q29: - | R29: 0 | S29: - | T29: - | U29: - | V29: - | W29: - | X29: - | Y29: - | Z29: - | AA29: - | AB29: - | AC29: - | AD29: - | AE29: - | AF29: - | AG29: - | AH29: - | AI29: - | AJ29: - | AK29: - | AL29: - | AM29: - | AN29: - | AO29: - | AP29: - | AQ29: - | AR29: - | AS29: - | AT29: - | AU29: - | AV29: - | AW29: - | AX29: - | AY29: - | AZ29: - | BA29: - | BB29: - | BC29: - | BD29: - | BE29: 4574 | BF29: -1272 | BG29: -9134 | BH29: 3015 | BI29: 2142 | BJ29: 2705 | BK29: -631 | BL29: 1 | BM29: -1286 | BN29: 653 | BO29: 1 | BP29: 11181 | BQ29: 5328 | BR29: -26805 | BS29: 31910 | BT29: 748 | BU29: 8032 | BV29: 8032 | BW29: - | BX29: - | BY29: - | BZ29: - | CA29: - | CB29: - | CC29: - | CD29: - | CE29: - | CF29: - | CG29: - | CH29: - | CI29: - | CJ29: - | CK29: - | CL29: - | CM29: - | CN29: - | CO29: - | CP29: - | CQ29: - | CR29: - | CS29: - | CT29: - | CU29: - | CV29: - | CW29: - | CX29: - | CY29: - | CZ29: - | DA29: - | DB29: - | DC29: - | DD29: - | DE29: - | DF29: - | DG29: - | DH29: -
A30: Constituição e reversão da provisão para riscos cíveis, trabalhistas, tributários e previdenciários | B30: Creation and reversal of provision for civil, labor, tax and social security risks | C30: 222100 | D30: 207063.94 | E30: -25356.94 | F30: 20639 | G30: 19754 | H30: 178816 | I30: 64734 | J30: 31608 | K30: 66552 | L30: 15922 | M30: 70511 | N30: 20504 | O30: -2459 | P30: 37906.6 | Q30: 14559.4 | R30: 207398 | S30: 149296 | T30: 9616 | U30: 42984 | V30: 5502 | W30: 41058 | X30: 18577 | Y30: -4356 | Z30: 11556 | AA30: 15281 | AB30: 29831 | AC30: 5301 | AD30: -5382 | AE30: 9165 | AF30: 20747 | AG30: 48651 | AH30: -72 | AI30: 16093 | AJ30: 22308 | AK30: 10322 | AL30: 60139 | AM30: 17042 | AN30: 10892 | AO30: 11939 | AP30: 20266 | AQ30: 74389 | AR30: 6028 | AS30: 23175 | AT30: 12094 | AU30: 33092 | AV30: 21675 | AW30: -2807 | AX30: 16842 | AY30: 1267 | AZ30: 6373 | BA30: 19409 | BB30: -1685 | BC30: 3815 | BD30: 12705 | BE30: - | BF30: - | BG30: - | BH30: - | BI30: - | BJ30: - | BK30: - | BL30: - | BM30: - | BN30: - | BO30: - | BP30: - | BQ30: - | BR30: - | BS30: - | BT30: - | BU30: - | BV30: - | BW30: - | BX30: - | BY30: - | BZ30: - | CA30: - | CB30: - | CC30: - | CD30: - | CE30: - | CF30: - | CG30: - | CH30: - | CI30: - | CJ30: - | CK30: - | CL30: - | CM30: - | CN30: - | CO30: - | CP30: - | CQ30: - | CR30: - | CS30: - | CT30: - | CU30: - | CV30: - | CW30: - | CX30: - | CY30: - | CZ30: - | DA30: - | DB30: - | DC30: - | DD30: - | DE30: - | DF30: - | DG30: - | DH30: -
A31: Reversão da provisão para imposto de renda e contribuição social | B31: Reversal of provision for income tax and social contribution | C31: 0 | D31: 0 | E31: 0 | F31: 0 | G31: 0 | H31: 0 | I31: 0 | J31: 0 | K31: 0 | L31: 0 | M31: 0 | N31: - | O31: 0 | P31: - | Q31: - | R31: 0 | T31: - | U31: - | V31: - | W31: - | X31: - | Y31: - | Z31: - | AA31: - | AB31: - | AC31: - | AD31: - | AE31: - | AF31: - | AG31: - | AH31: - | AI31: - | AJ31: - | AK31: - | AL31: - | AM31: - | AN31: - | AO31: - | AP31: - | AQ31: - | AR31: - | AS31: - | AT31: - | AU31: - | AV31: - | AW31: - | AX31: - | AY31: - | AZ31: - | BA31: - | BB31: - | BC31: - | BD31: - | BE31: - | BF31: - | BG31: - | BH31: - | BI31: - | BJ31: - | BK31: - | BL31: - | BM31: - | BN31: - | BO31: - | BP31: - | BQ31: - | BR31: - | BS31: - | BT31: - | BU31: - | BV31: - | BW31: - | BX31: - | BY31: - | BZ31: - | CA31: - | CB31: - | CC31: - | CD31: - | CE31: - | CF31: - | CG31: - | CH31: - | CI31: - | CJ31: -112312 | CK31: - | CL31: - | CM31: - | CN31: - | CO31: - | CP31: - | CQ31: - | CR31: - | CS31: - | CT31: - | CU31: - | CV31: - | CW31: - | CX31: - | CY31: - | CZ31: - | DA31: - | DB31: - | DC31: - | DD31: - | DE31: - | DF31: - | DG31: - | DH31: -
A32: Juros sobre contingências fiscais | B32: Interest on tax contingencies | C32: 0 | D32: 0 | E32: 0 | F32: 0 | G32: 0 | H32: 0 | I32: 0 | J32: 0 | K32: 0 | L32: 0 | M32: 0 | N32: - | O32: 0 | P32: - | Q32: - | R32: 0 | S32: - | T32: - | U32: - | V32: - | W32: - | X32: - | Y32: - | Z32: - | AA32: - | AB32: - | AC32: - | AD32: - | AE32: - | AF32: - | AG32: - | AH32: - | AI32: - | AJ32: - | AK32: - | AL32: - | AM32: - | AN32: - | AO32: - | AP32: - | AQ32: - | AR32: - | AS32: - | AT32: - | AU32: - | AV32: - | AW32: - | AX32: - | AY32: - | AZ32: - | BA32: - | BB32: - | BC32: - | BD32: - | BE32: - | BF32: - | BG32: - | BH32: - | BI32: - | BJ32: - | BK32: - | BL32: - | BM32: - | BN32: - | BO32: - | BP32: - | BQ32: - | BR32: - | BS32: - | BT32: - | BU32: - | BV32: -3317 | BW32: 1853 | BX32: 1294 | BY32: 170 | BZ32: 4136 | CA32: 790 | CB32: 417 | CC32: 2705 | CD32: 224 | CE32: 2607 | CF32: 189 | CG32: 89 | CH32: 280 | CI32: 2049 | CJ32: - | CK32: - | CL32: - | CM32: - | CN32: - | CO32: -67887 | CP32: -67887 | CQ32: - | CR32: - | CS32: - | CT32: - | CU32: - | CV32: - | CW32: - | CX32: - | CY32: - | CZ32: - | DA32: - | DB32: - | DC32: - | DD32: - | DE32: - | DF32: - | DG32: - | DH32: -
A33: Provisão para devedores duvidosos | B33: Provision for doubtful accounts | C33: -23960 | D33: -5174 | E33: -5270 | F33: -5368 | G33: -8148 | H33: 16767 | I33: 14337 | J33: 1693 | K33: -233 | L33: 970 | M33: -1290 | N33: -3489 | O33: -3426 | P33: -900 | Q33: 6525 | R33: 118790 | S33: 113809 | T33: 2109 | U33: 783 | V33: 2089 | W33: -4136 | X33: -7784 | Y33: 3824 | Z33: -1139 | AA33: 963 | AB33: 9334 | AC33: -194 | AD33: 2316 | AE33: 8521 | AF33: -1531 | AG33: -16483 | AH33: -27196 | AI33: -881 | AJ33: 134 | AK33: 872 | AL33: 13326 | AM33: 1497 | AN33: -91000 | AO33: 7626 | AP33: 7099 | AQ33: 20755 | AR33: 7645 | AS33: 2703 | AT33: 6098 | AU33: 4309 | AV33: 4373 | AW33: 2799 | AX33: -4996 | AY33: 4162 | AZ33: 2408 | BA33: 11065 | BB33: 2084 | BC33: 2045 | BD33: 3237 | BE33: 3699 | BF33: 9640 | BG33: 26310 | BH33: -21988 | BI33: 2759 | BJ33: 2559 | BK33: 7690 | BL33: 1518 | BM33: 2547 | BN33: 1659 | BO33: 1966 | BP33: 7012 | BQ33: 1754 | BR33: 4111 | BS33: -536 | BT33: 1683 | BU33: 7071 | BV33: -29 | BW33: 1755 | BX33: 2678 | BY33: 2667 | BZ33: 7534 | CA33: 819 | CB33: 929 | CC33: 757 | CD33: 5029 | CE33: - | CF33: 2906 | CG33: - | CH33: - | CI33: -2906 | CJ33: - | CK33: - | CL33: - | CM33: - | CN33: - | CO33: - | CP33: - | CQ33: - | CR33: - | CS33: - | CT33: - | CU33: - | CV33: - | CW33: - | CX33: - | CY33: - | CZ33: - | DA33: - | DB33: - | DC33: - | DD33: - | DE33: - | DF33: - | DG33: - | DH33: -
A34: Juros sobre impostos parcelados | B34: Interest on taxes in installments | C34: 1599 | D34: 343 | E34: 379 | F34: 421 | G34: 456 | H34: 1126 | I34: 393 | J34: 331 | K34: 171 | L34: 231 | M34: 1688 | N34: 232 | O34: 1445 | P34: -8 | Q34: 19 | R34: -10 | S34: 22 | T34: 6 | U34: 17 | V34: -55 | W34: 336 | X34: 271 | Y34: 21 | Z34: -1659 | AA34: 1703 | AB34: 95 | AC34: -4508 | AD34: 1409 | AE34: 3169 | AF34: 25 | AG34: 218 | AH34: 75 | AI34: 40 | AJ34: 46 | AK34: 57 | AL34: 271 | AM34: 62 | AN34: 69 | AO34: 70 | AP34: 70 | AQ34: 293 | AR34: 74 | AS34: 78 | AT34: 72 | AU34: 69 | AV34: 28168 | AW34: 8709 | AX34: 8262 | AY34: 8205 | AZ34: 2992 | BA34: 28253 | BB34: 8146 | BC34: 7255 | BD34: 6625 | BE34: 6227 | BF34: 34694 | BG34: 6693 | BH34: 8107 | BI34: 9292 | BJ34: 10602 | BK34: 55238 | BL34: 18560 | BM34: 10976 | BN34: 14139 | BO34: 11563 | BP34: 22259 | BQ34: 21596 | BR34: 25276 | BS34: -3271 | BT34: 6858 | BU34: 3405 | BV34: 1111 | BW34: 768 | BX34: 810 | BY34: 716 | BZ34: 3002 | CA34: 516 | CB34: 1191 | CC34: 698 | CD34: 597 | CE34: 3985 | CF34: 814 | CG34: 936 | CH34: 1055 | CI34: 1180 | CJ34: 4353 | CK34: 3135 | CL34: 847 | CM34: 371 | CN34: - | CO34: 382 | CP34: 382 | CQ34: - | CR34: - | CS34: - | CT34: - | CU34: - | CV34: - | CW34: - | CX34: - | CY34: - | CZ34: - | DA34: - | DB34: - | DC34: - | DD34: - | DE34: - | DF34: - | DG34: - | DH34: -
A35: Juros, multa e outros encargos sobre impostos parcelados - Lei 11.941 | B35: Interest, fine and other charges on taxes in installments - Law 11,941 | C35: 0 | D35: 0 | E35: 0 | F35: 0 | G35: 0 | H35: 0 | I35: 0 | J35: 0 | K35: 0 | L35: 0 | M35: 0 | N35: - | O35: 0 | P35: - | Q35: - | R35: 0 | T35: - | U35: - | V35: - | W35: - | X35: - | Y35: - | Z35: - | AA35: - | AB35: - | AC35: - | AD35: - | AE35: - | AF35: - | AG35: - | AH35: - | AI35: - | AJ35: - | AK35: - | AL35: - | AM35: - | AN35: - | AO35: - | AP35: - | AQ35: - | AR35: - | AS35: - | AT35: - | AU35: - | AV35: - | AW35: - | AX35: - | AY35: - | AZ35: - | BA35: - | BB35: - | BC35: - | BD35: - | BE35: - | BF35: - | BG35: - | BH35: - | BI35: - | BJ35: - | BK35: - | BL35: - | BM35: - | BN35: - | BO35: - | BP35: 24800 | BQ35: -17240 | BR35: - | BS35: 0 | BT35: 13840 | BU35: 217474 | BV35: 217474 | BW35: - | BX35: - | BY35: - | BZ35: - | CA35: - | CB35: - | CC35: - | CD35: - | CE35: - | CF35: - | CG35: - | CH35: - | CI35: - | CJ35: - | CK35: - | CL35: - | CM35: - | CN35: - | CO35: - | CP35: - | CQ35: - | CR35: - | CS35: - | CT35: - | CU35: - | CV35: - | CW35: - | CX35: - | CY35: - | CZ35: - | DA35: - | DB35: - | DC35: - | DD35: - | DE35: - | DF35: - | DG35: - | DH35: -
A36: Descontos obtidos sobre impostos parcelados - Lei 11.941 | B36: Discounts obtained from taxes in installments - Law 11,941 | C36: 0 | D36: 0 | E36: 0 | F36: 0 | G36: 0 | H36: 0 | I36: 0 | J36: 0 | K36: 0 | L36: 0 | M36: 0 | N36: - | O36: 0 | P36: - | Q36: - | R36: 0 | T36: - | U36: - | V36: - | W36: - | X36: - | Y36: - | Z36: - | AA36: - | AB36: - | AC36: - | AD36: - | AE36: - | AF36: - | AG36: - | AH36: - | AI36: - | AJ36: - | AK36: - | AL36: - | AM36: - | AN36: - | AO36: - | AP36: - | AQ36: - | AR36: - | AS36: - | AT36: - | AU36: - | AV36: - | AW36: - | AX36: - | AY36: - | AZ36: - | BA36: - | BB36: - | BC36: - | BD36: - | BE36: - | BF36: - | BG36: - | BH36: - | BI36: - | BJ36: - | BK36: - | BL36: - | BM36: - | BN36: - | BO36: - | BP36: - | BQ36: - | BR36: - | BS36: 0 | BT36: 0 | BU36: -111828 | BV36: -111828 | BW36: - | BX36: - | BY36: - | BZ36: - | CA36: - | CB36: - | CC36: - | CD36: - | CE36: - | CF36: - | CG36: - | CH36: - | CI36: - | CJ36: - | CK36: - | CL36: - | CM36: - | CN36: - | CO36: - | CP36: - | CQ36: - | CR36: - | CS36: - | CT36: - | CU36: - | CV36: - | CW36: - | CX36: - | CY36: - | CZ36: - | DA36: - | DB36: - | DC36: - | DD36: - | DE36: - | DF36: - | DG36: - | DH36: -
A37: Juros e variação monetária sobre outros ativos compensados no pagamento antecipado da outorga | B37: Interest and monetary variation on other assets written off upon early payment of concession fees | C37: 0 | D37: 0 | E37: 0 | F37: 0 | G37: 0 | H37: 0 | I37: 0 | J37: 0 | K37: 0 | L37: 0 | M37: 0 | N37: - | O37: 0 | P37: - | Q37: - | R37: 0 | T37: - | U37: - | V37: - | W37: - | X37: - | Y37: - | Z37: - | AA37: - | AB37: - | AC37: - | AD37: - | AE37: - | AF37: - | AG37: - | AH37: - | AI37: - | AJ37: - | AK37: - | AL37: - | AM37: - | AN37: - | AO37: - | AP37: - | AQ37: - | AR37: - | AS37: - | AT37: - | AU37: - | AV37: - | AW37: - | AX37: - | AY37: - | AZ37: - | BA37: - | BB37: - | BC37: - | BD37: - | BE37: - | BF37: - | BG37: - | BH37: - | BI37: - | BJ37: - | BK37: - | BL37: - | BM37: - | BN37: - | BO37: - | BP37: - | BQ37: - | BR37: - | BS37: - | BT37: - | BU37: - | BV37: 23 | BW37: - | BX37: -23 | BY37: - | BZ37: - | CA37: 40 | CB37: - | CC37: -40 | CD37: - | CE37: - | CF37: - | CG37: - | CH37: - | CI37: - | CJ37: - | CK37: - | CL37: - | CM37: - | CN37: - | CO37: -22568 | CP37: -22568 | CQ37: - | CR37: - | CS37: - | CT37: - | CU37: - | CV37: - | CW37: - | CX37: - | CY37: - | CZ37: - | DA37: - | DB37: - | DC37: - | DD37: - | DE37: - | DF37: - | DG37: - | DH37: -
A38: Desconto obtido no pagamento antecipado da outorga (Via Lagos) | B38: Discount obtained from early payment of concession fees (Via Lagos) | C38: 0 | D38: 0 | E38: 0 | F38: 0 | G38: 0 | H38: 0 | I38: 0 | J38: 0 | K38: 0 | L38: 0 | M38: 0 | N38: - | O38: 0 | P38: - | Q38: - | R38: 0 | T38: - | U38: - | V38: - | W38: - | X38: - | Y38: - | Z38: - | AA38: - | AB38: - | AC38: - | AD38: - | AE38: - | AF38: - | AG38: - | AH38: - | AI38: - | AJ38: - | AK38: - | AL38: - | AM38: - | AN38: - | AO38: - | AP38: - | AQ38: - | AR38: - | AS38: - | AT38: - | AU38: - | AV38: - | AW38: - | AX38: - | AY38: - | AZ38: - | BA38: - | BB38: - | BC38: - | BD38: - | BE38: - | BF38: - | BG38: - | BH38: - | BI38: - | BJ38: - | BK38: - | BL38: - | BM38: - | BN38: - | BO38: - | BP38: - | BQ38: - | BR38: - | BS38: - | BT38: - | BU38: - | BV38: - | BW38: - | BX38: - | BY38: - | BZ38: - | CA38: - | CB38: - | CC38: - | CD38: - | CE38: - | CF38: - | CG38: - | CH38: - | CI38: - | CJ38: - | CK38: - | CL38: - | CM38: - | CN38: - | CO38: -39422 | CP38: -39422 | CQ38: - | CR38: - | CS38: - | CT38: - | CU38: - | CV38: - | CW38: - | CX38: - | CY38: - | CZ38: - | DA38: - | DB38: - | DC38: - | DD38: - | DE38: - | DF38: - | DG38: - | DH38: -
A39: Juros e variação monetária sobre mútuo com partes relacionadas | B39: Interest and monetary variation on loans with related parties | C39: 52030 | D39: 7934 | E39: 9089 | F39: 20859 | G39: 14148 | H39: 87114 | I39: 87114 | J39: -44593 | K39: 18073 | L39: 26520 | M39: 28416 | N39: 12499 | O39: 8461 | P39: 1776 | Q39: 5680 | R39: 21432 | S39: -2759 | T39: 6285 | U39: 7957 | V39: 9949 | W39: 9203 | X39: 10445 | Y39: 4268 | Z39: 4037 | AA39: -9547 | AB39: 4598 | AC39: 967 | AD39: 1547 | AE39: 3615 | AF39: -1309 | AG39: 2399 | AH39: -846 | AI39: 12568 | AJ39: -2727 | AK39: 3992 | AL39: -73320 | AM39: 2955 | AN39: 480 | AO39: 7626 | AP39: 4387 | AQ39: 17315 | AR39: 5093 | AS39: 1938 | AT39: -1602 | AU39: 11886 | AV39: 8359 | AW39: 1543 | AX39: 1399 | AY39: 1434 | AZ39: 3983 | BA39: 3077 | BB39: 3976 | BC39: -1618 | BD39: 841 | BE39: -122 | BF39: 549 | BG39: -584 | BH39: -344 | BI39: 472 | BJ39: 1005 | BK39: 4730 | BL39: 1462 | BM39: 1214 | BN39: 1096 | BO39: 958 | BP39: 2891 | BQ39: 347 | BR39: 1217 | BS39: 846 | BT39: 481 | BU39: 331 | BV39: 331 | BW39: - | BX39: - | BY39: - | BZ39: - | CA39: - | CB39: - | CC39: - | CD39: - | CE39: - | CF39: - | CG39: - | CH39: - | CI39: - | CJ39: - | CK39: - | CL39: - | CM39: - | CN39: - | CO39: - | CP39: - | CQ39: - | CR39: - | CS39: - | CT39: - | CU39: - | CV39: - | CW39: - | CX39: - | CY39: - | CZ39: - | DA39: - | DB39: - | DC39: - | DD39: - | DE39: - | DF39: - | DG39: - | DH39: -
A40: Variação cambial sobre imobilizado e intangível | B40: Exchange variation on PP&E and intangible assets | C40: 0 | D40: 0 | E40: 0 | F40: 0 | G40: 0 | H40: 0 | I40: 0 | J40: 0 | K40: 0 | L40: 0 | M40: 0 | N40: - | O40: 0 | P40: - | Q40: - | R40: 0 | T40: - | U40: - | V40: - | W40: - | X40: - | Y40: - | Z40: - | AA40: - | AB40: - | AC40: - | AD40: - | AE40: - | AF40: - | AG40: - | AH40: - | AI40: - | AJ40: - | AK40: - | AL40: - | AM40: - | AN40: - | AO40: - | AP40: - | AQ40: - | AR40: - | AS40: - | AT40: - | AU40: - | AV40: - | AW40: - | AX40: - | AY40: - | AZ40: - | BA40: - | BB40: - | BC40: - | BD40: - | BE40: - | BF40: - | BG40: - | BH40: - | BI40: - | BJ40: - | BK40: - | BL40: - | BM40: - | BN40: - | BO40: - | BP40: - | BQ40: - | BR40: - | BS40: - | BT40: - | BU40: - | BV40: - | BW40: - | BX40: - | BY40: - | BZ40: - | CA40: - | CB40: - | CC40: - | CD40: - | CE40: - | CF40: - | CG40: - | CH40: - | CI40: - | CJ40: - | CK40: - | CL40: - | CM40: - | CN40: - | CO40: - | CP40: - | CQ40: - | CR40: - | CS40: - | CT40: - | CU40: - | CV40: - | CW40: - | CX40: - | CY40: - | CZ40: - | DA40: - | DB40: - | DC40: - | DD40: - | DE40: - | DF40: - | DG40: - | DH40: -
A41: Atualização monetária da provisão para riscos cíveis, trabalhistas, tributários e previdenciários | B41: Monetary restatement of provision for civil, labor, tax and social security risks | C41: 17541 | D41: 0 | E41: 2344 | F41: 5197 | G41: 10000 | H41: 13731 | I41: 230 | J41: 2861 | K41: 4246 | L41: 6394 | M41: 30089 | N41: 3949 | O41: 8138 | P41: 11376 | Q41: 6626 | R41: 18955 | S41: 6265 | T41: 3487 | U41: 4667 | V41: 4536 | W41: 16334 | X41: 2157 | Y41: 4218 | Z41: 6396 | AA41: 3563 | AB41: 14543 | AC41: -4208 | AD41: 18751
A42: Juros sobre mútuo com terceiros | B42: Interest on loans with third parties | C42: 18821 | D42: 4511 | E42: 4950 | F42: 4682 | G42: 4678 | H42: 15788 | I42: 4453 | J42: 4454 | K42: 3795 | L42: 3086 | M42: 5351 | N42: 2300 | O42: 1507 | P42: 957 | Q42: 587 | R42: 3273 | S42: 571 | T42: 618 | U42: 884 | V42: 1200 | W42: 6646 | X42: 1451 | Y42: 1774 | Z42: 3421 | AA42: - | AB42: - | AC42: - | AD42: - | AE42: - | AF42: - | AG42: - | AH42: - | AI42: - | AJ42: - | AK42: - | AL42: - | AM42: - | AN42: - | AO42: - | AP42: - | AQ42: - | AR42: - | AS42: - | AT42: - | AU42: - | AV42: - | AW42: - | AX42: - | AY42: - | AZ42: - | BA42: - | BB42: - | BC42: - | BD42: - | BE42: - | BF42: - | BG42: - | BH42: - | BI42: - | BJ42: - | BK42: - | BL42: - | BM42: - | BN42: - | BO42: - | BP42: - | BQ42: - | BR42: - | BS42: - | BT42: - | BU42: - | BV42: - | BW42: - | BX42: - | BY42: - | BZ42: - | CA42: - | CB42: - | CC42: - | CD42: - | CE42: - | CF42: - | CG42: - | CH42: - | CI42: - | CJ42: - | CK42: - | CL42: - | CM42: - | CN42: - | CO42: - | CP42: - | CQ42: - | CR42: - | CS42: - | CT42: - | CU42: - | CV42: - | CW42: - | CX42: - | CY42: - | CZ42: - | DA42: - | DB42: - | DC42: - | DD42: - | DE42: - | DF42: - | DG42: - | DH42: -
A43: Juros e variação monetária sobre termo de autocomposição, acordo de leniência e PIC | B43: Interest and monetary variation on settlement agreement, leniency agreement and PIC | C43: 337 | D43: 8 | E43: 7 | F43: 119 | G43: 203 | H43: 1385 | I43: 77 | J43: -92 | K43: 785 | L43: 615 | M43: 6142 | N43: 1139 | O43: 1662 | P43: 1088 | Q43: 2253 | R43: 12787 | S43: 1513 | T43: 2679 | U43: 2061 | V43: 6534 | W43: 30636 | X43: 6908 | Y43: 10014 | Z43: 13714 | AA43: - | AB43: - | AC43: - | AD43: - | AE43: - | AF43: - | AG43: - | AH43: - | AI43: - | AJ43: - | AK43: - | AL43: - | AM43: - | AN43: - | AO43: - | AP43: - | AQ43: - | AR43: - | AS43: - | AT43: - | AU43: - | AV43: - | AW43: - | AX43: - | AY43: - | AZ43: - | BA43: - | BB43: - | BC43: - | BD43: - | BE43: - | BF43: - | BG43: - | BH43: - | BI43: - | BJ43: - | BK43: - | BL43: - | BM43: - | BN43: - | BO43: - | BP43: - | BQ43: - | BR43: - | BS43: - | BT43: - | BU43: - | BV43: - | BW43: - | BX43: - | BY43: - | BZ43: - | CA43: - | CB43: - | CC43: - | CD43: - | CE43: - | CF43: - | CG43: - | CH43: - | CI43: - | CJ43: - | CK43: - | CL43: - | CM43: - | CN43: - | CO43: - | CP43: - | CQ43: - | CR43: - | CS43: - | CT43: - | CU43: - | CV43: - | CW43: - | CX43: - | CY43: - | CZ43: - | DA43: - | DB43: - | DC43: - | DD43: - | DE43: - | DF43: - | DG43: - | DH43: -
A44: Valor justo de empréstimos, financiamentos e debêntures | B44: Fair value of loans, financing and debentures | C44: 97207 | D44: -5893 | E44: -102241 | F44: 164720 | G44: 40621 | H44: -75275 | I44: -47607 | J44: 74433 | K44: -74985 | L44: -27116 | M44: -91041 | N44: -38998 | O44: 133591 | P44: 2914 | Q44: -188548 | R44: 52327 | S44: 25584 | T44: -26672 | U44: 65248 | V44: -11833 | W44: -19317 | X44: 1214 | Y44: -20531 | Z44: - | AA44: - | AB44: - | AC44: - | AD44: - | AE44: - | AF44: - | AG44: - | AH44: - | AI44: - | AJ44: - | AK44: - | AL44: - | AM44: - | AN44: - | AO44: - | AP44: - | AQ44: - | AR44: - | AS44: - | AT44: - | AU44: - | AV44: - | AW44: - | AX44: - | AY44: - | AZ44: - | BA44: - | BB44: - | BC44: - | BD44: - | BE44: - | BF44: - | BG44: - | BH44: - | BI44: - | BJ44: - | BK44: - | BL44: - | BM44: - | BN44: - | BO44: - | BP44: - | BQ44: - | BR44: - | BS44: - | BT44: - | BU44: - | BV44: - | BW44: - | BX44: - | BY44: - | BZ44: - | CA44: - | CB44: - | CC44: - | CD44: - | CE44: - | CF44: - | CG44: - | CH44: - | CI44: - | CJ44: - | CK44: - | CL44: - | CM44: - | CN44: - | CO44: - | CP44: - | CQ44: - | CR44: - | CS44: - | CT44: - | CU44: - | CV44: - | CW44: - | CX44: - | CY44: - | CZ44: - | DA44: - | DB44: - | DC44: - | DD44: - | DE44: - | DF44: - | DG44: - | DH44: -
A45: Depreciação - Arrendamento mercantil | B45: Depreciation - lease | C45: 25006 | D45: 6840 | E45: 6044 | F45: 5656 | G45: 6466 | H45: 36067 | I45: 4743 | J45: 6983 | K45: 12139 | L45: 12202 | M45: 48386 | N45: 14563 | O45: 11283 | P45: 11090 | Q45: 11450 | R45: 46399 | S45: 13316 | T45: 15128 | U45: 10450 | V45: 7505 | W45: 29690 | X45: 2839 | Y45: 26851 | Z45: - | AA45: - | AB45: - | AC45: - | AD45: - | AE45: - | AF45: - | AG45: - | AH45: - | AI45: - | AJ45: - | AK45: - | AL45: - | AM45: - | AN45: - | AO45: - | AP45: - | AQ45: - | AR45: - | AS45: - | AT45: - | AU45: - | AV45: - | AW45: - | AX45: - | AY45: - | AZ45: - | BA45: - | BB45: - | BC45: - | BD45: - | BE45: - | BF45: - | BG45: - | BH45: - | BI45: - | BJ45: - | BK45: - | BL45: - | BM45: - | BN45: - | BO45: - | BP45: - | BQ45: - | BR45: - | BS45: - | BT45: - | BU45: - | BV45: - | BW45: - | BX45: - | BY45: - | BZ45: - | CA45: - | CB45: - | CC45: - | CD45: - | CE45: - | CF45: - | CG45: - | CH45: - | CI45: - | CJ45: - | CK45: - | CL45: - | CM45: - | CN45: - | CO45: - | CP45: - | CQ45: - | CR45: - | CS45: - | CT45: - | CU45: - | CV45: - | CW45: - | CX45: - | CY45: - | CZ45: - | DA45: - | DB45: - | DC45: - | DD45: - | DE45: - | DF45: - | DG45: - | DH45: -
A46: Compra vantajosa do VLT | B46: Bargain purchase of VLT | C46: 0 | D46: 0 | E46: 0 | F46: 0 | G46: 0 | H46: 0 | I46: 0 | J46: 0 | K46: 0 | L46: 0 | M46: 0 | N46: - | O46: 0 | P46: 0 | Q46: 0 | R46: -14393 | S46: - | T46: - | U46: - | V46: -14393 | W46: -52750 | X46: -23696 | Y46: -13271 | Z46: -15783 | AA46: - | AB46: - | AC46: - | AD46: - | AE46: - | AF46: - | AG46: - | AH46: - | AI46: - | AJ46: - | AK46: - | AL46: - | AM46: - | AN46: - | AO46: - | AP46: - | AQ46: - | AR46: - | AS46: - | AT46: - | AU46: - | AV46: - | AW46: - | AX46: - | AY46: - | AZ46: - | BA46: - | BB46: - | BC46: - | BD46: - | BE46: - | BF46: - | BG46: - | BH46: - | BI46: - | BJ46: - | BK46: - | BL46: - | BM46: - | BN46: - | BO46: - | BP46: - | BQ46: - | BR46: - | BS46: - | BT46: - | BU46: - | BV46: - | BW46: - | BX46: - | BY46: - | BZ46: - | CA46: - | CB46: - | CC46: - | CD46: - | CE46: - | CF46: - | CG46: - | CH46: - | CI46: - | CJ46: - | CK46: - | CL46: - | CM46: - | CN46: - | CO46: - | CP46: - | CQ46: - | CR46: - | CS46: - | CT46: - | CU46: - | CV46: - | CW46: - | CX46: - | CY46: - | CZ46: - | DA46: - | DB46: - | DC46: - | DD46: - | DE46: - | DF46: - | DG46: - | DH46: -
A47: Compra vantajosa da ViaRio | B47: Bargain purchase of ViaRio | C47: 0 | D47: 0 | E47: 0 | F47: 0 | G47: 0 | H47: 0 | I47: 0 | J47: 0 | K47: 0 | L47: 0 | M47: 0 | N47: - | O47: 0 | P47: - | Q47: - | R47: 0 | S47: - | T47: - | U47: - | V47: - | W47: - | X47: - | Y47: - | Z47: - | AA47: - | AB47: - | AC47: - | AD47: - | AE47: - | AF47: - | AG47: -36449 | AH47: - | AI47: - | AJ47: -36449 | AK47: - | AL47: - | AM47: - | AN47: - | AO47: - | AP47: - | AQ47: - | AR47: - | AS47: - | AT47: - | AU47: - | AV47: - | AW47: - | AX47: - | AY47: - | AZ47: - | BA47: - | BB47: - | BC47: - | BD47: - | BE47: - | BF47: - | BG47: - | BH47: - | BI47: - | BJ47: - | BK47: - | BL47: - | BM47: - | BN47: - | BO47: - | BP47: - | BQ47: - | BR47: - | BS47: - | BT47: - | BU47: - | BV47: - | BW47: - | BX47: - | BY47: - | BZ47: - | CA47: - | CB47: - | CC47: - | CD47: - | CE47: - | CF47: - | CG47: - | CH47: - | CI47: - | CJ47: - | CK47: - | CL47: - | CM47: - | CN47: - | CO47: - | CP47: - | CQ47: - | CR47: - | CS47: - | CT47: - | CU47: - | CV47: - | CW47: - | CX47: - | CY47: - | CZ47: - | DA47: - | DB47: - | DC47: - | DD47: - | DE47: - | DF47: - | DG47: - | DH47: -
A48: Ágio na remensuração da participação da ViaQuatro | B48: Goodwill on remeasurement of ViaQuatro’s interest | C48: 0 | D48: 0 | E48: 0 | F48: 0 | G48: 0 | H48: 0 | I48: 0 | J48: 0 | K48: 0 | L48: 0 | M48: 0 | N48: - | O48: 0 | P48: - | Q48: - | R48: 0 | S48: - | T48: - | U48: - | V48: - | W48: - | X48: - | Y48: - | Z48: - | AA48: - | AB48: - | AC48: - | AD48: - | AE48: - | AF48: - | AG48: -511703 | AH48: - | AI48: - | AJ48: -511703 | AK48: - | AL48: - | AM48: - | AN48: - | AO48: - | AP48: - | AQ48: - | AR48: - | AS48: - | AT48: - | AU48: - | AV48: - | AW48: - | AX48: - | AY48: - | AZ48: - | BA48: - | BB48: - | BC48: - | BD48: - | BE48: - | BF48: - | BG48: - | BH48: - | BI48: - | BJ48: - | BK48: - | BL48: - | BM48: - | BN48: - | BO48: - | BP48: - | BQ48: - | BR48: - | BS48: - | BT48: - | BU48: - | BV48: - | BW48: - | BX48: - | BY48: - | BZ48: - | CA48: - | CB48: - | CC48: - | CD48: - | CE48: - | CF48: - | CG48: - | CH48: - | CI48: - | CJ48: - | CK48: - | CL48: - | CM48: - | CN48: - | CO48: - | CP48: - | CQ48: - | CR48: - | CS48: - | CT48: - | CU48: - | CV48: - | CW48: - | CX48: - | CY48: - | CZ48: - | DA48: - | DB48: - | DC48: - | DD48: - | DE48: - | DF48: - | DG48: - | DH48: -
A49: Ágio na remuneração da participação da Aeris | B49: Goodwill on remuneration of Aeris’ interest | C49: 0 | D49: 0 | E49: 0 | F49: 0 | G49: 0 | H49: 0 | I49: 0 | J49: 0 | K49: 0 | L49: 0 | M49: 0 | N49: - | O49: 0 | P49: - | Q49: - | R49: 0 | S49: - | T49: - | U49: - | V49: - | W49: - | X49: - | Y49: - | Z49: - | AA49: - | AB49: -91614 | AC49: -91614 | AD49: - | AE49: - | AF49: - | AG49: - | AH49: - | AI49: - | AJ49: - | AK49: - | AL49: - | AM49: - | AN49: - | AO49: - | AP49: - | AQ49: - | AR49: - | AS49: - | AT49: - | AU49: - | AV49: - | AW49: - | AX49: - | AY49: - | AZ49: - | BA49: - | BB49: - | BC49: - | BD49: - | BE49: - | BF49: - | BG49: - | BH49: - | BI49: - | BJ49: - | BK49: - | BL49: - | BM49: - | BN49: - | BO49: - | BP49: - | BQ49: - | BR49: - | BS49: - | BT49: - | BU49: - | BV49: - | BW49: - | BX49: - | BY49: - | BZ49: - | CA49: - | CB49: - | CC49: - | CD49: - | CE49: - | CF49: - | CG49: - | CH49: - | CI49: - | CJ49: - | CK49: - | CL49: - | CM49: - | CN49: - | CO49: - | CP49: - | CQ49: - | CR49: - | CS49: - | CT49: - | CU49: - | CV49: - | CW49: - | CX49: - | CY49: - | CZ49: - | DA49: - | DB49: - | DC49: - | DD49: - | DE49: - | DF49: - | DG49: - | DH49: -
A50: Venda de 6,95624% das ações emitidas pela Quiport Holdings | B50: Sale of 6.95624% of shares issued by Quiport Holdings | C50: 0 | D50: 0 | E50: 0 | F50: 0 | G50: 0 | H50: 0 | I50: 0 | J50: 0 | K50: 0 | L50: 0 | M50: 0 | N50: - | O50: 0 | P50: - | Q50: - | R50: 0 | S50: - | T50: - | U50: - | V50: - | W50: 51606 | X50: - | Y50: 51606 | Z50: - | AA50: - | AB50: - | AC50: - | AD50: - | AE50: - | AF50: - | AG50: - | AH50: - | AI50: - | AJ50: - | AK50: - | AL50: - | AM50: - | AN50: - | AO50: - | AP50: - | AQ50: - | AR50: - | AS50: - | AT50: - | AU50: - | AV50: - | AW50: - | AX50: - | AY50: - | AZ50: - | BA50: - | BB50: - | BC50: - | BD50: - | BE50: - | BF50: - | BG50: - | BH50: - | BI50: - | BJ50: - | BK50: - | BL50: - | BM50: - | BN50: - | BO50: - | BP50: - | BQ50: - | BR50: - | BS50: - | BT50: - | BU50: - | BV50: - | BW50: - | BX50: - | BY50: - | BZ50: - | CA50: - | CB50: - | CC50: - | CD50: - | CE50: - | CF50: - | CG50: - | CH50: - | CI50: - | CJ50: - | CK50: - | CL50: - | CM50: - | CN50: - | CO50: - | CP50: - | CQ50: - | CR50: - | CS50: - | CT50: - | CU50: - | CV50: - | CW50: - | CX50: - | CY50: - | CZ50: - | DA50: - | DB50: - | DC50: - | DD50: - | DE50: - | DF50: - | DG50: - | DH50: -
A51: Variações Cambiais sobre Fornecedores estrangeiros | B51: Exchange variations on foreign suppliers | C51: -546 | D51: 2011 | E51: 225 | F51: -2193 | G51: -589 | H51: -7715 | I51: 336 | J51: 11 | K51: 653 | L51: -8715 | M51: 1831 | N51: 868 | O51: 2527 | P51: -5768 | Q51: 4204 | R51: 11336 | S51: -3477 | T51: 1534 | U51: 2165 | V51: 11114 | W51: - | X51: - | Y51: 2827 | Z51: -849 | AA51: 152 | AB51: - | AC51: - | AD51: - | AE51: - | AF51: - | AG51: - | AH51: - | AI51: - | AJ51: - | AK51: - | AL51: - | AM51: - | AN51: - | AO51: - | AP51: - | AQ51: - | AR51: - | AS51: - | AT51: - | AU51: - | AV51: - | AW51: - | AX51: - | AY51: - | AZ51: - | BA51: - | BB51: - | BC51: - | BD51: - | BE51: - | BF51: - | BG51: - | BH51: - | BI51: - | BJ51: - | BK51: - | BL51: - | BM51: - | BN51: - | BO51: - | BP51: - | BQ51: - | BR51: - | BS51: - | BT51: - | BU51: - | BV51: - | BW51: - | BX51: - | BY51: - | BZ51: - | CA51: - | CB51: - | CC51: - | CD51: - | CE51: - | CF51: - | CG51: - | CH51: - | CI51: - | CJ51: - | CK51: - | CL51: - | CM51: - | CN51: - | CO51: - | CP51: - | CQ51: - | CR51: - | CS51: - | CT51: - | CU51: - | CV51: - | CW51: - | CX51: - | CY51: - | CZ51: - | DA51: - | DB51: - | DC51: - | DD51: - | DE51: - | DF51: - | DG51: - | DH51: -
A52: Reversão do ajuste a valor presente do arrendamento mercantil | B52: Reversal of present value adjustment from lease | C52: 5339 | D52: 1365 | E52: 1534 | F52: 1119 | G52: 1321 | H52: 7809 | I52: 1026 | J52: 1711 | K52: 2441 | L52: 2631 | M52: 10658 | N52: 3198 | O52: 2320 | P52: 2313 | Q52: 2827 | R52: 11419 | S52: 3231 | T52: 2882 | U52: 3057 | V52: 2249 | W52: 9184 | X52: 1679 | Y52: 3059 | Z52: 2383 | AA52: 2063 | AB52: - | AC52: - | AD52: - | AE52: - | AF52: - | AG52: - | AH52: - | AI52: - | AJ52: - | AK52: - | AL52: - | AM52: - | AN52: - | AO52: - | AP52: - | AQ52: - | AR52: - | AS52: - | AT52: - | AU52: - | AV52: - | AW52: - | AX52: - | AY52: - | AZ52: - | BA52: - | BB52: - | BC52: - | BD52: - | BE52: - | BF52: - | BG52: - | BH52: - | BI52: - | BJ52: - | BK52: - | BL52: - | BM52: - | BN52: - | BO52: - | BP52: - | BQ52: - | BR52: - | BS52: - | BT52: - | BU52: - | BV52: - | BW52: - | BX52: - | BY52: - | BZ52: - | CA52: - | CB52: - | CC52: - | CD52: - | CE52: - | CF52: - | CG52: - | CH52: - | CI52: - | CJ52: - | CK52: - | CL52: - | CM52: - | CN52: - | CO52: - | CP52: - | CQ52: - | CR52: - | CS52: - | CT52: - | CU52: - | CV52: - | CW52: - | CX52: - | CY52: - | CZ52: - | DA52: - | DB52: - | DC52: - | DD52: - | DE52: - | DF52: - | DG52: - | DH52: -
A53: Juros sobre arrendamento mercantil financeiro | B53: Interest on financial lease | C53: 0 | D53: 0 | E53: 0 | F53: 0 | G53: 0 | H53: 0 | I53: 0 | J53: 0 | K53: 0 | L53: 0 | M53: 0 | N53: - | O53: 0 | P53: - | Q53: - | R53: 0 | T53: - | U53: - | V53: - | W53: - | X53: - | Y53: - | Z53: - | AA53: - | AB53: - | AC53: - | AD53: - | AE53: - | AF53: - | AG53: - | AH53: - | AI53: - | AJ53: - | AK53: - | AL53: - | AM53: - | AN53: - | AO53: - | AP53: - | AQ53: - | AR53: - | AS53: - | AT53: - | AU53: - | AV53: - | AW53: - | AX53: - | AY53: - | AZ53: - | BA53: - | BB53: - | BC53: - | BD53: - | BE53: - | BF53: - | BG53: - | BH53: - | BI53: - | BJ53: - | BK53: - | BL53: - | BM53: - | BN53: - | BO53: - | BP53: - | BQ53: - | BR53: - | BS53: - | BT53: - | BU53: - | BV53: - | BW53: - | BX53: - | BY53: - | BZ53: - | CA53: - | CB53: - | CC53: - | CD53: - | CE53: - | CF53: - | CG53: - | CH53: - | CI53: - | CJ53: - | CK53: - | CL53: - | CM53: - | CN53: - | CO53: - | CP53: - | CQ53: - | CR53: - | CS53: - | CT53: - | CU53: - | CV53: - | CW53: - | CX53: - | CY53: - | CZ53: - | DA53: - | DB53: - | DC53: - | DD53: - | DE53: - | DF53: - | DG53: - | DH53: -
A54: Provisão para perda Controlar | B54: Provision for losses - Controlar | C54: 0 | D54: 0 | E54: 0 | F54: 0 | G54: 0 | H54: 0 | I54: 0 | J54: 0 | K54: 0 | L54: 0 | M54: 0 | N54: - | O54: 0 | P54: - | Q54: - | R54: 0 | T54: - | U54: - | V54: - | W54: - | X54: - | Y54: - | Z54: - | AA54: - | AB54: - | AC54: - | AD54: - | AE54: - | AF54: - | AG54: - | AH54: - | AI54: - | AJ54: - | AK54: - | AL54: - | AM54: - | AN54: - | AO54: - | AP54: - | AQ54: - | AR54: - | AS54: - | AT54: - | AU54: - | AV54: - | AW54: - | AX54: - | AY54: - | AZ54: - | BA54: 102555 | BB54: 102555 | BC54: - | BD54: - | BE54: - | BF54: - | BG54: - | BH54: - | BI54: - | BJ54: - | BK54: - | BL54: - | BM54: - | BN54: - | BO54: - | BP54: - | BQ54: - | BR54: - | BS54: - | BT54: - | BU54: - | BV54: - | BW54: - | BX54: - | BY54: - | BZ54: - | CA54: - | CB54: - | CC54: - | CD54: - | CE54: - | CF54: - | CG54: - | CH54: - | CI54: - | CJ54: - | CK54: - | CL54: - | CM54: - | CN54: - | CO54: - | CP54: - | CQ54: - | CR54: - | CS54: - | CT54: - | CU54: - | CV54: - | CW54: - | CX54: - | CY54: - | CZ54: - | DA54: - | DB54: - | DC54: - | DD54: - | DE54: - | DF54: - | DG54: - | DH54: -
A55: Baixa - Arredondamento Mercantil | B55: Write-off - Lease | C55: 0 | D55: -62 | E55: 5 | F55: 57 | G55: 0 | H55: 0 | I55: 0 | J55: 0 | K55: 7 | L55: -7 | M55: 0 | N55: -2 | O55: 2 | P55: -4 | Q55: 4 | R55: 38 | S55: 38 | T55: - | U55: - | V55: - | W55: - | X55: - | Y55: - | Z55: - | AA55: - | AB55: - | AC55: - | AD55: - | AE55: - | AF55: - | AG55: - | AH55: - | AI55: - | AJ55: - | AK55: - | AL55: - | AM55: - | AN55: - | AO55: - | AP55: - | AQ55: - | AR55: - | AS55: - | AT55: - | AU55: - | AV55: - | AW55: - | AX55: - | AY55: - | AZ55: - | BC55: - | BD55: - | BE55: - | BF55: - | BG55: - | BH55: - | BI55: - | BJ55: - | BK55: - | BL55: - | BM55: - | BN55: - | BO55: - | BP55: - | BQ55: - | BR55: - | BS55: - | BT55: - | BU55: - | BV55: - | BW55: - | BX55: - | BY55: - | BZ55: - | CA55: - | CB55: - | CC55: - | CD55: - | CE55: - | CF55: - | CG55: - | CH55: - | CI55: - | CJ55: - | CK55: - | CL55: - | CM55: - | CN55: - | CO55: - | CP55: - | CQ55: - | CR55: - | CS55: - | CT55: - | CU55: - | CV55: - | CW55: - | CX55: - | CY55: - | CZ55: - | DA55: - | DB55: - | DC55: - | DD55: - | DE55: - | DF55: - | DG55: - | DH55: -
A56: Estimativa de perda Lei nº 13.448/17 | B56: Loss estimate - Law 13,448/17 | C56: 73575 | D56: 17609 | E56: 16475 | F56: 19578 | G56: 19913 | H56: 30295 | I56: 18719 | J56: 11482 | K56: -10202 | L56: 10296 | M56: 104114 | N56: 139333 | O56: -35219 | P56: 0 | Q56: - | R56: 305947 | S56: 305947 | T56: - | U56: - | V56: - | W56: - | X56: - | Y56: - | Z56: - | AA56: - | AB56: - | AC56: - | AD56: - | AE56: - | AF56: - | AG56: - | AH56: - | AI56: - | AJ56: - | AK56: - | AL56: - | AM56: - | AN56: - | AO56: - | AP56: - | AQ56: - | AR56: - | AS56: - | AT56: - | AU56: - | AV56: - | AW56: - | AX56: - | AY56: - | AZ56: - | BC56: - | BD56: - | BE56: - | BF56: - | BG56: - | BH56: - | BI56: - | BJ56: - | BK56: - | BL56: - | BM56: - | BN56: - | BO56: - | BP56: - | BQ56: - | BR56: - | BS56: - | BT56: - | BU56: - | BV56: - | BW56: - | BX56: - | BY56: - | BZ56: - | CA56: - | CB56: - | CC56: - | CD56: - | CE56: - | CF56: - | CG56: - | CH56: - | CI56: - | CJ56: - | CK56: - | CL56: - | CM56: - | CN56: - | CO56: - | CP56: - | CQ56: - | CR56: - | CS56: - | CT56: - | CU56: - | CV56: - | CW56: - | CX56: - | CY56: - | CZ56: - | DA56: - | DB56: - | DC56: - | DD56: - | DE56: - | DF56: - | DG56: - | DH56: -
A57: Pis e Cofins diferidos | B57: Deferred PIS an COFINS | C57: 0 | D57: 0 | E57: 0 | F57: 0 | G57: 0 | H57: 0 | I57: 0 | J57: 0 | K57: 0 | L57: 0 | M57: 0 | N57: - | O57: 0 | P57: - | Q57: - | R57: 0 | T57: - | U57: - | V57: - | W57: - | X57: - | Y57: - | Z57: - | AA57: - | AB57: - | AC57: - | AD57: - | AE57: - | AF57: - | AG57: - | AH57: - | AI57: - | AJ57: - | AK57: - | AL57: - | AM57: - | AN57: - | AO57: - | AP57: - | AQ57: -8853 | AR57: -23905 | AS57: 7667 | AT57: 7385 | AU57: - | AV57: - | AW57: 2184 | AX57: 3238 | AY57: 554 | AZ57: -5976 | BA57: - | BB57: - | BC57: - | BD57: - | BE57: - | BF57: - | BG57: - | BH57: - | BI57: - | BJ57: - | BK57: - | BL57: - | BM57: - | BN57: - | BO57: - | BP57: - | BQ57: - | BR57: - | BS57: - | BT57: - | BU57: - | BV57: - | BW57: - | BX57: - | BY57: - | BZ57: - | CA57: - | CB57: - | CC57: - | CD57: - | CE57: - | CF57: - | CG57: - | CH57: - | CI57: - | CJ57: - | CK57: - | CL57: - | CM57: - | CN57: - | CO57: - | CP57: - | CQ57: - | CR57: - | CS57: - | CT57: - | CU57: - | CV57: - | CW57: - | CX57: - | CY57: - | CZ57: - | DA57: - | DB57: - | DC57: - | DD57: - | DE57: - | DF57: - | DG57: - | DH57: -
A58: Rendimento de aplicação financeira | B58: Income from financial investments | C58: -257297 | D58: -98653 | E58: -229977 | F58: 157918.16 | G58: -86585.16 | H58: 26554.08537 | I58: -94345.84 | J58: 0 | K58: 173857.9254 | L58: -52958 | M58: 174995 | N58: 174995 | O58: 0 | P58: 0 | Q58: 0 | R58: 0 | S58: 0 | T58: 0 | U58: 0 | V58: 0 | W58: 0 | X58: 0 | Y58: 0 | Z58: 0 | AA58: 0 | AB58: 0 | AC58: 0 | AD58: 0 | AE58: 0 | AF58: 0 | AG58: 0 | AH58: 0 | AI58: 0 | AJ58: 0 | AK58: 0 | AL58: 0 | AM58: 0 | AN58: 0 | AO58: 0 | AP58: 0 | AQ58: 0 | AR58: 0 | AS58: 0 | AT58: 0 | AU58: 0 | AV58: 0 | AW58: 0 | AX58: 0 | AY58: 0 | AZ58: 0 | BA58: 0 | BB58: 0 | BC58: 0 | BD58: 0 | BE58: 0 | BF58: 0 | BG58: 0 | BH58: 0 | BI58: 0 | BJ58: 0 | BK58: 0 | BL58: 0 | BM58: 0 | BN58: 0 | BO58: 0 | BP58: 0 | BQ58: 0 | BR58: 0 | BS58: 0 | BT58: 0 | BU58: 0 | BV58: 0 | BW58: 0 | BX58: 0 | BY58: 0 | BZ58: 0 | CA58: 0 | CB58: 0 | CC58: 0 | CD58: 0 | CE58: 0 | CF58: 0 | CG58: 0 | CH58: 0 | CI58: 0 | CJ58: 0 | CK58: 0 | CL58: 0 | CM58: 0 | CN58: 0 | CO58: 0 | CP58: 0 | CQ58: 0 | CR58: 0 | CS58: 0 | CT58: 0 | CU58: 0 | CV58: 0 | CW58: 0 | CX58: 0 | CY58: 0 | CZ58: 0 | DA58: 0 | DB58: 0 | DC58: 0 | DD58: 0 | DE58: 0 | DF58: 0 | DG58: 0 | DH58: 0
A59: Receita de Reeq. - AutoBan | B59: Rebalancing Revenue - AutoBan (thousands of R$) | C59: -192131 | D59: 0 | E59: 0 | F59: -192131 | G59: 0 | H59: -5254057 | I59: 0 | J59: 22629 | K59: -22628 | L59: -5254058 | M59: 0 | N59: 0 | O59: 0 | P59: 0 | Q59: 0 | R59: 0 | S59: 0 | T59: 0 | U59: 0 | V59: 0 | W59: 0 | X59: 0 | Y59: 0 | Z59: 0 | AA59: 0 | AB59: 0 | AC59: 0 | AD59: 0 | AE59: 0 | AF59: 0 | AG59: 0 | AH59: 0 | AI59: 0 | AJ59: 0 | AK59: 0 | AL59: 0 | AM59: 0 | AN59: 0 | AO59: 0 | AP59: 0 | AQ59: 0 | AR59: 0 | AS59: 0 | AT59: 0 | AU59: 0 | AV59: 0 | AW59: 0 | AX59: 0 | AY59: 0 | AZ59: 0 | BA59: 0 | BB59: 0 | BC59: 0 | BD59: 0 | BE59: 0 | BF59: 0 | BG59: 0 | BH59: 0 | BI59: 0 | BJ59: 0 | BK59: 0 | BL59: 0 | BM59: 0 | BN59: 0 | BO59: 0 | BP59: 0 | BQ59: 0 | BR59: 0 | BS59: 0 | BT59: 0 | BU59: 0 | BV59: 0 | BW59: 0 | BX59: 0 | BY59: 0 | BZ59: 0 | CA59: 0 | CB59: 0 | CC59: 0 | CD59: 0 | CE59: 0 | CF59: 0 | CG59: 0 | CH59: 0 | CI59: 0 | CJ59: 0 | CK59: 0 | CL59: 0 | CM59: 0 | CN59: 0 | CO59: 0 | CP59: 0 | CQ59: 0 | CR59: 0 | CS59: 0 | CT59: 0 | CU59: 0 | CV59: 0 | CW59: 0 | CX59: 0 | CY59: 0 | CZ59: 0 | DA59: 0 | DB59: 0 | DC59: 0 | DD59: 0 | DE59: 0 | DF59: 0 | DG59: 0 | DH59: 0
A60: Baixa da parcela retida dos ex acionistas de Barcas | B60: Write-off of the portion retained from former Barcas shareholders | C60: 15430 | D60: 0 | F60: 15430 | G60: 0 | H60: -384950.9254 | I60: 0 | J60: -335434.9254 | K60: -49516 | L60: 0 | M60: 0 | N60: 0 | O60: 0 | P60: 0 | Q60: 0 | R60: 0 | S60: 0 | T60: 0 | U60: 0 | V60: 0 | W60: 0 | X60: 0 | Y60: 0 | Z60: 0 | AA60: 0 | AB60: 0 | AC60: 0 | AD60: 0 | AE60: 0 | AF60: 0 | AG60: 0 | AH60: 0 | AI60: 0 | AJ60: 0 | AK60: 0 | AL60: 0 | AM60: 0 | AN60: 0 | AO60: 0 | AP60: 0 | AQ60: 0 | AR60: 0 | AS60: 0 | AT60: 0 | AU60: 0 | AV60: 0 | AW60: 0 | AX60: 0 | AY60: 0 | AZ60: 0 | BA60: 0 | BB60: 0 | BC60: 0 | BD60: 0 | BE60: 0 | BF60: 0 | BG60: 0 | BH60: 0 | BI60: 0 | BJ60: 0 | BK60: 0 | BL60: 0 | BM60: 0 | BN60: 0 | BO60: 0 | BP60: 0 | BQ60: 0 | BR60: 0 | BS60: 0 | BT60: 0 | BU60: 0 | BV60: 0 | BW60: 0 | BX60: 0 | BY60: 0 | BZ60: 0 | CA60: 0 | CB60: 0 | CC60: 0 | CD60: 0 | CE60: 0 | CF60: 0 | CG60: 0 | CH60: 0 | CI60: 0 | CJ60: 0 | CK60: 0 | CL60: 0 | CM60: 0 | CN60: 0 | CO60: 0 | CP60: 0 | CQ60: 0 | CR60: 0 | CS60: 0 | CT60: 0 | CU60: 0 | CV60: 0 | CW60: 0 | CX60: 0 | CY60: 0 | CZ60: 0 | DA60: 0 | DB60: 0 | DC60: 0 | DD60: 0 | DE60: 0 | DF60: 0 | DG60: 0 | DH60: 0
A61: Ganho na alienação de participação acionária na TAS | B61: Gain on sale of shareholding in TAS | C61: 0 | D61: 0 | F61: 0 | G61: 0 | H61: -505246 | I61: 0 | J61: -505246 | K61: 0 | L61: 0 | M61: 0 | N61: 0 | O61: 0 | P61: 0 | Q61: 0 | R61: 0 | S61: 0 | T61: 0 | U61: 0 | V61: 0 | W61: 0 | X61: 0 | Y61: 0 | Z61: 0 | AA61: 0 | AB61: 0 | AC61: 0 | AD61: 0 | AE61: 0 | AF61: 0 | AG61: 0 | AH61: 0 | AI61: 0 | AJ61: 0 | AK61: 0 | AL61: 0 | AM61: 0 | AN61: 0 | AO61: 0 | AP61: 0 | AQ61: 0 | AR61: 0 | AS61: 0 | AT61: 0 | AU61: 0 | AV61: 0 | AW61: 0 | AX61: 0 | AY61: 0 | AZ61: 0 | BA61: 0 | BB61: 0 | BC61: 0 | BD61: 0 | BE61: 0 | BF61: 0 | BG61: 0 | BH61: 0 | BI61: 0 | BJ61: 0 | BK61: 0 | BL61: 0 | BM61: 0 | BN61: 0 | BO61: 0 | BP61: 0 | BQ61: 0 | BR61: 0 | BS61: 0 | BT61: 0 | BU61: 0 | BV61: 0 | BW61: 0 | BX61: 0 | BY61: 0 | BZ61: 0 | CA61: 0 | CB61: 0 | CC61: 0 | CD61: 0 | CE61: 0 | CF61: 0 | CG61: 0 | CH61: 0 | CI61: 0 | CJ61: 0 | CK61: 0 | CL61: 0 | CM61: 0 | CN61: 0 | CO61: 0 | CP61: 0 | CQ61: 0 | CR61: 0 | CS61: 0 | CT61: 0 | CU61: 0 | CV61: 0 | CW61: 0 | CX61: 0 | CY61: 0 | CZ61: 0 | DA61: 0 | DB61: 0 | DC61: 0 | DD61: 0 | DE61: 0 | DF61: 0 | DG61: 0 | DH61: 0
A62: Ativos e passivos mantidos para venda | B62: Assets and liabilities held for sale | C62: 0 | D62: 0 | E62: 0 | F62: 0 | G62: 0 | H62: -27220 | I62: -27220 | J62: -27220 | K62: 0 | L62: 0 | M62: 0 | N62: 0 | O62: 0 | P62: 0 | Q62: 0 | R62: 0 | S62: 0 | T62: 0 | U62: 0 | V62: 0 | W62: 0 | X62: 0 | Y62: 0 | Z62: 0 | AA62: 0 | AB62: 0 | AC62: 0 | AD62: 0 | AE62: 0 | AF62: 0 | AG62: 0 | AH62: 0 | AI62: 0 | AJ62: 0 | AK62: 0 | AL62: 0 | AM62: 0 | AN62: 0 | AO62: 0 | AP62: 0 | AQ62: 0 | AR62: 0 | AS62: 0 | AT62: 0 | AU62: 0 | AV62: 0 | AW62: 0 | AX62: 0 | AY62: 0 | AZ62: 0 | BA62: 0 | BB62: 0 | BC62: 0 | BD62: 0 | BE62: 0 | BF62: 0 | BG62: 0 | BH62: 0 | BI62: 0 | BJ62: 0 | BK62: 0 | BL62: 0 | BM62: 0 | BN62: 0 | BO62: 0 | BP62: 0 | BQ62: 0 | BR62: 0 | BS62: 0 | BT62: 0 | BU62: 0 | BV62: 0 | BW62: 0 | BX62: 0 | BY62: 0 | BZ62: 0 | CA62: 0 | CB62: 0 | CC62: 0 | CD62: 0 | CE62: 0 | CF62: 0 | CG62: 0 | CH62: 0 | CI62: 0 | CJ62: 0 | CK62: 0 | CL62: 0 | CM62: 0 | CN62: 0 | CO62: 0 | CP62: 0 | CQ62: 0 | CR62: 0 | CS62: 0 | CT62: 0 | CU62: 0 | CV62: 0 | CW62: 0 | CX62: 0 | CY62: 0 | CZ62: 0 | DA62: 0 | DB62: 0 | DC62: 0 | DD62: 0 | DE62: 0 | DF62: 0 | DG62: 0 | DH62: 0
A63: PGLP Liquido em ações | B63: PGLP Liquid in shares | C63: 7847 | D63: 0 | E63: 2554 | F63: 5293 | G63: 0 | H63: 0 | I63: 0 | J63: 0 | K63: 0 | L63: 0 | M63: 0 | N63: 0 | O63: 0 | P63: 0 | Q63: 0 | R63: 0 | S63: 0 | T63: 0 | U63: 0 | V63: 0 | W63: 0 | X63: 0 | Y63: 0 | Z63: 0 | AA63: 0 | AB63: 0 | AC63: 0 | AD63: 0 | AE63: 0 | AF63: 0 | AG63: 0 | AH63: 0 | AI63: 0 | AJ63: 0 | AK63: 0 | AL63: 0 | AM63: 0 | AN63: 0 | AO63: 0 | AP63: 0 | AQ63: 0 | AR63: 0 | AS63: 0 | AT63: 0 | AU63: 0 | AV63: 0 | AW63: 0 | AX63: 0 | AY63: 0 | AZ63: 0 | BA63: 0 | BB63: 0 | BC63: 0 | BD63: 0 | BE63: 0 | BF63: 0 | BG63: 0 | BH63: 0 | BI63: 0 | BJ63: 0 | BK63: 0 | BL63: 0 | BM63: 0 | BN63: 0 | BO63: 0 | BP63: 0 | BQ63: 0 | BR63: 0 | BS63: 0 | BT63: 0 | BU63: 0 | BV63: 0 | BW63: 0 | BX63: 0 | BY63: 0 | BZ63: 0 | CA63: 0 | CB63: 0 | CC63: 0 | CD63: 0 | CE63: 0 | CF63: 0 | CG63: 0 | CH63: 0 | CI63: 0 | CJ63: 0 | CK63: 0 | CL63: 0 | CM63: 0 | CN63: 0 | CO63: 0 | CP63: 0 | CQ63: 0 | CR63: 0 | CS63: 0 | CT63: 0 | CU63: 0 | CV63: 0 | CW63: 0 | CX63: 0 | CY63: 0 | CZ63: 0 | DA63: 0 | DB63: 0 | DC63: 0 | DD63: 0 | DE63: 0 | DF63: 0 | DG63: 0 | DH63: 0
A64: Investimentos a Realiszar | B64: Investments to be made | C64: 150000 | D64: 0 | E64: 150000 | F64: 0 | G64: 0 | H64: 0 | I64: 0 | J64: 0 | K64: 0 | L64: 0 | M64: 0 | N64: 0 | O64: 0 | P64: 0 | Q64: 0 | R64: 0 | S64: 0 | T64: 0 | U64: 0 | V64: 0 | W64: 0 | X64: 0 | Y64: 0 | Z64: 0 | AA64: 0 | AB64: 0 | AC64: 0 | AD64: 0 | AE64: 0 | AF64: 0 | AG64: 0 | AH64: 0 | AI64: 0 | AJ64: 0 | AK64: 0 | AL64: 0 | AM64: 0 | AN64: 0 | AO64: 0 | AP64: 0 | AQ64: 0 | AR64: 0 | AS64: 0 | AT64: 0 | AU64: 0 | AV64: 0 | AW64: 0 | AX64: 0 | AY64: 0 | AZ64: 0 | BA64: 0 | BB64: 0 | BC64: 0 | BD64: 0 | BE64: 0 | BF64: 0 | BG64: 0 | BH64: 0 | BI64: 0 | BJ64: 0 | BK64: 0 | BL64: 0 | BM64: 0 | BN64: 0 | BO64: 0 | BP64: 0 | BQ64: 0 | BR64: 0 | BS64: 0 | BT64: 0 | BU64: 0 | BV64: 0 | BW64: 0 | BX64: 0 | BY64: 0 | BZ64: 0 | CA64: 0 | CB64: 0 | CC64: 0 | CD64: 0 | CE64: 0 | CF64: 0 | CG64: 0 | CH64: 0 | CI64: 0 | CJ64: 0 | CK64: 0 | CL64: 0 | CM64: 0 | CN64: 0 | CO64: 0 | CP64: 0 | CQ64: 0 | CR64: 0 | CS64: 0 | CT64: 0 | CU64: 0 | CV64: 0 | CW64: 0 | CX64: 0 | CY64: 0 | CZ64: 0 | DA64: 0 | DB64: 0 | DC64: 0 | DD64: 0 | DE64: 0 | DF64: 0 | DG64: 0 | DH64: 0
A65: Receita de reequilibrio - Aeris, ViaQuatro, ViaMobilidade - Linhas 5 e 17, BH Airport e AutoBAn e baixa da parcela retida dos ex acionistas de Barcas | B65: Rebalancing Revenue - Aeris, ViaQuatro, ViaMobilidade - Linhas 5 e 17, BH Airport and AutoBAn and write-off of the portion retained from former Barcas shareholders (thousands of R$) | C65: -1008572 | D65: -1008572 | E65: 0 | F65: 0 | G65: 0 | H65: 0 | I65: 0 | J65: 0 | K65: 0 | L65: 0 | M65: 0 | N65: 0 | O65: 0 | P65: 0 | Q65: 0 | R65: 0 | S65: 0 | T65: 0 | U65: 0 | V65: 0 | W65: 0 | X65: 0 | Y65: 0 | Z65: 0 | AA65: 0 | AB65: 0 | AC65: 0 | AD65: 0 | AE65: 0 | AF65: 0 | AG65: 0 | AH65: 0 | AI65: 0 | AJ65: 0 | AK65: 0 | AL65: 0 | AM65: 0 | AN65: 0 | AO65: 0 | AP65: 0 | AQ65: 0 | AR65: 0 | AS65: 0 | AT65: 0 | AU65: 0 | AV65: 0 | AW65: 0 | AX65: 0 | AY65: 0 | AZ65: 0 | BA65: 0 | BB65: 0 | BC65: 0 | BD65: 0 | BE65: 0 | BF65: 0 | BG65: 0 | BH65: 0 | BI65: 0 | BJ65: 0 | BK65: 0 | BL65: 0 | BM65: 0 | BN65: 0 | BO65: 0 | BP65: 0 | BQ65: 0 | BR65: 0 | BS65: 0 | BT65: 0 | BU65: 0 | BV65: 0 | BW65: 0 | BX65: 0 | BY65: 0 | BZ65: 0 | CA65: 0 | CB65: 0 | CC65: 0 | CD65: 0 | CE65: 0 | CF65: 0 | CG65: 0 | CH65: 0 | CI65: 0 | CJ65: 0 | CK65: 0 | CL65: 0 | CM65: 0 | CN65: 0 | CO65: 0 | CP65: 0 | CQ65: 0 | CR65: 0 | CS65: 0 | CT65: 0 | CU65: 0 | CV65: 0 | CW65: 0 | CX65: 0 | CY65: 0 | CZ65: 0 | DA65: 0 | DB65: 0 | DC65: 0 | DD65: 0 | DE65: 0 | DF65: 0 | DG65: 0 | DH65: 0
A66: Plano de incentivo de longo prazo liquidável em ações | B66: Long-term incentive plan payable in shares (thousands of R$) | C66: 2616 | D66: 2616 | E66: 0 | F66: 0 | G66: 0 | H66: 0 | I66: 0 | J66: 0 | K66: 0 | L66: 0 | M66: 0 | N66: 0 | O66: 0 | P66: 0 | Q66: 0 | R66: 0 | S66: 0 | T66: 0 | U66: 0 | V66: 0 | W66: 0 | X66: 0 | Y66: 0 | Z66: 0 | AA66: 0 | AB66: 0 | AC66: 0 | AD66: 0 | AE66: 0 | AF66: 0 | AG66: 0 | AH66: 0 | AI66: 0 | AJ66: 0 | AK66: 0 | AL66: 0 | AM66: 0 | AN66: 0 | AO66: 0 | AP66: 0 | AQ66: 0 | AR66: 0 | AS66: 0 | AT66: 0 | AU66: 0 | AV66: 0 | AW66: 0 | AX66: 0 | AY66: 0 | AZ66: 0 | BA66: 0 | BB66: 0 | BC66: 0 | BD66: 0 | BE66: 0 | BF66: 0 | BG66: 0 | BH66: 0 | BI66: 0 | BJ66: 0 | BK66: 0 | BL66: 0 | BM66: 0 | BN66: 0 | BO66: 0 | BP66: 0 | BQ66: 0 | BR66: 0 | BS66: 0 | BT66: 0 | BU66: 0 | BV66: 0 | BW66: 0 | BX66: 0 | BY66: 0 | BZ66: 0 | CA66: 0 | CB66: 0 | CC66: 0 | CD66: 0 | CE66: 0 | CF66: 0 | CG66: 0 | CH66: 0 | CI66: 0 | CJ66: 0 | CK66: 0 | CL66: 0 | CM66: 0 | CN66: 0 | CO66: 0 | CP66: 0 | CQ66: 0 | CR66: 0 | CS66: 0 | CT66: 0 | CU66: 0 | CV66: 0 | CW66: 0 | CX66: 0 | CY66: 0 | CZ66: 0 | DA66: 0 | DB66: 0 | DC66: 0 | DD66: 0 | DE66: 0 | DF66: 0 | DG66: 0 | DH66: 0
A67: Variações nos ativos e passivos | B67: Variations in assets and liabilities | C67: =C68+C83 -> 1663041 | D67: 761377 | E67: =E68+E83 -> 718278.5324 | F67: =F68+F83 -> 66121.60141 | G67: =G68+G83 -> 117263.8661 | H67: =H68+H83 -> 1414514.771 | I67: 746599.2916 | J67: 1085923.903 | K67: 335704.5765 | L67: -143390 | M67: -1480676 | N67: =SUM(N69:N80)+SUM(N84:N102) -> 122519 | O67: =SUM(O69:O80)+SUM(O84:O102) -> 13550 | P67: -240074.2157 | Q67: -1376670.784 | R67: -319515 | S67: -339843 | T67: -78765 | U67: =SUM(U69:U80)+SUM(U84:U102) -> -71632 | V67: 170725 | W67: -310978 | X67: -25977 | Y67: 72466 | Z67: -209187 | AA67: -148280 | AB67: 412396 | AC67: 893683 | AD67: -40845 | AE67: -213568 | AF67: -226874 | AG67: -539531 | AH67: 306714 | AI67: -640654 | AJ67: -207217 | AK67: 1626 | AL67: -503746 | AM67: 91269 | AN67: -121213 | AO67: -240794 | AP67: -235592 | AQ67: -1004504 | AR67: -183857 | AS67: -293301 | AT67: -214976 | AU67: -312370 | AV67: -1054689 | AW67: -161802 | AX67: -179535 | AY67: -454356 | AZ67: =SUM(AZ69:AZ80)+SUM(AZ84:AZ102) -> -258996 | BA67: -251351 | BB67: 16566 | BC67: 45993 | BD67: -90290 | BE67: -223620 | BF67: -283898 | BG67: -104911 | BH67: 43009 | BI67: -114884 | BJ67: -107087 | BK67: -568014 | BL67: -212382 | BM67: -106617 | BN67: -143829 | BO67: -105186 | BP67: -522675 | BQ67: 102135 | BR67: -138383 | BS67: -287303 | BT67: -194364 | BU67: -1178386 | BV67: -373332 | BW67: -244224 | BX67: -276487 | BY67: -284343 | BZ67: -767379 | CA67: -201140 | CB67: -267161 | CC67: -300622 | CD67: 1544 | CE67: 104423 | CF67: 31834 | CG67: 5833 | CH67: =SUM(CH69:CH80)+SUM(CH84:CH102) -> 34220 | CI67: 32536 | CJ67: 59866 | CK67: 52015 | CL67: 44105 | CM67: -1215 | CN67: -18279 | CO67: 23427 | CP67: 66898 | CQ67: -94100 | CR67: 1863 | CS67: 35810 | CT67: -11538 | CU67: 9730 | CV67: -14078 | CW67: -2430 | CX67: -1844 | CY67: 43871 | CZ67: 7487 | DA67: 34257 | DB67: -7588 | DC67: 12700 | DD67: 25373 | DE67: 18401 | DF67: 5150 | DG67: 5957 | DH67: -4135
A68: (Aumento) diminuição dos ativos | B68: (Increase) decrease in assets | C68: =SUM(C69:C82) -> 1372639 | D68: =SUM(D69:D82) -> 287918 | E68: =SUM(E69:E82) -> 160247 | F68: =SUM(F69:F80) -> 325348 | G68: =SUM(G69:G81) -> 599126 | H68: =SUM(H69:H80) -> 446610 | I68: -231673 | J68: 378702 | K68: 212837 | L68: 86744 | M68: -938318 | N68: =SUM(N69:N80) -> 176651 | O68: =SUM(O69:O80) -> 204835 | P68: =SUM(P69:P80) -> -275881 | Q68: -1043923 | R68: -96983 | S68: -10616 | T68: -146120 | U68: 4699 | V68: 55054 | W68: 186645 | X68: 294788 | Y68: -390855 | Z68: 101368 | AA68: 181344 | AB68: -12358 | AC68: -147842 | AD68: 127958 | AE68: 31350 | AF68: -23824 | AG68: -539989 | AH68: 390198 | AI68: -678645 | AJ68: -234337 | AK68: -17205 | AL68: -250493 | AM68: 279119 | AN68: -229640 | AO68: -168149 | AP68: -134407 | AQ68: -805138 | AR68: -188375 | AS68: -408903 | AT68: -21979 | AU68: -185881 | AV68: -817597 | AW68: -336919 | AX68: -75976 | AY68: -248416 | AZ68: =SUM(AZ69:AZ80) -> -156286 | BA68: -207221 | BB68: -35685 | BC68: -30444 | BD68: -39094 | BE68: -101998 | BF68: 81854 | BG68: -83559 | BH68: 112802 | BI68: 64723 | BJ68: -12087 | BK68: -233474 | BL68: -71240 | BM68: -67772 | BN68: -118816 | BO68: 24354 | BP68: -682988 | BQ68: 276809 | BR68: -219743 | BS68: -372435 | BT68: -367619 | BU68: -1164289 | BV68: -59516 | BW68: -404720 | BX68: -374248 | BY68: -325805 | BZ68: -922121 | CA68: -98637 | CB68: -364139 | CC68: =SUM(CC69:CC80) -> -383141 | CD68: -76204 | CE68: -45344 | CF68: 83141 | CG68: -90993 | CH68: -22274 | CI68: -15218 | CJ68: 4197 | CK68: 109918 | CL68: -43719 | CM68: -36910 | CN68: -25092 | CO68: -63373 | CP68: 64563 | CQ68: -61325 | CR68: -75476 | CS68: 8865 | CT68: -55546 | CU68: 45165 | CV68: -37683 | CW68: -30273 | CX68: -32038 | CY68: -15006 | CZ68: 28857 | DA68: -17044 | DB68: -21386 | DC68: -5433 | DD68: -25223 | DE68: -683 | DF68: -6142 | DG68: -4972 | DH68: -13426
A69: Contas a receber | B69: Accounts Receivable | C69: -11698 | D69: -18370 | E69: -113851 | F69: 34740 | G69: 85783 | H69: -907688 | I69: -703573 | J69: 82787 | K69: -189398 | L69: -97504 | M69: -1448252 | N69: -37040 | O69: -225244 | P69: -91988 | Q69: -1093980 | R69: =SUM(S69:V69) -> -393475 | S69: -78062 | T69: -234904 | U69: -62071 | V69: -18438 | W69: -234003 | X69: -95750 | Y69: -179065 | Z69: 46765 | AA69: -5953 | AB69: -428549 | AC69: -154229 | AD69: -72821 | AE69: -117365 | AF69: -84134 | AG69: -1151746 | AH69: -17402 | AI69: -713866 | AJ69: -240193 | AK69: -180285 | AL69: -1493767 | AM69: 36515 | AN69: -899535 | AO69: -361891 | AP69: -268856 | AQ69: -851151 | AR69: -177096 | AS69: -328695 | AT69: -187988 | AU69: -46506 | AV69: -524974 | AW69: -202088 | AX69: -88204 | AY69: -75288 | AZ69: -159394 | BA69: -16401 | BB69: 34918 | BC69: -16561 | BD69: 3876 | BE69: -38634 | BF69: -32057 | BG69: -34293 | BH69: 3130 | BI69: 8799 | BJ69: -9693 | BK69: -67157 | BL69: -7576 | BM69: -35863 | BN69: -26312 | BO69: 2594 | BP69: -56720 | BQ69: -4058 | BR69: -26301 | BS69: -21772 | BT69: -4589 | BU69: -38600 | BV69: -13513 | BW69: -11555 | BX69: -14747 | BY69: 1215 | BZ69: -28336 | CA69: 693 | CB69: -17805 | CC69: -3053 | CD69: -8171 | CE69: 26007 | CF69: 4179 | CG69: -7646 | CH69: 7561 | CI69: 21913 | CJ69: -5831 | CK69: -9030 | CL69: -3613 | CM69: 292 | CN69: 6520 | CO69: -25446 | CP69: -20702 | CQ69: -10316 | CR69: -15441 | CS69: 21013 | CT69: -40132 | CU69: -9622 | CV69: -17274 | CW69: -12216 | CX69: -1020 | CY69: -28597 | CZ69: -21822 | DA69: -11297 | DB69: 2189 | DC69: 2333 | DD69: -10736 | DE69: -2225 | DF69: -1047 | DG69: -388 | DH69: -7076
A70: Contas a receber - partes relacionadas | B70: Accounts receivable - related parties | C70: -68323 | D70: -23701 | E70: -4016 | F70: -3264 | G70: -37342 | H70: -26797 | I70: -28775 | J70: -34100 | K70: 28938 | L70: 7140 | M70: 11115 | N70: -10900 | O70: 404 | P70: 19069 | Q70: 2542 | R70: 1842 | S70: -15991 | T70: 14708 | U70: 6025 | V70: -2900 | W70: 1614 | X70: 16264 | Y70: 17633 | Z70: -38954 | AA70: 6671 | AB70: -47013 | AC70: -43554 | AD70: -4627 | AE70: -3911 | AF70: 5079 | AG70: 105799 | AH70: 46204 | AI70: 7434 | AJ70: 46885 | AK70: 5276 | AL70: 238034 | AM70: -32102 | AN70: 271202 | AO70: -57472 | AP70: 56406 | AQ70: -34474 | AR70: -22245 | AS70: 9838 | AT70: -9266 | AU70: -12801 | AV70: -43056 | AW70: -57915 | AX70: 21010 | AY70: -11662 | AZ70: 5511 | BA70: -41540 | BB70: -34107 | BC70: 10015 | BD70: -9609 | BE70: -7839 | BF70: 280659 | BG70: 4607 | BH70: 157263 | BI70: 91663 | BJ70: 27126 | BK70: -36290 | BL70: -24483 | BM70: 7221 | BN70: -29796 | BO70: 10768 | BP70: -20607 | BQ70: 5298 | BR70: -14758 | BS70: -24328 | BT70: 13181 | BU70: -23304 | BV70: -4714 | BW70: -9113 | BX70: -12834 | BY70: 3357 | BZ70: -12662 | CA70: 6551 | CB70: -14219 | CC70: -13249 | CD70: 8255 | CE70: -2870 | CF70: 2498 | CG70: -16103 | CH70: 1738 | CI70: 8997 | CJ70: -4053 | CK70: -2871 | CL70: -4311 | CM70: -203 | CN70: 3332 | CO70: -21853 | CP70: -11123 | CQ70: -5476 | CR70: -5254 | CS70: - | CT70: - | CU70: - | CV70: - | CW70: - | CX70: - | CY70: - | CZ70: - | DA70: - | DB70: - | DC70: - | DD70: - | DE70: - | DF70: - | DG70: - | DH70: -
A71: Impostos a recuperar | B71: Taxes recoverable | C71: -170215 | D71: -55686 | E71: -29866 | F71: -80782 | G71: -3881 | H71: -143089 | I71: -115344 | J71: -29431 | K71: -11693 | L71: 13379 | M71: -1871 | N71: 22002 | O71: 3462 | P71: -49462 | Q71: 22127 | R71: 44579 | S71: -18227 | T71: 47698 | U71: -4521 | V71: 19629 | W71: -69242 | X71: -65731 | Y71: -1635 | Z71: -8625 | AA71: 6749 | AB71: 49708 | AC71: 449 | AD71: 34159 | AE71: -36952 | AF71: 52052 | AG71: -118934 | AH71: -80551 | AI71: 397 | AJ71: -32761 | AK71: -6019 | AL71: 104106 | AM71: 8171 | AN71: 20267 | AO71: 72610 | AP71: 3058 | AQ71: -41487 | AR71: -33811 | AS71: -12906 | AT71: 3777 | AU71: 1453 | AV71: -81175 | AW71: -19918 | AX71: -12619 | AY71: -13344 | AZ71: -35294 | BA71: 24481 | BB71: 11271 | BC71: 19412 | BD71: 6021 | BE71: -12223 | BF71: -16339 | BG71: -769 | BH71: -4376 | BI71: -8670 | BJ71: -2524 | BK71: -6905 | BL71: -311 | BM71: -5728 | BN71: -37866 | BO71: 37000 | BP71: -48823 | BQ71: 309872 | BR71: -146127 | BS71: -122091 | BT71: -90477 | BU71: -27010 | BV71: 230758 | BW71: -107870 | BX71: -87409 | BY71: -62489 | BZ71: -27653 | CA71: 150248 | CB71: -73149 | CC71: -58144 | CD71: -46608 | CE71: -11437 | CF71: 86885 | CG71: -40135 | CH71: -37608 | CI71: -20579 | CJ71: -9755 | CK71: 106699 | CL71: -53368 | CM71: -34065 | CN71: -29021 | CO71: -15128 | CP71: 97500 | CQ71: -50736 | CR71: -41599 | CS71: -20293 | CT71: -6758 | CU71: 47234 | CV71: -23763 | CW71: -17151 | CX71: -13078 | CY71: 3099 | CZ71: 37828 | DA71: -25946 | DB71: -5607 | DC71: -3176 | DD71: -14221 | DE71: -1234 | DF71: -3747 | DG71: -8290 | DH71: -950
A72: Dividendos recebidos | B72: Dividends received | C72: -3695 | D72: 66 | E72: -3761 | F72: 0 | G72: 0 | H72: 3232 | I72: 67 | J72: -60 | K72: 4661 | L72: -1436 | M72: -1953 | N72: -1953 | O72: 0 | P72: - | Q72: - | R72: 0 | S72: - | T72: - | U72: - | V72: - | W72: - | X72: - | Y72: - | Z72: - | AA72: - | AB72: - | AC72: - | AD72: - | AE72: - | AF72: - | AG72: - | AH72: - | AI72: - | AJ72: - | AK72: - | AL72: - | AM72: - | AN72: - | AO72: - | AP72: - | AQ72: - | AR72: - | AS72: - | AT72: - | AU72: - | AV72: - | AW72: - | AX72: - | AY72: - | AZ72: - | BA72: - | BB72: - | BC72: - | BD72: 614 | BE72: - | BF72: -2 | BG72: 47 | BH72: -488 | BI72: 464 | BJ72: - | BK72: 5080 | BL72: 1 | BM72: -613 | BN72: 5692 | BO72: - | BP72: 0 | BQ72: 0 | BR72: 0 | BS72: - | BT72: - | BU72: - | BV72: - | BW72: - | BX72: - | BY72: - | BZ72: - | CA72: - | CB72: - | CC72: - | CD72: - | CE72: - | CF72: - | CG72: - | CH72: - | CI72: - | CJ72: - | CK72: - | CL72: - | CM72: - | CN72: - | CO72: - | CP72: - | CQ72: - | CR72: - | CS72: - | CT72: - | CU72: - | CV72: - | CW72: - | CX72: - | CY72: - | CZ72: - | DA72: - | DB72: - | DC72: - | DD72: - | DE72: - | DF72: - | DG72: - | DH72: -
A73: Despesas antecipadas outorga fixa | B73: Prepaid expenses - fixed concession fee | C73: 0 | D73: 0 | E73: 0 | F73: 0 | G73: 0 | H73: 37 | I73: 37 | J73: 0 | K73: - | L73: 0 | M73: -1 | N73: -1 | O73: 0 | P73: 1 | Q73: -1 | R73: 0 | S73: - | T73: - | U73: - | V73: - | W73: 95 | X73: 24 | Y73: 24 | Z73: 23 | AA73: 24 | AB73: -69100 | AC73: 22 | AD73: -541 | AE73: -18658 | AF73: -49923 | AG73: -220232 | AH73: -55821 | AI73: -55802 | AJ73: -54305 | AK73: -54304 | AL73: -198955 | AM73: -54541 | AN73: -54071 | AO73: -45745 | AP73: -44598 | AQ73: -173243 | AR73: -44597 | AS73: -44597 | AT73: -41851 | AU73: -42198 | AV73: -158479 | AW73: -41832 | AX73: -37409 | AY73: -37409 | AZ73: -41829 | BA73: -143558 | BB73: -37410 | BC73: -37410 | BD73: -34369 | BE73: -34369 | BF73: -133777 | BG73: -34617 | BH73: -34128 | BI73: -32517 | BJ73: -32515 | BK73: -123923 | BL73: -32502 | BM73: -32437 | BN73: -29494 | BO73: -29490 | BP73: -533968 | BQ73: -33267 | BR73: -28830 | BS73: -194286 | BT73: -277585 | BU73: -1082848 | BV73: -278703 | BW73: -276129 | BX73: -264008 | BY73: -264008 | BZ73: -842915 | CA73: -262199 | CB73: -260097 | CC73: -299886 | CD73: -20733 | CE73: -97615 | CF73: -30507 | CG73: -23033 | CH73: -22085 | CI73: -21990 | CJ73: - | CK73: - | CL73: - | CM73: - | CN73: - | CO73: - | CP73: - | CQ73: - | CR73: - | CS73: - | CT73: - | CU73: - | CV73: - | CW73: - | CX73: - | CY73: - | CZ73: - | DA73: - | DB73: - | DC73: - | DD73: - | DE73: - | DF73: - | DG73: - | DH73: -
A74: Dividendos a receber | B74: Dividends to receive | C74: 0 | D74: 0 | E74: 0 | F74: 0 | G74: 0 | H74: 0 | I74: 0 | J74: 0 | K74: 0 | L74: 0 | M74: 0 | N74: - | O74: 0 | P74: - | Q74: - | R74: 0 | S74: - | T74: - | U74: - | V74: - | W74: - | X74: - | Y74: - | Z74: - | AA74: - | AB74: - | AC74: - | AD74: - | AE74: - | AF74: - | AG74: - | AH74: - | AI74: - | AJ74: - | AK74: - | AL74: 2584 | AM74: - | AN74: - | AO74: - | AP74: - | AQ74: -2584 | AR74: -2584 | AS74: - | AT74: - | AU74: - | AV74: 217 | AW74: - | AX74: - | AY74: 217 | AZ74: - | BA74: 397 | BB74: -217 | BC74: - | BD74: - | BE74: - | BF74: - | BG74: - | BH74: 0 | BI74: 0 | BJ74: 0 | BK74: - | BL74: - | BM74: 0 | BN74: -5692 | BO74: 5692 | BP74: -5692 | BQ74: -5692 | BR74: - | BS74: - | BT74: - | BU74: - | BV74: - | BW74: - | BX74: - | BY74: - | BZ74: - | CA74: - | CB74: - | CC74: - | CD74: - | CE74: - | CF74: - | CG74: - | CH74: - | CI74: - | CJ74: - | CK74: - | CL74: - | CM74: - | CN74: - | CO74: - | CP74: - | CQ74: - | CR74: - | CS74: - | CT74: - | CU74: - | CV74: - | CW74: - | CX74: - | CY74: - | CZ74: - | DA74: - | DB74: - | DC74: - | DD74: - | DE74: - | DF74: - | DG74: - | DH74: -
A75: Despesas antecipadas e outras | B75: Prepaid Expenses and other | C75: -94802 | D75: -74878 | E75: 60937 | F75: -23779 | G75: -57082 | H75: -203960 | I75: -60353 | J75: -73520 | K75: -60621 | L75: -9466 | M75: -147703 | N75: -51209 | O75: 270149 | P75: -297185 | Q75: -69458 | R75: -55633 | S75: 33198 | T75: -51873 | U75: 19848 | V75: -56806 | W75: -73749 | X75: 272776 | Y75: -325969 | Z75: 12775 | AA75: -33331 | AB75: -45307 | AC75: -11156 | AD75: -8647 | AE75: -5334 | AF75: -20170 | AG75: -77092 | AH75: 18974 | AI75: -12475 | AJ75: -83985 | AK75: 394 | AL75: 391394 | AM75: 94911 | AN75: 377369 | AO75: -66467 | AP75: -14419 | AQ75: -14790 | AR75: 16397 | AS75: -41520 | AT75: 24345 | AU75: -30396 | AV75: -10130 | AW75: -15166 | AX75: 41246 | AY75: -110930 | AZ75: 74720 | BA75: -30600 | BB75: -10140 | BC75: -5900 | BD75: -5627 | BE75: -8933 | BF75: -16630 | BG75: -18534 | BH75: -8599 | BI75: 4984 | BJ75: 5519 | BK75: -4279 | BL75: -6369 | BM75: -352 | BN75: 4652 | BO75: -2210 | BP75: -17178 | BQ75: 4656 | BR75: -3727 | BS75: -9958 | BT75: -8149 | BU75: 7473 | BV75: 11654 | BW75: 1360 | BX75: -1661 | BY75: -3880 | BZ75: -10555 | CA75: 6434 | CB75: 767 | CC75: -8809 | CD75: -8947 | CE75: 40571 | CF75: 17520 | CG75: -1510 | CH75: 28120 | CI75: -3559 | CJ75: 23836 | CK75: 15120 | CL75: 17573 | CM75: -2934 | CN75: -5923 | CO75: -946 | CP75: -12689 | CQ75: 9570 | CR75: -1082 | CS75: 3255 | CT75: 63 | CU75: -2383 | CV75: 3070 | CW75: -1907 | CX75: -4801 | CY75: 4668 | CZ75: 5290 | DA75: 5445 | DB75: -2118 | DC75: -3949 | DD75: 7707 | DE75: 4147 | DF75: 4926 | DG75: -1172 | DH75: -194
A76: Recebimento de ativo financeiro | B76: Receipt of financial assets | C76: 1901932 | D76: 479823 | E76: 358627 | F76: 418227 | G76: 645255 | H76: 1743155 | I76: 686753 | J76: 448282 | K76: 446155 | L76: 161965 | M76: 637034 | N76: 246019 | O76: 150883 | P76: 170252 | Q76: 69880 | R76: 296400 | S76: 61003 | T76: 70357 | U76: 73833 | V76: 91207 | W76: 377199 | X76: 97491 | Y76: 76571 | Z76: 84072 | AA76: 119065 | AB76: 531272 | AC76: 93949 | AD76: 124854 | AE76: 200783 | AF76: 111686 | AG76: 930378 | AH76: 250913 | AI76: 194684 | AJ76: 260309 | AK76: 224472 | AL76: 1053363 | AM76: 200099 | AN76: 428446 | AO76: 290816 | AP76: 134002 | AQ76: 309618 | AR76: 56204 | AS76: 8977 | AT76: 189004 | AU76: -55433 | AV76: - | AW76: - | AX76: - | AY76: - | AZ76: - | BA76: - | BB76: - | BC76: - | BD76: - | BE76: - | BF76: - | BG76: - | BH76: - | BI76: - | BJ76: - | BK76: - | BL76: - | BM76: - | BN76: - | BO76: - | BP76: - | BQ76: - | BR76: - | BS76: - | BT76: - | BU76: - | BV76: - | BW76: - | BX76: - | BY76: - | BZ76: - | CA76: - | CB76: - | CC76: - | CD76: - | CE76: - | CF76: - | CG76: - | CH76: - | CI76: - | CJ76: - | CK76: - | CL76: - | CM76: - | CN76: - | CO76: - | CP76: - | CQ76: - | CR76: - | CS76: - | CT76: - | CU76: - | CV76: - | CW76: - | CX76: - | CY76: - | CZ76: - | DA76: - | DB76: - | DC76: - | DD76: - | DE76: - | DF76: - | DG76: - | DH76: -
A77: Adiantamento a fornecedores (R$) | B77: Advances to suppliers (R$) | C77: -8507 | D77: 41452 | E77: 4513 | F77: -19794 | G77: -34678 | H77: -18280 | I77: -10485 | J77: -15256 | K77: -5205 | L77: 12666 | M77: 13313 | N77: 9733 | O77: 5181 | P77: -26568 | Q77: 24967 | R77: 9304 | S77: 7463 | T77: 7894 | U77: -28415 | V77: 22362 | W77: -15041 | X77: -10027 | Y77: -542 | Z77: -7858 | AA77: 3386 | AB77: -3369 | AC77: -33323 | AD77: 55581 | AE77: 12787 | AF77: -38414 | AG77: -8162 | AH77: 227881 | AI77: -99017 | AJ77: -130287 | AK77: -6739 | AL77: -347252 | AM77: 26066 | AN77: -373318 | AO77: - | AP77: - | AQ77: 2973 | AR77: 19357 | AS77: - | AT77: - | AU77: - | AV77: - | AW77: - | AX77: - | AY77: - | AZ77: - | BA77: - | BB77: - | BC77: - | BD77: - | BE77: - | BF77: - | BG77: - | BH77: - | BI77: - | BJ77: - | BK77: - | BL77: - | BM77: - | BN77: - | BO77: - | BP77: - | BQ77: - | BR77: - | BS77: - | BT77: - | BU77: - | BV77: - | BW77: - | BX77: - | BY77: - | BZ77: - | CA77: - | CB77: - | CC77: - | CD77: - | CE77: - | CF77: - | CG77: - | CH77: - | CI77: - | CJ77: - | CK77: - | CL77: - | CM77: - | CN77: - | CO77: - | CP77: - | CQ77: - | CR77: - | CS77: - | CT77: - | CU77: - | CV77: - | CW77: - | CX77: - | CY77: - | CZ77: - | DA77: - | DB77: - | DC77: - | DD77: - | DE77: - | DF77: - | DG77: - | DH77: -
A78: Adiantamentos a fornecedores com partes relacionadas | B78: Advances to suppliers with related parties (thousands of R$) | C78: -25392 | D78: -25392
A79: Ressarcimento de obras efetuadas | B79: Refund from works carried out | C79: 0 | D79: 0 | E79: 0 | F79: 0 | G79: 0 | H79: 0 | I79: 0 | J79: 0 | K79: 0 | L79: 0 | M79: 0 | N79: - | O79: 0 | P79: - | Q79: - | R79: 0 | S79: - | T79: - | U79: - | V79: - | W79: 199772 | X79: 79741 | Y79: 22128 | Z79: 13170 | AA79: 84733 | AB79: - | AC79: - | AD79: - | AE79: - | AF79: - | AG79: - | AH79: - | AI79: - | AJ79: - | AK79: - | AL79: - | AM79: - | AN79: - | AO79: - | AP79: - | AQ79: - | AR79: - | AS79: - | AT79: - | AU79: - | AV79: - | AW79: - | AX79: - | AY79: - | AZ79: - | BA79: - | BB79: - | BC79: - | BD79: - | BE79: - | BF79: - | BG79: - | BH79: - | BI79: - | BJ79: - | BK79: - | BL79: - | BM79: - | BN79: - | BO79: - | BP79: - | BQ79: - | BR79: - | BS79: - | BT79: - | BU79: - | BV79: - | BW79: - | BX79: - | BY79: - | BZ79: - | CA79: - | CB79: - | CC79: - | CD79: - | CE79: - | CF79: - | CG79: - | CH79: - | CI79: - | CJ79: - | CK79: - | CL79: - | CM79: - | CN79: - | CO79: - | CP79: - | CQ79: - | CR79: - | CS79: - | CT79: - | CU79: - | CV79: - | CW79: - | CX79: - | CY79: - | CZ79: - | DA79: - | DB79: - | DC79: - | DD79: - | DE79: - | DF79: - | DG79: - | DH79: -
A80: Outros ativos circulantes e realizáveis a longo prazo | B80: Other current assets and non-current receivables | C80: 0 | D80: 0 | E80: 0 | F80: 0 | G80: 0 | H80: 0 | I80: 0 | J80: 0 | K80: 0 | L80: 0 | M80: 0 | N80: - | O80: 0 | P80: - | Q80: - | R80: 0 | S80: - | T80: - | U80: - | V80: - | W80: - | X80: - | Y80: - | Z80: - | AA80: - | AB80: - | AC80: - | AD80: - | AE80: - | AF80: - | AG80: - | AH80: - | AI80: - | AJ80: - | AK80: - | AL80: - | AM80: - | AN80: - | AO80: - | AP80: - | AQ80: - | AR80: - | AS80: - | AT80: - | AU80: - | AV80: - | AW80: - | AX80: - | AY80: - | AZ80: - | BA80: - | BB80: - | BC80: - | BD80: - | BE80: - | BF80: - | BG80: - | BH80: - | BI80: - | BJ80: - | BK80: - | BL80: - | BM80: - | BN80: - | BO80: - | BP80: - | BQ80: - | BR80: - | BS80: - | BT80: - | BU80: - | BV80: -4998 | BW80: -1413 | BX80: 6411 | BY80: - | BZ80: - | CA80: -364 | CB80: 364 | CC80: - | CD80: - | CE80: - | CF80: 2566 | CG80: -2566 | CH80: - | CI80: - | CJ80: - | CK80: - | CL80: - | CM80: - | CN80: - | CO80: - | CP80: 11577 | CQ80: -4367 | CR80: -12100 | CS80: 4890 | CT80: -8719 | CU80: 9936 | CV80: 284 | CW80: 1001 | CX80: -13139 | CY80: 5824 | CZ80: 7561 | DA80: 14754 | DB80: -15850 | DC80: -641 | DD80: -7973 | DE80: -1371 | DF80: -6274 | DG80: 4878 | DH80: -5206
A81: Juros sobre Capital Próprio a pagar de terceiros | B81: Interest on Equity payable to third parties | C81: 1071 | D81: 0 | E81: 0 | F81: 0 | G81: 1071 | H81: 0 | I81: 0 | J81: 0 | K81: 0 | L81: 0 | M81: 0 | N81: 0 | O81: 0 | P81: 0 | Q81: 0 | R81: 0 | S81: 0 | T81: 0 | U81: 0 | V81: 0 | W81: 0 | X81: 0 | Y81: 0 | Z81: 0 | AA81: 0 | AB81: 0 | AC81: 0 | AD81: 0 | AE81: 0 | AF81: 0 | AG81: 0 | AH81: 0 | AI81: 0 | AJ81: 0 | AK81: 0 | AL81: 0 | AM81: 0 | AN81: 0 | AO81: 0 | AP81: 0 | AQ81: 0 | AR81: 0 | AS81: 0 | AT81: 0 | AU81: 0 | AV81: 0 | AW81: 0 | AX81: 0 | AY81: 0 | AZ81: 0 | BA81: 0 | BB81: 0 | BC81: 0 | BD81: 0 | BE81: 0 | BF81: 0 | BG81: 0 | BH81: 0 | BI81: 0 | BJ81: 0 | BK81: 0 | BL81: 0 | BM81: 0 | BN81: 0 | BO81: 0 | BP81: 0 | BQ81: 0 | BR81: 0 | BS81: 0 | BT81: 0 | BU81: 0 | BV81: 0 | BW81: 0 | BX81: 0 | BY81: 0 | BZ81: 0 | CA81: 0 | CB81: 0 | CC81: 0 | CD81: 0 | CE81: 0 | CF81: 0 | CG81: 0 | CH81: 0 | CI81: 0 | CJ81: 0 | CK81: 0 | CL81: 0 | CM81: 0 | CN81: 0 | CO81: 0 | CP81: 0 | CQ81: 0 | CR81: 0 | CS81: 0 | CT81: 0 | CU81: 0 | CV81: 0 | CW81: 0 | CX81: 0 | CY81: 0 | CZ81: 0 | DA81: 0 | DB81: 0 | DC81: 0 | DD81: 0 | DE81: 0 | DF81: 0 | DG81: 0 | DH81: 0
A82: Estoques | B82: Stocks | C82: -147732 | D82: -35396 | E82: -112336 | F82: 0 | G82: 0 | H82: 0 | I82: 0 | J82: 0 | K82: 0 | L82: 0 | M82: 0 | N82: 0 | O82: 0 | P82: 0 | Q82: 0 | R82: 0 | S82: 0 | T82: 0 | U82: 0 | V82: 0 | W82: 0 | X82: 0 | Y82: 0 | Z82: 0 | AA82: 0 | AB82: 0 | AC82: 0 | AD82: 0 | AE82: 0 | AF82: 0 | AG82: 0 | AH82: 0 | AI82: 0 | AJ82: 0 | AK82: 0 | AL82: 0 | AM82: 0 | AN82: 0 | AO82: 0 | AP82: 0 | AQ82: 0 | AR82: 0 | AS82: 0 | AT82: 0 | AU82: 0 | AV82: 0 | AW82: 0 | AX82: 0 | AY82: 0 | AZ82: 0 | BA82: 0 | BB82: 0 | BC82: 0 | BD82: 0 | BE82: 0 | BF82: 0 | BG82: 0 | BH82: 0 | BI82: 0 | BJ82: 0 | BK82: 0 | BL82: 0 | BM82: 0 | BN82: 0 | BO82: 0 | BP82: 0 | BQ82: 0 | BR82: 0 | BS82: 0 | BT82: 0 | BU82: 0 | BV82: 0 | BW82: 0 | BX82: 0 | BY82: 0 | BZ82: 0 | CA82: 0 | CB82: 0 | CC82: 0 | CD82: 0 | CE82: 0 | CF82: 0 | CG82: 0 | CH82: 0 | CI82: 0 | CJ82: 0 | CK82: 0 | CL82: 0 | CM82: 0 | CN82: 0 | CO82: 0 | CP82: 0 | CQ82: 0 | CR82: 0 | CS82: 0 | CT82: 0 | CU82: 0 | CV82: 0 | CW82: 0 | CX82: 0 | CY82: 0 | CZ82: 0 | DA82: 0 | DB82: 0 | DC82: 0 | DD82: 0 | DE82: 0 | DF82: 0 | DG82: 0 | DH82: 0
A83: Aumento (diminuição) dos passivos | B83: Increase (decrease) in liabilities | C83: =SUM(C84:C106) -> 290402 | D83: =SUM(D84:D106) -> 473459 | E83: =SUM(E84:E102) -> 558031.5324 | F83: =SUM(F84:F102) -> -259226.3986 | G83: =SUM(G84:G102) -> -481862.1339 | H83: =SUM(H84:H102) -> 967904.7711 | I83: 978272.2916 | J83: 707221.9031 | K83: 122867.5765 | L83: -230134 | M83: -542358 | N83: =SUM(N84:N102) -> -54132 | O83: =SUM(O84:O102) -> -191285 | P83: =SUM(P84:P102) -> 35806.78432 | Q83: -332747.7843 | R83: -222532 | S83: -329227 | T83: 67355 | U83: -76331 | V83: 115671 | W83: -497623 | X83: -320765 | Y83: 463321 | Z83: -310555 | AA83: -329624 | AB83: 424754 | AC83: 1041525 | AD83: -168803 | AE83: -244918 | AF83: -203050 | AG83: 458 | AH83: -83484 | AI83: 37991 | AJ83: 27120 | AK83: 18831 | AL83: -253253 | AM83: -187850 | AN83: 108427 | AO83: -72645 | AP83: -101185 | AQ83: -199366 | AR83: 4518 | AS83: 115602 | AT83: -192997 | AU83: -126489 | AV83: -237092 | AW83: 175117 | AX83: -103559 | AY83: -205940 | AZ83: =SUM(AZ84:AZ102) -> -102710 | BA83: -44130 | BB83: 52251 | BC83: 76437 | BD83: -51196 | BE83: -121622 | BF83: -365752 | BG83: -21352 | BH83: -69793 | BI83: -179607 | BJ83: -95000 | BK83: -334540 | BL83: -141142 | BM83: -38845 | BN83: -25013 | BO83: -129540 | BP83: 160313 | BQ83: -174674 | BR83: 81360 | BS83: 85132 | BT83: 173255 | BU83: -14097 | BV83: -313816 | BW83: 160496 | BX83: 97761 | BY83: 41462 | BZ83: 154742 | CA83: -102503 | CB83: 96978 | CC83: =SUM(CC84:CC102) -> 82519 | CD83: 77748 | CE83: 149767 | CF83: -51307 | CG83: 96826 | CH83: 56494 | CI83: 47754 | CJ83: 55669 | CK83: -57903 | CL83: 87824 | CM83: 35695 | CN83: 6813 | CO83: 86800 | CP83: 2335 | CQ83: -32775 | CR83: 77339 | CS83: 26945 | CT83: 44008 | CU83: -35435 | CV83: 23605 | CW83: 27843 | CX83: 30194 | CY83: 58877 | CZ83: -21370 | DA83: 51301 | DB83: 13798 | DC83: 18133 | DD83: 50596 | DE83: 19084 | DF83: 11292 | DG83: 10929 | DH83: 9291
A84: Fornecedores | B84: Suppliers | C84: 508039 | D84: 618092 | E84: 79113 | F84: 49453 | G84: -238619 | H84: 315599 | I84: 317893 | J84: 52754 | K84: 39106 | L84: -94154 | M84: -92034 | N84: -1049 | O84: -9320 | P84: 23212 | Q84: -104877 | R84: 141632 | S84: 115873 | T84: 24986 | U84: 21724 | V84: -20951 | W84: -29250 | X84: 33299 | Y84: -3998 | Z84: 45918 | AA84: -104469 | AB84: -199355 | AC84: -39280 | AD84: -48188 | AE84: -37341 | AF84: -74546 | AG84: 145115 | AH84: 116505 | AI84: -76185 | AJ84: 44205 | AK84: 60590 | AL84: 120024 | AM84: 14239 | AN84: 95220 | AO84: 39595 | AP84: -29030 | AQ84: 24502 | AR84: -33005 | AS84: 51526 | AT84: 55290 | AU84: -49309 | AV84: 130178 | AW84: 64199 | AX84: 41358 | AY84: -12128 | AZ84: 36749 | BA84: 52637 | BB84: 8134 | BC84: 55972 | BD84: 16962 | BE84: -28431 | BF84: 14331 | BG84: 25124 | BH84: 47227 | BI84: 8645 | BJ84: -66665 | BK84: 16179 | BL84: 50588 | BM84: 15583 | BN84: 14757 | BO84: -64749 | BP84: 75221 | BQ84: 9701 | BR84: 30264 | BS84: 24044 | BT84: 11212 | BU84: 68798 | BV84: 50798 | BW84: 15224 | BX84: 41470 | BY84: -38694 | BZ84: 45865 | CA84: 11779 | CB84: 30592 | CC84: 16418 | CD84: -12924 | CE84: 15543 | CF84: 6473 | CG84: 15264 | CH84: 4696 | CI84: -10890 | CJ84: 11282 | CK84: 13075 | CL84: 9524 | CM84: 1488 | CN84: -12805 | CO84: 15796 | CP84: 26982 | CQ84: - | CR84: 13296 | CS84: -24482 | CT84: 17993 | CU84: 6947 | CV84: 3492 | CW84: 9600 | CX84: -2046 | CY84: 30335 | CZ84: 22258 | DA84: 9218 | DB84: 2042 | DC84: -3183 | DD84: 3280 | DE84: 2997 | DF84: -3753 | DG84: 8540 | DH84: -4504
A85: Fornecedores - partes relacionadas | B85: Suppliers - related parties | C85: 10788 | D85: 192332 | E85: -175938 | F85: -39494 | G85: 33888 | H85: -190913 | I85: -171662 | J85: -2515 | K85: -8707 | L85: -8029 | M85: -72673 | N85: -9997 | O85: -15973 | P85: -7915 | Q85: -38788 | R85: 14691 | S85: 25061 | T85: -12373 | U85: -2211 | V85: 4214 | W85: 3535 | X85: -109210 | Y85: 182043 | Z85: -63554 | AA85: -5744 | AB85: 96552 | AC85: 97807 | AD85: -11180 | AE85: 8326 | AF85: 1599 | AG85: -148548 | AH85: -122204 | AI85: 5352 | AJ85: -36286 | AK85: 4590 | AL85: 79390 | AM85: 17598 | AN85: 94795 | AO85: -45689 | AP85: 12686 | AQ85: 64548 | AR85: 61102 | AS85: -6950 | AT85: -58185 | AU85: 68581 | AV85: 14309 | AW85: 7766 | AX85: 5171 | AY85: -13498 | AZ85: 14870 | BA85: -46741 | BB85: 6215 | BC85: -24502 | BD85: -18640 | BE85: -9814 | BF85: -277821 | BG85: 552 | BH85: -170839 | BI85: -101477 | BJ85: -6057 | BK85: -44839 | BL85: -49647 | BM85: 19326 | BN85: -1338 | BO85: -13180 | BP85: -103899 | BQ85: -7535 | BR85: -63499 | BS85: -16148 | BT85: -16717 | BU85: 37309 | BV85: 11017 | BW85: 23952 | BX85: 8517 | BY85: -6177 | BZ85: 8755 | CA85: 57499 | CB85: -42117 | CC85: -1304 | CD85: -5323 | CE85: 18771 | CF85: 22691 | CG85: 416 | CH85: 153 | CI85: -4489 | CJ85: 847 | CK85: 224 | CL85: 720 | CM85: -97 | CN85: - | CO85: -4996 | CP85: - | CQ85: - | CR85: - | CS85: - | CT85: - | CU85: - | CV85: - | CW85: - | CX85: - | CY85: - | CZ85: - | DA85: - | DB85: - | DC85: - | DD85: - | DE85: - | DF85: - | DG85: - | DH85: -
A86: Dívidas com pessoas ligadas | B86: Debt with related persons | C86: 0 | D86: 0 | E86: 0 | F86: 0 | G86: 0 | H86: 0 | I86: 0 | J86: 0 | K86: 0 | L86: 0 | M86: 0 | N86: - | O86: 0 | P86: - | Q86: - | R86: 0 | T86: - | U86: - | V86: - | W86: - | X86: - | Y86: - | Z86: - | AA86: - | AB86: - | AC86: - | AD86: - | AE86: - | AF86: - | AG86: - | AH86: - | AI86: - | AJ86: - | AK86: - | AL86: - | AM86: - | AN86: - | AO86: - | AP86: - | AQ86: - | AR86: - | AS86: - | AT86: - | AU86: - | AV86: - | AW86: - | AX86: - | AY86: - | AZ86: - | BA86: - | BB86: - | BC86: - | BD86: - | BE86: - | BF86: - | BG86: - | BH86: - | BI86: - | BJ86: - | BK86: - | BL86: - | BM86: - | BN86: - | BO86: - | BP86: - | BQ86: - | BR86: - | BS86: - | BT86: - | BU86: - | BV86: - | BW86: - | BX86: - | BY86: - | BZ86: - | CA86: - | CB86: - | CC86: - | CD86: - | CE86: - | CF86: - | CG86: - | CH86: - | CI86: - | CJ86: - | CK86: - | CL86: - | CM86: - | CN86: 1893 | CO86: - | CP86: -9768 | CQ86: 7515 | CR86: 7863 | CS86: -5610 | CT86: 3857 | CU86: -2796 | CV86: -3963 | CW86: 2256 | CX86: 8360 | CY86: 2089 | CZ86: 88 | DA86: 1639 | DB86: 197 | DC86: 165 | DD86: 3670 | DE86: -8933 | DF86: 8759 | DG86: -1581 | DH86: 5425
A87: Obrigações sociais e trabalhistas | B87: Social and labor obligations | C87: 47600 | D87: 17872 | E87: 110468 | F87: -149511 | G87: 68771 | H87: 152296 | I87: 48603 | J87: 111202 | K87: -82198 | L87: 74689 | M87: 121730 | N87: 26559 | O87: 86675 | P87: -12983 | Q87: 21479 | R87: -58629 | S87: -95700 | T87: 59008 | U87: -82818 | V87: 60881 | W87: 76469 | X87: -2881 | Y87: 55558 | Z87: -17888 | AA87: 41680 | AB87: 27138 | AC87: -3751 | AD87: 53330 | AE87: -51894 | AF87: 29453 | AG87: 13554 | AH87: 1452 | AI87: 36739 | AJ87: -58781 | AK87: 34144 | AL87: 2790 | AM87: -42 | AN87: 41902 | AO87: -68657 | AP87: 29587 | AQ87: 44048 | AR87: -2624 | AS87: 61451 | AT87: -55734 | AU87: 40955 | AV87: 31737 | AW87: 35188 | AX87: -37517 | AY87: 23224 | AZ87: 10842 | BA87: 11944 | BB87: 1239 | BC87: 22315 | BD87: -36690 | BE87: 25080 | BF87: 37069 | BG87: -3547 | BH87: 30542 | BI87: -19304 | BJ87: 29378 | BK87: 14330 | BL87: -250 | BM87: 7321 | BN87: -16529 | BO87: 23788 | BP87: 22907 | BQ87: -1071 | BR87: 14571 | BS87: -19295 | BT87: 28702 | BU87: -1765 | BV87: -4958 | BW87: 7863 | BX87: -27837 | BY87: 23167 | BZ87: 14251 | CA87: -14182 | CB87: 13438 | CC87: -3967 | CD87: 18962 | CE87: 6779 | CF87: -2159 | CG87: 4113 | CH87: 2539 | CI87: 2286 | CJ87: 2427 | CK87: -4848 | CL87: 3596 | CM87: 2250 | CN87: 1429 | CO87: 1376 | CP87: -3176 | CQ87: 2669 | CR87: 251 | CS87: 1632 | CT87: 2915 | CU87: -2208 | CV87: 2130 | CW87: 1808 | CX87: 1185 | CY87: 5 | CZ87: -3515 | DA87: 2734 | DB87: -1320 | DC87: 2106 | DD87: 686 | DE87: -1224 | DF87: 536 | DG87: 734 | DH87: 640
A88: Impostos e contribuições a recolher e parcelados e provisão para imposto de renda e contribuição social | B88: Taxes and contributions in installments payable and provision for income tax and social contribution | C88: 1246535 | D88: 321798 | E88: 377950 | F88: 335118 | G88: 211669 | H88: 1461413 | I88: 253550 | J88: 561927 | K88: 381916 | L88: 264020 | M88: 745638 | N88: 191527 | O88: 232875 | P88: 135726 | Q88: 185510 | R88: 793410 | S88: 195071 | T88: 187616 | U88: 209030 | V88: 201693 | W88: 968755 | X88: 289914 | Y88: 286350 | Z88: 189912 | AA88: 202579 | AB88: 644899 | AC88: 89682 | AD88: 209179 | AE88: 176954 | AF88: 169084 | AG88: 970952 | AH88: 332543 | AI88: 275722 | AJ88: 190408 | AK88: 172279 | AL88: 823589 | AM88: 138209 | AN88: 299912 | AO88: 111926 | AP88: 273542 | AQ88: 746862 | AR88: 153751 | AS88: 221334 | AT88: 197110 | AU88: 174667 | AV88: 817944 | AW88: 239338 | AX88: 202229 | AY88: 223190 | AZ88: 153187 | BA88: 717079 | BB88: 179324 | BC88: 209515 | BD88: 212258 | BE88: 115982 | BF88: 120538 | BG88: 36691 | BH88: 221028 | BI88: 156270 | BJ88: 134386 | BK88: -27785 | BL88: -24854 | BM88: 155509 | BN88: 151523 | BO88: 75711 | BP88: 37955 | BQ88: -319958 | BR88: 145886 | BS88: 103979 | BT88: 108048 | BU88: -23929 | BV88: -288219 | BW88: 112230 | BX88: 84730 | BY88: 67330 | BZ88: 97058 | CA88: -151408 | CB88: 104323 | CC88: 77095 | CD88: 67048 | CE88: 136397 | CF88: -60335 | CG88: 75000 | CH88: 63342 | CI88: 58390 | CJ88: 54398 | CK88: -75505 | CL88: 77197 | CM88: 23323 | CN88: 29383 | CO88: 4586 | CP88: -108827 | CQ88: 44443 | CR88: 45433 | CS88: 23537 | CT88: 12792 | CU88: -46295 | CV88: 32672 | CW88: 10839 | CX88: 15576 | CY88: 6987 | CZ88: -37465 | DA88: 30947 | DB88: 1538 | DC88: 11967 | DD88: 1345 | DE88: 1246 | DF88: 1607 | DG88: -1545 | DH88: 37
A89: Pagamentos com imposto de renda e contribuição social | B89: Income statement and social contribution | C89: -1394663 | D89: -299648 | E89: -289704 | F89: -327609 | G89: -477702 | H89: -1002675 | I89: -232146 | J89: -245425 | K89: -211053 | L89: -314051 | M89: -784764 | N89: -147133 | O89: -124601 | P89: -167499 | Q89: -345531 | R89: -797407 | S89: -149360 | T89: -135761 | U89: -116012 | V89: -396274 | W89: -837569 | X89: -206035 | Y89: -172741 | Z89: -161594 | AA89: -297199 | AB89: -776188 | AC89: -173938 | AD89: -153561 | AE89: -164395 | AF89: -284294 | AG89: -806039 | AH89: -187757 | AI89: -176805 | AJ89: -153258 | AK89: -288219 | AL89: -882722 | AM89: -106310 | AN89: -256819 | AO89: -167034 | AP89: -352559 | AQ89: -783431 | AR89: -120463 | AS89: -158358 | AT89: -159701 | AU89: -344909 | AV89: -976872 | AW89: -168182 | AX89: -176791 | AY89: -386173 | AZ89: -245726 | BA89: -693131 | BB89: -165295 | BC89: -123687 | BD89: -190255 | BE89: -213894 | BF89: - | BG89: - | BH89: -167125 | BI89: -144205 | BJ89: -116507 | BK89: - | BL89: - | BM89: -141376 | BN89: -123960 | BO89: -120338 | BP89: - | BQ89: - | BR89: - | BS89: - | BT89: - | BU89: - | BV89: - | BW89: - | BX89: - | BY89: - | BZ89: - | CA89: - | CB89: - | CC89: - | CD89: - | CE89: - | CF89: - | CG89: - | CH89: - | CI89: - | CJ89: - | CK89: - | CL89: - | CM89: - | CN89: - | CO89: - | CP89: - | CQ89: - | CR89: - | CS89: - | CT89: - | CU89: - | CV89: - | CW89: - | CX89: - | CY89: - | CZ89: - | DA89: - | DB89: - | DC89: - | DD89: - | DE89: - | DF89: - | DG89: - | DH89: -
A90: Realização da provisão de manutenção | B90: Creation of provision for maintenance | C90: -146935 | D90: -42692 | E90: -48041 | F90: -43549 | G90: -12653 | H90: -30595 | I90: -11166 | J90: -9987 | K90: -4925 | L90: -4517 | M90: -85458 | N90: -17851 | O90: -14775 | P90: -40005 | Q90: -12827 | R90: -104622 | S90: -25212 | T90: -20834 | U90: -27549 | V90: -31027 | W90: -317478 | X90: -75967 | Y90: -86581 | Z90: -84970 | AA90: -69960 | AB90: -350293 | AC90: -106486 | AD90: -100634 | AE90: -75102 | AF90: -68071 | AG90: -268946 | AH90: -109654 | AI90: -58532 | AJ90: -59754 | AK90: -41006 | AL90: -211293 | AM90: -84369 | AN90: -73874 | AO90: -35090 | AP90: -17960 | AQ90: -177473 | AR90: -38348 | AS90: -47344 | AT90: -44400 | AU90: -47381 | AV90: -225535 | AW90: -67529 | AX90: -62123 | AY90: -38322 | AZ90: -57561 | BA90: -171637 | BB90: -45196 | BC90: -47183 | BD90: -40498 | BE90: -38760 | BF90: -269704 | BG90: -52543 | BH90: -62207 | BI90: -77801 | BJ90: -77153 | BK90: -343547 | BL90: -106615 | BM90: -100379 | BN90: -84146 | BO90: -52407 | BP90: -209815 | BQ90: -84987 | BR90: -57587 | BS90: -38824 | BT90: -28412 | BU90: -84224 | BV90: -84224 | BW90: - | BX90: - | BY90: - | BZ90: - | CA90: - | CB90: - | CC90: - | CD90: - | CE90: - | CF90: - | CG90: - | CH90: - | CI90: - | CJ90: - | CK90: - | CL90: - | CM90: - | CN90: - | CO90: - | CP90: - | CQ90: - | CR90: - | CS90: - | CT90: - | CU90: - | CV90: - | CW90: - | CX90: - | CY90: - | CZ90: - | DA90: - | DB90: - | DC90: - | DD90: - | DE90: - | DF90: - | DG90: - | DH90: -
A91: Provisão (liquidação) de contingências | B91: Provision for (settlement of) contingencies | C91: 0 | D91: 0 | E91: 0 | F91: 0 | G91: 0 | H91: 0 | I91: 0 | J91: 0 | K91: 0 | L91: 0 | M91: 0 | N91: - | O91: 0 | P91: - | Q91: - | R91: 0 | T91: - | U91: - | V91: - | W91: - | X91: - | Y91: - | Z91: - | AA91: - | AB91: - | AC91: - | AD91: - | AE91: - | AF91: - | AG91: - | AH91: - | AI91: - | AJ91: - | AK91: - | AL91: - | AM91: - | AN91: - | AO91: - | AP91: - | AQ91: - | AR91: - | AS91: - | AT91: - | AU91: - | AV91: - | AW91: - | AX91: - | AY91: - | AZ91: - | BA91: - | BB91: - | BC91: - | BD91: - | BE91: - | BF91: - | BG91: - | BH91: - | BI91: - | BJ91: - | BK91: - | BL91: - | BM91: - | BN91: - | BO91: - | BP91: -7336 | BQ91: -1294 | BR91: -2134 | BS91: -3745 | BT91: -163 | BU91: -3255 | BV91: -2016 | BW91: -44 | BX91: -111 | BY91: -1084 | BZ91: -1361 | CA91: -537 | CB91: -57 | CC91: - | CD91: -767 | CE91: 3281 | CF91: 3107 | CG91: -2286 | CH91: 1276 | CI91: 1184 | CJ91: 1582 | CK91: 472 | CL91: 15 | CM91: -639 | CN91: 1734 | CO91: -905 | CP91: 74311 | CQ91: -89496 | CR91: 14280 | CS91: - | CT91: - | CU91: - | CV91: 3107 | CW91: - | CX91: - | CY91: - | CZ91: - | DA91: - | DB91: - | DC91: - | DD91: - | DE91: - | DF91: - | DG91: - | DH91: -
A92: Obrigações com o poder concedente | B92: Obligations with the granting authority | C92: 91012 | D92: 45956 | E92: 34534 | F92: -418 | G92: 10940 | H92: 175869 | I92: 171661 | J92: 4841 | K92: -1872 | L92: 1239 | M92: -42342 | N92: -38853 | O92: 6788 | P92: -11920 | Q92: 1643 | R92: -88356 | S92: -58341 | T92: 3711 | U92: 612 | V92: -34338 | W92: -80430 | X92: 1832 | Y92: 7050 | Z92: -92977 | AA92: 3665 | AB92: -78548 | AC92: 3528 | AD92: 1161 | AE92: -85947 | AF92: 2710 | AG92: 12339 | AH92: 17935 | AI92: 2105 | AJ92: -10943 | AK92: 3242 | AL92: -311 | AM92: 2933 | AN92: 3142 | AO92: -8857 | AP92: 2471 | AQ92: -62836 | AR92: -15351 | AS92: 21798 | AT92: -71137 | AU92: 1854 | AV92: -42857 | AW92: -15726 | AX92: 16453 | AY92: -45831 | AZ92: 2247 | BA92: -458 | BB92: 17246 | BC92: -10882 | BD92: -6763 | BE92: -59 | BF92: 13500 | BG92: 17235 | BH92: 447 | BI92: -1730 | BJ92: -2452 | BK92: 47818 | BL92: 10965 | BM92: 1295 | BN92: 16548 | BO92: 19010 | BP92: 134806 | BQ92: 22454 | BR92: 19944 | BS92: 26262 | BT92: 66146 | BU92: 1750 | BV92: -1308 | BW92: 3726 | BX92: -110 | BY92: -558 | BZ92: 7977 | CA92: -9063 | CB92: 2168 | CC92: 14872 | CD92: - | CE92: - | CF92: 14393 | CG92: -1535 | CH92: -12858 | CI92: - | CJ92: -14867 | CK92: - | CL92: - | CM92: - | CN92: - | CO92: 17952 | CP92: - | CQ92: - | CR92: - | CS92: - | CT92: - | CU92: - | CV92: - | CW92: - | CX92: - | CY92: - | CZ92: - | DA92: - | DB92: - | DC92: - | DD92: - | DE92: - | DF92: - | DG92: - | DH92: -
A93: Pagamento de provisão para riscos cíveis, trabalhistas, tributários e previdenciários | B93: Payment of provision for civil, labor, tax and social security risks | C93: -202252 | D93: -134150 | E93: -35592 | F93: -19149 | G93: -13361 | H93: -61994 | I93: -31590 | J93: -13557 | K93: -8957 | L93: -7890 | M93: -65394 | N93: -12447 | O93: -38231 | P93: -7349.6 | Q93: -7366.4 | R93: -44280 | S93: -16654 | T93: -9573 | U93: -7595 | V93: -10458 | W93: -48845 | X93: -19276 | Y93: -1690 | Z93: -11299 | AA93: -16580 | AB93: -37873 | AC93: -2189 | AD93: -16046 | AE93: -12860 | AF93: -6778 | AG93: -36791 | AH93: -3118 | AI93: -17892 | AJ93: -9128 | AK93: -6653 | AL93: -29894 | AM93: -9633 | AN93: -8459 | AO93: -4950 | AP93: -6852 | AQ93: -54179 | AR93: -5801 | AS93: -7526 | AT93: -36670 | AU93: -4182 | AV93: -20165 | AW93: -5389 | AX93: -8758 | AY93: - | AZ93: -6018 | BA93: -11698 | BB93: 4370 | BC93: -3188 | BD93: -12880 | BE93: - | BF93: - | BG93: - | BH93: - | BI93: - | BJ93: - | BK93: - | BL93: - | BM93: - | BN93: - | BO93: - | BP93: - | BQ93: - | BR93: - | BS93: - | BT93: - | BU93: - | BV93: - | BW93: - | BX93: - | BY93: - | BZ93: - | CA93: - | CB93: - | CC93: - | CD93: - | CE93: - | CF93: - | CG93: - | CH93: - | CI93: - | CJ93: - | CK93: - | CL93: - | CM93: - | CN93: - | CO93: - | CP93: - | CQ93: - | CR93: - | CS93: - | CT93: - | CU93: - | CV93: - | CW93: - | CX93: - | CY93: - | CZ93: - | DA93: - | DB93: - | DC93: - | DD93: - | DE93: - | DF93: - | DG93: - | DH93: -
A94: Dividendos e juros sobre capital próprio a pagar | B94: Dividends and interest on equity payable | C94: 0 | D94: 0 | E94: 0 | F94: 0 | G94: 0 | H94: 0 | I94: 0 | J94: 0 | K94: 0 | L94: 0 | M94: 0 | N94: - | O94: 0 | P94: - | Q94: - | R94: 0 | T94: - | U94: - | V94: - | W94: - | X94: - | Y94: - | Z94: - | AA94: - | AB94: - | AC94: - | AD94: - | AE94: - | AF94: - | AG94: -30744 | AH94: -32640 | AI94: - | AJ94: - | AK94: - | AL94: - | AM94: - | AN94: - | AO94: - | AP94: - | AQ94: - | AR94: - | AS94: - | AT94: - | AU94: - | AV94: - | AW94: - | AX94: - | AY94: - | AZ94: - | BA94: - | BB94: - | BC94: - | BD94: - | BE94: - | BF94: - | BG94: - | BH94: 0 | BI94: 0 | BJ94: 0 | BK94: - | BL94: - | BM94: 0 | BN94: 830 | BO94: -830 | BP94: 4293 | BQ94: 4293 | BR94: - | BS94: - | BT94: - | BU94: 0 | BV94: - | BW94: - | BX94: - | BY94: - | BZ94: - | CA94: - | CB94: - | CC94: - | CD94: - | CE94: - | CF94: - | CG94: - | CH94: - | CI94: - | CJ94: - | CK94: - | CL94: - | CM94: - | CN94: - | CO94: - | CP94: - | CQ94: - | CR94: - | CS94: - | CT94: - | CU94: - | CV94: - | CW94: - | CX94: - | CY94: - | CZ94: - | DA94: - | DB94: - | DC94: - | DD94: - | DE94: - | DF94: - | DG94: - | DH94: -
A95: Receita diferida | B95: Deferred revenue | C95: 0 | D95: 697 | E95: 68866 | F95: -77683 | G95: 8120 | H95: -5428 | I95: -35777 | J95: 70627 | K95: 37814 | L95: -78092 | M95: 9489 | N95: 6131 | O95: 23052 | P95: -65609 | Q95: 45915 | R95: 94220 | S95: -95094 | T95: 11376 | U95: 63458 | V95: 114480 | W95: -33323 | X95: -18076 | Y95: -511 | Z95: -12029 | AA95: -2707 | AB95: 424746 | AC95: -19470 | AD95: 444216 | AE95: - | AF95: - | AG95: - | AH95: - | AI95: 1896 | AJ95: - | AK95: - | AL95: - | AM95: - | AN95: - | AO95: - | AP95: - | AQ95: - | AR95: - | AS95: - | AT95: - | AU95: - | AV95: - | AW95: - | AX95: - | AY95: - | AZ95: - | BA95: - | BB95: - | BC95: - | BD95: - | BE95: - | BF95: - | BG95: - | BH95: - | BI95: - | BJ95: - | BK95: - | BL95: - | BM95: - | BN95: - | BO95: - | BP95: - | BQ95: - | BR95: - | BS95: - | BT95: - | BU95: - | BV95: - | BW95: - | BX95: - | BY95: - | BZ95: - | CA95: - | CB95: - | CC95: - | CD95: - | CE95: - | CF95: - | CG95: - | CH95: - | CI95: - | CJ95: - | CK95: - | CL95: - | CM95: - | CN95: - | CO95: - | CP95: - | CQ95: - | CR95: - | CS95: - | CT95: - | CU95: - | CV95: - | CW95: - | CX95: - | CY95: - | CZ95: - | DA95: - | DB95: - | DC95: - | DD95: - | DE95: - | DF95: - | DG95: - | DH95: -
A96: Termo de autocomposição e acordo de leniência | B96: Settlement agreement and leniency agreement | C96: -2706 | D96: 0 | E96: -2706 | F96: 0 | G96: 0 | H96: 0 | I96: 0 | J96: 0 | K96: 0 | L96: 0 | M96: -296171 | N96: -55490 | O96: -86684 | P96: -86234 | Q96: -67763 | R96: -327790 | S96: -78094 | T96: -80260 | U96: -65417 | V96: -104019 | W96: -249025 | X96: -61792 | Y96: -60301 | Z96: -126932 | AA96: - | AB96: - | AC96: - | AD96: - | AE96: - | AF96: - | AG96: - | AH96: - | AI96: - | AJ96: - | AK96: - | AL96: - | AM96: - | AN96: - | AO96: - | AP96: - | AQ96: - | AR96: - | AS96: - | AT96: - | AU96: - | AV96: - | AW96: - | AX96: - | AY96: - | AZ96: - | BA96: - | BB96: - | BC96: - | BD96: - | BE96: - | BF96: - | BG96: - | BH96: - | BI96: - | BJ96: - | BK96: - | BL96: - | BM96: - | BN96: - | BO96: - | BP96: - | BQ96: - | BR96: - | BS96: - | BT96: - | BU96: - | BV96: - | BW96: - | BX96: - | BY96: - | BZ96: - | CA96: - | CB96: - | CC96: - | CD96: - | CE96: - | CF96: - | CG96: - | CH96: - | CI96: - | CJ96: - | CK96: - | CL96: - | CM96: - | CN96: - | CO96: - | CP96: - | CQ96: - | CR96: - | CS96: - | CT96: - | CU96: - | CV96: - | CW96: - | CX96: - | CY96: - | CZ96: - | DA96: - | DB96: - | DC96: - | DD96: - | DE96: - | DF96: - | DG96: - | DH96: -
A97: Mútuo com terceiros | B97: Loans with third parties | C97: -141705 | D97: -139558 | E97: -743 | F97: -702 | G97: -702 | H97: -2368 | I97: -668 | J97: -668 | K97: -569 | L97: -463 | M97: -803 | N97: -345 | O97: -226 | P97: -144 | Q97: -88 | R97: -492 | S97: -86 | T97: -92 | U97: -133 | V97: -181 | W97: -997 | X97: -218 | Y97: -266 | Z97: -513 | AA97: - | AB97: - | AC97: - | AD97: - | AE97: - | AF97: - | AG97: - | AH97: - | AI97: - | AJ97: - | AK97: - | AL97: - | AM97: - | AN97: - | AO97: - | AP97: - | AQ97: - | AR97: - | AS97: - | AT97: - | AU97: - | AV97: - | AW97: - | AX97: - | AY97: - | AZ97: - | BA97: - | BB97: - | BC97: - | BD97: - | BE97: - | BF97: - | BG97: - | BH97: - | BI97: - | BJ97: - | BK97: - | BL97: - | BM97: - | BN97: - | BO97: - | BP97: - | BQ97: - | BR97: - | BS97: - | BT97: - | BU97: - | BV97: - | BW97: - | BX97: - | BY97: - | BZ97: - | CA97: - | CB97: - | CC97: - | CD97: - | CE97: - | CF97: - | CG97: - | CH97: - | CI97: - | CJ97: - | CK97: - | CL97: - | CM97: - | CN97: - | CO97: - | CP97: - | CQ97: - | CR97: - | CS97: - | CT97: - | CU97: - | CV97: - | CW97: - | CX97: - | CY97: - | CZ97: - | DA97: - | DB97: - | DC97: - | DD97: - | DE97: - | DF97: - | DG97: - | DH97: -
A98: Impostos diferidos | B98: Deferred taxes | C98: -2129 | D98: -542 | E98: -537 | F98: -526 | G98: -524 | H98: -28144 | I98: -26601 | J98: -534 | K98: -490 | L98: -519 | M98: -2184 | N98: -544 | O98: -758 | P98: -528 | Q98: -354 | R98: -2482 | S98: -909 | T98: -536 | U98: -520 | V98: -517 | W98: 12082 | X98: 7986 | Y98: 4096 | Z98: - | AA98: - | AB98: - | AC98: - | AD98: - | AE98: - | AF98: - | AG98: - | AH98: - | AI98: - | AJ98: - | AK98: - | AL98: - | AM98: - | AN98: - | AO98: - | AP98: - | AQ98: - | AR98: - | AS98: - | AT98: - | AU98: - | AV98: - | AW98: - | AX98: - | AY98: - | AZ98: - | BA98: - | BB98: - | BC98: - | BD98: - | BE98: - | BF98: - | BG98: - | BH98: - | BI98: - | BJ98: - | BK98: - | BL98: - | BM98: - | BN98: - | BO98: - | BP98: - | BQ98: - | BR98: - | BS98: - | BT98: - | BU98: - | BV98: - | BW98: - | BX98: - | BY98: - | BZ98: - | CA98: - | CB98: - | CC98: - | CD98: - | CE98: - | CF98: - | CG98: - | CH98: - | CI98: - | CJ98: - | CK98: - | CL98: - | CM98: - | CN98: - | CO98: - | CP98: - | CQ98: - | CR98: - | CS98: - | CT98: - | CU98: - | CV98: - | CW98: - | CX98: - | CY98: - | CZ98: - | DA98: - | DB98: - | DC98: - | DD98: - | DE98: - | DF98: - | DG98: - | DH98: -
